Workbook

Sheet RRQ Allocations
D1: RRQ Type 1/
D2: T = Transportation
D3: P = Procurement | H3: % Residential | J3: % Residential | L3: % Bundled
B4: Allocation Methodology | D4: PPP = Public Purpose | F4: Description | H4: of Total Allocated | J4: that is Bundled 2/ | L4: of Total Allocated | N4: Authorizing Decision
B5: 100% Residential | D5: T | F5: 100% allocated to residential class | H5: 1 | J5: 0.8975890644 | L5: 0.8975890644 | N5: D.18-03-017 (for GHG)
B6: Core - Distribution | D6: T | H6: 0.8087646787 | J6: 0.8975890644 | L6: 0.812992294
B7: Distribution | D7: T | F7: • Marginal Cost using Rental Method for Customer Function and Marginal Cost of $373.74 for Distribution Function applied to peak day in avg. temp winter • Allocation to Small Commercial is capped at 17.717% with overage re-allocated to Residential | H7: 0.784859179 | J7: 0.8975890644 | L7: 0.8241155045 | N7: D.19-10-036
B8: ECPT - ALL | D8: T | H8: 0.2722742932 | J8: 0.8975890644 | L8: 0.3330589455
B9: ECPT - Core only | D9: T | F9: Core Brokerage Fee: The Core Brokerage Fee is part of the distribution revenue requirement. In transportation the RRQ is reduced and then it is recovered via the customers that pay PG&E procurement rates. Pension Contribution - GT&S Core: | H9: 0.6645587839 | J9: 0.8975890644 | L9: 0.8129201077 | N9: D.95-07-048 (for Core Brokerage Fee)
B10: ECPT - Noncore only | D10: T | H10: 0 | J10: 0 | L10: 0
B11: ECPT - 50% Core / 50% Noncore | D11: T | H11: 0.3322793919 | J11: 0.8975890644 | L11: 0.4064066796
B12: ECPT (excludes Covered Entities 3 yr avg vol) | D12: T | H12: 0.3579364261 | J12: 0.8975890644 | L12: 0.4375217629
B13: EE | D13: PPP | H13: 0.3384 | J13: 0.8975890644 | L13: 0.5263600131 | N13: D.19-10-036
B14: ESA | D14: PPP | H14: 1 | J14: 0.8975890644 | L14: 0.8975890644 | N14: D.19-10-036 D.95-12-053
B15: PPP ECPT | D15: PPP | H15: 0.3964019068 | J15: 0.8975890644 | L15: 0.4832992734
B16: SGIP allocation | D16: T | H16: 0.9155803564 | J16: 0.8975890644 | L16: 0.875994189
B17: CPUC Fee Allocation | D17: T | H17: 0.3675669459 | J17: 0.8975890644 | L17: 0.4477831178
B18: CAC Allocation | D18: T | H18: 0 | J18: 0 | L18: 0
B19: Storage Allocation (Procurement) | D19: P | H19: 0.7912905715 | J19: 1 | L19: 1
B20: Capacity Allocation (Procurement) | D20: P | H20: 0.7933288665 | J20: 1 | L20: 1
B21: ECPT - Core only (Procurement) | D21: P | F21: The Core Brokerage Fee is part of the distribution revenue requirement. In transportation the RRQ is reduced and then it is recovered via the customers that pay PG&E procurement rates. | H21: 0.7339650877 | J21: 1 | L21: 1 | N21: D.95-07-048 (for Core Brokerage Fee)
B22: 2023 GTS - Inventory Management | D22: T | F22: Adopted in 2023 GTS CARD | H22: 0.3591976846 | J22: 0.8975890644 | L22: 0.4303735271 | N22: D.24-03-002
B23: User Defined 1 | D23: T | F23: Short Description of Allocation
B24: User Defined 2 | D24: T | F24: Short Description of Allocation
B25: User Defined 3 | D25: T | F25: Short Description of Allocation
B29: NOTES:
B30: 1/ For User Defined allocations, user must select the RRQ type.
B31: =CONCATENATE("2/ If the allocation applies to the entire system, then the Bundled Residential percentage will be ",TEXT(J5,"0.00%"),". if the allocation applies only to Bundled, then the Bundled Residential percentage will be 100%.") -> 2/ If the allocation applies to the entire system, then the Bundled Residential percentage will be 89.76%. if the allocation applies only to Bundled, then the Bundled Residential percentage will be 100%.

Sheet Selected Data
A1: Summary of Selected Data
Q2: Revenue
Q3: Requirement
Q4: $000
A5: 1 | B5: Current total system-level revenue requirement that is used for defining the reporting threshold: | Q5: ='Incremental Rev Req'!D73 -> 7011426.794
B6: A | C6: One-percent reporting threshold | Q6: =Q5*0.01 -> 70114.26794
A8: 2 | B8: List of currently open proceedings that exceed the threshold for use of the affordability metrics (proceedings shaded gray filed prior to D.22-08-023):
B9: A | C9: A.24-09-015 | D9: TRRRMA (incremental RRQ reflected in Preliminary AGT) | Q9: ='Incremental Rev Req'!$D$99+'Incremental Rev Req'!$D$100 -> 0
B10: B | C10: A.24-11-009 | D10: 2024 Wildfire Mitigation and Catastrophic Events | Q10: ='Incremental Rev Req'!D86+'Incremental Rev Req'!D87 -> 72117.03317
B11: C | C11: A.25-03-010 | D11: 2026 Cost of Capital (incremental RRQ reflected in Preliminary AGT) | Q11: ='Incremental Rev Req'!D88+'Incremental Rev Req'!D89 -> 0
B12: D | C12: A.25-05-009 | D12: 2027 GRC (incremental from 2026 authorized RRQs) | Q12: =SUM('Incremental Rev Req'!O101:O108) -> 103036.4572
B13: E | C13: A.25-11-XXX | D13: Dixie and Kincade AB1054 Cost Recovery Proceeding Application | Q13: ='Incremental Rev Req'!D96+'Incremental Rev Req'!D97 -> 95666.69071
A14: 3 | B14: List of currently open proceedings for which affordability metrics have been filed:
B15: A | C15: A.24-09-015 | D15: TRRRMA (incremental RRQ reflected in Preliminary AGT) | Q15: ='Incremental Rev Req'!$D$99+'Incremental Rev Req'!$D$100 -> 0
B16: B | C16: A.24-11-009 | D16: 2024 Wildfire Mitigation and Catastrophic Events | Q16: ='Incremental Rev Req'!D86+'Incremental Rev Req'!D87 -> 72117.03317
B17: C | C17: A.25-03-010 | D17: 2026 Cost of Capital(incremental RRQ reflected in Preliminary AGT) | Q17: ='Incremental Rev Req'!D88+'Incremental Rev Req'!D89 -> 0
B18: D | C18: A.25-05-009 | D18: 2027 GRC (incremental from 2026 authorized RRQs) | Q18: =SUM('Incremental Rev Req'!O101:O108) -> 103036.4572
B19: E | C19: A.25-11-XXX | D19: Dixie and Kincade AB1054 Cost Recovery Proceeding Application | Q19: ='Incremental Rev Req'!D96+'Incremental Rev Req'!D97 -> 95666.69071
A20: 4 | B20: List of currently open proceedings that do not exceed the threshold for use of the affordability metrics (proceedings shaded gray filed prior to D.22-08-023):
B21: A | C21: A. 24-10-004 | D21: Billing Modernization | Q21: ='Incremental Rev Req'!$D$82+'Incremental Rev Req'!$D$83 -> 27630.63106
B22: B | C22: A.22-09-006 | D22: Hydrogen Demonstration Project | Q22: ='Incremental Rev Req'!$D$85 -> 3022.022937
B23: C | C23: A.24-03-011 | D23: Gas Advanced Metering Infrastructure (AMI) (incremental RRQ reflected in Preliminary AGT) | Q23: ='Incremental Rev Req'!$D$90+'Incremental Rev Req'!$D$91 -> 0
B24: D | C24: A.23-12-001 | D24: 2023 Wildfire Mitigation and Catastrophic Events | Q24: ='Incremental Rev Req'!$D$92+'Incremental Rev Req'!$D$93 -> 19557.80257
B25: E | C25: A.23-06-008 | D25: Wildfire Gas and Safety Costs | Q25: ='Incremental Rev Req'!$D$94+'Incremental Rev Req'!$D$95 -> 50806.55924
B26: F | C26: A.25-04-004 | D26: Hinkley Upgrade | Q26: ='Incremental Rev Req'!$D$81 -> 3170.008597
B27: G | C27: A.25-06-024 | D27: 2027 ESA/CARE Bridge Funding | Q27: ='Incremental Rev Req'!$D$79+'Incremental Rev Req'!$D$80 -> 57626.28105
B28: H
B29: I
B30: J
A32: 5 | B32: Total system-level revenue requirement if all pending revenue were granted in full: requests were granted in full
B33: A | C33: YE 2025 | Q33: ='Incremental Rev Req'!G73+'Incremental Rev Req'!M116 -> 6935209.051
B34: B | C34: YE 2026 | Q34: ='Incremental Rev Req'!H73+'Incremental Rev Req'!N116 -> 7181538.82
B35: C | C35: YE 2027 | Q35: ='Incremental Rev Req'!I73+'Incremental Rev Req'!O116 -> 6909942.837
B36: D | C36: YE 2028 | Q36: ='Incremental Rev Req'!J73+'Incremental Rev Req'!P116 -> 7114110.037
B37: E | C37: YE 2029 | Q37: ='Incremental Rev Req'!K73+'Incremental Rev Req'!Q116 -> 7372545.245
A39: 6 | B39: Illustrative bundled residential average rate (RAR) if all pending revenue were granted in full (from Cost and Rate Tracker (CRT) as submitted by utility): | R39: $/therm
B40: A | C40: =C33 -> YE 2025 | R40: 2.727336102
B41: B | C41: =C34 -> YE 2026 | R41: 2.788097617
B42: C | C42: =C35 -> YE 2027 | R42: 2.680803368
B43: D | C43: =C36 -> YE 2028 | R43: 2.765384082
B44: E | C44: =C37 -> YE 2029 | R44: 2.865596501
A46: 7 | B46: =CONCATENATE("Illustrative bundled residential average monthly bill corresponding to RAR above for typical customer in climate zone X using ",Summary!L16," therms for Non-CARE and ",Summary!L17," therms for CARE (from CRT as submitted by utility):") -> Illustrative bundled residential average monthly bill corresponding to RAR above for typical customer in climate zone X using 31 therms for Non-CARE and 26 therms for CARE (from CRT as submitted by utility): | S46: Non-CARE | T46: CARE
B47: A | C47: =C33 -> YE 2025 | S47: 89.05664404 | T47: 58.28999246
B48: B | C48: =C34 -> YE 2026 | S48: 86.73174827 | T48: 55.68663172
B49: C | C49: =C35 -> YE 2027 | S49: 83.25008304 | T49: 53.35214958
B50: D | C50: =C36 -> YE 2028 | S50: 85.98974566 | T50: 55.20684679
B51: E | C51: =C37 -> YE 2029 | S51: 89.25803837 | T51: 57.33827153

Sheet Caveats
A1: Cost and Rate Tracking Tool Caveats
A2: * The Quarterly Tracker performs high-level rate and bill calculation estimates, which will not produce rate or bill impacts that match PG&E’s filing-quality models.
A3: * The forecast assumes perfect ratemaking, and does not include balancing account balances beyond the current year.
A4: * Different rate components use simplified allocations that may not reflect actual revenue allocation and rate design.
A5: * This model produces illustrative rates based on a single average throughput forecast. Actual ratemaking uses multiple throughput forecasts depending on revenue requirement type. Therefore, differences in illustrative v. actual rates will exist.

Sheet Instructions
A1: INSTRUCTIONS TO RUN "BASIC" MODEL
A2: CLICK HERE FOR INSTRUCTIONS ON VALIDATING AGAINST BILL INSERT
B5: The "non-hypothetical" portion of this model produces illustrative rates and illustrative residential bill calculations based on selected user inputs.
B6: PLEASE DO NOT INSERT ROWS OR COLUMNS INTO THE SUMMARY
B7: To run the "non-hypothetical" portion of the model:
B9: 1. | C9: User drop down selections are highlighted in green.
B10: 2. | C10: In cell D3 of the "Summary" tab, from the dropdown choices, select the year for which illustrative rate impacts are desired (ILLUSTRATION 1).
B11: 3. | C11: In cell D4 of the "Summary" tab, select, from the dropdown choices, the baseline territory for which illustrative bill impacts are desired.
B12: 4. | C12: On the "Summary" tab, in the "Pending Proceedings" section beginning on line 7, indicate whether the RRQ associated with the proceeding should be included in the illustrative bill impact analysis
C13: by selecting from the dropdown choices in column D, a "Y" or "N" where "Y" means to include the RRQ in the analysis and "N" means to not include the RRQ in the analysis (ILLUSTRATION 1).
B14: 5. | C14: Create illustrative tiered residential rates by executing the "Run Residential Rate Tiering" macro (ILLUSTRATION 1).
C15: - note that, pursuant to D.19-10-036, Ordering Paragraph 4, the tier ratios change in January of each year based on the year selected in step 2. above as described in the table below.
E16: For 2026 revenues | F16: . | G16: 1.20 (Note that the initial tiering factor for 2025 has been set at 1.245 therefore the factor for 2026 will remain at the already established value)
E17: For 2027 + revenues | F17: . | G17: 1.2
C19: ILLUSTRATION 1: | G19: 2. | H19: 3. | I19: 4. | L19: 5.
B34: 5. | C34: In cell D4 of the "Summary" tab, from the dropdown choices, select the baseline territory for which illustrative bill impacts are desired.
B36: RRQ ALLOCATION OPTIONS:
B37: 1. | C37: On the "RRQ Allocations" tab there are spaces for the user to enter their own allocation methodology (ILLUSTRATION 2).
C38: NOTE that this tab has not been fully populated by PG&E.
C40: ILLUSTRATION 2
B80: 2. | C80: Alternate allocation methodologies may be selected on the "Incremental Rev Req" tab (ILLUSTRATION 3).
C82: ILLUSTRATION 3
A115: VALIDATING THE RESULTS OF THE "TYPICAL CUSTOMER" BILL AGAINST A BILL INSERT
B117: 1. | C117: The model is set up to accept separate "typical" therms for Non-CARE and CARE customers. (See screenshot below, yellow highlights.)
B118: 2. | C118: Ensure that the therms entered in the model match the therms used in the bill insert.
B119: 3. | C119: Ensure that only the revenue requirement being evaluated is included in the impact. (See step 4 above.)
B120: 4. | C120: Run the model as described in the instructions above.
B121: 5. | C121: Note that, because this is a simplified model, the results will not exactly match the results in the bill insert.

Sheet Summary
B1: PLEASE DO NOT INSERT ROWS OR COLUMNS
B2: User Inputs (in green highlighted cells - select from drop down menu): | J2: Assumptions:
C3: Illustrative Rate Impact for Year (2026-2029) | D3: 2026 | J3: Current Effective Rates | L3: 2026-01-01
C4: Baseline Region - (Residential bill) | D4: X | J4: Throughput Forecast | L4: 2023 CARD
J5: Illustrative Residential bill calculated using | L5: Schedule G-1, Basic, Single Family
J6: Illustrative Non-CARE bill impact calculated with average summer usage of | N6: =IF($D$4="ALL CLIMATE ZONES",SUMPRODUCT('Res Bill Impact'!$Q$22:$Q$30,'Res Bill Impact'!$W$22:$W$30),VLOOKUP(Summary!$D$4,'Res Bill Impact'!$P$22:$V$30,2,FALSE)) -> 18 | O6: therms per month
B7: Pending Proceedings | D7: Include in Impact (Y/N) | E7: Applicable Year(s) | J7: Illustrative Non-CARE bill impact calculated with average winter off-peak usage of | N7: =IF($D$4="ALL CLIMATE ZONES",SUMPRODUCT('Res Bill Impact'!$R$22:$R$30,'Res Bill Impact'!$W$22:$W$30),VLOOKUP(Summary!$D$4,'Res Bill Impact'!$P$22:$V$30,3,FALSE)) -> 45 | O7: therms per month
J8: Illustrative Non-CARE bill impact calculated with average winter on-peak usage of | N8: =IF($D$4="ALL CLIMATE ZONES",SUMPRODUCT('Res Bill Impact'!$S$22:$S$30,'Res Bill Impact'!$W$22:$W$30),VLOOKUP(Summary!$D$4,'Res Bill Impact'!$P$22:$V$30,4,FALSE)) -> 58 | O8: therms per month
B9: ='Incremental Rev Req'!A79 -> 2027 Energy Savings Assistance Bridge Funding | D9: N | E9: 2027 | J9: Illustrative CARE bill impact calculated with average summer usage of | N9: =IF($D$4="ALL CLIMATE ZONES",SUMPRODUCT('Res Bill Impact'!$T$22:$T$30,'Res Bill Impact'!$X$22:$X$30),VLOOKUP(Summary!$D$4,'Res Bill Impact'!$P$22:$V$30,5,FALSE)) -> 17 | O9: therms per month
B10: ='Incremental Rev Req'!A80 -> 2027 CARE Administrative Bridge Funding | D10: N | E10: 2027 | J10: Illustrative CARE bill impact calculated with average winter off-peak usage of | N10: =IF($D$4="ALL CLIMATE ZONES",SUMPRODUCT('Res Bill Impact'!$U$22:$U$30,'Res Bill Impact'!$X$22:$X$30),VLOOKUP(Summary!$D$4,'Res Bill Impact'!$P$22:$V$30,6,FALSE)) -> 34 | O10: therms per month
B11: ='Incremental Rev Req'!A81 -> Hinkley Upgrade | D11: N | E11: 2028-2029 | J11: Illustrative CARE bill impact calculated with average winter on-peak usage of | N11: =IF($D$4="ALL CLIMATE ZONES",SUMPRODUCT('Res Bill Impact'!$V$22:$V$30,'Res Bill Impact'!$X$22:$X$30),VLOOKUP(Summary!$D$4,'Res Bill Impact'!$P$22:$V$30,7,FALSE)) -> 43 | O11: therms per month
B12: ='Incremental Rev Req'!A82 -> Billing Modernization (Distribution) | D12: N | E12: 2026-2029 | J12: Average monthly usage is for all customers (Non-CARE and CARE) based on seasonal usage in | P12: 2024
B13: ='Incremental Rev Req'!A83 -> Billing Modernization (Transmission) | D13: N | E13: 2026-2029 | J13: Summer Season | L13: 7 | M13: months
B14: ='Incremental Rev Req'!A85 -> Hydrogen Demonstration Project (2027) | D14: N | E14: 2027-2029 | J14: Winter Season Off-peak | L14: 3 | M14: months
B15: ='Incremental Rev Req'!A86 -> 2024 Wildfire Mitigation and Catastrophic Events (distribution) | D15: N | E15: 2026-2029 | J15: Winter Season On-peak | L15: 2 | M15: months
B16: ='Incremental Rev Req'!A87 -> 2024 Wildfire Mitigation and Catastrophic Events (transmission) | D16: N | E16: 2026-2029 | J16: Typical Non-CARE Residential Customer usage | L16: 31 | M16: therms per month
B17: ='Incremental Rev Req'!A88 -> 2026 Cost of Capital (Distribution) | D17: N | E17: 2027-2029 | J17: Typical CARE Residential Customer usage | L17: 26 | M17: therms per month
B18: ='Incremental Rev Req'!A89 -> 2026 Cost of Capital (Transmission) | D18: N | E18: 2027-2029 | J18: Residential CARE Customers as Percent of Total Residential Customers | N18: 0.2272147033
B19: ='Incremental Rev Req'!A90 -> Gas Advanced Metering Infrastructure (AMI) (distribution) | D19: N | E19: 2026 | J19: Historic California Climate Credit | L19: 67.03190755
B20: ='Incremental Rev Req'!A91 -> Gas AMI (transmission) | D20: N | E20: 2026 | J20: Present California Climate Credit | L20: 48.0122072
B21: ='Incremental Rev Req'!A92 -> 2023 Wildfire Mitigation and Catastrophic Events (distribution) | D21: N | E21: 2026
B22: ='Incremental Rev Req'!A93 -> 2023 Wildfire Mitigation and Catastrophic Events (transmission) | D22: N | E22: 2026
B23: ='Incremental Rev Req'!A94 -> Wildfire Gas and Safety Costs (Distribution) Non-IRR | D23: N | E23: 2026
B24: ='Incremental Rev Req'!A95 -> Wildfire Gas and Safety Costs (Transmission) - Non IRR | D24: N | E24: 2026-2027
B25: ='Incremental Rev Req'!A96 -> Kincaid-Dixie (Distribution) | D25: N | E25: 2027
B26: ='Incremental Rev Req'!A97 -> Kincaid-Dixie (Generation) | D26: N | E26: 2027
B27: ='Incremental Rev Req'!A99 -> TRRRMA (Distribution) | D27: N | E27: 2026
B28: ='Incremental Rev Req'!A100 -> TRRRMA (Transmission) | D28: N | E28: 2026
B29: ='Incremental Rev Req'!A101 -> 2027 GRC - Gas Distribution | D29: N | E29: 2027-2029
B30: ='Incremental Rev Req'!A102 -> 2027 GRC - Core Local Transmission | D30: N | E30: 2027-2029
B31: ='Incremental Rev Req'!A103 -> 2027 GRC - Core Procurement (Intrastate Volumetric and Capacity) | D31: N | E31: 2027-2029
B32: ='Incremental Rev Req'!A104 -> 2027 GRC - Core Procurement (Storage) | D32: N | E32: 2027-2029
B33: ='Incremental Rev Req'!A105 -> 2027 GRC - Noncore Local Transmission | D33: N | E33: 2027-2029
B34: ='Incremental Rev Req'!A106 -> 2027 GRC - Customer Access Charge | D34: N | E34: 2027-2029
B35: ='Incremental Rev Req'!A107 -> 2027 GRC - Noncore Unbundled | D35: N | E35: 2027-2029
B36: ='Incremental Rev Req'!A108 -> 2027 GRC - Inventory Management | D36: N | E36: 2027-2029
B37: ='Incremental Rev Req'!A109 -> CFCA - NGSS Enduser Dist. Sub Acct Recovery | D37: N | E37: 2027-2029
B38: ='Incremental Rev Req'!A110 -> CFCA/NCA - NGSS Enduser Sub Acct Recovery | D38: N | E38: 2027-2029
B39: ='Incremental Rev Req'!A111 -> NCA - NGSS Enduser Sub Acct Recovery | D39: N | E39: 2027-2029
B43: Outputs:
D44: (A) | E44: (B) | F44: (C) | G44: (D) | H44: (D)/(A) | I44: (D)/(B) | J44: (D)/(C) | N44: (A) | O44: (B) | P44: (C) | Q44: (D) | R44: (D)/(A) | S44: (D)/(B) | T44: (D)/(C)
B45: Illustrative Bundled Average Rates - $ / therm | L45: Total System (Bundled + Unbundled) Illustrative Average Rates - $ / therm
B46: Customer Group | D46: 2025-01-01 | E46: =$L$3 -> 2026-01-01 | F46: =$D$3&" Illustrative Authorized" -> 2026 Illustrative Authorized | G46: =$D$3&" Illustrative w/Pending" -> 2026 Illustrative w/Pending | H46: ="% Change over "&TEXT($D$46,"mm/d/yyyy") -> % Change over 01/1/2025 | I46: ="% Change over "&TEXT($L$3,"mm/d/yyyy") -> % Change over 01/1/2026 | J46: % Change over Illustrative Authorized | L46: Customer Group | N46: =D46 -> 2025-01-01 | O46: =E46 -> 2026-01-01 | P46: 2026 Illustrative Authorized | Q46: 2026 Illustrative w/Pending | R46: % Change over 01/1/2025 | S46: % Change over 01/1/2026 | T46: % Change over Illustrative Authorized
B47: Residential | D47: 2.740615636 | E47: ='SAR and RAR'!H38 -> 2.738824988 | F47: ='SAR and RAR'!I38 -> 2.729835773 | G47: ='SAR and RAR'!J38 -> 2.729835773 | H47: =$G47/D47-1 -> -0.003933372789 | I47: -0.003282142647 | J47: 0 | L47: Residential (RAR) | N47: 2.497906086 | O47: ='SAR and RAR'!P38 -> 2.571636928 | P47: ='SAR and RAR'!Q38 -> 2.562598985 | Q47: ='SAR and RAR'!R38 -> 2.562598985 | R47: =$Q47/N47-1 -> 0.02589885146 | S47: -0.003514470869 | T47: 0
B48: System | D48: 2.539231894 | E48: ='SAR and RAR'!H39 -> 2.451351446 | F48: ='SAR and RAR'!I39 -> 2.441616945 | G48: ='SAR and RAR'!J39 -> 2.441616945 | H48: -0.03844270773 | I48: -0.003971075391 | J48: 0 | L48: System (SAR) | N48: 1.138563504 | O48: ='SAR and RAR'!P39 -> 1.056513451 | P48: ='SAR and RAR'!Q39 -> 1.056513451 | Q48: ='SAR and RAR'!R39 -> 1.056513451 | R48: -0.07206453814 | S48: 0 | T48: 0
L50: Illustrative system rate does not include illustrative procurement for transport only customers.
B51: =CONCATENATE("Illustrative Bundled Residential Monthly Average Bills - Baseline Territory ",$D$4," (Includes Climate Credit)") -> Illustrative Bundled Residential Monthly Average Bills - Baseline Territory X (Includes Climate Credit)
D52: =$D$46 -> 2025-01-01 | E52: =$E$46 -> 2026-01-01 | F52: =$F$46 -> 2026 Illustrative Authorized | G52: =$G$46 -> 2026 Illustrative w/Pending | H52: =$H$46 -> % Change over 01/1/2025 | I52: =$I$46 -> % Change over 01/1/2026 | J52: =$J$46 -> % Change over Illustrative Authorized
B53: Non-CARE | D53: =((D59*$L$13)+(D65*$L$14)+(D71*$L$15))/12-L19/12 -> 81.12045907 | E53: =((E59*$L$13)+(E65*$L$14)+(E71*$L$15))/12-L20/12 -> 82.31381621 | F53: =((F59*$L$13)+(F65*$L$14)+(F71*$L$15))/12-L20/12 -> 81.97176489 | G53: =((G59*$L$13)+(G65*$L$14)+(G71*$L$15))/12-L20/12 -> 82.09430178 | H53: =$G53/D53-1 -> 0.01200489644 | I53: =$G53/E53-1 -> -0.002666799344 | J53: =$G53/F53-1 -> 0.001494867013
B54: CARE | D54: =((D60*$L$13)+(D66*$L$14)+(D72*$L$15))/12-L19/12 -> 49.92360054 | E54: =((E60*$L$13)+(E66*$L$14)+(E72*$L$15))/12-L20/12 -> 51.56087725 | F54: =((F60*$L$13)+(F66*$L$14)+(F72*$L$15))/12-L20/12 -> 51.34045227 | G54: =((G60*$L$13)+(G66*$L$14)+(G72*$L$15))/12-L20/12 -> 51.42359678 | H54: =$G54/D54-1 -> 0.0300458346 | I54: -0.002662492939 | J54: 0.001619473602
B55: Total | D55: =((D61*$L$13)+(D67*$L$14)+(D73*$L$15))/12-L19/12 -> 74.03207412 | E55: =((E61*$L$13)+(E67*$L$14)+(E73*$L$15))/12-L20/12 -> 75.32629631 | F55: =((F61*$L$13)+(F67*$L$14)+(F73*$L$15))/12-L20/12 -> 75.01188029 | G55: =((G61*$L$13)+(G67*$L$14)+(G73*$L$15))/12-L20/12 -> 75.12546665 | H55: 0.01476917326 | I55: -0.002666129575 | J55: 0.00151424493
B57: =CONCATENATE("Illustrative Bundled Residential Monthly Average Bills - Summer - Baseline Territory ",$D$4) -> Illustrative Bundled Residential Monthly Average Bills - Summer - Baseline Territory X
D58: =$D$46 -> 2025-01-01 | E58: =$E$46 -> 2026-01-01 | F58: =$F$46 -> 2026 Illustrative Authorized | G58: =$G$46 -> 2026 Illustrative w/Pending | H58: =$H$46 -> % Change over 01/1/2025 | I58: =$I$46 -> % Change over 01/1/2026 | J58: =$J$46 -> % Change over Illustrative Authorized
B59: Non-CARE | D59: =VLOOKUP($D$4,'Res Bill Impact'!$B$37:$N$46,2,FALSE) -> 50.74348698 | E59: =VLOOKUP($D$4,'Res Bill Impact'!$B$37:$N$46,5,FALSE) -> 50.52506596 | F59: =VLOOKUP($D$4,'Res Bill Impact'!$B$37:$N$46,8,FALSE) -> 50.34188293 | G59: =VLOOKUP($D$4,'Res Bill Impact'!$B$37:$N$46,11,FALSE) -> 50.37763935 | H59: =$G59/D59-1 -> -0.007209745391 | I59: =$G59/E59-1 -> -0.002917890471 | J59: =$G59/F59-1 -> 0.000710271848
B60: CARE | D60: =VLOOKUP($D$4,'Res Bill Impact'!$B$52:$N$616,2,FALSE) -> 37.41662289 | E60: =VLOOKUP($D$4,'Res Bill Impact'!$B$52:$N$616,5,FALSE) -> 37.45434419 | F60: =VLOOKUP($D$4,'Res Bill Impact'!$B$52:$N$616,8,FALSE) -> 37.31424565 | G60: =VLOOKUP($D$4,'Res Bill Impact'!$B$52:$N$616,11,FALSE) -> 37.35233389 | H60: =$G60/D60-1 -> -0.001718193583 | I60: -0.00272359068 | J60: 0.001020742672
B61: Total | D61: =D59*(1-$N$18)+(Summary!D60*$N$18) -> 47.71542751 | E61: =E59*(1-$N$18)+(Summary!E60*$N$18) -> 47.55520579 | F61: =F59*(1-$N$18)+(Summary!F60*$N$18) -> 47.38181219 | G61: =G59*(1-$N$18)+(Summary!G60*$N$18) -> 47.41809844 | H61: -0.00623129844 | I61: -0.002883119814 | J61: 0.0007658264737
B63: =CONCATENATE("Illustrative Bundled Residential Monthly Average Bills - Winter Off-Peak - Baseline Territory ",$D$4) -> Illustrative Bundled Residential Monthly Average Bills - Winter Off-Peak - Baseline Territory X
D64: =$D$46 -> 2025-01-01 | E64: =$E$46 -> 2026-01-01 | F64: =$F$46 -> 2026 Illustrative Authorized | G64: =$G$46 -> 2026 Illustrative w/Pending | H64: =$H$46 -> % Change over 01/1/2025 | I64: =$I$46 -> % Change over 01/1/2026 | J64: =$J$46 -> % Change over Illustrative Authorized
B65: Non-CARE | D65: =VLOOKUP($D$4,'Res Bill Impact'!$B$37:$N$46,3,FALSE) -> 122.8577105 | E65: =VLOOKUP($D$4,'Res Bill Impact'!$B$37:$N$46,6,FALSE) -> 122.2893 | F65: =VLOOKUP($D$4,'Res Bill Impact'!$B$37:$N$46,9,FALSE) -> 121.7833038 | G65: =VLOOKUP($D$4,'Res Bill Impact'!$B$37:$N$46,12,FALSE) -> 122.0020553 | H65: =$G65/D65-1 -> -0.006964603059 | I65: =$G65/E65-1 -> -0.002348894513 | J65: =$G65/F65-1 -> 0.001796236197
B66: CARE | D66: =VLOOKUP($D$4,'Res Bill Impact'!$B$52:$N$616,3,FALSE) -> 73.09977462 | E66: =VLOOKUP($D$4,'Res Bill Impact'!$B$52:$N$616,6,FALSE) -> 73.16552684 | F66: =VLOOKUP($D$4,'Res Bill Impact'!$B$52:$N$616,9,FALSE) -> 72.86451654 | G66: =VLOOKUP($D$4,'Res Bill Impact'!$B$52:$N$616,12,FALSE) -> 72.99673971 | H66: =$G66/D66-1 -> -0.001409510567 | I66: -0.002306921536 | J66: 0.001814644254
B67: Total | D67: =D65*(1-$N$18)+(Summary!D66*$N$18) -> 111.5519759 | E67: =E65*(1-$N$18)+(Summary!E66*$N$18) -> 111.1276565 | F67: =F65*(1-$N$18)+(Summary!F66*$N$18) -> 110.668236 | G67: =G65*(1-$N$18)+(Summary!G66*$N$18) -> 110.8673271 | H67: -0.006137486917 | I67: -0.002342615512 | J67: 0.001798990029
B69: =CONCATENATE("Illustrative Bundled Residential Monthly Average Bills - Winter On-Peak - Baseline Territory ",$D$4) -> Illustrative Bundled Residential Monthly Average Bills - Winter On-Peak - Baseline Territory X
D70: =$D$46 -> 2025-01-01 | E70: =$E$46 -> 2026-01-01 | F70: =$F$46 -> 2026 Illustrative Authorized | G70: =$G$46 -> 2026 Illustrative w/Pending | H70: =$H$46 -> % Change over 01/1/2025 | I70: =$I$46 -> % Change over 01/1/2026 | J70: =$J$46 -> % Change over Illustrative Authorized
B71: Non-CARE | D71: =VLOOKUP($D$4,'Res Bill Impact'!$B$37:$N$46,4,FALSE) -> 158.349938 | E71: =VLOOKUP($D$4,'Res Bill Impact'!$B$37:$N$46,7,FALSE) -> 157.61732 | F71: =VLOOKUP($D$4,'Res Bill Impact'!$B$37:$N$46,10,FALSE) -> 156.9651471 | G71: =VLOOKUP($D$4,'Res Bill Impact'!$B$37:$N$46,13,FALSE) -> 157.2470935 | H71: =$G71/D71-1 -> -0.006964603059 | I71: =$G71/E71-1 -> -0.002348894513 | J71: =$G71/F71-1 -> 0.001796236197
B72: CARE | D72: =VLOOKUP($D$4,'Res Bill Impact'!$B$52:$N$616,4,FALSE) -> 92.44971496 | E72: =VLOOKUP($D$4,'Res Bill Impact'!$B$52:$N$616,7,FALSE) -> 92.53287218 | F72: =VLOOKUP($D$4,'Res Bill Impact'!$B$52:$N$616,10,FALSE) -> 92.15218268 | G72: =VLOOKUP($D$4,'Res Bill Impact'!$B$52:$N$616,13,FALSE) -> 92.31940611 | H72: =$G72/D72-1 -> -0.001409510567 | I72: -0.002306921536 | J72: 0.001814644254
B73: Total | D73: =D71*(1-$N$18)+(Summary!D72*$N$18) -> 143.3764384 | E73: =E71*(1-$N$18)+(Summary!E72*$N$18) -> 142.8291765 | F73: =F71*(1-$N$18)+(Summary!F72*$N$18) -> 142.2386886 | G73: =G71*(1-$N$18)+(Summary!G72*$N$18) -> 142.4945683 | H73: -0.00615073217 | I73: -0.002342715981 | J73: 0.001798945966
B76: =CONCATENATE("Essential Use Illustrative Bundled Residential Monthly Average Bills - Baseline Territory ",$D$4," (Includes Climate Credit)") -> Essential Use Illustrative Bundled Residential Monthly Average Bills - Baseline Territory X (Includes Climate Credit)
D77: =$D$46 -> 2025-01-01 | E77: =$E$46 -> 2026-01-01 | F77: =$F$46 -> 2026 Illustrative Authorized | G77: =$G$46 -> 2026 Illustrative w/Pending | H77: =$H$46 -> % Change over 01/1/2025 | I77: =$I$46 -> % Change over 01/1/2026 | J77: =$J$46 -> % Change over Illustrative Authorized
B78: Essential Use Non-CARE | D78: =((D84*$L$13)+(D90*$L$14)+(D96*$L$15))/12-L19/12 -> 76.55799027 | E78: =((E84*$L$13)+(E90*$L$14)+(E96*$L$15))/12-L20/12 -> 77.76291993 | F78: =((F84*$L$13)+(F90*$L$14)+(F96*$L$15))/12-L20/12 -> 77.42460541 | G78: =((G84*$L$13)+(G90*$L$14)+(G96*$L$15))/12-L20/12 -> 77.57086506 | H78: =$G78/D78-1 -> 0.0132301644 | I78: =$G78/E78-1 -> -0.002469748611 | J78: =$G78/F78-1 -> 0.001889059041
B79: Essential Use CARE | D79: =((D85*$L$13)+(D91*$L$14)+(D97*$L$15))/12-L19/12 -> 59.10189563 | E79: =((E85*$L$13)+(E91*$L$14)+(E97*$L$15))/12-L20/12 -> 60.74505651 | F79: =((F85*$L$13)+(F91*$L$14)+(F97*$L$15))/12-L20/12 -> 60.47868468 | G79: =((G85*$L$13)+(G91*$L$14)+(G97*$L$15))/12-L20/12 -> 60.5956924 | H79: =$G79/D79-1 -> 0.02527493835 | I79: -0.002458868599 | J79: =$G79/F79-1 -> 0.001934693542
B80: Total | D80: =((D86*$L$13)+(D92*$L$14)+(D98*$L$15))/12-L19/12 -> 72.5917089 | E80: =((E86*$L$13)+(E92*$L$14)+(E98*$L$15))/12-L20/12 -> 73.89621114 | F80: =((F86*$L$13)+(F92*$L$14)+(F98*$L$15))/12-L20/12 -> 73.57424306 | G80: =((G86*$L$13)+(G92*$L$14)+(G98*$L$15))/12-L20/12 -> 73.71385624 | H80: 0.01545834032 | I80: -0.002467716466 | J80: 0.001897582311
B82: =CONCATENATE("Essential Use Illustrative Bundled Residential Monthly Average Bills - Summer - Baseline Territory ",$D$4) -> Essential Use Illustrative Bundled Residential Monthly Average Bills - Summer - Baseline Territory X
D83: =$D$46 -> 2025-01-01 | E83: =$E$46 -> 2026-01-01 | F83: =$F$46 -> 2026 Illustrative Authorized | G83: =$G$46 -> 2026 Illustrative w/Pending | H83: =$H$46 -> % Change over 01/1/2025 | I83: =$I$46 -> % Change over 01/1/2026 | J83: =$J$46 -> % Change over Illustrative Authorized
B84: Essential Use Non-CARE | D84: =VLOOKUP($D$4,'Res Bill Impact'!$B$67:$N$76,2,FALSE) -> 40.69137468 | E84: =VLOOKUP($D$4,'Res Bill Impact'!$B$67:$N$76,5,FALSE) -> 40.50311295 | F84: =VLOOKUP($D$4,'Res Bill Impact'!$B$67:$N$76,8,FALSE) -> 40.33552328 | G84: =VLOOKUP($D$4,'Res Bill Impact'!$B$67:$N$76,11,FALSE) -> 40.40797541 | H84: =$G84/D84-1 -> -0.006964603059 | I84: =$G84/E84-1 -> -0.002348894513 | J84: =$G84/F84-1 -> 0.001796236197
B85: Essential Use CARE | D85: =VLOOKUP($D$4,'Res Bill Impact'!$B$82:$N$91,2,FALSE) -> 32.0442107 | E85: =VLOOKUP($D$4,'Res Bill Impact'!$B$82:$N$91,5,FALSE) -> 32.07303402 | F85: =VLOOKUP($D$4,'Res Bill Impact'!$B$82:$N$91,8,FALSE) -> 31.94108235 | G85: =VLOOKUP($D$4,'Res Bill Impact'!$B$82:$N$91,11,FALSE) -> 31.99904405 | H85: =$G85/D85-1 -> -0.001409510567 | I85: -0.002306921536 | J85: 0.001814644254
B86: Total | D86: =D84*(1-$N$18)+(Summary!D85*$N$18) -> 38.72661188 | E86: =E84*(1-$N$18)+(Summary!E85*$N$18) -> 38.58767507 | F86: =F84*(1-$N$18)+(Summary!F85*$N$18) -> 38.42818287 | G86: =G84*(1-$N$18)+(Summary!G85*$N$18) -> 38.49734256 | H86: -0.005920200802 | I86: -0.002340967718 | J86: 0.001799712713
B88: =CONCATENATE("Essential Use Illustrative Bundled Residential Monthly Average Bills - Winter Off-Peak - Baseline Territory ",$D$4) -> Essential Use Illustrative Bundled Residential Monthly Average Bills - Winter Off-Peak - Baseline Territory X
D89: =$D$46 -> 2025-01-01 | E89: =$E$46 -> 2026-01-01 | F89: =$F$46 -> 2026 Illustrative Authorized | G89: =$G$46 -> 2026 Illustrative w/Pending | H89: =$H$46 -> % Change over 01/1/2025 | I89: =$I$46 -> % Change over 01/1/2026 | J89: =$J$46 -> % Change over Illustrative Authorized
B90: Essential Use Non-CARE | D90: =VLOOKUP($D$4,'Res Bill Impact'!$B$67:$N$76,3,FALSE) -> 122.9045603 | E90: =VLOOKUP($D$4,'Res Bill Impact'!$B$67:$N$76,6,FALSE) -> 122.335933 | F90: =VLOOKUP($D$4,'Res Bill Impact'!$B$67:$N$76,9,FALSE) -> 121.8297438 | G90: =VLOOKUP($D$4,'Res Bill Impact'!$B$67:$N$76,12,FALSE) -> 122.0485788 | H90: =$G90/D90-1 -> -0.006964603059 | I90: =$G90/E90-1 -> -0.002348894513 | J90: =$G90/F90-1 -> 0.001796236197
B91: Essential Use CARE | D91: =VLOOKUP($D$4,'Res Bill Impact'!$B$82:$N$91,3,FALSE) -> 96.78659558 | E91: =VLOOKUP($D$4,'Res Bill Impact'!$B$82:$N$91,6,FALSE) -> 96.87365377 | F91: =VLOOKUP($D$4,'Res Bill Impact'!$B$82:$N$91,9,FALSE) -> 96.47510586 | G91: =VLOOKUP($D$4,'Res Bill Impact'!$B$82:$N$91,12,FALSE) -> 96.65017386 | H91: =$G91/D91-1 -> -0.001409510567 | I91: -0.002306921536 | J91: 0.001814644254
B92: Total | D92: =D90*(1-$N$18)+(Summary!D91*$N$18) -> 116.9701747 | E92: =E90*(1-$N$18)+(Summary!E91*$N$18) -> 116.5505288 | F92: =F90*(1-$N$18)+(Summary!F91*$N$18) -> 116.0687973 | G92: =G90*(1-$N$18)+(Summary!G91*$N$18) -> 116.2776877 | H92: -0.005920200802 | I92: -0.002340967718 | J92: 0.001799712713
B94: =CONCATENATE("Essential Use Illustrative Bundled Residential Monthly Average Bills - Winter On-Peak - Baseline Territory ",$D$4) -> Essential Use Illustrative Bundled Residential Monthly Average Bills - Winter On-Peak - Baseline Territory X
D95: =$D$46 -> 2025-01-01 | E95: =$E$46 -> 2026-01-01 | F95: =$F$46 -> 2026 Illustrative Authorized | G95: =$G$46 -> 2026 Illustrative w/Pending | H95: =$H$46 -> % Change over 01/1/2025 | I95: =$I$46 -> % Change over 01/1/2026 | J95: =$J$46 -> % Change over Illustrative Authorized
B96: Essential Use Non-CARE | D96: =VLOOKUP($D$4,'Res Bill Impact'!$B$67:$N$76,4,FALSE) -> 166.0872436 | E96: =VLOOKUP($D$4,'Res Bill Impact'!$B$67:$N$76,7,FALSE) -> 165.3188284 | F96: =VLOOKUP($D$4,'Res Bill Impact'!$B$67:$N$76,10,FALSE) -> 164.6347889 | G96: =VLOOKUP($D$4,'Res Bill Impact'!$B$67:$N$76,13,FALSE) -> 164.9305119 | H96: =$G96/D96-1 -> -0.006964603059 | I96: =$G96/E96-1 -> -0.002348894513 | J96: =$G96/F96-1 -> 0.001796236197
B97: Essential Use CARE | D97: =VLOOKUP($D$4,'Res Bill Impact'!$B$82:$N$91,4,FALSE) -> 130.7926967 | E97: =VLOOKUP($D$4,'Res Bill Impact'!$B$82:$N$91,7,FALSE) -> 130.9103429 | F97: =VLOOKUP($D$4,'Res Bill Impact'!$B$82:$N$91,10,FALSE) -> 130.3717647 | G97: =VLOOKUP($D$4,'Res Bill Impact'!$B$82:$N$91,13,FALSE) -> 130.608343 | H97: =$G97/D97-1 -> -0.001409510567 | I97: -0.002306921536 | J97: 0.001814644254
B98: Total | D98: =D96*(1-$N$18)+(Summary!D97*$N$18) -> 158.0678036 | E98: =E96*(1-$N$18)+(Summary!E97*$N$18) -> 157.5007146 | F98: =F96*(1-$N$18)+(Summary!F97*$N$18) -> 156.849726 | G98: =G96*(1-$N$18)+(Summary!G97*$N$18) -> 157.1320105 | H98: -0.005920200802 | I98: -0.002340967718 | J98: 0.001799712713
B101: =CONCATENATE("Typical Customer Illustrative Bundled Residential Monthly Average Bills - Baseline Territory ",$D$4," (Includes Climate Credit)") -> Typical Customer Illustrative Bundled Residential Monthly Average Bills - Baseline Territory X (Includes Climate Credit)
D102: =$D$46 -> 2025-01-01 | E102: =$E$46 -> 2026-01-01 | F102: =$F$46 -> 2026 Illustrative Authorized | G102: =$G$46 -> 2026 Illustrative w/Pending | H102: =$H$46 -> % Change over 01/1/2025 | I102: =$I$46 -> % Change over 01/1/2026 | J102: =$J$46 -> % Change over Illustrative Authorized
B103: =CONCATENATE($L$16," Therms Monthly Usage - Non-CARE") -> 31 Therms Monthly Usage - Non-CARE | D103: =((D109*$L$13)+(D115*$L$14)+(D121*$L$15))/12-L19/12 -> 83.90332741 | E103: =((E109*$L$13)+(E115*$L$14)+(E121*$L$15))/12-L20/12 -> 85.12385538 | F103: =((F109*$L$13)+(F115*$L$14)+(F121*$L$15))/12-L20/12 -> 84.83356054 | G103: =((G109*$L$13)+(G115*$L$14)+(G121*$L$15))/12-L20/12 -> 84.82731632 | H103: =$G103/D103-1 -> 0.01101254199 | I103: =$G103/E103-1 -> -0.003483618737 | J103: =$G103/F103-1 -> -7.360548441e-05
B104: =CONCATENATE($L$17," Therms Monthly Usage - CARE") -> 26 Therms Monthly Usage - CARE | D104: =((D110*$L$13)+(D116*$L$14)+(D122*$L$15))/12-L19/12 -> 52.99074711 | E104: =((E110*$L$13)+(E116*$L$14)+(E122*$L$15))/12-L20/12 -> 54.64096761 | F104: =((F110*$L$13)+(F116*$L$14)+(F122*$L$15))/12-L20/12 -> 54.44292405 | G104: =((G110*$L$13)+(G116*$L$14)+(G122*$L$15))/12-L20/12 -> 54.45748583 | H104: =$G104/D104-1 -> 0.02767914776 | I104: -0.003357952688 | J104: 0.0002674686207
B105: Total | D105: =((D111*$L$13)+(D117*$L$14)+(D123*$L$15))/12-L19/12 -> 76.87953465 | E105: =((E111*$L$13)+(E117*$L$14)+(E123*$L$15))/12-L20/12 -> 78.19769508 | F105: =((F111*$L$13)+(F117*$L$14)+(F123*$L$15))/12-L20/12 -> 77.92836109 | G105: =((G111*$L$13)+(G117*$L$14)+(G123*$L$15))/12-L20/12 -> 77.9268443 | H105: 0.01362273661 | I105: -0.003463667087 | J105: -1.946388519e-05
B107: =CONCATENATE("Typical Customer Illustrative Bundled Residential Monthly Average Bills - Summer - Baseline Territory ",$D$4) -> Typical Customer Illustrative Bundled Residential Monthly Average Bills - Summer - Baseline Territory X
D108: =$D$46 -> 2025-01-01 | E108: =$E$46 -> 2026-01-01 | F108: =$F$46 -> 2026 Illustrative Authorized | G108: =$G$46 -> 2026 Illustrative w/Pending | H108: =$H$46 -> % Change over 01/1/2025 | I108: =$I$46 -> % Change over 01/1/2026 | J108: =$J$46 -> % Change over Illustrative Authorized
B109: =CONCATENATE($L$16," Therms Monthly Usage - Non-CARE") -> 31 Therms Monthly Usage - Non-CARE | D109: =VLOOKUP($D$4,'Res Bill Impact'!$B$97:$N$106,2,FALSE) -> 92.95646828 | E109: =VLOOKUP($D$4,'Res Bill Impact'!$B$97:$N$106,5,FALSE) -> 92.61139596 | F109: =VLOOKUP($D$4,'Res Bill Impact'!$B$97:$N$106,8,FALSE) -> 92.36272994 | G109: =VLOOKUP($D$4,'Res Bill Impact'!$B$97:$N$106,11,FALSE) -> 92.24438591 | H109: =$G109/D109-1 -> -0.007660385409 | I109: =$G109/E109-1 -> -0.003962903842 | J109: =$G109/F109-1 -> -0.001281296414
B110: =CONCATENATE($L$17," Therms Monthly Usage - CARE") -> 26 Therms Monthly Usage - CARE | D110: =VLOOKUP($D$4,'Res Bill Impact'!$B$112:$N$121,2,FALSE) -> 60.48881923 | E110: =VLOOKUP($D$4,'Res Bill Impact'!$B$112:$N$121,5,FALSE) -> 60.56475353 | F110: =VLOOKUP($D$4,'Res Bill Impact'!$B$112:$N$121,8,FALSE) -> 60.38966768 | G110: =VLOOKUP($D$4,'Res Bill Impact'!$B$112:$N$121,11,FALSE) -> 60.34240798 | H110: =$G110/D110-1 -> -0.002420467953 | I110: -0.003671203755 | J110: -0.0007825792782
B111: Total | D111: =D109*(1-$N$18)+(Summary!D110*$N$18) -> 85.57934103 | E111: =E109*(1-$N$18)+(Summary!E110*$N$18) -> 85.32992761 | F111: =F109*(1-$N$18)+(Summary!F110*$N$18) -> 85.09798009 | G111: =G109*(1-$N$18)+(Summary!G110*$N$18) -> 84.99578746 | H111: -0.006818860363 | I111: -0.003915861215 | J111: -0.001200881962
B113: =CONCATENATE("Typical Customer Illustrative Bundled Residential Monthly Average Bills - Winter Off-Peak - Baseline Territory ",$D$4) -> Typical Customer Illustrative Bundled Residential Monthly Average Bills - Winter Off-Peak - Baseline Territory X
D114: =$D$46 -> 2025-01-01 | E114: =$E$46 -> 2026-01-01 | F114: =$F$46 -> 2026 Illustrative Authorized | G114: =$G$46 -> 2026 Illustrative w/Pending | H114: =$H$46 -> % Change over 01/1/2025 | I114: =$I$46 -> % Change over 01/1/2026 | J114: =$J$46 -> % Change over Illustrative Authorized
B115: =CONCATENATE($L$16," Therms Monthly Usage - Non-CARE") -> 31 Therms Monthly Usage - Non-CARE | D115: =VLOOKUP($D$4,'Res Bill Impact'!$B$97:$N$106,3,FALSE) -> 84.63531169 | E115: =VLOOKUP($D$4,'Res Bill Impact'!$B$97:$N$106,6,FALSE) -> 84.24374 | F115: =VLOOKUP($D$4,'Res Bill Impact'!$B$97:$N$106,9,FALSE) -> 83.89516481 | G115: =VLOOKUP($D$4,'Res Bill Impact'!$B$97:$N$106,12,FALSE) -> 84.04586034 | H115: =$G115/D115-1 -> -0.006964603059 | I115: =$G115/E115-1 -> -0.002348894513 | J115: =$G115/F115-1 -> 0.001796236197
B116: =CONCATENATE($L$17," Therms Monthly Usage - CARE") -> 26 Therms Monthly Usage - CARE | D116: =VLOOKUP($D$4,'Res Bill Impact'!$B$112:$N$121,3,FALSE) -> 55.89982765 | E116: =VLOOKUP($D$4,'Res Bill Impact'!$B$112:$N$121,6,FALSE) -> 55.95010876 | F116: =VLOOKUP($D$4,'Res Bill Impact'!$B$112:$N$121,9,FALSE) -> 55.71992441 | G116: =VLOOKUP($D$4,'Res Bill Impact'!$B$112:$N$121,12,FALSE) -> 55.82103625 | H116: =$G116/D116-1 -> -0.001409510567 | I116: -0.002306921536 | J116: 0.001814644254
B117: Total | D117: =D115*(1-$N$18)+(Summary!D116*$N$18) -> 78.10618721 | E117: =E115*(1-$N$18)+(Summary!E116*$N$18) -> 77.81501097 | F117: =F115*(1-$N$18)+(Summary!F116*$N$18) -> 77.49333592 | G117: =G115*(1-$N$18)+(Summary!G116*$N$18) -> 77.63276531 | H117: -0.006061259907 | I117: -0.002342037362 | J117: 0.001799243593
B119: =CONCATENATE("Typical Customer Illustrative Bundled Residential Monthly Average Bills - Winter On-Peak - Baseline Territory ",$D$4) -> Typical Customer Illustrative Bundled Residential Monthly Average Bills - Winter On-Peak - Baseline Territory X
D120: =$D$46 -> 2025-01-01 | E120: =$E$46 -> 2026-01-01 | F120: =$F$46 -> 2026 Illustrative Authorized | G120: =$G$46 -> 2026 Illustrative w/Pending | H120: =$H$46 -> % Change over 01/1/2025 | I120: =$I$46 -> % Change over 01/1/2026 | J120: =$J$46 -> % Change over Illustrative Authorized
B121: =CONCATENATE($L$16," Therms Monthly Usage - Non-CARE") -> 31 Therms Monthly Usage - Non-CARE | D121: =VLOOKUP($D$4,'Res Bill Impact'!$B$97:$N$106,4,FALSE) -> 84.63531169 | E121: =VLOOKUP($D$4,'Res Bill Impact'!$B$97:$N$106,7,FALSE) -> 84.24374 | F121: =VLOOKUP($D$4,'Res Bill Impact'!$B$97:$N$106,10,FALSE) -> 83.89516481 | G121: =VLOOKUP($D$4,'Res Bill Impact'!$B$97:$N$106,13,FALSE) -> 84.04586034 | H121: =$G121/D121-1 -> -0.006964603059 | I121: =$G121/E121-1 -> -0.002348894513 | J121: =$G121/F121-1 -> 0.001796236197
B122: =CONCATENATE($L$17," Therms Monthly Usage - CARE") -> 26 Therms Monthly Usage - CARE | D122: =VLOOKUP($D$4,'Res Bill Impact'!$B$112:$N$121,4,FALSE) -> 55.89982765 | E122: =VLOOKUP($D$4,'Res Bill Impact'!$B$112:$N$121,7,FALSE) -> 55.95010876 | F122: =VLOOKUP($D$4,'Res Bill Impact'!$B$112:$N$121,10,FALSE) -> 55.71992441 | G122: =VLOOKUP($D$4,'Res Bill Impact'!$B$112:$N$121,13,FALSE) -> 55.82103625 | H122: =$G122/D122-1 -> -0.001409510567 | I122: -0.002306921536 | J122: 0.001814644254
B123: Total | D123: =D121*(1-$N$18)+(Summary!D122*$N$18) -> 78.10618721 | E123: =E121*(1-$N$18)+(Summary!E122*$N$18) -> 77.81501097 | F123: =F121*(1-$N$18)+(Summary!F122*$N$18) -> 77.49333592 | G123: =G121*(1-$N$18)+(Summary!G122*$N$18) -> 77.63276531 | H123: -0.006061259907 | I123: -0.002342037362 | J123: 0.001799243593

Sheet Res Bill Impact
A1: *NOTE: This model produces illustrative rates based on a single average throughput forecast. Actual ratemaking uses multiple throughput forecasts depending on revenue requirement type. Therefore, differences in illustrative v. actual rates will exist.
E3: Schedule G-1 | P3: Schedule GL-1
E4: =Summary!L4 -> 2023 CARD | F4: =Summary!L3 -> 2026-01-01 | G4: =Summary!L3 -> 2026-01-01 | H4: Illustrative Proposed | I4: Illustrative Proposed | J4: Illustrative Proposed | K4: Illustrative Proposed | P4: =E4 -> 2023 CARD | Q4: =Summary!L3 -> 2026-01-01 | R4: =Summary!L3 -> 2026-01-01 | S4: Illustrative Proposed | T4: Illustrative Proposed | U4: Illustrative Proposed | V4: Illustrative Proposed
E5: Throughput Forecast | F5: Rates (w/illustrative procrement) | G5: Revenue | H5: Authorized Rates (w/illustrative procrement) | I5: Authorized Revenue | J5: w/Pending Rates (w/illustrative procrement) | K5: w/Pending Revenue | P5: Throughput Forecast | Q5: Rates (w/illustrative procrement) | R5: Revenue | S5: Authorized Rates (w/illustrative procrement) | T5: Authorized Revenue | U5: w/Pending Rates (w/illustrative procrement) | V5: w/Pending Revenue
D7: Baseline - Summer | E7: 248852.0342 | F7: 2.71754 | G7: =F7*E7 -> 676265.3571 | H7: =Res_RD!L49 -> 2.706295639 | I7: =E7*H7 -> 673467.175 | J7: =Res_RD!AC49 -> 2.711156785 | K7: =E7*J7 -> 674676.8811 | O7: Baseline - Summer | P7: 70140.404 | Q7: 2.15192726 | R7: =Q7*P7 -> 150937.0474 | S7: =Res_RD!H61 -> 2.143074016 | T7: =P7*S7 -> 150316.0773 | U7: =Res_RD!Y61 -> 2.146962933 | V7: =P7*U7 -> 150588.8475
D8: - Winter | E8: 574813.2918 | F8: =F7 -> 2.71754 | G8: =F8*E8 -> 1562078.113 | H8: =H7 -> 2.706295639 | I8: =E8*H8 -> 1555614.705 | J8: =J7 -> 2.711156785 | K8: =E8*J8 -> 1558408.956 | O8: - Winter | P8: 170272.5746 | Q8: =Q7 -> 2.15192726 | R8: =Q8*P8 -> 366414.1948 | S8: =S7 -> 2.143074016 | T8: =P8*S8 -> 364906.7301 | U8: =U7 -> 2.146962933 | V8: =P8*U8 -> 365568.906
D9: Over Baseline - Summer | E9: 106674.2451 | F9: 3.23741 | G9: =F9*E9 -> 345348.2678 | H9: =Res_RD!L50 -> 3.232372847 | I9: =E9*H9 -> 344810.9333 | J9: =Res_RD!AC50 -> 3.220518966 | K9: =E9*J9 -> 343546.4294 | O9: Over Baseline - Summer | P9: 30618.99766 | Q9: 2.56782326 | R9: =Q9*P9 -> 78624.17438 | S9: =Res_RD!H62 -> 2.563935782 | T9: =P9*S9 -> 78505.1437 | U9: =Res_RD!Y62 -> 2.554452677 | V9: =P9*U9 -> 78214.78053
D10: - Winter | E10: 234628.5976 | F10: =F9 -> 3.23741 | G10: =F10*E10 -> 759588.9681 | H10: =H9 -> 3.232372847 | I10: =E10*H10 -> 758407.1079 | J10: =J9 -> 3.220518966 | K10: =E10*J10 -> 755625.8484 | O10: - Winter | P10: 59181.49733 | Q10: =Q9 -> 2.56782326 | R10: =Q10*P10 -> 151967.6254 | S10: =S9 -> 2.563935782 | T10: =P10*S10 -> 151737.5586 | U10: =U9 -> 2.554452677 | V10: =P10*U10 -> 151176.3343
F12: =SUM(G7:G10)/SUM($E$7:$E$10) -> 2.869847259 | H12: =SUM(I7:I10)/SUM($E$7:$E$10) -> 2.860421435 | J12: =SUM(K7:K10)/SUM($E$7:$E$10) -> 2.860385549 | Q12: =SUM(R7:R10)/SUM($P$7:$P$10) -> 2.265028843 | S12: =SUM(T7:T10)/SUM($P$7:$P$10) -> 2.257526023 | U12: =SUM(V7:V10)/SUM($P$7:$P$10) -> 2.257778462
P19: 2024 Recorded Data - Average Monthly Usage - Therms
B20: SCHEDULE G-1 RATES ($/therm) | E20: Illustrative Proposed | F20: Illustrative Proposed | H20: MONTHLY BASELINE QUANTITIES -BASIC (Therms) | P20: Climate Zone | Q20: Summer | R20: Winter Off-Peak | S20: Winter On-Peak | T20: Summer | U20: Winter Off-Peak | V20: Winter On-Peak | W20: Sample Population Weight
B21: Rates | C21: 2025-01-01 | D21: =Summary!L3 -> 2026-01-01 | E21: Authorized | F21: w/Pending | H21: Climate Zone | I21: Summer 2022 | J21: Winter 2022 Off-Peak | K21: Winter 2022 On-Peak | Q21: Non-CARE | T21: CARE | W21: Non-CARE | X21: CARE
B22: Tier 1 | C22: 2.730171345 | D22: =F7 -> 2.71754 | E22: =H7 -> 2.706295639 | F22: =J7 -> 2.711156785 | H22: P | I22: 11.86263 | J22: 57.18396 | K22: 66.61323 | P22: P | Q22: 17 | R22: 57 | S22: 68 | T22: 14 | U22: 46 | V22: 53 | W22: 0.003341401518 | X22: 0.004503685182
B23: Tier 2 | C23: 3.247152408 | D23: =F9 -> 3.23741 | E23: =H9 -> 3.232372847 | F23: =J9 -> 3.220518966 | H23: Q | I23: 17.03352 | J23: 45.01716 | K23: 60.834 | P23: Q | Q23: INCLUDED WITH TERRITORY X
H24: R | I24: 10.95012 | J24: 37.71708 | K24: 55.05477 | P24: R | Q24: 14 | R24: 39 | S24: 56 | T24: 15 | U24: 35 | V24: 49 | W24: 0.07435750216 | X24: 0.1809320012
H25: S | I25: 11.86263 | J25: 41.97546 | K25: 59.00898 | P25: S | Q25: 15 | R25: 43 | S25: 60 | T25: 16 | U25: 39 | V25: 53 | W25: 0.318942723 | X25: 0.3417443461
B26: SCHEDULE GL-1 RATES ($/therm) | E26: Illustrative Proposed | F26: Illustrative Proposed | H26: T | I26: 17.03352 | J26: 39.84627 | K26: 51.10056 | P26: T | Q26: 19 | R26: 36 | S26: 44 | T26: 20 | U26: 31 | V26: 36 | W26: 0.1962030909 | X26: 0.1477905969
B27: Rates | C27: =C21 -> 2025-01-01 | D27: =D21 -> 2026-01-01 | E27: Authorized | F27: w/Pending | H27: V | I27: 17.94603 | J27: 45.92967 | K27: 52.01307 | P27: V | Q27: 21 | R27: 45 | S27: 48 | T27: 22 | U27: 43 | V27: 45 | W27: 0.008620750838 | X27: 0.0127027882
B28: Tier 1 | C28: 2.149993371 | D28: =Q7 -> 2.15192726 | E28: =S7 -> 2.143074016 | F28: =U7 -> 2.146962933 | H28: W | I28: 11.86263 | J28: 34.67538 | K28: 51.10056 | P28: W | Q28: 14 | R28: 33 | S28: 51 | T28: 17 | U28: 34 | V28: 49 | W28: 0.01760210135 | X28: 0.06922059152
B29: Tier 2 | C29: 2.563577371 | D29: =Q9 -> 2.56782326 | E29: =S9 -> 2.563935782 | F29: =U9 -> 2.554452677 | H29: X | I29: 14.90433 | J29: 45.01716 | K29: 60.834 | P29: X | Q29: 18 | R29: 45 | S29: 58 | T29: 17 | U29: 34 | V29: 43 | W29: 0.3803055187 | X29: 0.2421472582
H30: Y | I30: 21.90024 | J30: 67.52574 | K30: 78.47586 | P30: Y | Q30: 23 | R30: 69 | S30: 79 | T30: 21 | U30: 60 | V30: 68 | W30: 0.0006269115222 | X30: 0.0009587327878
N33: Daily to Monthly Conversion Factor | O33: 30.417
C34: NON-CARE
C35: =C27 -> 2025-01-01 | F35: =D27 -> 2026-01-01 | I35: =CONCATENATE(E20," ",E21) -> Illustrative Proposed Authorized | L35: =CONCATENATE(F20," ",F21) -> Illustrative Proposed w/Pending
C36: Summer | D36: Winter Off-Peak | E36: Winter On-Peak | F36: Summer | G36: Winter Off-Peak | H36: Winter On-Peak | I36: Summer | J36: Winter Off-Peak | K36: Winter On-Peak | L36: Summer | M36: Winter Off-Peak | N36: Winter On-Peak
B37: P | C37: =IF(Q22>I22,C$22*I22+C$23*(Q22-I22),Q22*C$22) -> 49.06883587 | D37: =IF(R22>J22,C$22*J22+C$23*(R22-J22),R22*C$22) -> 155.6197667 | E37: =IF(S22>K22,C$22*K22+C$23*(S22-K22),S22*C$22) -> 186.3685853 | F37: =IF(Q22>I22,D$22*I22+D$23*(Q22-I22),Q22*D$22) -> 48.86894454 | G37: =IF(R22>J22,D$22*J22+D$23*(R22-J22),R22*D$22) -> 154.89978 | H37: =IF(S22>K22,D$22*K22+D$23*(S22-K22),S22*D$22) -> 185.5136601 | I37: =IF(Q22>I22,E$22*I22+E$23*(Q22-I22),Q22*E$22) -> 48.70967913 | J37: =IF(R22>J22,E$22*J22+E$23*(R22-J22),R22*E$22) -> 154.2588514 | K37: =IF(S22>K22,E$22*K22+E$23*(S22-K22),S22*E$22) -> 184.7576515 | L37: =IF(Q22>I22,F$22*I22+F$23*(Q22-I22),Q22*F$22) -> 48.70644733 | M37: =IF(R22>J22,F$22*J22+F$23*(R22-J22),R22*F$22) -> 154.5359368 | N37: =IF(S22>K22,F$22*K22+F$23*(S22-K22),S22*F$22) -> 185.0650296
B38: Q
B39: R | C39: =IF(Q24>I24,C$22*I24+C$23*(Q24-I24),Q24*C$22) -> 39.79912903 | D39: =IF(R24>J24,C$22*J24+C$23*(R24-J24),R24*C$22) -> 107.1399278 | E39: =IF(S24>K24,C$22*K24+C$23*(S24-K24),S24*C$22) -> 153.3782613 | F39: =IF(Q24>I24,D$22*I24+D$23*(Q24-I24),Q24*D$22) -> 39.63110112 | G39: =IF(R24>J24,D$22*J24+D$23*(R24-J24),R24*D$22) -> 106.6510116 | H39: =IF(S24>K24,D$22*K24+D$23*(S24-K24),S24*D$22) -> 152.6736367 | I39: =IF(Q24>I24,E$22*I24+E$23*(Q24-I24),Q24*E$22) -> 39.4926113 | J39: =IF(R24>J24,E$22*J24+E$23*(R24-J24),R24*E$22) -> 106.2204449 | K39: =IF(S24>K24,E$22*K24+E$23*(S24-K24),S24*E$22) -> 152.0498197 | L39: =IF(Q24>I24,F$22*I24+F$23*(Q24-I24),Q24*F$22) -> 39.50968852 | M39: =IF(R24>J24,F$22*J24+F$23*(R24-J24),R24*F$22) -> 106.3885856 | N39: =IF(S24>K24,F$22*K24+F$23*(S24-K24),S24*F$22) -> 152.3062444
B40: S | C40: 42.57453105 | D40: 117.9270356 | E40: 164.3226193 | F40: 42.39412454 | G40: 117.3868476 | H40: 163.5676016 | I40: 42.24493343 | J40: 116.9096996 | K40: 162.8990914 | L40: =IF(Q25>I25,F$22*I25+F$23*(Q25-I25),Q25*F$22) -> 42.2654094 | M40: 117.1016037 | N40: 163.1741952
B41: T | C41: 52.88988847 | D41: 98.28616842 | E41: 120.1275392 | F41: 52.65557396 | G41: 97.83144 | H41: 119.57176 | I41: 52.45413745 | J41: 97.426643 | K41: 119.0770081 | L41: 52.51362946 | M41: =IF(R26>J26,F$22*J26+F$23*(R26-J26),R26*F$22) -> 97.60164427 | N41: 119.2908985
B42: V | C42: 58.9124429 | D42: 122.8577105 | E42: 131.0482246 | F42: 58.65600738 | G42: 122.2893 | H42: 130.44192 | I42: 58.43883243 | J42: 121.7833038 | K42: 129.9021907 | L42: 58.48986931 | M42: 122.0020553 | N42: 130.1355257
B43: W | C43: 39.32737864 | D43: 90.09565438 | E43: 139.2387386 | F43: 39.15671454 | G43: 89.67882 | H43: 138.59454 | I43: 39.01256059 | J43: 89.30775609 | K43: 138.0210776 | L43: 39.04489044 | M43: 89.46817391 | N43: 138.268996
B44: X | C44: =IF(Q29>I29,C$22*I29+C$23*(Q29-I29),Q29*C$22) -> 50.74348698 | D44: 122.8577105 | E44: 158.349938 | F44: 50.52506596 | G44: 122.2893 | H44: 157.61732 | I44: 50.34188293 | J44: 121.7833038 | K44: 156.9651471 | L44: 50.37763935 | M44: 122.0020553 | N44: 157.2470935
B45: Y | C45: 63.36249603 | D45: 189.1439873 | E45: 215.9545067 | F45: 63.07515223 | G45: 188.2766835 | H45: 214.9581447 | I45: 62.82335837 | J45: 187.5099737 | K45: 214.0730936 | L45: 62.91678221 | M45: 187.8207505 | N45: 214.4483631
B46: ALL CLIMATE ZONES | C46: =SUMPRODUCT(C37:C45,$W$22:$W$30) -> 47.61718378 | D46: 114.8697058 | E46: 151.943823 | F46: 47.41204758 | G46: 114.3404867 | H46: 151.2429098 | I46: 47.23987877 | J46: 113.8709165 | K46: 150.6203831 | L46: 47.27400695 | M46: 114.0679838 | N46: 150.8840221
C49: CARE
C50: =C27 -> 2025-01-01 | F50: =D27 -> 2026-01-01 | I50: =I35 -> Illustrative Proposed Authorized | L50: =L35 -> Illustrative Proposed w/Pending
C51: Summer | D51: Winter Off-Peak | E51: Winter On-Peak | F51: Summer | G51: Winter Off-Peak | H51: Winter On-Peak | I51: Summer | J51: Winter Off-Peak | K51: Winter On-Peak | L51: Summer | M51: Winter Off-Peak | N51: Winter On-Peak
B52: P | C52: =IF(T22>I22,C$28*I22+C$29*(T22-I22),T22*C$28) -> 30.98388923 | D52: =IF(U22>J22,C$28*J22+C$29*(U22-J22),U22*C$28) -> 98.89969507 | E52: =IF(V22>K22,C$28*K22+C$29*(V22-K22),V22*C$28) -> 113.9496487 | F52: =IF(T22>I22,D$28*I22+D$29*(T22-I22),T22*D$28) -> 31.01590527 | G52: =IF(U22>J22,D$28*J22+D$29*(U22-J22),U22*D$28) -> 98.98865396 | H52: =IF(V22>K22,D$28*K22+D$29*(V22-K22),V22*D$28) -> 114.0521448 | I52: =IF(T22>I22,E$28*I22+E$29*(T22-I22),T22*E$28) -> 30.90257353 | J52: =IF(U22>J22,E$28*J22+E$29*(U22-J22),U22*E$28) -> 98.58140472 | K52: =IF(V22>K22,E$28*K22+E$29*(V22-K22),V22*E$28) -> 113.5829228 | L52: =IF(T22>I22,F$28*I22+F$29*(T22-I22),T22*F$28) -> 30.92843741 | M52: =IF(U22>J22,F$28*J22+F$29*(U22-J22),U22*F$28) -> 98.7602949 | N52: =IF(V22>K22,F$28*K22+F$29*(V22-K22),V22*F$28) -> 113.7890354
B53: Q
B54: R | C54: =IF(T24>I24,C$28*I24+C$29*(T24-I24),T24*C$28) -> 33.92486614 | D54: =IF(U24>J24,C$28*J24+C$29*(U24-J24),U24*C$28) -> 75.24976799 | E54: =IF(V24>K24,C$28*K24+C$29*(V24-K24),V24*C$28) -> 105.3496752 | F54: =IF(T24>I24,D$28*I24+D$29*(T24-I24),T24*D$28) -> 33.96323779 | G54: =IF(U24>J24,D$28*J24+D$29*(U24-J24),U24*D$28) -> 75.3174541 | H54: =IF(V24>K24,D$28*K24+D$29*(V24-K24),V24*D$28) -> 105.4444357 | I54: =IF(T24>I24,E$28*I24+E$29*(T24-I24),T24*E$28) -> 33.85054989 | J54: =IF(U24>J24,E$28*J24+E$29*(U24-J24),U24*E$28) -> 75.00759055 | K54: =IF(V24>K24,E$28*K24+E$29*(V24-K24),V24*E$28) -> 105.0106268 | L54: =IF(T24>I24,F$28*I24+F$29*(T24-I24),T24*F$28) -> 33.85472856 | M54: =IF(U24>J24,F$28*J24+F$29*(U24-J24),U24*F$28) -> 75.14370264 | N54: =IF(V24>K24,F$28*K24+F$29*(V24-K24),V24*F$28) -> 105.2011837
B55: S | C55: 36.11104397 | D55: 83.84974147 | E55: 113.9496487 | F55: 36.15155179 | G55: 83.92516314 | H55: 114.0521448 | I55: 36.0304451 | J55: 83.57988661 | K55: 113.5829228 | L55: 36.03734277 | M55: 83.73155438 | N55: 113.7890354
B56: T | C56: 44.22675609 | D56: 66.6497945 | E56: 77.39976136 | F56: 44.27229237 | G56: 66.70974506 | H56: 77.46938136 | I56: 44.10995833 | J56: 66.43529449 | K56: 77.15066457 | L56: 44.14806883 | M56: 66.55585091 | N56: 77.29066558
B57: V | C57: 48.97651129 | D57: 92.44971496 | E57: 96.7497017 | F57: 49.02842963 | G57: 92.53287218 | H57: 96.8367267 | I57: 48.85378932 | J57: 92.15218268 | K57: 96.43833071 | L57: 48.88513572 | M57: 92.31940611 | N57: 96.61333197
B58: W | C58: 38.67462134 | D58: 73.09977462 | E58: 105.3496752 | F58: 38.71937505 | G58: 73.16552684 | H58: 105.4444357 | I58: 38.59438088 | J58: 72.86451654 | K58: 105.0106268 | L58: 38.59179544 | M58: 72.99673971 | N58: 105.2011837
B59: X | C59: 37.41662289 | D59: 73.09977462 | E59: 92.44971496 | F59: 37.45434419 | G59: 73.16552684 | H59: 92.53287218 | I59: 37.31424565 | J59: 72.86451654 | K59: 92.15218268 | L59: 37.35233389 | M59: 72.99673971 | N59: 92.31940611
B60: Y | C60: 45.14986079 | D60: 128.9996023 | E60: 146.1995492 | F60: 45.19047246 | G60: 129.1156356 | H60: 146.3310537 | I60: 45.00455433 | J60: 128.5844409 | K60: 145.7290331 | L60: 45.08622159 | M60: 128.817776 | N60: 145.9934794
B61: ALL CLIMATE ZONES | C61: =SUMPRODUCT(C52:C60,$X$22:$X$30) -> 37.5575171 | D61: =SUMPRODUCT(D52:D60,$X$22:$X$30) -> 76.62485711 | E61: 101.0028951 | F61: 37.59810754 | G61: 76.6937801 | H61: =SUMPRODUCT(H52:H60,$X$22:$X$30) -> 101.0937458 | I61: 37.46685599 | J61: 76.37825421 | K61: =SUMPRODUCT(K52:K60,$X$22:$X$30) -> 100.677836 | L61: 37.48523862 | M61: 76.51685357 | N61: =SUMPRODUCT(N52:N60,$X$22:$X$30) -> 100.8605304
C64: ESSENTIAL USAGE NON-CARE
C65: =C27 -> 2025-01-01 | F65: =D27 -> 2026-01-01 | I65: =I50 -> Illustrative Proposed Authorized | L65: =L50 -> Illustrative Proposed w/Pending
C66: Summer | D66: Winter Off-Peak | E66: Winter On-Peak | F66: Summer | G66: Winter Off-Peak | H66: Winter On-Peak | I66: Summer | J66: Winter Off-Peak | K66: Winter On-Peak | L66: Summer | M66: Winter Off-Peak | N66: Winter On-Peak
B67: P | C67: =C$22*I22 -> 32.3870125 | D67: =C$22*J22 -> 156.122009 | E67: =C$22*K22 -> 181.8655317 | F67: =D$22*I22 -> 32.23717153 | G67: =D$22*J22 -> 155.3996987 | H67: =D$22*K22 -> 181.0241171 | I67: =E$22*I22 -> 32.10378384 | J67: =E$22*J22 -> 154.7567016 | K67: =E$22*K22 -> 180.2750938 | L67: =F$22*I22 -> 32.16144981 | M67: =F$22*J22 -> 155.0346812 | N67: =F$22*K22 -> 180.5989105
B68: Q
B69: R | C69: =C$22*I24 -> 29.89570385 | D69: =C$22*J24 -> 102.974091 | E69: =C$22*K24 -> 150.3089555 | F69: =D$22*I24 -> 29.7573891 | G69: =D$22*J24 -> 102.4976736 | H69: =D$22*K24 -> 149.6135397 | I69: =E$22*I24 -> 29.634262 | J69: =E$22*J24 -> 102.0735691 | K69: =E$22*K24 -> 148.994484 | L69: =F$22*I24 -> 29.68749214 | M69: =F$22*J24 -> 102.2569174 | N69: =F$22*K24 -> 149.2621132
B70: S | C70: 32.3870125 | D70: 114.6001981 | E70: 161.1046263 | F70: 32.23717153 | G70: 114.0699916 | H70: 160.3592635 | I70: 32.10378384 | J70: 113.5980043 | K70: 159.6957452 | L70: 32.16144981 | M70: 113.8020532 | N70: 159.9825965
B71: T | C71: 46.50442821 | D71: 108.7871446 | E71: 139.5132846 | F71: 46.28927194 | G71: 108.2838326 | H71: 138.8678158 | I71: 46.09774089 | J71: 107.8357867 | K71: 138.2932227 | L71: 46.18054332 | M71: 108.0294853 | N71: 138.54163
B72: V | C72: 48.99573686 | D72: 125.3958689 | E72: 142.0045933 | F72: 48.76905437 | G72: 124.8157154 | H72: 141.3475982 | I72: 48.56726273 | J72: 124.2992656 | K72: 140.7627445 | L72: 48.654501 | M72: 124.5225365 | N72: 141.0155876
B73: W | C73: 32.3870125 | D73: 94.66972885 | E73: 139.5132846 | F73: 32.23717153 | G73: 94.23173217 | H73: 138.8678158 | I73: 32.10378384 | J73: 93.84182968 | K73: 138.2932227 | L73: 32.16144981 | M73: 94.01039177 | N73: 138.54163
B74: X | C74: 40.69137468 | D74: 122.9045603 | E74: 166.0872436 | F74: 40.50311295 | G74: 122.335933 | H74: 165.3188284 | I74: 40.33552328 | J74: 121.8297438 | K74: 164.6347889 | L74: 40.40797541 | M74: 122.0485788 | N74: 164.9305119
B75: Y | C75: 59.79140769 | D75: 184.3568404 | E75: 214.2525442 | F75: 59.51477821 | G75: 183.5038995 | H75: 213.2612886 | I75: 59.26852401 | J75: 182.7446157 | K75: 212.3788777 | L75: 59.37498427 | M75: 183.0728682 | N75: 212.7603603
B76: ALL CLIMATE ZONES | C76: =SUMPRODUCT(C67:C75,$W$22:$W$30) -> 38.29020018 | D76: =SUMPRODUCT(D67:D75,$W$22:$W$30) -> 115.6780864 | E76: 157.518496 | F76: 38.11304766 | G76: 115.142893 | H76: 156.7897247 | I76: 37.95534737 | J76: 114.6664664 | K76: 156.1409761 | L76: 38.02352414 | M76: 114.8724345 | N76: 156.4214422
C79: ESSENTIAL USAGE CARE
C80: =C27 -> 2025-01-01 | F80: =D27 -> 2026-01-01 | I80: =I65 -> Illustrative Proposed Authorized | L80: =L65 -> Illustrative Proposed w/Pending
C81: Summer | D81: Winter Off-Peak | E81: Winter On-Peak | F81: Summer | G81: Winter Off-Peak | H81: Winter On-Peak | I81: Summer | J81: Winter Off-Peak | K81: Winter On-Peak | L81: Summer | M81: Winter Off-Peak | N81: Winter On-Peak
B82: P | C82: =C$28*I22 -> 25.50457586 | D82: =C$28*J22 -> 122.9451349 | E82: =C$28*K22 -> 143.2180029 | F82: =D$28*I22 -> 25.52751687 | G82: =D$28*J22 -> 123.0557224 | H82: =D$28*K22 -> 143.3468255 | I82: =E$28*I22 -> 25.42249411 | J82: =E$28*J22 -> 122.5494588 | K82: =E$28*K22 -> 142.7570823 | L82: =F$28*I22 -> 25.46862689 | M82: =F$28*J22 -> 122.7718425 | N82: =F$28*K22 -> 143.0161356
B83: Q
B84: R | C84: =C$28*I24 -> 23.54268541 | D84: =C$28*J24 -> 81.09147198 | E84: =C$28*K24 -> 118.3673905 | F84: =D$28*I24 -> 23.56386173 | G84: =D$28*J24 -> 81.16441262 | H84: =D$28*K24 -> 118.4738604 | I84: =E$28*I24 -> 23.46691764 | J84: =E$28*J24 -> 80.8304941 | K84: =E$28*K24 -> 117.986447 | L84: =F$28*I24 -> 23.50950175 | M84: =F$28*J24 -> 80.97717269 | N84: =F$28*K24 -> 118.2005505
B85: S | C85: 25.50457586 | D85: 90.24696075 | E85: 126.8689158 | F85: 25.52751687 | G85: 90.32813663 | H85: 126.9830326 | I85: 25.42249411 | J85: 89.95651763 | K85: 126.4606117 | L85: 25.46862689 | M85: 90.1197567 | N85: 126.6900928
B86: T | C86: 36.62195509 | D86: 85.66921636 | E86: 109.8658653 | F86: 36.65489602 | G86: 85.74627462 | H86: 109.9646881 | I86: 36.50409411 | J86: 85.39350586 | K86: 109.5122823 | L86: 36.57033605 | M86: 85.5484647 | N86: 109.7110082
B87: V | C87: 38.58384554 | D87: 98.74848604 | E87: 111.8277557 | F87: 38.61855117 | G87: 98.83730892 | H87: 111.9283432 | I87: 38.45967058 | J87: 98.43068233 | K87: 111.4678588 | L87: 38.5294612 | M87: 98.609299 | N87: 111.6701333
B88: W | C88: 25.50457586 | D88: 74.55183714 | E88: 109.8658653 | F88: 25.52751687 | G88: 74.61889547 | H88: 109.9646881 | I88: 25.42249411 | J88: 74.31190586 | K88: 109.5122823 | L88: 25.46862689 | M88: 74.44675554 | N88: 109.7110082
B89: X | C89: 32.0442107 | D89: 96.78659558 | E89: 130.7926967 | F89: 32.07303402 | G89: 96.87365377 | H89: 130.9103429 | I89: 31.94108235 | J89: 96.47510586 | K89: 130.3717647 | L89: 31.99904405 | M89: 96.65017386 | N89: 130.608343
B90: Y | C90: 47.08537082 | D90: 145.1798934 | E90: 168.7225788 | F90: 47.12772346 | G90: 145.3104807 | H90: 168.8743424 | I90: 46.93383528 | J90: 144.7126588 | K90: 168.1795764 | L90: 47.0190035 | M90: 144.9752608 | N90: 168.4847625
B91: ALL CLIMATE ZONES | C91: =SUMPRODUCT(C82:C90,$X$22:$X$30) -> 28.56303926 | D91: 88.71894253 | E91: 122.5136914 | F91: 28.58873132 | G91: 88.79874398 | H91: 122.6238907 | I91: 28.47111441 | J91: 88.43341705 | K91: 122.1194038 | L91: 28.52277936 | M91: 88.59389225 | N91: 122.341007
C94: TYPICAL NON-CARE
C95: =C27 -> 2025-01-01 | F95: =D27 -> 2026-01-01 | I95: =I80 -> Illustrative Proposed Authorized | L95: =L80 -> Illustrative Proposed w/Pending
C96: Summer | D96: Winter Off-Peak | E96: Winter On-Peak | F96: Summer | G96: Winter Off-Peak | H96: Winter On-Peak | I96: Summer | J96: Winter Off-Peak | K96: Winter On-Peak | L96: Summer | M96: Winter Off-Peak | N96: Winter On-Peak
B97: P | C97: =IF(Summary!$L$16>I22,C$22*I22+C$23*(Summary!$L$16-I22),Summary!$L$16*C$22) -> 94.52896958 | D97: =IF(Summary!$L$16>J22,C$22*J22+C$23*(Summary!$L$16-J22),Summary!$L$16*C$22) -> 84.63531169 | E97: =IF(Summary!$L$16>K22,C$22*K22+C$23*(Summary!$L$16-K22),Summary!$L$16*C$22) -> 84.63531169 | F97: =IF(Summary!$L$16>I22,D$22*I22+D$23*(Summary!$L$16-I22),Summary!$L$16*D$22) -> 94.19268454 | G97: =IF(Summary!$L$16>J22,D$22*J22+D$23*(Summary!$L$16-J22),Summary!$L$16*D$22) -> 84.24374 | H97: =IF(Summary!$L$16>K22,D$22*K22+D$23*(Summary!$L$16-K22),Summary!$L$16*D$22) -> 84.24374 | I97: =IF(Summary!$L$16>I22,E$22*I22+E$23*(Summary!$L$16-I22),Summary!$L$16*E$22) -> 93.96289898 | J97: =IF(Summary!$L$16>J22,E$22*J22+E$23*(Summary!$L$16-J22),Summary!$L$16*E$22) -> 83.89516481 | K97: =IF(Summary!$L$16>K22,E$22*K22+E$23*(Summary!$L$16-K22),Summary!$L$16*E$22) -> 83.89516481 | L97: =IF(Summary!$L$16>I22,F$22*I22+F$23*(Summary!$L$16-I22),Summary!$L$16*F$22) -> 93.79371285 | M97: =IF(Summary!$L$16>J22,F$22*J22+F$23*(Summary!$L$16-J22),Summary!$L$16*F$22) -> 84.04586034 | N97: =IF(Summary!$L$16>K22,F$22*K22+F$23*(Summary!$L$16-K22),Summary!$L$16*F$22) -> 84.04586034
B98: Q
B99: R | C99: =IF(Summary!$L$16>I24,C$22*I24+C$23*(Summary!$L$16-I24),Summary!$L$16*C$22) -> 95.00071997 | D99: =IF(Summary!$L$16>J24,C$22*J24+C$23*(Summary!$L$16-J24),Summary!$L$16*C$22) -> 84.63531169 | E99: =IF(Summary!$L$16>K24,C$22*K24+C$23*(Summary!$L$16-K24),Summary!$L$16*C$22) -> 84.63531169 | F99: =IF(Summary!$L$16>I24,D$22*I24+D$23*(Summary!$L$16-I24),Summary!$L$16*D$22) -> 94.66707112 | G99: =IF(Summary!$L$16>J24,D$22*J24+D$23*(Summary!$L$16-J24),Summary!$L$16*D$22) -> 84.24374 | H99: =IF(Summary!$L$16>K24,D$22*K24+D$23*(Summary!$L$16-K24),Summary!$L$16*D$22) -> 84.24374 | I99: =IF(Summary!$L$16>I24,E$22*I24+E$23*(Summary!$L$16-I24),Summary!$L$16*E$22) -> 94.4429497 | J99: =IF(Summary!$L$16>J24,E$22*J24+E$23*(Summary!$L$16-J24),Summary!$L$16*E$22) -> 83.89516481 | K99: =IF(Summary!$L$16>K24,E$22*K24+E$23*(Summary!$L$16-K24),Summary!$L$16*E$22) -> 83.89516481 | L99: =IF(Summary!$L$16>I24,F$22*I24+F$23*(Summary!$L$16-I24),Summary!$L$16*F$22) -> 94.25851093 | M99: =IF(Summary!$L$16>J24,F$22*J24+F$23*(Summary!$L$16-J24),Summary!$L$16*F$22) -> 84.04586034 | N99: =IF(Summary!$L$16>K24,F$22*K24+F$23*(Summary!$L$16-K24),Summary!$L$16*F$22) -> 84.04586034
B100: S | C100: =IF(Summary!$L$16>I25,C$22*I25+C$23*(Summary!$L$16-I25),Summary!$L$16*C$22) -> 94.52896958 | D100: =IF(Summary!$L$16>J25,C$22*J25+C$23*(Summary!$L$16-J25),Summary!$L$16*C$22) -> 84.63531169 | E100: =IF(Summary!$L$16>K25,C$22*K25+C$23*(Summary!$L$16-K25),Summary!$L$16*C$22) -> 84.63531169 | F100: =IF(Summary!$L$16>I25,D$22*I25+D$23*(Summary!$L$16-I25),Summary!$L$16*D$22) -> 94.19268454 | G100: =IF(Summary!$L$16>J25,D$22*J25+D$23*(Summary!$L$16-J25),Summary!$L$16*D$22) -> 84.24374 | H100: =IF(Summary!$L$16>K25,D$22*K25+D$23*(Summary!$L$16-K25),Summary!$L$16*D$22) -> 84.24374 | I100: =IF(Summary!$L$16>I25,E$22*I25+E$23*(Summary!$L$16-I25),Summary!$L$16*E$22) -> 93.96289898 | J100: =IF(Summary!$L$16>J25,E$22*J25+E$23*(Summary!$L$16-J25),Summary!$L$16*E$22) -> 83.89516481 | K100: =IF(Summary!$L$16>K25,E$22*K25+E$23*(Summary!$L$16-K25),Summary!$L$16*E$22) -> 83.89516481 | L100: =IF(Summary!$L$16>I25,F$22*I25+F$23*(Summary!$L$16-I25),Summary!$L$16*F$22) -> 93.79371285 | M100: =IF(Summary!$L$16>J25,F$22*J25+F$23*(Summary!$L$16-J25),Summary!$L$16*F$22) -> 84.04586034 | N100: =IF(Summary!$L$16>K25,F$22*K25+F$23*(Summary!$L$16-K25),Summary!$L$16*F$22) -> 84.04586034
B101: T | C101: =IF(Summary!$L$16>I26,C$22*I26+C$23*(Summary!$L$16-I26),Summary!$L$16*C$22) -> 91.85571737 | D101: =IF(Summary!$L$16>J26,C$22*J26+C$23*(Summary!$L$16-J26),Summary!$L$16*C$22) -> 84.63531169 | E101: =IF(Summary!$L$16>K26,C$22*K26+C$23*(Summary!$L$16-K26),Summary!$L$16*C$22) -> 84.63531169 | F101: =IF(Summary!$L$16>I26,D$22*I26+D$23*(Summary!$L$16-I26),Summary!$L$16*D$22) -> 91.50449396 | G101: =IF(Summary!$L$16>J26,D$22*J26+D$23*(Summary!$L$16-J26),Summary!$L$16*D$22) -> 84.24374 | H101: =IF(Summary!$L$16>K26,D$22*K26+D$23*(Summary!$L$16-K26),Summary!$L$16*D$22) -> 84.24374 | I101: =IF(Summary!$L$16>I26,E$22*I26+E$23*(Summary!$L$16-I26),Summary!$L$16*E$22) -> 91.24261161 | J101: =IF(Summary!$L$16>J26,E$22*J26+E$23*(Summary!$L$16-J26),Summary!$L$16*E$22) -> 83.89516481 | K101: =IF(Summary!$L$16>K26,E$22*K26+E$23*(Summary!$L$16-K26),Summary!$L$16*E$22) -> 83.89516481 | L101: =IF(Summary!$L$16>I26,F$22*I26+F$23*(Summary!$L$16-I26),Summary!$L$16*F$22) -> 91.15985705 | M101: =IF(Summary!$L$16>J26,F$22*J26+F$23*(Summary!$L$16-J26),Summary!$L$16*F$22) -> 84.04586034 | N101: =IF(Summary!$L$16>K26,F$22*K26+F$23*(Summary!$L$16-K26),Summary!$L$16*F$22) -> 84.04586034
B102: V | C102: =IF(Summary!$L$16>I27,C$22*I27+C$23*(Summary!$L$16-I27),Summary!$L$16*C$22) -> 91.38396698 | D102: =IF(Summary!$L$16>J27,C$22*J27+C$23*(Summary!$L$16-J27),Summary!$L$16*C$22) -> 84.63531169 | E102: =IF(Summary!$L$16>K27,C$22*K27+C$23*(Summary!$L$16-K27),Summary!$L$16*C$22) -> 84.63531169 | F102: =IF(Summary!$L$16>I27,D$22*I27+D$23*(Summary!$L$16-I27),Summary!$L$16*D$22) -> 91.03010738 | G102: =IF(Summary!$L$16>J27,D$22*J27+D$23*(Summary!$L$16-J27),Summary!$L$16*D$22) -> 84.24374 | H102: =IF(Summary!$L$16>K27,D$22*K27+D$23*(Summary!$L$16-K27),Summary!$L$16*D$22) -> 84.24374 | I102: =IF(Summary!$L$16>I27,E$22*I27+E$23*(Summary!$L$16-I27),Summary!$L$16*E$22) -> 90.7625609 | J102: =IF(Summary!$L$16>J27,E$22*J27+E$23*(Summary!$L$16-J27),Summary!$L$16*E$22) -> 83.89516481 | K102: =IF(Summary!$L$16>K27,E$22*K27+E$23*(Summary!$L$16-K27),Summary!$L$16*E$22) -> 83.89516481 | L102: =IF(Summary!$L$16>I27,F$22*I27+F$23*(Summary!$L$16-I27),Summary!$L$16*F$22) -> 90.69505896 | M102: =IF(Summary!$L$16>J27,F$22*J27+F$23*(Summary!$L$16-J27),Summary!$L$16*F$22) -> 84.04586034 | N102: =IF(Summary!$L$16>K27,F$22*K27+F$23*(Summary!$L$16-K27),Summary!$L$16*F$22) -> 84.04586034
B103: W | C103: =IF(Summary!$L$16>I28,C$22*I28+C$23*(Summary!$L$16-I28),Summary!$L$16*C$22) -> 94.52896958 | D103: =IF(Summary!$L$16>J28,C$22*J28+C$23*(Summary!$L$16-J28),Summary!$L$16*C$22) -> 84.63531169 | E103: =IF(Summary!$L$16>K28,C$22*K28+C$23*(Summary!$L$16-K28),Summary!$L$16*C$22) -> 84.63531169 | F103: =IF(Summary!$L$16>I28,D$22*I28+D$23*(Summary!$L$16-I28),Summary!$L$16*D$22) -> 94.19268454 | G103: =IF(Summary!$L$16>J28,D$22*J28+D$23*(Summary!$L$16-J28),Summary!$L$16*D$22) -> 84.24374 | H103: =IF(Summary!$L$16>K28,D$22*K28+D$23*(Summary!$L$16-K28),Summary!$L$16*D$22) -> 84.24374 | I103: =IF(Summary!$L$16>I28,E$22*I28+E$23*(Summary!$L$16-I28),Summary!$L$16*E$22) -> 93.96289898 | J103: =IF(Summary!$L$16>J28,E$22*J28+E$23*(Summary!$L$16-J28),Summary!$L$16*E$22) -> 83.89516481 | K103: =IF(Summary!$L$16>K28,E$22*K28+E$23*(Summary!$L$16-K28),Summary!$L$16*E$22) -> 83.89516481 | L103: =IF(Summary!$L$16>I28,F$22*I28+F$23*(Summary!$L$16-I28),Summary!$L$16*F$22) -> 93.79371285 | M103: =IF(Summary!$L$16>J28,F$22*J28+F$23*(Summary!$L$16-J28),Summary!$L$16*F$22) -> 84.04586034 | N103: =IF(Summary!$L$16>K28,F$22*K28+F$23*(Summary!$L$16-K28),Summary!$L$16*F$22) -> 84.04586034
B104: X | C104: =IF(Summary!$L$16>I29,C$22*I29+C$23*(Summary!$L$16-I29),Summary!$L$16*C$22) -> 92.95646828 | D104: =IF(Summary!$L$16>J29,C$22*J29+C$23*(Summary!$L$16-J29),Summary!$L$16*C$22) -> 84.63531169 | E104: =IF(Summary!$L$16>K29,C$22*K29+C$23*(Summary!$L$16-K29),Summary!$L$16*C$22) -> 84.63531169 | F104: =IF(Summary!$L$16>I29,D$22*I29+D$23*(Summary!$L$16-I29),Summary!$L$16*D$22) -> 92.61139596 | G104: =IF(Summary!$L$16>J29,D$22*J29+D$23*(Summary!$L$16-J29),Summary!$L$16*D$22) -> 84.24374 | H104: =IF(Summary!$L$16>K29,D$22*K29+D$23*(Summary!$L$16-K29),Summary!$L$16*D$22) -> 84.24374 | I104: =IF(Summary!$L$16>I29,E$22*I29+E$23*(Summary!$L$16-I29),Summary!$L$16*E$22) -> 92.36272994 | J104: =IF(Summary!$L$16>J29,E$22*J29+E$23*(Summary!$L$16-J29),Summary!$L$16*E$22) -> 83.89516481 | K104: =IF(Summary!$L$16>K29,E$22*K29+E$23*(Summary!$L$16-K29),Summary!$L$16*E$22) -> 83.89516481 | L104: =IF(Summary!$L$16>I29,F$22*I29+F$23*(Summary!$L$16-I29),Summary!$L$16*F$22) -> 92.24438591 | M104: =IF(Summary!$L$16>J29,F$22*J29+F$23*(Summary!$L$16-J29),Summary!$L$16*F$22) -> 84.04586034 | N104: =IF(Summary!$L$16>K29,F$22*K29+F$23*(Summary!$L$16-K29),Summary!$L$16*F$22) -> 84.04586034
B105: Y | C105: =IF(Summary!$L$16>I30,C$22*I30+C$23*(Summary!$L$16-I30),Summary!$L$16*C$22) -> 89.33971529 | D105: =IF(Summary!$L$16>J30,C$22*J30+C$23*(Summary!$L$16-J30),Summary!$L$16*C$22) -> 84.63531169 | E105: =IF(Summary!$L$16>K30,C$22*K30+C$23*(Summary!$L$16-K30),Summary!$L$16*C$22) -> 84.63531169 | F105: =IF(Summary!$L$16>I30,D$22*I30+D$23*(Summary!$L$16-I30),Summary!$L$16*D$22) -> 88.97443223 | G105: =IF(Summary!$L$16>J30,D$22*J30+D$23*(Summary!$L$16-J30),Summary!$L$16*D$22) -> 84.24374 | H105: =IF(Summary!$L$16>K30,D$22*K30+D$23*(Summary!$L$16-K30),Summary!$L$16*D$22) -> 84.24374 | I105: =IF(Summary!$L$16>I30,E$22*I30+E$23*(Summary!$L$16-I30),Summary!$L$16*E$22) -> 88.68234114 | J105: =IF(Summary!$L$16>J30,E$22*J30+E$23*(Summary!$L$16-J30),Summary!$L$16*E$22) -> 83.89516481 | K105: =IF(Summary!$L$16>K30,E$22*K30+E$23*(Summary!$L$16-K30),Summary!$L$16*E$22) -> 83.89516481 | L105: =IF(Summary!$L$16>I30,F$22*I30+F$23*(Summary!$L$16-I30),Summary!$L$16*F$22) -> 88.68093394 | M105: =IF(Summary!$L$16>J30,F$22*J30+F$23*(Summary!$L$16-J30),Summary!$L$16*F$22) -> 84.04586034 | N105: =IF(Summary!$L$16>K30,F$22*K30+F$23*(Summary!$L$16-K30),Summary!$L$16*F$22) -> 84.04586034
B106: ALL CLIMATE ZONES | C106: =SUMPRODUCT(C97:C105,$W$22:$W$30) -> 93.411151 | D106: 84.63531169 | E106: 84.63531169 | F106: 93.0686195 | G106: 84.24374 | H106: 84.24374 | I106: 92.82541269 | J106: 83.89516481 | K106: 83.89516481 | L106: 92.69236785 | M106: 84.04586034 | N106: 84.04586034
C109: TYPICAL CARE
C110: =C27 -> 2025-01-01 | F110: =D27 -> 2026-01-01 | I110: =I95 -> Illustrative Proposed Authorized | L110: =L95 -> Illustrative Proposed w/Pending
C111: Summer | D111: Winter Off-Peak | E111: Winter On-Peak | F111: Summer | G111: Winter Off-Peak | H111: Winter On-Peak | I111: Summer | J111: Winter Off-Peak | K111: Winter On-Peak | L111: Summer | M111: Winter Off-Peak | N111: Winter On-Peak
B112: P | C112: =IF(Summary!$L$17>I22,C$28*I22+C$29*(Summary!$L$17-I22),Summary!$L$17*C$28) -> 61.74681768 | D112: =IF(Summary!$L$17>J22,C$28*J22+C$29*(Summary!$L$17-J22),Summary!$L$17*C$28) -> 55.89982765 | E112: =IF(Summary!$L$17>K22,C$28*K22+C$29*(Summary!$L$17-K22),Summary!$L$17*C$28) -> 55.89982765 | F112: =IF(Summary!$L$17>I22,D$28*I22+D$29*(Summary!$L$17-I22),Summary!$L$17*D$28) -> 61.82978439 | G112: =IF(Summary!$L$17>J22,D$28*J22+D$29*(Summary!$L$17-J22),Summary!$L$17*D$28) -> 55.95010876 | H112: =IF(Summary!$L$17>K22,D$28*K22+D$29*(Summary!$L$17-K22),Summary!$L$17*D$28) -> 55.95010876 | I112: =IF(Summary!$L$17>I22,E$28*I22+E$29*(Summary!$L$17-I22),Summary!$L$17*E$28) -> 61.66980292 | J112: =IF(Summary!$L$17>J22,E$28*J22+E$29*(Summary!$L$17-J22),Summary!$L$17*E$28) -> 55.71992441 | K112: =IF(Summary!$L$17>K22,E$28*K22+E$29*(Summary!$L$17-K22),Summary!$L$17*E$28) -> 55.71992441 | L112: =IF(Summary!$L$17>I22,F$28*I22+F$29*(Summary!$L$17-I22),Summary!$L$17*F$28) -> 61.58186954 | M112: =IF(Summary!$L$17>J22,F$28*J22+F$29*(Summary!$L$17-J22),Summary!$L$17*F$28) -> 55.82103625 | N112: =IF(Summary!$L$17>K22,F$28*K22+F$29*(Summary!$L$17-K22),Summary!$L$17*F$28) -> 55.82103625
B113: Q
B114: R | C114: =IF(Summary!$L$17>I24,C$28*I24+C$29*(Summary!$L$17-I24),Summary!$L$17*C$28) -> 62.12421722 | D114: =IF(Summary!$L$17>J24,C$28*J24+C$29*(Summary!$L$17-J24),Summary!$L$17*C$28) -> 55.89982765 | E114: =IF(Summary!$L$17>K24,C$28*K24+C$29*(Summary!$L$17-K24),Summary!$L$17*C$28) -> 55.89982765 | F114: =IF(Summary!$L$17>I24,D$28*I24+D$29*(Summary!$L$17-I24),Summary!$L$17*D$28) -> 62.20929365 | G114: =IF(Summary!$L$17>J24,D$28*J24+D$29*(Summary!$L$17-J24),Summary!$L$17*D$28) -> 55.95010876 | H114: =IF(Summary!$L$17>K24,D$28*K24+D$29*(Summary!$L$17-K24),Summary!$L$17*D$28) -> 55.95010876 | I114: =IF(Summary!$L$17>I24,E$28*I24+E$29*(Summary!$L$17-I24),Summary!$L$17*E$28) -> 62.05384349 | J114: =IF(Summary!$L$17>J24,E$28*J24+E$29*(Summary!$L$17-J24),Summary!$L$17*E$28) -> 55.71992441 | K114: =IF(Summary!$L$17>K24,E$28*K24+E$29*(Summary!$L$17-K24),Summary!$L$17*E$28) -> 55.71992441 | L114: =IF(Summary!$L$17>I24,F$28*I24+F$29*(Summary!$L$17-I24),Summary!$L$17*F$28) -> 61.953708 | M114: =IF(Summary!$L$17>J24,F$28*J24+F$29*(Summary!$L$17-J24),Summary!$L$17*F$28) -> 55.82103625 | N114: =IF(Summary!$L$17>K24,F$28*K24+F$29*(Summary!$L$17-K24),Summary!$L$17*F$28) -> 55.82103625
B115: S | C115: =IF(Summary!$L$17>I25,C$28*I25+C$29*(Summary!$L$17-I25),Summary!$L$17*C$28) -> 61.74681768 | D115: =IF(Summary!$L$17>J25,C$28*J25+C$29*(Summary!$L$17-J25),Summary!$L$17*C$28) -> 55.89982765 | E115: =IF(Summary!$L$17>K25,C$28*K25+C$29*(Summary!$L$17-K25),Summary!$L$17*C$28) -> 55.89982765 | F115: =IF(Summary!$L$17>I25,D$28*I25+D$29*(Summary!$L$17-I25),Summary!$L$17*D$28) -> 61.82978439 | G115: =IF(Summary!$L$17>J25,D$28*J25+D$29*(Summary!$L$17-J25),Summary!$L$17*D$28) -> 55.95010876 | H115: =IF(Summary!$L$17>K25,D$28*K25+D$29*(Summary!$L$17-K25),Summary!$L$17*D$28) -> 55.95010876 | I115: =IF(Summary!$L$17>I25,E$28*I25+E$29*(Summary!$L$17-I25),Summary!$L$17*E$28) -> 61.66980292 | J115: =IF(Summary!$L$17>J25,E$28*J25+E$29*(Summary!$L$17-J25),Summary!$L$17*E$28) -> 55.71992441 | K115: =IF(Summary!$L$17>K25,E$28*K25+E$29*(Summary!$L$17-K25),Summary!$L$17*E$28) -> 55.71992441 | L115: =IF(Summary!$L$17>I25,F$28*I25+F$29*(Summary!$L$17-I25),Summary!$L$17*F$28) -> 61.58186954 | M115: =IF(Summary!$L$17>J25,F$28*J25+F$29*(Summary!$L$17-J25),Summary!$L$17*F$28) -> 55.82103625 | N115: =IF(Summary!$L$17>K25,F$28*K25+F$29*(Summary!$L$17-K25),Summary!$L$17*F$28) -> 55.82103625
B116: T | C116: =IF(Summary!$L$17>I26,C$28*I26+C$29*(Summary!$L$17-I26),Summary!$L$17*C$28) -> 59.60822031 | D116: =IF(Summary!$L$17>J26,C$28*J26+C$29*(Summary!$L$17-J26),Summary!$L$17*C$28) -> 55.89982765 | E116: =IF(Summary!$L$17>K26,C$28*K26+C$29*(Summary!$L$17-K26),Summary!$L$17*C$28) -> 55.89982765 | F116: =IF(Summary!$L$17>I26,D$28*I26+D$29*(Summary!$L$17-I26),Summary!$L$17*D$28) -> 59.67923193 | G116: =IF(Summary!$L$17>J26,D$28*J26+D$29*(Summary!$L$17-J26),Summary!$L$17*D$28) -> 55.95010876 | H116: =IF(Summary!$L$17>K26,D$28*K26+D$29*(Summary!$L$17-K26),Summary!$L$17*D$28) -> 55.95010876 | I116: =IF(Summary!$L$17>I26,E$28*I26+E$29*(Summary!$L$17-I26),Summary!$L$17*E$28) -> 59.49357302 | J116: =IF(Summary!$L$17>J26,E$28*J26+E$29*(Summary!$L$17-J26),Summary!$L$17*E$28) -> 55.71992441 | K116: =IF(Summary!$L$17>K26,E$28*K26+E$29*(Summary!$L$17-K26),Summary!$L$17*E$28) -> 55.71992441 | L116: =IF(Summary!$L$17>I26,F$28*I26+F$29*(Summary!$L$17-I26),Summary!$L$17*F$28) -> 59.47478489 | M116: =IF(Summary!$L$17>J26,F$28*J26+F$29*(Summary!$L$17-J26),Summary!$L$17*F$28) -> 55.82103625 | N116: =IF(Summary!$L$17>K26,F$28*K26+F$29*(Summary!$L$17-K26),Summary!$L$17*F$28) -> 55.82103625
B117: V | C117: =IF(Summary!$L$17>I27,C$28*I27+C$29*(Summary!$L$17-I27),Summary!$L$17*C$28) -> 59.23082078 | D117: =IF(Summary!$L$17>J27,C$28*J27+C$29*(Summary!$L$17-J27),Summary!$L$17*C$28) -> 55.89982765 | E117: =IF(Summary!$L$17>K27,C$28*K27+C$29*(Summary!$L$17-K27),Summary!$L$17*C$28) -> 55.89982765 | F117: =IF(Summary!$L$17>I27,D$28*I27+D$29*(Summary!$L$17-I27),Summary!$L$17*D$28) -> 59.29972267 | G117: =IF(Summary!$L$17>J27,D$28*J27+D$29*(Summary!$L$17-J27),Summary!$L$17*D$28) -> 55.95010876 | H117: =IF(Summary!$L$17>K27,D$28*K27+D$29*(Summary!$L$17-K27),Summary!$L$17*D$28) -> 55.95010876 | I117: =IF(Summary!$L$17>I27,E$28*I27+E$29*(Summary!$L$17-I27),Summary!$L$17*E$28) -> 59.10953245 | J117: =IF(Summary!$L$17>J27,E$28*J27+E$29*(Summary!$L$17-J27),Summary!$L$17*E$28) -> 55.71992441 | K117: =IF(Summary!$L$17>K27,E$28*K27+E$29*(Summary!$L$17-K27),Summary!$L$17*E$28) -> 55.71992441 | L117: =IF(Summary!$L$17>I27,F$28*I27+F$29*(Summary!$L$17-I27),Summary!$L$17*F$28) -> 59.10294643 | M117: =IF(Summary!$L$17>J27,F$28*J27+F$29*(Summary!$L$17-J27),Summary!$L$17*F$28) -> 55.82103625 | N117: =IF(Summary!$L$17>K27,F$28*K27+F$29*(Summary!$L$17-K27),Summary!$L$17*F$28) -> 55.82103625
B118: W | C118: =IF(Summary!$L$17>I28,C$28*I28+C$29*(Summary!$L$17-I28),Summary!$L$17*C$28) -> 61.74681768 | D118: =IF(Summary!$L$17>J28,C$28*J28+C$29*(Summary!$L$17-J28),Summary!$L$17*C$28) -> 55.89982765 | E118: =IF(Summary!$L$17>K28,C$28*K28+C$29*(Summary!$L$17-K28),Summary!$L$17*C$28) -> 55.89982765 | F118: =IF(Summary!$L$17>I28,D$28*I28+D$29*(Summary!$L$17-I28),Summary!$L$17*D$28) -> 61.82978439 | G118: =IF(Summary!$L$17>J28,D$28*J28+D$29*(Summary!$L$17-J28),Summary!$L$17*D$28) -> 55.95010876 | H118: =IF(Summary!$L$17>K28,D$28*K28+D$29*(Summary!$L$17-K28),Summary!$L$17*D$28) -> 55.95010876 | I118: =IF(Summary!$L$17>I28,E$28*I28+E$29*(Summary!$L$17-I28),Summary!$L$17*E$28) -> 61.66980292 | J118: =IF(Summary!$L$17>J28,E$28*J28+E$29*(Summary!$L$17-J28),Summary!$L$17*E$28) -> 55.71992441 | K118: =IF(Summary!$L$17>K28,E$28*K28+E$29*(Summary!$L$17-K28),Summary!$L$17*E$28) -> 55.71992441 | L118: =IF(Summary!$L$17>I28,F$28*I28+F$29*(Summary!$L$17-I28),Summary!$L$17*F$28) -> 61.58186954 | M118: =IF(Summary!$L$17>J28,F$28*J28+F$29*(Summary!$L$17-J28),Summary!$L$17*F$28) -> 55.82103625 | N118: =IF(Summary!$L$17>K28,F$28*K28+F$29*(Summary!$L$17-K28),Summary!$L$17*F$28) -> 55.82103625
B119: X | C119: =IF(Summary!$L$17>I29,C$28*I29+C$29*(Summary!$L$17-I29),Summary!$L$17*C$28) -> 60.48881923 | D119: =IF(Summary!$L$17>J29,C$28*J29+C$29*(Summary!$L$17-J29),Summary!$L$17*C$28) -> 55.89982765 | E119: =IF(Summary!$L$17>K29,C$28*K29+C$29*(Summary!$L$17-K29),Summary!$L$17*C$28) -> 55.89982765 | F119: =IF(Summary!$L$17>I29,D$28*I29+D$29*(Summary!$L$17-I29),Summary!$L$17*D$28) -> 60.56475353 | G119: =IF(Summary!$L$17>J29,D$28*J29+D$29*(Summary!$L$17-J29),Summary!$L$17*D$28) -> 55.95010876 | H119: =IF(Summary!$L$17>K29,D$28*K29+D$29*(Summary!$L$17-K29),Summary!$L$17*D$28) -> 55.95010876 | I119: =IF(Summary!$L$17>I29,E$28*I29+E$29*(Summary!$L$17-I29),Summary!$L$17*E$28) -> 60.38966768 | J119: =IF(Summary!$L$17>J29,E$28*J29+E$29*(Summary!$L$17-J29),Summary!$L$17*E$28) -> 55.71992441 | K119: =IF(Summary!$L$17>K29,E$28*K29+E$29*(Summary!$L$17-K29),Summary!$L$17*E$28) -> 55.71992441 | L119: =IF(Summary!$L$17>I29,F$28*I29+F$29*(Summary!$L$17-I29),Summary!$L$17*F$28) -> 60.34240798 | M119: =IF(Summary!$L$17>J29,F$28*J29+F$29*(Summary!$L$17-J29),Summary!$L$17*F$28) -> 55.82103625 | N119: =IF(Summary!$L$17>K29,F$28*K29+F$29*(Summary!$L$17-K29),Summary!$L$17*F$28) -> 55.82103625
B120: Y | C120: =IF(Summary!$L$17>I30,C$28*I30+C$29*(Summary!$L$17-I30),Summary!$L$17*C$28) -> 57.59542279 | D120: =IF(Summary!$L$17>J30,C$28*J30+C$29*(Summary!$L$17-J30),Summary!$L$17*C$28) -> 55.89982765 | E120: =IF(Summary!$L$17>K30,C$28*K30+C$29*(Summary!$L$17-K30),Summary!$L$17*C$28) -> 55.89982765 | F120: =IF(Summary!$L$17>I30,D$28*I30+D$29*(Summary!$L$17-I30),Summary!$L$17*D$28) -> 57.65518255 | G120: =IF(Summary!$L$17>J30,D$28*J30+D$29*(Summary!$L$17-J30),Summary!$L$17*D$28) -> 55.95010876 | H120: =IF(Summary!$L$17>K30,D$28*K30+D$29*(Summary!$L$17-K30),Summary!$L$17*D$28) -> 55.95010876 | I120: =IF(Summary!$L$17>I30,E$28*I30+E$29*(Summary!$L$17-I30),Summary!$L$17*E$28) -> 57.44535664 | J120: =IF(Summary!$L$17>J30,E$28*J30+E$29*(Summary!$L$17-J30),Summary!$L$17*E$28) -> 55.71992441 | K120: =IF(Summary!$L$17>K30,E$28*K30+E$29*(Summary!$L$17-K30),Summary!$L$17*E$28) -> 55.71992441 | L120: =IF(Summary!$L$17>I30,F$28*I30+F$29*(Summary!$L$17-I30),Summary!$L$17*F$28) -> 57.4916464 | M120: =IF(Summary!$L$17>J30,F$28*J30+F$29*(Summary!$L$17-J30),Summary!$L$17*F$28) -> 55.82103625 | N120: =IF(Summary!$L$17>K30,F$28*K30+F$29*(Summary!$L$17-K30),Summary!$L$17*F$28) -> 55.82103625
B121: ALL CLIMATE ZONES | C121: =SUMPRODUCT(C112:C120,$X$22:$X$30) -> 61.15847562 | D121: 55.89982765 | E121: 55.89982765 | F121: 61.23815341 | G121: 55.95010876 | H121: 55.95010876 | I121: 61.07110791 | J121: 55.71992441 | K121: 55.71992441 | L121: 61.00219683 | M121: 55.82103625 | N121: 55.82103625

Sheet Incremental Rev Req
A2: ='Authorized Rev Req'!A2 -> Annual Period 2025
A3: ='Authorized Rev Req'!A3 -> Reporting Date: Q4 2025
A5: Current Revenue Requirement ($000): | B5: ='Authorized Rev Req'!K88 -> 7011426.794
A6: Current Revenue Requirement Effective: | B6: ='Authorized Rev Req'!K5 -> January 1, 2026
A7: Approved Application(s), Implemented Since Jan 1 or To Be Implemented
A8: Filing Description | B8: Proceeding | C8: Authority for Revenue Requirement | D8: Authorized Revenue Requirement ($000) | E8: Revenue Recovery Mechanism | F8: Allocation Methodology (Select from Drop-down menu) | G8: Authorized Revenue Requirement ($000) - Breakout by Year | L8: Existing or New Item (if existing, use delta from prior for illustrative rate impact) | T8: Summary Incremental Authorized
A9: Safety Affordability Reliability Proceedings | G9: 2025 | H9: 2026 | I9: 2027 | J9: 2028 | K9: 2029 | U9: 2025 | V9: 2026 | W9: 2027 | X9: 2028 | Y9: 2029
A10: ='Authorized Rev Req'!A9 -> General Rate Case | C10: ='Authorized Rev Req'!B9 -> D. 23-11-069 | D10: ='Authorized Rev Req'!K9 -> 3014936.401 | E10: ='Authorized Rev Req'!L9 -> Distribution | F10: Distribution | G10: ='Authorized Rev Req'!J9 -> 2837661.424 | H10: ='Authorized Rev Req'!K9 -> 3014936.401 | I10: =H10 -> 3014936.401 | J10: =I10 -> 3014936.401 | K10: =J10 -> 3014936.401 | L10: Existing | T10: ='RRQ Allocations'!B5 -> 100% Residential | U10: =SUMIF($F$10:$F$72,$T10,G$10:G$72)-SUMIF($F$10:$F$72,$T10,$D$10:$D$72) -> -96890.86639 | V10: =SUMIF($F$10:$F$72,$T10,H$10:H$72)-SUMIF($F$10:$F$72,$T10,$D$10:$D$72) -> 0 | W10: =SUMIF($F$10:$F$72,$T10,I$10:I$72)-SUMIF($F$10:$F$72,$T10,$D$10:$D$72) -> 0 | X10: =SUMIF($F$10:$F$72,$T10,J$10:J$72)-SUMIF($F$10:$F$72,$T10,$D$10:$D$72) -> 0 | Y10: =SUMIF($F$10:$F$72,$T10,K$10:K$72)-SUMIF($F$10:$F$72,$T10,$D$10:$D$72) -> 0
A11: General Rate Case - Undercollection | C11: ='Authorized Rev Req'!B9 -> D. 23-11-069 | D11: ='Authorized Rev Req'!K10 -> 0 | E11: Distribution | F11: Distribution | G11: ='Authorized Rev Req'!J10 -> 200589.2578 | H11: ='Authorized Rev Req'!K10 -> 0 | L11: Existing | T11: ='RRQ Allocations'!B6 -> Core - Distribution | U11: =SUMIF($F$10:$F$72,$T11,G$10:G$72)-SUMIF($F$10:$F$72,$T11,$D$10:$D$72) -> -43656.74404 | V11: 0 | W11: =SUMIF($F$10:$F$72,$T11,I$10:I$72)-SUMIF($F$10:$F$72,$T11,$D$10:$D$72) -> -2051.460825 | X11: =SUMIF($F$10:$F$72,$T11,J$10:J$72)-SUMIF($F$10:$F$72,$T11,$D$10:$D$72) -> -2051.460825 | Y11: =SUMIF($F$10:$F$72,$T11,K$10:K$72)-SUMIF($F$10:$F$72,$T11,$D$10:$D$72) -> -2051.460825
A12: ='Authorized Rev Req'!A11 -> Pension Contribution - Distribution | C12: ='Authorized Rev Req'!B11 -> D.09-09-020 | D12: ='Authorized Rev Req'!K11 -> 42969.37257 | E12: ='Authorized Rev Req'!L11 -> Distribution | F12: Distribution | G12: ='Authorized Rev Req'!J11 -> 42969.37257 | H12: ='Authorized Rev Req'!K11 -> 42969.37257 | I12: =H12 -> 42969.37257 | J12: 42969.37257 | K12: 42969.37257 | L12: Existing | T12: ='RRQ Allocations'!B7 -> Distribution | U12: =SUMIF($F$10:$F$72,$T12,G$10:G$72)-SUMIF($F$10:$F$72,$T12,$D$10:$D$72) -> -65662.07416 | V12: 0 | W12: =SUMIF($F$10:$F$72,$T12,I$10:I$72)-SUMIF($F$10:$F$72,$T12,$D$10:$D$72) -> -355126.97 | X12: -326748.9032 | Y12: -326748.9032
A13: ='Authorized Rev Req'!A12 -> Pension Contribution - GT&S Core | C13: ='Authorized Rev Req'!B12 -> D.09-09-020 | D13: ='Authorized Rev Req'!K12 -> 12330.78009 | E13: ='Authorized Rev Req'!L12 -> Core - ECPT | F13: ECPT - Core only | G13: ='Authorized Rev Req'!J12 -> 12330.78009 | H13: ='Authorized Rev Req'!K12 -> 12330.78009 | I13: 12330.78009 | J13: 12330.78009 | K13: 12330.78009 | L13: Existing | T13: ='RRQ Allocations'!B8 -> ECPT - ALL | U13: 59011.39732 | V13: 0 | W13: -165240.5848 | X13: -165427.1748 | Y13: -165427.1748
A14: ='Authorized Rev Req'!A13 -> Pension Contribution - GT&S NonCore (LT) | C14: ='Authorized Rev Req'!B13 -> D.09-09-020 | D14: ='Authorized Rev Req'!K13 -> 4921.782241 | E14: ='Authorized Rev Req'!L13 -> Noncore (No-BB/EG-BB)-ECPT | F14: ECPT - Noncore only | G14: ='Authorized Rev Req'!J13 -> 4921.782241 | H14: ='Authorized Rev Req'!K13 -> 4921.782241 | I14: 4921.782241 | J14: 4921.782241 | K14: 4921.782241 | L14: Existing | T14: ='RRQ Allocations'!B9 -> ECPT - Core only | U14: -70730.3165 | V14: =SUMIF($F$10:$F$72,$T14,H$10:H$72)-SUMIF($F$10:$F$72,$T14,$D$10:$D$72) -> -24399.73512 | W14: -24399.73512 | X14: -24399.73512 | Y14: -24399.73512
A15: ='Authorized Rev Req'!A14 -> Pension Contribution - GT&S Noncore (BB& Storage) | C15: ='Authorized Rev Req'!B14 -> D.09-09-020 | D15: ='Authorized Rev Req'!K14 -> 3227.180703 | E15: ='Authorized Rev Req'!L14 -> Noncore - ECPT | F15: ECPT - Noncore only | G15: ='Authorized Rev Req'!J14 -> 3227.180703 | H15: ='Authorized Rev Req'!K14 -> 3227.180703 | I15: 3227.180703 | J15: 3227.180703 | K15: 3227.180703 | L15: Existing | T15: ='RRQ Allocations'!B10 -> ECPT - Noncore only | U15: -10662.01348 | V15: 24399.73512 | W15: 23898.7193 | X15: 23898.7193 | Y15: 23898.7193
A16: ='Authorized Rev Req'!A15 -> Cost of Capital | C16: ='Authorized Rev Req'!B15 -> D.22-12-031/D.23-01-002/ AL 4813-G/D.24-10-008/AL 4996-G | D16: ='Authorized Rev Req'!K15 -> 164934.2253 | E16: ='Authorized Rev Req'!L15 -> Distribution | F16: Distribution | G16: ='Authorized Rev Req'!J15 -> 50569.41165 | H16: ='Authorized Rev Req'!K15 -> 164934.2253 | L16: Existing | T16: ='RRQ Allocations'!B11 -> ECPT - 50% Core / 50% Noncore | U16: 0 | V16: 0 | W16: 0 | X16: 0 | Y16: 0
A17: ='Authorized Rev Req'!A16 -> GT&S (excluding costs recovered through Core Procurement) | T17: ='RRQ Allocations'!B12 -> ECPT (excludes Covered Entities 3 yr avg vol) | U17: 175991.0454 | V17: 0 | W17: 0 | X17: 0 | Y17: 0
A18: ='Authorized Rev Req'!A17 -> Late Implementation (Transmission Undercollection, Capital Audit, GRC Track II, WGSC) | C18: D.22-07-007 | D18: ='Authorized Rev Req'!K17 -> 105112.5693 | E18: ='Authorized Rev Req'!L17 -> ECPT | F18: ECPT - ALL | G18: ='Authorized Rev Req'!J17 -> 311890.6932 | H18: ='Authorized Rev Req'!K17 -> 105112.5693 | I18: 0 | J18: 0 | K18: 0 | L18: Existing | T18: ='RRQ Allocations'!B13 -> EE | U18: -5154.954318 | V18: 0 | W18: 2020.17599 | X18: 2020.17599 | Y18: 2020.17599
A19: ='Authorized Rev Req'!$A$18&" Core" -> Local Transmission Core | C19: ='Authorized Rev Req'!B18 -> D. 24-03-002 | D19: ='Authorized Rev Req'!K18-D20 -> 1007771.12 | E19: ='Authorized Rev Req'!L18 -> ECPT (No BB) | F19: ECPT - Core only | G19: 937040.8036 | H19: 983371.3849 | I19: =H19 -> 983371.3849 | J19: 983371.3849 | K19: 983371.3849 | L19: Existing | T19: ='RRQ Allocations'!B14 -> ESA | U19: -103.325 | V19: 0 | W19: 0 | X19: 0 | Y19: 0
A20: ='Authorized Rev Req'!$A$18&" Noncore" -> Local Transmission Noncore | C20: ='Authorized Rev Req'!B19 -> D. 24-03-002 | D20: 491426.7693 | E20: ='Authorized Rev Req'!L18 -> ECPT (No BB) | F20: ECPT - Noncore only | G20: 491426.7693 | H20: 515826.5045 | I20: 515826.5045 | J20: 515826.5045 | K20: 515826.5045 | L20: Existing | T20: ='RRQ Allocations'!B15 -> PPP ECPT | U20: 75364.60418 | V20: 0 | W20: 182.46 | X20: 182.46 | Y20: 182.46
A21: ='Authorized Rev Req'!A19 -> Customer Access Charge | C21: ='Authorized Rev Req'!B19 -> D. 24-03-002 | D21: ='Authorized Rev Req'!K19 -> 5465.240945 | E21: ='Authorized Rev Req'!L19 -> CAC Allocation | F21: CAC Allocation | G21: 4616.173305 | H21: 5465.240945 | I21: 5465.240945 | J21: 5465.240945 | K21: 5465.240945 | L21: Existing | T21: ='RRQ Allocations'!B16 -> SGIP allocation | U21: 0 | V21: 0 | W21: 0 | X21: 0 | Y21: 0
A22: ='Authorized Rev Req'!A20 -> Unbundled | C22: ='Authorized Rev Req'!B20 -> D. 24-03-002 | D22: ='Authorized Rev Req'!K20-D23 -> 263208.0005 | E22: ='Authorized Rev Req'!L20 -> ECPT-All | F22: ECPT - ALL | G22: 251044.6517 | H22: 263208.0005 | I22: 263208.0005 | J22: 263208.0005 | K22: 263208.0005 | L22: Existing | T22: ='RRQ Allocations'!B17 -> CPUC Fee Allocation | U22: -4531.684987 | V22: 0 | W22: 0 | X22: 0 | Y22: 0
A23: Inventory management | C23: =C22 -> D. 24-03-002 | D23: =I23 -> 143704.047 | F23: 2023 GTS - Inventory Management | G23: 138919.8435 | H23: 143704.047 | I23: =H23 -> 143704.047 | J23: 143704.047 | K23: 143704.047 | T23: ='RRQ Allocations'!B18 -> CAC Allocation | U23: -849.0676397 | V23: 0 | W23: 0 | X23: 0 | Y23: 0
A24: SF General Office Sale | C24: ='Authorized Rev Req'!B55 -> D.21-08-027/AL 4538-G-A | D24: ='Authorized Rev Req'!K55 -> -28378.06678 | F24: Distribution | G24: ='Authorized Rev Req'!J55 -> -32047.71945 | H24: ='Authorized Rev Req'!K55 -> -28378.06678 | I24: -28378.06678 | J24: 0 | K24: 0 | L24: New | T24: ='RRQ Allocations'!B19 -> Storage Allocation (Procurement) | U24: -1183.045547 | V24: 0 | W24: 0 | X24: 0 | Y24: 0
T25: ='RRQ Allocations'!B20 -> Capacity Allocation (Procurement) | U25: 0 | V25: 11955.88079 | W25: 11955.88079 | X25: 11955.88079 | Y25: 11955.88079
A26: Wildfire Gas & Safety Costs (Distribution) | C26: WGSC IRR D.24-03-006 | D26: ='Authorized Rev Req'!K45 -> 6776.716441 | E26: Distribution | F26: Distribution | G26: ='Authorized Rev Req'!J45 -> 3401.958109 | H26: ='Authorized Rev Req'!K45 -> 6776.716441 | I26: 0 | J26: 0 | K26: 0 | L26: Existing | T26: ='RRQ Allocations'!B21 -> ECPT - Core only (Procurement) | U26: -82376.49478 | V26: -11955.88079 | W26: -11955.88079 | X26: -11955.88079 | Y26: -11955.88079
A27: 2020 and 2021 Wildfire Mitigation and Catastrophic Event Memorandum Account (WMCE) (Transmission) | C27: D.23-02-017 / D.23-08-027 | D27: ='Authorized Rev Req'!K47 -> 0 | E27: ECPT - ALL | F27: ECPT - ALL | G27: ='Authorized Rev Req'!J47 -> 0 | H27: ='Authorized Rev Req'!K47 -> 0 | I27: 0 | J27: 0 | K27: 0 | L27: Existing | T27: ='RRQ Allocations'!B22 -> 2023 GTS - Inventory Management | U27: -4784.20353 | V27: 0 | W27: 0 | X27: 0 | Y27: 0
A28: Oakland General Office Purchase (Distribution) | C28: ='Authorized Rev Req'!B46 -> D.24-08-009/AL 4972-G | D28: ='Authorized Rev Req'!K46 -> 25543.30358 | E28: Distribution | F28: Distribution | G28: ='Authorized Rev Req'!J46 -> 74682.81908 | H28: ='Authorized Rev Req'!K46 -> 25543.30358 | L28: New | T28: ='RRQ Allocations'!B23 -> User Defined 1 | U28: 0 | V28: 0 | W28: 0 | X28: 0 | Y28: 0
A29: Oakland General Office Purchase (Transmission) | C29: ='Authorized Rev Req'!B49 -> D.24-08-009/AL 4972-G | D29: ='Authorized Rev Req'!K49 -> 12175.53727 | E29: ECPT - ALL | F29: ECPT - ALL | G29: ='Authorized Rev Req'!J49 -> 35685.00229 | H29: ='Authorized Rev Req'!K49 -> 12175.53727 | L29: New | T29: ='RRQ Allocations'!B24 -> User Defined 2 | U29: 0 | V29: 0 | W29: 0 | X29: 0 | Y29: 0
A30: Gas Advanced Metering Infrastructure (AMI) (distribution) | C30: A.24-03-011 | D30: ='Authorized Rev Req'!K50 -> 39604.60508 | E30: Distribution | F30: Distribution | H30: ='Authorized Rev Req'!K50 -> 39604.60508 | L30: New | T30: ='RRQ Allocations'!B25 -> User Defined 3 | U30: 0 | V30: 0 | W30: 0 | X30: 0 | Y30: 0
A31: Concurrent Application System Program and Balancing Account | C31: A.24-03-011 | D31: ='Authorized Rev Req'!K51 -> 473.76 | E31: ECPT - ALL | F31: ECPT - ALL | H31: ='Authorized Rev Req'!K51 -> 473.76 | I31: 186.59 | J31: 0 | K31: 0 | L31: New | T31: Total | U31: =SUM(U10:U30) -> -76217.74343 | V31: =SUM(V10:V30) -> -1.455191523e-10 | W31: =SUM(W10:W30) -> -520717.3955 | X31: =SUM(X10:X30) -> -492525.9187 | Y31: =SUM(Y10:Y30) -> -492525.9187
A32: 2022 Wildfire Mitigation and Catastrophic Events | C32: A.22-12-009 | D32: ='Authorized Rev Req'!K48 -> 13823.72411 | E32: Distribution | F32: Distribution | H32: ='Authorized Rev Req'!K48 -> 13823.72411 | L32: New | T32: check | U32: =ABS(U31-(G73-$D73))<0.5 -> TRUE | V32: =ABS(V31-(H73-$D73))<0.5 -> TRUE | W32: =ABS(W31-(I73-$D73))<0.5 -> TRUE | X32: =ABS(X31-(J73-$D73))<0.5 -> TRUE | Y32: =ABS(Y31-(K73-$D73))<0.5 -> TRUE
A33: TRRRMA (Distribution) | C33: A.24-09-015 | D33: ='Authorized Rev Req'!K52 -> 104444.3954 | E33: Distribution | F33: Distribution | H33: ='Authorized Rev Req'!K52 -> 104444.3954 | L33: New
A34: TRRRMA (Transmission) | C34: A.24-09-015 | D34: ='Authorized Rev Req'!K53 -> 47177.48763 | E34: ECPT - ALL | F34: ECPT - ALL | H34: ='Authorized Rev Req'!K53 -> 47177.48763 | L34: New
A37: Public Policy Proceedings
A38: ='Authorized Rev Req'!A61 -> AB 32: Cap & Trade/GHG | C38: ='Authorized Rev Req'!B61 -> D.15-10-032/D.18-03-017/SB 1477 | D38: ='Authorized Rev Req'!K61 -> -248978.8793 | E38: ='Authorized Rev Req'!L61 -> 100% Residential | F38: 100% Residential | G38: ='Authorized Rev Req'!J61 -> -345869.7457 | H38: ='Authorized Rev Req'!K61 -> -248978.8793 | I38: =H38 -> -248978.8793 | J38: -248978.8793 | K38: -248978.8793 | L38: Existing | M38: Hold flat
A39: ='Authorized Rev Req'!A62 -> GHG Operational Costs | C39: ='Authorized Rev Req'!B62 -> D.15-10-032/D.18-03-017 | D39: ='Authorized Rev Req'!K62 -> 16383.17028 | E39: ='Authorized Rev Req'!L62 -> ECPT | F39: ECPT - ALL | G39: ='Authorized Rev Req'!J62 -> -9916.695581 | H39: ='Authorized Rev Req'!K62 -> 16383.17028 | I39: 16383.17028 | J39: 16383.17028 | K39: 16383.17028 | L39: Existing
A40: ='Authorized Rev Req'!A63 -> GHG Compliance Costs | C40: ='Authorized Rev Req'!B63 -> D.15-10-032/D.18-03-017 | D40: ='Authorized Rev Req'!K63 -> 261594.3925 | E40: ='Authorized Rev Req'!L63 -> ECPT (excludes Covered Entities 3 yr avg vol) | F40: ECPT (excludes Covered Entities 3 yr avg vol) | G40: ='Authorized Rev Req'!J63 -> 437585.4379 | H40: ='Authorized Rev Req'!K63 -> 261594.3925 | I40: 261594.3925 | J40: 261594.3925 | K40: 261594.3925 | L40: Existing
A41: ='Authorized Rev Req'!A64 -> CPUC Fee | C41: ='Authorized Rev Req'!B64 -> Preliminary Statement O | D41: ='Authorized Rev Req'!K64 -> 15861.02532 | E41: ='Authorized Rev Req'!L64 -> ECPT (reduced EG volumes; excludes WHSL) | F41: CPUC Fee Allocation | G41: ='Authorized Rev Req'!J64 -> 11329.34033 | H41: ='Authorized Rev Req'!K64 -> 15861.02532 | I41: 15861.02532 | J41: 15861.02532 | K41: 15861.02532 | L41: Existing
A42: ='Authorized Rev Req'!A65 -> SGIP | C42: ='Authorized Rev Req'!B65 -> SB 700/D.17-04-017 | D42: ='Authorized Rev Req'!K65 -> 0 | E42: ='Authorized Rev Req'!L65 -> Direct Benefits - 3 year average | F42: SGIP allocation | G42: ='Authorized Rev Req'!J65 -> 0 | H42: ='Authorized Rev Req'!K65 -> 0 | I42: 0 | J42: 0 | K42: 0 | L42: Existing
A43: ='Authorized Rev Req'!A68 -> Energy Efficiency | C43: ='Authorized Rev Req'!B68 -> D.23-06-055 | D43: ='Authorized Rev Req'!K68 -> 127629.8097 | E43: ='Authorized Rev Req'!L68 -> Direct Allocation Method | F43: EE | G43: ='Authorized Rev Req'!J68 -> 122474.8554 | H43: ='Authorized Rev Req'!K68 -> 127629.8097 | I43: 129649.9857 | J43: =I43 -> 129649.9857 | K43: 129649.9857 | L43: Existing
A44: ='Authorized Rev Req'!A69 -> Energy Savings Assistance Program (ESA) | C44: ='Authorized Rev Req'!B69 -> D.21-06-015/D.20-12-005 | D44: ='Authorized Rev Req'!K69 -> 75530.121 | E44: ='Authorized Rev Req'!L69 -> Direct Allocation Method 100% Residential | F44: ESA | G44: ='Authorized Rev Req'!J69 -> 75426.796 | H44: ='Authorized Rev Req'!K69 -> 75530.121 | I44: =H44 -> 75530.121 | J44: =I44 -> 75530.121 | K44: 75530.121 | L44: Existing | M44: 2022-2025 based on D. 21-06-015
A45: ='Authorized Rev Req'!A70 -> Research Development and Demonstration | C45: ='Authorized Rev Req'!B70 -> AL 4822-G | D45: ='Authorized Rev Req'!K70 -> 10233.68784 | E45: ='Authorized Rev Req'!L70 -> ECPT | F45: PPP ECPT | G45: ='Authorized Rev Req'!J70 -> 10469.05738 | H45: ='Authorized Rev Req'!K70 -> 10233.68784 | I45: =H45 -> 10233.68784 | J45: =I45 -> 10233.68784 | K45: =J45 -> 10233.68784 | L45: Existing
A46: ='Authorized Rev Req'!A71 -> CARE Administrative Expense | C46: ='Authorized Rev Req'!B71 -> D.21-06-015/D.20-12-005 | D46: ='Authorized Rev Req'!K71 -> 2957.54 | E46: ='Authorized Rev Req'!L71 -> ECPT (non-CARE) | F46: PPP ECPT | G46: ='Authorized Rev Req'!J71 -> 2888.84 | H46: ='Authorized Rev Req'!K71 -> 2957.54 | I46: 3140 | J46: 3140 | K46: 3140 | L46: Existing | M46: 2022-2025 based on D.21-06-015
A47: ='Authorized Rev Req'!A72 -> CARE Shortfall in Rates | C47: ='Authorized Rev Req'!B72 -> AL 4822-G | D47: ='Authorized Rev Req'!K72 -> 0 | E47: ='Authorized Rev Req'!L72 -> ECPT (excludes CARE) | F47: PPP ECPT | G47: ='Authorized Rev Req'!J72 -> 0 | H47: ='Authorized Rev Req'!K72 -> 0 | I47: =H47 -> 0 | J47: 0 | K47: 0 | L47: Existing
A48: ='Authorized Rev Req'!A73 -> BOE/CPUC Gas Surcharge Administration Costs | C48: ='Authorized Rev Req'!B73 -> AL 4822-G | D48: ='Authorized Rev Req'!K73 -> 414.03795 | E48: ='Authorized Rev Req'!L73 -> ECPT | F48: PPP ECPT | G48: ='Authorized Rev Req'!J73 -> 429.23135 | H48: ='Authorized Rev Req'!K73 -> 414.03795 | I48: 414.03795 | J48: 414.03795 | K48: 414.03795 | L48: Existing
A49: ='Authorized Rev Req'!A74 -> Marketing, Education & Outreach (ME&O) | C49: ='Authorized Rev Req'!B74 -> D.19-01-005 | D49: ='Authorized Rev Req'!K74 -> 0 | E49: ='Authorized Rev Req'!L74 -> ECPT | F49: PPP ECPT | G49: ='Authorized Rev Req'!J74 -> 0 | H49: ='Authorized Rev Req'!K74 -> 0 | I49: 0 | J49: 0 | K49: 0 | L49: Existing
A51: Core Procurement (Intrastate Volumetric and Capacity) | C51: ='Authorized Rev Req'!B79 -> D. 24-03-002/Other | D51: 184256.0357 | E51: ='Authorized Rev Req'!L79 -> Unadjusted Average Year January | F51: Capacity Allocation (Procurement) | G51: 184256.0357 | H51: 196211.9165 | I51: =H51 -> 196211.9165 | J51: 196211.9165 | K51: 196211.9165 | L51: Existing
A52: Core Procurement (Other) | C52: ='Authorized Rev Req'!B80 -> D. 97-10-065 | D52: ='Authorized Rev Req'!K79+'Authorized Rev Req'!K80-D51 -> 726102.2544 | E52: ='Authorized Rev Req'!L80 -> Core - ECPT | F52: ECPT - Core only (Procurement) | G52: ='Authorized Rev Req'!J80+'Authorized Rev Req'!J79-G51 -> 643725.7271 | H52: ='Authorized Rev Req'!K80+'Authorized Rev Req'!K79-H51 -> 714146.3737 | I52: 714146.3737 | J52: 714146.3737 | K52: 714146.3737 | L52: Existing
A53: ='Authorized Rev Req'!A81 -> Core Storage | C53: ='Authorized Rev Req'!B81 -> D. 19-09-025 | D53: ='Authorized Rev Req'!K81 -> 135685.9394 | E53: ='Authorized Rev Req'!L81 -> Unadjusted Cold Year Winter Season | F53: Storage Allocation (Procurement) | G53: ='Authorized Rev Req'!J81 -> 134502.8939 | H53: ='Authorized Rev Req'!K81 -> 135685.9394 | I53: 135685.9394 | J53: 135685.9394 | K53: 135685.9394 | L53: Existing
A54: ='Authorized Rev Req'!A82 -> Core Brokerage Fee | C54: ='Authorized Rev Req'!B82 -> GCAP D.19-10-036 | D54: ='Authorized Rev Req'!K82 -> 5066.909395 | E54: ='Authorized Rev Req'!L82 -> ECPT (Core only) | F54: ECPT - Core only (Procurement) | G54: ='Authorized Rev Req'!J82 -> 5066.942012 | H54: ='Authorized Rev Req'!K82 -> 5066.909395 | I54: 5066.909395 | J54: 5066.909395 | K54: 5066.909395 | L54: Existing
A55: ='Authorized Rev Req'!A83 -> Core Brokerage Fee Credit | C55: ='Authorized Rev Req'!B83 -> GCAP D.19-10-036 | D55: ='Authorized Rev Req'!K83 -> -5066.909395 | E55: ='Authorized Rev Req'!L83 -> ECPT (Core only) | F55: Core - Distribution | G55: ='Authorized Rev Req'!J83 -> -5066.942012 | H55: ='Authorized Rev Req'!K83 -> -5066.909395 | I55: -5066.909395 | J55: -5066.909395 | K55: -5066.909395 | L55: Existing
C56: The Core Brokerage Fee is part of the distribution revenue requirement. In transportation the RRQ is reduced and then it is recovered via the customers that pay PG&E procurement rates.
A60: Balancing Account Balances frozen at current 2026 values
A61: Distribution | D61: ='Authorized Rev Req'!K23+'Authorized Rev Req'!K27+'Authorized Rev Req'!K41+'Authorized Rev Req'!K42+'Authorized Rev Req'!K43+'Authorized Rev Req'!K44+'Authorized Rev Req'!K66+'Authorized Rev Req'!K56 -> 18179.89999 | F61: Distribution | G61: ='Authorized Rev Req'!J23+'Authorized Rev Req'!J27+'Authorized Rev Req'!J41+'Authorized Rev Req'!J42+'Authorized Rev Req'!J43+'Authorized Rev Req'!J44+'Authorized Rev Req'!J66+'Authorized Rev Req'!J56 -> 159345.9787 | H61: ='Authorized Rev Req'!K23+'Authorized Rev Req'!K27+'Authorized Rev Req'!K41+'Authorized Rev Req'!K42+'Authorized Rev Req'!K43+'Authorized Rev Req'!K44+'Authorized Rev Req'!K66+'Authorized Rev Req'!K56 -> 18179.89999 | I61: =H61 -> 18179.89999 | J61: 18179.89999 | K61: 18179.89999 | L61: Existing
A62: ECPT | D62: ='Authorized Rev Req'!K21+'Authorized Rev Req'!K22+'Authorized Rev Req'!K24+'Authorized Rev Req'!K25+'Authorized Rev Req'!K26+'Authorized Rev Req'!K28+'Authorized Rev Req'!K29+'Authorized Rev Req'!K30+'Authorized Rev Req'!K31+'Authorized Rev Req'!K32+'Authorized Rev Req'!K33+'Authorized Rev Req'!K37+'Authorized Rev Req'!K38+'Authorized Rev Req'!K39+'Authorized Rev Req'!K40+'Authorized Rev Req'!K54+'Authorized Rev Req'!K57 -> 227300.091 | F62: ECPT - ALL | G62: ='Authorized Rev Req'!J21+'Authorized Rev Req'!J22+'Authorized Rev Req'!J24+'Authorized Rev Req'!J25+'Authorized Rev Req'!J26+'Authorized Rev Req'!J28+'Authorized Rev Req'!J29+'Authorized Rev Req'!J30+'Authorized Rev Req'!J31+'Authorized Rev Req'!J32+'Authorized Rev Req'!J33+'Authorized Rev Req'!J37+'Authorized Rev Req'!J38+'Authorized Rev Req'!J39+'Authorized Rev Req'!J40+'Authorized Rev Req'!J54+'Authorized Rev Req'!J57 -> 152519.5714 | H62: ='Authorized Rev Req'!K21+'Authorized Rev Req'!K22+'Authorized Rev Req'!K24+'Authorized Rev Req'!K25+'Authorized Rev Req'!K26+'Authorized Rev Req'!K28+'Authorized Rev Req'!K29+'Authorized Rev Req'!K30+'Authorized Rev Req'!K31+'Authorized Rev Req'!K32+'Authorized Rev Req'!K33+'Authorized Rev Req'!K37+'Authorized Rev Req'!K38+'Authorized Rev Req'!K39+'Authorized Rev Req'!K40+'Authorized Rev Req'!K54+'Authorized Rev Req'!K57 -> 227300.091 | I62: 227300.091 | J62: 227300.091 | K62: 227300.091 | L62: Existing
A63: Public Purpose Program | D63: ='Authorized Rev Req'!K75+'Authorized Rev Req'!K76+'Authorized Rev Req'!K77+'Authorized Rev Req'!K78+'Authorized Rev Req'!K67 -> -26411.58055 | F63: PPP ECPT | G63: ='Authorized Rev Req'!J75+'Authorized Rev Req'!J76+'Authorized Rev Req'!J77+'Authorized Rev Req'!J78+'Authorized Rev Req'!J67 -> 48771.1607 | H63: ='Authorized Rev Req'!K75+'Authorized Rev Req'!K76+'Authorized Rev Req'!K77+'Authorized Rev Req'!K78+'Authorized Rev Req'!K67 -> -26411.58055 | I63: -26411.58055 | J63: -26411.58055 | K63: -26411.58055 | L63: Existing
A64: CFCA - NGSS Enduser Dist. Sub Acct Recovery | D64: ='Authorized Rev Req'!K34 -> 2051.460825 | F64: Core - Distribution | G64: ='Authorized Rev Req'!J34 -> -41605.2506 | H64: ='Authorized Rev Req'!K34 -> 2051.460825 | I64: 0 | J64: =I64 -> 0 | K64: =J64 -> 0 | L64: Existing
A65: CFCA/NCA - NGSS Enduser Sub Acct Recovery | D65: ='Authorized Rev Req'!K35 -> 487.8206422 | F65: ECPT - ALL | G65: ='Authorized Rev Req'!J35 -> -9893.389052 | H65: ='Authorized Rev Req'!K35 -> 487.8206422 | I65: 0 | J65: =I65 -> 0 | K65: 0 | L65: Existing
A66: NCA - NGSS Enduser Sub Acct Recovery | D66: ='Authorized Rev Req'!K36 -> 501.0158178 | F66: ECPT - Noncore only | G66: ='Authorized Rev Req'!J36 -> -10160.99767 | H66: ='Authorized Rev Req'!K36 -> 501.0158178 | I66: 0 | J66: 0 | K66: 0 | L66: Existing
A73: Total Approved, Implemented Since Jan 1 or To Be Implemented | D73: =SUM(D10:D71) -> 7011426.794 | G73: =SUM(G10:G71) -> 6935209.051 | H73: =SUM(H10:H71) -> 7011426.794 | I73: =SUM(I10:I71) -> 6490709.399 | J73: =SUM(J10:J71) -> 6518900.875 | K73: =SUM(K10:K71) -> 6518900.875
A76: Pending Application(s), Not Yet Approved | T76: Summary Incremental Authorized + Pending
A77: Filing Description | B77: Proceeding | C77: Basis of Revenue Requirement Forecast: Application Amended Application, Ammended Testimony, Proposed Settlement Agreement, Proposed Decision | D77: Proposed Revenue Requirement ($000) | E77: Proposed Revenue Recovery Mechanism | F77: Allocation Methodology | G77: Projected Authorized Revenue Requirement ($000) - Breakout by Year | L77: Existing or New Item (if existing, use delta from prior for illustrative rate impact) | M77: Change in Projected Authorized Revenue Requirement ($000) for Illustrative Rate Impact - Breakout by Year (if cell is shaded grey, rate impact is not presently determinable) | R77: Include in Impact | U77: =U9 -> 2025 | V77: =V9 -> 2026 | W77: =W9 -> 2027 | X77: =X9 -> 2028 | Y77: =Y9 -> 2029
A78: Safety Affordability Reliability Proceedings | G78: =G$9 -> 2025 | H78: =H$9 -> 2026 | I78: =I$9 -> 2027 | J78: =J$9 -> 2028 | K78: =K$9 -> 2029 | M78: =G$9 -> 2025 | N78: =H$9 -> 2026 | O78: =I$9 -> 2027 | P78: =J$9 -> 2028 | Q78: =K$9 -> 2029 | T78: =T10 -> 100% Residential | U78: =SUMIFS(M$79:M$115,$F$79:$F$115,$T78,$R$79:$R$115,"Y")+U10 -> -96890.86639 | V78: =SUMIFS(N$79:N$115,$F$79:$F$115,$T78,$R$79:$R$115,"Y")+V10 -> 0 | W78: =SUMIFS(O$79:O$115,$F$79:$F$115,$T78,$R$79:$R$115,"Y")+W10 -> 0 | X78: =SUMIFS(P$79:P$115,$F$79:$F$115,$T78,$R$79:$R$115,"Y")+X10 -> 0 | Y78: =SUMIFS(Q$79:Q$115,$F$79:$F$115,$T78,$R$79:$R$115,"Y")+Y10 -> 0
A79: 2027 Energy Savings Assistance Bridge Funding | B79: A.25-06-024 | C79: Application | D79: =I79 -> 55567.26105 | E79: PPP | F79: ESA | I79: 55567.26105 | L79: Existing | O79: =I79-I44 -> -19962.85995 | R79: =VLOOKUP(A79,Summary!$B$8:$E$41,3,FALSE) -> N | T79: Core - Distribution | U79: =SUMIFS(M$79:M$115,$F$79:$F$115,$T79,$R$79:$R$115,"Y")+U11 -> -43656.74404 | V79: =SUMIFS(N$79:N$115,$F$79:$F$115,$T79,$R$79:$R$115,"Y")+V11 -> 0 | W79: =SUMIFS(O$79:O$115,$F$79:$F$115,$T79,$R$79:$R$115,"Y")+W11 -> -2051.460825 | X79: =SUMIFS(P$79:P$115,$F$79:$F$115,$T79,$R$79:$R$115,"Y")+X11 -> -2051.460825 | Y79: =SUMIFS(Q$79:Q$115,$F$79:$F$115,$T79,$R$79:$R$115,"Y")+Y11 -> -2051.460825
A80: 2027 CARE Administrative Bridge Funding | B80: A.25-06-024 | C80: Application | D80: =I80 -> 2059.02 | E80: PPP | F80: PPP ECPT | I80: 2059.02 | L80: Existing | O80: =I80-I46 -> -1080.98 | R80: =VLOOKUP(A80,Summary!$B$8:$E$41,3,FALSE) -> N | T80: Distribution | U80: -65662.07416 | V80: =SUMIFS(N$79:N$115,$F$79:$F$115,$T80,$R$79:$R$115,"Y")+V12 -> 0 | W80: -283240.4193 | X80: -326748.9032 | Y80: -326748.9032
A81: Hinkley Upgrade | B81: A.25-04-004 | C81: Application | D81: =J81 -> 3170.008597 | E81: ECPT | F81: ECPT - ALL | G81: =M81 -> 0 | H81: =N81 -> 0 | I81: =O81 -> 0 | J81: =P81 -> 3170.008597 | K81: =Q81 -> 8890.201242 | L81: New | P81: 3170.008597 | Q81: 8890.201242 | R81: =VLOOKUP(A81,Summary!$B$8:$E$41,3,FALSE) -> N | T81: =T13 -> ECPT - ALL | U81: 59011.39732 | V81: 0 | W81: -141460.4448 | X81: -165427.1748 | Y81: -165427.1748
A82: Billing Modernization (Distribution) | B82: A. 24-10-004 | C82: Application | D82: =H82 -> 18712.17383 | E82: Distribution | F82: Distribution | H82: 18712.17383 | I82: 17751.34183 | J82: 16583.85336 | K82: 14215.2408 | L82: New | N82: =H82 -> 18712.17383 | O82: =I82 -> 17751.34183 | P82: 16583.85336 | Q82: 14215.2408 | R82: =VLOOKUP(A82,Summary!$B$8:$E$41,3,FALSE) -> N | T82: ECPT - Core only | U82: -70730.3165 | V82: -24399.73512 | W82: -24399.73512 | X82: -24399.73512 | Y82: -24399.73512
A83: Billing Modernization (Transmission) | B83: A. 24-10-004 | C83: Application | D83: =H83 -> 8918.457231 | E83: ECPT | F83: ECPT - ALL | H83: 8918.457231 | I83: 8460.512628 | J83: 7904.072949 | K83: 6775.162433 | L83: New | N83: 8918.457231 | O83: 8460.512628 | P83: 7904.072949 | Q83: 6775.162433 | R83: =VLOOKUP(A83,Summary!$B$8:$E$41,3,FALSE) -> N | T83: ECPT - Noncore only | U83: -10662.01348 | V83: 24399.73512 | W83: 23898.7193 | X83: 23898.7193 | Y83: 23898.7193
T84: ECPT - 50% Core / 50% Noncore | U84: 0 | V84: 0 | W84: 0 | X84: 0 | Y84: 0
A85: Hydrogen Demonstration Project (2027) | B85: A.22-09-006 | C85: Application | D85: =I85 -> 3022.022937 | E85: ECPT | F85: ECPT - ALL | I85: 3022.022937 | J85: 10324.82853 | K85: 10534.09292 | L85: New | M85: =G85 -> 0 | N85: =H85 -> 0 | O85: =I85 -> 3022.022937 | P85: 10324.82853 | Q85: 10534.09292 | R85: =VLOOKUP(A85,Summary!$B$8:$E$41,3,FALSE) -> N | T85: ECPT (excludes Covered Entities 3 yr avg vol) | U85: 175991.0454 | V85: 0 | W85: 0 | X85: 0 | Y85: 0
A86: 2024 Wildfire Mitigation and Catastrophic Events (distribution) | B86: A.24-11-009 | C86: Application | D86: =H86 -> 65537.65441 | E86: Distribution | F86: Distribution | H86: 65537.65441 | I86: 18819.46508 | J86: 18178.26264 | K86: 17712.2756 | L86: New | M86: 0 | N86: =H86 -> 65537.65441 | O86: 18819.46508 | P86: 18178.26264 | Q86: 17712.2756 | R86: =VLOOKUP(A86,Summary!$B$8:$E$41,3,FALSE) -> N | T86: EE | U86: -5154.954318 | V86: 0 | W86: 2020.17599 | X86: 2020.17599 | Y86: 2020.17599
A87: 2024 Wildfire Mitigation and Catastrophic Events (transmission) | B87: A.24-11-009 | C87: Application | D87: 6579.378757 | E87: ECPT | F87: ECPT - ALL | H87: 6579.378757 | I87: 291.8396392 | J87: 239.4188966 | K87: 225.0342646 | L87: New | M87: 0 | N87: =H87 -> 6579.378757 | O87: 291.8396392 | P87: 239.4188966 | Q87: 225.0342646 | R87: =VLOOKUP(A87,Summary!$B$8:$E$41,3,FALSE) -> N | T87: ESA | U87: -103.325 | V87: 0 | W87: 0 | X87: 0 | Y87: 0
A88: 2026 Cost of Capital (Distribution) | B88: A.25-03-010 | C88: Application (amount reflected above through Preliminary AGT) | D88: 0 | E88: Distribution | F88: Distribution | G88: =M88 -> 0 | H88: =N88 -> 0 | I88: 111625.7848 | J88: 111625.7848 | K88: 111625.7848 | L88: New | O88: 111625.7848 | P88: =O88 -> 111625.7848 | Q88: 111625.7848 | R88: =VLOOKUP(A88,Summary!$B$8:$E$41,3,FALSE) -> N | T88: PPP ECPT | U88: 75364.60418 | V88: 0 | W88: 182.46 | X88: 182.46 | Y88: 182.46
A89: 2026 Cost of Capital (Transmission) | B89: A.25-03-010 | C89: Application (amount reflected above through Preliminary AGT) | D89: 0 | E89: ECPT - 50% Core / 50% Noncore | F89: ECPT - 50% Core / 50% Noncore | G89: =M89 -> 0 | H89: 0 | I89: 84230.76028 | J89: 84230.76028 | K89: 84230.76028 | L89: New | O89: 84230.76028 | P89: 84230.76028 | Q89: 84230.76028 | R89: =VLOOKUP(A89,Summary!$B$8:$E$41,3,FALSE) -> N | T89: SGIP allocation | U89: 0 | V89: 0 | W89: 0 | X89: 0 | Y89: 0
A90: Gas Advanced Metering Infrastructure (AMI) (distribution) | B90: A.24-03-011 | C90: Application (amount reflected above through Preliminary AGT) | D90: 0 | E90: Distribution | F90: Distribution | L90: New | M90: 0 | N90: =H90 -> 0 | O90: 0 | P90: 0 | Q90: 0 | R90: =VLOOKUP(A90,Summary!$B$8:$E$41,3,FALSE) -> N | T90: CPUC Fee Allocation | U90: -4531.684987 | V90: 0 | W90: 0 | X90: 0 | Y90: 0
A91: Gas AMI (transmission) | B91: A.24-03-011 | C91: Application (amount reflected above through Preliminary AGT) | D91: 0 | E91: ECPT | F91: ECPT - ALL | L91: New | M91: 0 | N91: 0 | O91: 0 | P91: 0 | Q91: 0 | R91: =VLOOKUP(A91,Summary!$B$8:$E$41,3,FALSE) -> N | T91: CAC Allocation | U91: -849.0676397 | V91: 0 | W91: 0 | X91: 0 | Y91: 0
A92: 2023 Wildfire Mitigation and Catastrophic Events (distribution) | B92: A.23-12-001 | C92: Application | D92: 13644.27962 | E92: Distribution | F92: Distribution | H92: 13644.27962 | L92: New | M92: 0 | N92: 13644.27962 | O92: 0 | P92: 0 | Q92: 0 | R92: =VLOOKUP(A92,Summary!$B$8:$E$41,3,FALSE) -> N | T92: Storage Allocation (Procurement) | U92: -1183.045547 | V92: 0 | W92: 0 | X92: 0 | Y92: 0
A93: 2023 Wildfire Mitigation and Catastrophic Events (transmission) | B93: A.23-12-001 | C93: Application | D93: 5913.522951 | E93: ECPT | F93: ECPT - ALL | H93: 5913.522951 | L93: New | M93: 0 | N93: 5913.522951 | O93: 0 | P93: 0 | Q93: 0 | R93: =VLOOKUP(A93,Summary!$B$8:$E$41,3,FALSE) -> N | T93: Capacity Allocation (Procurement) | U93: 0 | V93: 11955.88079 | W93: 11955.88079 | X93: 11955.88079 | Y93: 11955.88079
A94: Wildfire Gas and Safety Costs (Distribution) Non-IRR | B94: A.23-06-008 | C94: Application | D94: 6776.716441 | E94: Distribution | F94: Distribution | H94: 6776.716441 | L94: New | M94: 0 | N94: 6776.716441 | O94: 0 | P94: 0 | Q94: 0 | R94: =VLOOKUP(A94,Summary!$B$8:$E$41,3,FALSE) -> N | T94: ECPT - Core only (Procurement) | U94: -82376.49478 | V94: -11955.88079 | W94: -11955.88079 | X94: -11955.88079 | Y94: -11955.88079
A95: Wildfire Gas and Safety Costs (Transmission) - Non IRR | B95: A.23-06-008 | C95: Application | D95: 44029.8428 | E95: ECPT | F95: ECPT - ALL | H95: 44029.8428 | I95: 412.700166 | L95: New | M95: 0 | N95: 44029.8428 | O95: =I95 -> 412.700166 | P95: =J95 -> 0 | Q95: =K95 -> 0 | R95: =VLOOKUP(A95,Summary!$B$8:$E$41,3,FALSE) -> N | T95: 2023 GTS - Inventory Management | U95: -4784.20353 | V95: 0 | W95: 0 | X95: 0 | Y95: 0
A96: Kincaid-Dixie (Distribution) | B96: A.25-11-XXX | C96: Application | D96: =I96 -> 71886.55064 | E96: Distribution | F96: Distribution | I96: 71886.55064 | L96: New | O96: =I96 -> 71886.55064 | R96: Y | T96: =T28 -> User Defined 1 | U96: 0 | V96: 0 | W96: 0 | X96: 0 | Y96: 0
A97: Kincaid-Dixie (Generation) | B97: A.25-11-XXX | C97: Application | D97: =I97 -> 23780.14007 | E97: ECPT | F97: ECPT - ALL | I97: 23780.14007 | L97: New | O97: =I97 -> 23780.14007 | R97: Y | T97: =T29 -> User Defined 2 | U97: 0 | V97: 0 | W97: 0 | X97: 0 | Y97: 0
M98: 0 | N98: 0 | O98: 0 | P98: 0 | Q98: 0 | T98: =T30 -> User Defined 3 | U98: 0 | V98: 0 | W98: 0 | X98: 0 | Y98: 0
A99: TRRRMA (Distribution) | B99: A.24-09-015 | C99: Application (amount reflected above through Preliminary AGT) | D99: =H99 -> 0 | E99: Distribution | F99: Distribution | L99: New | N99: 0 | P99: 0 | Q99: 0 | R99: =VLOOKUP(A99,Summary!$B$8:$E$41,3,FALSE) -> N | T99: =T31 -> Total | U99: =SUM(U78:U98) -> -76217.74343 | V99: =SUM(V78:V98) -> -1.455191523e-10 | W99: =SUM(W78:W98) -> -425050.7047 | X99: =SUM(X78:X98) -> -492525.9187 | Y99: =SUM(Y78:Y98) -> -492525.9187
A100: TRRRMA (Transmission) | B100: A.24-09-015 | C100: Application (amount reflected above through Preliminary AGT) | D100: =H100 -> 0 | E100: ECPT | F100: ECPT - ALL | L100: New | N100: 0 | P100: 0 | Q100: 0 | R100: =VLOOKUP(A100,Summary!$B$8:$E$41,3,FALSE) -> N | T100: check | U100: =U31+SUMIF($R$79:$R$115,"Y",M79:M115)=U99 -> TRUE | V100: =ABS(V31+SUMIF($R$79:$R$115,"Y",N79:N115)-V99)<0.0000005 -> TRUE | W100: =ABS(W31+SUMIF($R$79:$R$115,"Y",O79:O115)-W99)<0.0000005 -> TRUE | X100: =ABS(X31+SUMIF($R$79:$R$115,"Y",P79:P115)-X99)<0.0000005 -> TRUE | Y100: =ABS(Y31+SUMIF($R$79:$R$115,"Y",Q79:Q115)-Y99)<0.0000005 -> TRUE
A101: 2027 GRC - Gas Distribution | B101: A.25-05-009 | C101: Application | D101: =I101 -> 3061244.211 | E101: Distribution | F101: Distribution | I101: 3061244.211 | J101: 3220789.415 | K101: 3389414.767 | L101: Existing | O101: =I101-I10 -> 46307.81051 | P101: =J101-J10 -> 205853.0139 | Q101: 374478.3663 | R101: =VLOOKUP(A101,Summary!$B$8:$E$41,3,FALSE) -> N
A102: 2027 GRC - Core Local Transmission | B102: A.25-05-009 | C102: Application | D102: =I102 -> 1102352.183 | E102: ECPT | F102: ECPT - Core only | I102: 1102352.183 | J102: 1135354.816 | K102: 1173368.345 | L102: Existing | O102: =I102-I19 -> 118980.798 | P102: =J102-J19 -> 151983.4313 | Q102: 189996.9603 | R102: =VLOOKUP(A102,Summary!$B$8:$E$41,3,FALSE) -> N
A103: 2027 GRC - Core Procurement (Intrastate Volumetric and Capacity) | B103: A.25-05-009 | C103: Application | D103: 144492.9212 | E103: ECPT (No BB) | F103: ECPT - Core only (Procurement) | I103: 144492.9212 | J103: 153719.4621 | K103: 162779.9119 | L103: Existing | O103: =I103-I51 -> -51718.99537 | P103: =J103-J51 -> -42492.45442 | Q103: -33432.00467 | R103: =VLOOKUP(A103,Summary!$B$8:$E$41,3,FALSE) -> N
A104: 2027 GRC - Core Procurement (Storage) | B104: A.25-05-009 | C104: Application | D104: 34475.58511 | E104: Unadjusted Cold Year Winter Season | F104: Storage Allocation (Procurement) | I104: 34475.58511 | J104: 37259.1958 | K104: 39767.86767 | L104: Existing | O104: =I104-I53+100000 -> -1210.3543 | P104: =J104-J53+100000 -> 1573.256393 | Q104: =K104-K53+100000 -> 4081.928258 | R104: =VLOOKUP(A104,Summary!$B$8:$E$41,3,FALSE) -> N
A105: 2027 GRC - Noncore Local Transmission | B105: A.25-05-009 | C105: Application | D105: 578500.182 | E105: ECPT (No BB) | F105: ECPT - Noncore only | I105: 578500.182 | J105: 595883.4141 | K105: 615905.9866 | L105: Existing | O105: =I105-I20 -> 62673.67756 | P105: 80056.90966 | Q105: 100079.4821 | R105: =VLOOKUP(A105,Summary!$B$8:$E$41,3,FALSE) -> N
A106: 2027 GRC - Customer Access Charge | B106: A.25-05-009 | C106: Application | D106: 3108.803628 | E106: CAC Allocation | F106: CAC Allocation | I106: 3108.803628 | J106: 3870.218973 | K106: 4634.982782 | L106: Existing | O106: -2356.437317 | P106: -1595.021972 | Q106: -830.2581629 | R106: =VLOOKUP(A106,Summary!$B$8:$E$41,3,FALSE) -> N
A107: 2027 GRC - Noncore Unbundled | B107: A.25-05-009 | C107: Application | D107: 197609.3823 | E107: ECPT-All | F107: ECPT - ALL | I107: 197609.3823 | J107: 206605.913 | K107: 213949.2198 | L107: Existing | O107: -65598.61827 | P107: -56602.08753 | Q107: -49258.78074 | R107: =VLOOKUP(A107,Summary!$B$8:$E$41,3,FALSE) -> N
A108: 2027 GRC - Inventory Management | B108: A.25-05-009 | C108: Application | D108: =I108 -> 139662.6234 | E108: 2023 GTS - Inventory Management | F108: 2023 GTS - Inventory Management | I108: 139662.6234 | J108: 150919.4682 | K108: 161064.4679 | L108: Existing | O108: -4041.423614 | P108: 7215.421172 | Q108: 17360.42093 | R108: =VLOOKUP(A108,Summary!$B$8:$E$41,3,FALSE) -> N
A109: CFCA - NGSS Enduser Dist. Sub Acct Recovery | B109: A.25-05-009 | C109: Application | D109: 0 | E109: Core - Distribution | F109: Core - Distribution | I109: 0 | J109: 0 | K109: 0 | L109: Existing | O109: =-H64 -> -2051.460825 | P109: =O109 -> -2051.460825 | Q109: -2051.460825 | R109: =VLOOKUP(A109,Summary!$B$8:$E$41,3,FALSE) -> N
A110: CFCA/NCA - NGSS Enduser Sub Acct Recovery | B110: A.25-05-009 | C110: Application | D110: 0 | E110: ECPT - ALL | F110: ECPT - ALL | I110: 0 | J110: 0 | K110: 0 | L110: Existing | O110: =-H65 -> -487.8206422 | P110: -487.8206422 | Q110: -487.8206422 | R110: =VLOOKUP(A110,Summary!$B$8:$E$41,3,FALSE) -> N
A111: NCA - NGSS Enduser Sub Acct Recovery | B111: A.25-05-009 | C111: Application | D111: 0 | E111: ECPT - Noncore only | F111: ECPT - Noncore only | I111: 0 | J111: 0 | K111: 0 | L111: Existing | O111: =-H66 -> -501.0158178 | P111: -501.0158178 | Q111: -501.0158178 | R111: =VLOOKUP(A111,Summary!$B$8:$E$41,3,FALSE) -> N
A113: Public Policy Proceedings
A116: Total Pending, Filed but not Approved | D116: =SUM(D79:D115) -> 5591042.921 | G116: =SUM(G79:G115) -> 0 | H116: =SUM(H79:H115) -> 170112.026 | I116: =SUM(I79:I115) -> 5659353.291 | J116: =SUM(J79:J115) -> 5756658.893 | K116: =SUM(K79:K115) -> 6015094.101 | M116: =SUM(M79:M115) -> 0 | N116: =SUM(N79:N115) -> 170112.026 | O116: =SUM(O79:O115) -> 419233.4381 | P116: =SUM(P79:P115) -> 595209.1612 | Q116: =SUM(Q79:Q115) -> 853644.3694
A123: ** Recurring programs funding assumed to be flat at current levels

Sheet Authorized Rev Req
A2: Annual Period 2025
A3: Reporting Date: Q4 2025
C5: September 1, 2023 | D5: January 1, 2024 | E5: February 1, 2024 | F5: April 1, 2024 | G5: September 1, 2024 | H5: January 1, 2025 | I5: August 1, 2025 | J5: September 1, 2025 | K5: January 1, 2026
C6: 4792-G | D6: 4845-G - AGT | E6: 4859-G - COC | F6: AL 4884-G WGSC | G6: AL 4966-G CARD | H6: AL 5014-G AGT | I6: AL 5090-G 2020 WMCE | J6: AL 5099-G 2021 WMCE | K6: AL 5139-G Preliminary AGT
A7: Filing Description | B7: Authority for Revenue Requirement | C7: Authorized Revenue Requirement ($000) | D7: Authorized Revenue Requirement ($000) | E7: Authorized Revenue Requirement ($000) | F7: Authorized Revenue Requirement ($000) | G7: Authorized Revenue Requirement ($000) | H7: Authorized Revenue Requirement ($000) | I7: Authorized Revenue Requirement ($000) | J7: Authorized Revenue Requirement ($000) | K7: Authorized Revenue Requirement ($000) | L7: Revenue Recovery Mechanism/Allocation | M7: Balancing Account
A8: Safety Affordability Reliability Proceedings
A9: General Rate Case | B9: D. 23-11-069 | C9: 2221384.837 | D9: 2695191.955 | E9: 2695191.955 | F9: 2695191.955 | G9: 2695191.955 | H9: 2837661.424 | I9: 2837661.424 | J9: 2837661.424 | K9: 3014936.401 | L9: Distribution | M9: =IF(RIGHT(A9,1)="*","Y","N") -> N
A10: General Rate Case - Gas Distribution Late Implementation | B10: D. 23-11-069 | D10: 200589.2578 | E10: 200589.2578 | F10: 200589.2578 | G10: 200589.2578 | H10: 200589.2578 | I10: 200589.2578 | J10: 200589.2578 | K10: 0 | L10: Distribution | M10: N
A11: Pension Contribution - Distribution | B11: D.09-09-020 | C11: 31709.7412 | D11: 34877.61496 | E11: 34877.61496 | F11: 34877.61496 | G11: 37805.84365 | H11: 37805.84365 | I11: 42969.37257 | J11: 42969.37257 | K11: 42969.37257 | L11: Distribution | M11: N
A12: Pension Contribution - GT&S Core | B12: D.09-09-020 | C12: 9019.568428 | D12: 10150.45606 | E12: 10150.45606 | F12: 10150.45606 | G12: 11024.33372 | H12: 11024.33372 | I12: 12330.78009 | J12: 12330.78009 | K12: 12330.78009 | L12: Core - ECPT | M12: N
A13: Pension Contribution - GT&S NonCore (LT) | B13: D.09-09-020 | C13: 2947.820859 | D13: 4042.644918 | E13: 4042.644918 | F13: 4042.644918 | G13: 3986.072364 | H13: 3986.072364 | I13: 4921.782241 | J13: 4921.782241 | K13: 4921.782241 | L13: Noncore (No-BB/EG-BB)-ECPT | M13: N
A14: Pension Contribution - GT&S Noncore (BB& Storage) | B14: D.09-09-020 | C14: 3462.535613 | D14: 2430.008673 | E14: 2430.008673 | F14: 2430.008673 | G14: 3008.334161 | H14: 3008.334161 | I14: 3227.180703 | J14: 3227.180703 | K14: 3227.180703 | L14: Noncore - ECPT | M14: =IF(RIGHT(A26,1)="*","Y","N") -> N
A15: Cost of Capital | B15: D.22-12-031/D.23-01-002/ AL 4813-G/D.24-10-008/AL 4996-G | C15: -41770.07122 | D15: 0 | E15: 71193.52069 | F15: 71193.52069 | G15: 71193.52069 | H15: 50569.41165 | I15: 50569.41165 | J15: 50569.41165 | K15: 164934.2253 | L15: Distribution | M15: =IF(RIGHT(A15,1)="*","Y","N") -> N
A16: GT&S (excluding costs recovered through Core Procurement)
A17: Late Implementation (Transmission Undercollection, Capital Audit, GRC Track II, WGSC) | B17: D.22-07-007/ D.23-11-069/ WGSC IRR D.24-03-006 | C17: 61082.72649 | D17: 289979.733 | E17: 289979.733 | F17: 377623.574 | G17: 377623.574 | H17: 311890.6932 | I17: 311890.6932 | J17: 311890.6932 | K17: 105112.5693 | L17: ECPT | M17: N
A18: Local Transmission | B18: D. 24-03-002 | C18: 952787.6325 | D18: 1360671.608 | E18: 1360671.608 | F18: 1360671.608 | G18: 1360671.608 | H18: 1428467.573 | I18: 1428467.573 | J18: 1428467.573 | K18: 1499197.889 | L18: ECPT (No BB) | M18: N
A19: Customer Access Charge | B19: D. 24-03-002 | C19: 2331.344958 | D19: 3740.039321 | E19: 3740.039321 | F19: 3740.039321 | G19: 3740.039321 | H19: 4616.173305 | I19: 4616.173305 | J19: 4616.173305 | K19: 5465.240945 | L19: CAC Allocation | M19: N
A20: Unbundled | B20: D. 24-03-002 | C20: 342450.1766 | D20: 319583.6122 | E20: 319583.6122 | F20: 319583.6122 | G20: 375103.0568 | H20: 389964.4952 | I20: 389964.4952 | J20: 389964.4952 | K20: 406912.0475 | L20: ECPT-All | M20: N
A21: GT&S Balancing Accounts - LT (excludes BB) | B21: D.23-11-069 | C21: 39937.26103 | D21: 32271.77647 | E21: 32271.77647 | F21: 32271.77647 | G21: 32271.77647 | H21: 4730.745 | I21: 4730.745 | J21: 4730.745 | K21: 0 | L21: ECPT (No BB) | M21: Y
A22: GT&S Balancing Accounts - Non-LT (all customers pay) | B22: D.23-11-069 | C22: -137094.5871 | D22: -132483.2783 | E22: -132483.2783 | F22: -132483.2783 | G22: -132483.2783 | H22: 187.974 | I22: 187.974 | J22: 187.974 | K22: 0 | L22: ECPT-All | M22: Y
A23: CFCA - Distribution Cost Subaccount | B23: Preliminary Statement F | C23: 31181.11324 | D23: -105772.6405 | E23: -105772.6405 | F23: -105772.6405 | G23: -105772.6405 | H23: 126074.2372 | I23: 126074.2372 | J23: 126074.2372 | K23: 16179.3442 | L23: Distribution | M23: Y
A24: CFCA - Core Cost Subaccount | B24: Preliminary Statement F | C24: 32015.13448 | D24: -26622.23875 | E24: -26876.21342 | F24: -26876.21342 | G24: -26876.21342 | H24: 52966.97098 | I24: 52966.97098 | J24: 52966.97098 | K24: -1527.663347 | L24: ECPT | M24: Y
A25: CFCA - AB32 ARB COI | B25: Preliminary Statement F | C25: 12436.62143 | D25: 13746.46288 | E25: 13746.46288 | F25: 13746.46288 | G25: 13746.46288 | H25: 14221.84697 | I25: 14221.84697 | J25: 14221.84697 | K25: 15713.4242 | L25: ECPT (Certain Covered Entities) | M25: Y
A26: NCA - Noncore Subaccount | B26: Preliminary Statement J | C26: -10301.49341 | D26: 4451.98524 | E26: 4082.959912 | F26: 4082.959912 | G26: 4082.959912 | H26: -28484.12163 | I26: -28484.12163 | J26: -28484.12163 | K26: -21676.04937 | L26: ECPT | M26: Y
A27: NCA - Distribution Sub | B27: Preliminary Statement J | C27: 3864.00226 | D27: -2320.088795 | E27: -2320.088795 | F27: -2320.088795 | G27: -2320.088795 | H27: 8614.191621 | I27: 8614.191621 | J27: 8614.191621 | K27: -22966.70833 | L27: Distribution | M27: Y
A28: NCA - AB32 ARB COI | B28: Preliminary Statement J | C28: -1573.254906 | D28: -496.3779861 | E28: -496.3779861 | F28: -496.3779861 | G28: -496.3779861 | H28: -1803.843786 | I28: -1803.843786 | J28: -1803.843786 | K28: -2198.11398 | L28: ECPT (Certain Covered Entities) | M28: Y
A29: NCA - Local Transmission Subaccount | B29: Preliminary Statement J | C29: 285.7931864 | D29: 2857.747031 | E29: 2857.747031 | F29: 2857.747031 | G29: 2857.747031 | H29: -9843.60886 | I29: -9843.60886 | J29: -9843.60886 | K29: -13126.57049 | L29: ECPT (Noncore) | M29: Y
A30: GT&S Audit - Noncore Storage | B30: Preliminary Statement J | C30: 1558.563059 | D30: 1557.895255 | E30: 1557.895255 | F30: 1557.895255 | G30: 1557.895255 | H30: 1555.933202 | I30: 1555.933202 | J30: 1555.933202 | K30: 1554.269756 | L30: ECPT (Noncore) | M30: Y
A31: Core Brokerage Fee Balancing Account | B31: Preliminary Statement U | C31: -219.6859685 | D31: -579.0487785 | E31: -579.0487785 | F31: -579.0487785 | G31: -579.0487785 | H31: -27.45384348 | I31: -27.45384348 | J31: -27.45384348 | K31: -190.8362553 | L31: Core - ECPT | M31: Y
A32: Hazardous Substance Materials (HSM) * | B32: Preliminary Statement AN | C32: 77815.51837 | D32: 106048.5766 | E32: 106048.5766 | F32: 106048.5766 | G32: 106048.5766 | H32: 95401.74617 | I32: 95401.74617 | J32: 95401.74617 | K32: 102191.6406 | L32: ECPT | M32: Y
A33: Balancing Charge Account | B33: Preliminary Statement L | C33: -1660.97807 | D33: -12535.13101 | E33: -12535.13101 | F33: -12535.13101 | G33: -12535.13101 | H33: -4337.35272 | I33: -4337.35272 | J33: -4337.35272 | K33: -1682.82398 | L33: ECPT | M33: Y
A34: CFCA - NGSS Enduser Dist. Sub Acct Recovery | B34: Preliminary Statement F | C34: 25177.24247 | D34: -38434.84297 | E34: -38434.84297 | F34: -38434.84297 | G34: -41605.2506 | H34: -41605.2506 | I34: -41605.2506 | J34: -41605.2506 | K34: 2051.460825 | L34: Core - Distribution | M34: Y
A35: CFCA/NCA - NGSS Enduser Sub Acct Recovery | B35: Preliminary Statement J/F | C35: 5986.942788 | D35: -9139.491991 | E35: -9139.491991 | F35: -9139.491991 | G35: -9893.389052 | H35: -9893.389052 | I35: -9893.389052 | J35: -9893.389052 | K35: 487.8206422 | L35: ECPT | M35: Y
A36: NCA - NGSS Enduser Sub Acct Recovery | B36: Preliminary Statement J | C36: 6148.885016 | D36: -9386.708266 | E36: -9386.708266 | F36: -9386.708266 | G36: -10160.99767 | H36: -10160.99767 | I36: -10160.99767 | J36: -10160.99767 | K36: 501.0158178 | L36: Noncore - ECPT | M36: Y
A37: Adjust. Mechanism Costs Determined Other Proceedings | B37: Preliminary Statement CO | C37: 150922.3271 | D37: 18794.28532 | E37: 73091.27662 | F37: 73091.27662 | G37: 73091.27662 | H37: 42660.83061 | I37: 42660.83061 | J37: 42660.83061 | K37: 121289.7294 | L37: 50 Core/50 Noncore - ECPT | M37: Y
A38: Percentage of Income Payment Plan Bal Acct | B38: Preliminary Statement FU | C38: 0 | D38: 337.043393 | E38: 337.043393 | F38: 337.043393 | G38: 337.043393 | H38: 1500.878473 | I38: 1500.878473 | J38: 1500.878473 | K38: 1838.133928 | L38: ECPT | M38: Y
A39: GT&S Revenue Sharing Mechanism | B39: Preliminary Statement CP | C39: -59150.36774 | D39: -123356.7191 | E39: -123356.7191 | F39: -123356.7191 | G39: -123356.7191 | H39: -65585.16756 | I39: -65585.16756 | J39: -65585.16756 | K39: -50745.45057 | L39: 50 Core/50 Noncore - ECPT | M39: Y
A40: CA Solar Thermal Program Memo Account | B40: Preliminary Statement CA | C40: 5592.108634 | D40: 5964.99871 | E40: 5964.99871 | F40: 5964.99871 | G40: 5964.99871 | H40: 5260.703469 | I40: 5260.703469 | J40: 5260.703469 | K40: 873.1842346 | L40: ECPT (excludes CARE/FERA, EG, Whsl customers) | M40: Y
A41: Non-Tariffed Products and Services | B41: Preliminary Statement BT | C41: -340.1630825 | D41: -393.6296115 | E41: -393.6296115 | F41: -393.6296115 | G41: -393.6296115 | H41: -178.6079279 | I41: -178.6079279 | J41: -178.6079279 | K41: 0 | L41: Core Distribution | M41: Y
A42: Risk Transfer Balancing Account (RTBA) | B42: Preliminary Statement FK | C42: 202848.1012 | D42: 25316.8679 | E42: 25316.8679 | F42: 25316.8679 | G42: 25316.8679 | H42: 0 | I42: 0 | J42: 0 | K42: 0 | L42: Distribution | M42: Y
A43: Wildfire Mitigation Balancing Account (WMBA) | B43: D.20-12-005/Preliminary Statement FL | C43: 1835 | D43: 0 | E43: 0 | F43: 0 | G43: 0 | H43: 1965.586047 | I43: 1965.586047 | J43: 1965.586047 | K43: 1219.999579 | L43: Distribution | M43: Y
A44: New Environmental Regulations Balancing Account(Distribution) | B44: Preliminary Statement DZ | C44: 2860.786652 | D44: -1745.890543 | E44: -1745.890543 | F44: -1745.890543 | G44: -1745.890543 | H44: -839.770747 | I44: -839.770747 | J44: -839.770747 | K44: -2564.28426 | L44: Distribution | M44: Y
A45: 2020 -2021 Wildfire Mitigation and Catastrophic Events/WGSC (Distribution) | B45: D.23-02-017 / D.23-08-027/A.22-12-009 | C45: 34151.60546 | D45: 34151.60546 | E45: 34151.60546 | F45: 47759.4379 | G45: 47759.4379 | H45: 37553.56357 | I45: 28718.95532 | J45: 3401.958109 | K45: 6776.716441 | L45: Distribution | M45: N
A46: Oakland General Office Purchase (Distribution) | B46: D.24-08-009/AL 4972-G | H46: 74682.81908 | I46: 74682.81908 | J46: 74682.81908 | K46: 25543.30358 | L46: Distribution | M46: N
A47: 2020 -2021 Wildfire Mitigation and Catastrophic Events (Transmission) | B47: D.23-02-017 / D.23-08-027 | C47: 3251.404638 | D47: 3251.404638 | E47: 3251.404638 | F47: 3251.404638 | G47: 3251.404638 | H47: 3251.404638 | I47: 2995.099899 | J47: 0 | K47: 0 | L47: ECPT | M47: N
A48: 2022 WMCE | B48: A.22-12-009 | H48: 0 | I48: 0 | J48: 0 | K48: 13823.72411 | L48: Distribution | M48: N
A49: Oakland General Office Purchase (Transmission) | B49: D.24-08-009/AL 4972-G | H49: 35685.00229 | I49: 35685.00229 | J49: 35685.00229 | K49: 12175.53727 | L49: ECPT | M49: N
A50: Gas Advanced Metering Infrastructure (AMI) (distribution) | B50: A.24-03-011 | K50: 39604.60508 | L50: Distribution | M50: N
A51: Concurrent Application System Program and Balancing Account | K51: 473.76 | L51: ECPT | M51: N
A52: TRRRMA (Distribution) | B52: A.24-09-015 | K52: 104444.3954 | L52: Distribution | M52: N
A53: TRRRMA (Transmission) | B53: A.24-09-015 | K53: 47177.48763 | L53: ECPT | M53: N
A54: Residential Uncollectibles Balancing Account | B54: D.20-12-005 | C54: 2770.652637 | D54: 124915.5552 | E54: 124915.5552 | F54: 124915.5552 | G54: 124915.5552 | H54: 31775.58215 | I54: 31775.58215 | J54: 31775.58215 | K54: 62914.77019 | L54: ECPT | M54: Y
A55: Property Sales | B55: D.21-08-027/AL 4538-G-A | C55: -48263.40497 | D55: -8084.989543 | E55: -8084.989543 | F55: -8084.989543 | G55: -8084.989543 | H55: -32047.71945 | I55: -32047.71945 | J55: -32047.71945 | K55: -28378.06678 | L55: ECPT | M55: Y
A56: Santa Nella Balancing Account | B56: Preliminary Statement FY | D56: 0 | E56: 0 | F56: 0 | G56: 0 | H56: 46.05792918 | I56: 46.05792918 | J56: 46.05792918 | K56: 89.79327473 | L56: Distribution | M56: Y
A57: RF&U | C57: 10552.52007 | D57: 8380.043016 | E57: 9117.94491 | F57: 9305.265118 | G57: 9297.998973 | H57: 12900.50548 | I57: 12763.7507 | J57: 12337.90874 | K57: 12072.44679 | L57: ECPT | M57: Y
A58: Subtotal Safety Affordability Reliability | C58: =SUM(C9:C57) -> 3977993.961 | D58: 4831952.101 | E58: 4957557.515 | F58: 5058996.509 | G58: 5114133.952 | H58: 5625812.907 | I58: 5624209.771 | J58: 5595471.832 | K58: 5703947.484
A60: Public Policy Proceedings
A61: AB 32: Cap & Trade/GHG | B61: D.15-10-032/D.18-03-017/SB 1477 | C61: -270504.8876 | D61: -440353.5963 | E61: -440353.5963 | F61: -440353.5963 | G61: -440353.5963 | H61: -345869.7457 | I61: -345869.7457 | J61: -345869.7457 | K61: -248978.8793 | L61: 100% Residential | M61: =IF(RIGHT(A61,1)="*","Y","N") -> N
A62: GHG Operational Costs | B62: D.15-10-032/D.18-03-017 | C62: 11012.44881 | D62: 34508.68999 | E62: 34508.68999 | F62: 34508.68999 | G62: 34508.68999 | H62: -9916.695581 | I62: -9916.695581 | J62: -9916.695581 | K62: 16383.17028 | L62: ECPT | M62: N
A63: GHG Compliance Costs | B63: D.15-10-032/D.18-03-017 | C63: 382062.785 | D63: 577963.2932 | E63: 577963.2932 | F63: 577963.2932 | G63: 577963.2932 | H63: 437585.4379 | I63: 437585.4379 | J63: 437585.4379 | K63: 261594.3925 | L63: ECPT (excludes Covered Entities 3 yr avg vol) | M63: N
A64: CPUC Fee | B64: Preliminary Statement O | C64: 15129.80656 | D64: 5043.250421 | E64: 5043.250421 | F64: 5043.250421 | G64: 4531.708352 | H64: 11329.34033 | I64: 11329.34033 | J64: 11329.34033 | K64: 15861.02532 | L64: ECPT (reduced EG volumes; excludes WHSL) | M64: N
A65: SGIP | B65: SB 700/D.17-04-017 | C65: 12990.138 | D65: 12990.138 | E65: 12990.138 | F65: 12990.138 | G65: 12990.138 | H65: 0 | I65: 0 | J65: 0 | K65: 0 | L65: Direct Benefits - 3 year average | M65: N
A66: Mobilehome Park Balancing Account | B66: Preliminary Statement DB | C66: 25482.28364 | D66: 19247.35697 | E66: 19247.35697 | F66: 19247.35697 | G66: 19247.35697 | H66: 23664.28455 | I66: 23664.28455 | J66: 23664.28455 | K66: 26221.75553 | L66: Distribtion | M66: N
A67: CEE Incentive Recovery Account - Gas | B67: Preliminary Statement Y | C67: 217.05794 | D67: -175.84147 | E67: -175.84147 | F67: -175.84147 | G67: -175.84147 | H67: -17.90958 | I67: -17.90958 | J67: -17.90958 | K67: -3.89183 | L67: Direct Allocation Method | M67: N
A68: Energy Efficiency | B68: D.23-06-055 | C68: 83628.68044 | D68: 102550.5389 | E68: 102550.5389 | F68: 102550.5389 | G68: 102550.5389 | H68: 122474.8554 | I68: 122474.8554 | J68: 122474.8554 | K68: 127629.8097 | L68: Direct Allocation Method | M68: N
A69: Energy Savings Assistance Program (ESA) | B69: D.21-06-015/D.20-12-005 | C69: 80948.73967 | D69: 80725.879 | E69: 80725.879 | F69: 80725.879 | G69: 80725.879 | H69: 75426.796 | I69: 75426.796 | J69: 75426.796 | K69: 75530.121 | L69: Direct Allocation Method 100% Residential | M69: N
A70: Research Development and Demonstration | B70: AL 4822-G | C70: 10386.02 | D70: 10494.407 | E70: 10494.407 | F70: 10494.407 | G70: 10494.407 | H70: 10469.05738 | I70: 10469.05738 | J70: 10469.05738 | K70: 10233.68784 | L70: ECPT | M70: N
A71: CARE Administrative Expense | B71: D.21-06-015/D.20-12-005 | C71: 2792.32 | D71: 2814.12 | E71: 2814.12 | F71: 2814.12 | G71: 2814.12 | H71: 2888.84 | I71: 2888.84 | J71: 2888.84 | K71: 2957.54 | L71: ECPT (non-CARE) | M71: N
A72: CARE Shortfall in Rates | B72: AL 4822-G | L72: ECPT (excludes CARE) | M72: N
A73: BOE/CPUC Gas Surcharge Administration Costs | B73: AL 4822-G | C73: 449.628 | D73: 417.152 | E73: 417.152 | F73: 417.152 | G73: 417.152 | H73: 429.23135 | I73: 429.23135 | J73: 429.23135 | K73: 414.03795 | L73: ECPT | M73: N
A74: Marketing, Education & Outreach (ME&O) | B74: D.19-01-005 | C74: 0 | D74: 0 | E74: 0 | F74: 0 | G74: 0 | H74: 0 | I74: 0 | J74: 0 | K74: 0 | L74: ECPT | M74: N
A75: PPP-Energy Efficiency BA | B75: Preliminary Statement Y | C75: 976.0245597 | D75: 2097.329095 | E75: 2097.329095 | F75: 2097.329095 | G75: 2097.329095 | H75: 25054.17121 | I75: 25054.17121 | J75: 25054.17121 | K75: 1966.444052 | L75: Direct Allocation Method | M75: Y
A76: PPP-Energy Savings Assistance Program BA | B76: Preliminary Statement Y/D.17-12-009 | C76: 2982.724032 | D76: -10057.28753 | E76: -10057.28753 | F76: -10057.28753 | G76: -10057.28753 | H76: 10204.45436 | I76: 10204.45436 | J76: 10204.45436 | K76: 1696.711132 | L76: =L69 -> Direct Allocation Method 100% Residential | M76: Y
A77: PPP-RD&D BA | B77: Preliminary Statement BI | C77: 1011.92473 | D77: 164.2624856 | E77: 164.2624856 | F77: 164.2624856 | G77: 164.2624856 | H77: 939.5338946 | I77: 939.5338946 | J77: 939.5338946 | K77: -185.3392549 | L77: ECPT | M77: Y
A78: CARE BA | B78: Preliminary Statement V | C78: 22718.75154 | D78: 30973.07546 | E78: 30973.07546 | F78: 30973.07546 | G78: 30973.07546 | H78: 12590.9108 | I78: 12590.9108 | J78: 12590.9108 | K78: -29885.50465 | L78: ECPT (excludes CARE) | M78: Y
A79: Core Capacity | B79: D. 24-03-002/Other | C79: 271723.2113 | D79: 273072.8998 | E79: 273072.8998 | F79: 273072.8998 | G79: 220217.6893 | H79: 244356.4094 | I79: 244356.4094 | J79: 244356.4094 | K79: 242390.1203 | L79: Unadjusted Average Year January | M79: =IF(RIGHT(A79,1)="*","Y","N") -> N
A80: Core Procurement | B80: D. 97-10-065 | C80: 1046694.091 | D80: 643838.6482 | E80: 643838.6482 | F80: 643838.6482 | G80: 611969.6695 | H80: 583625.3534 | I80: 583625.3534 | J80: 583625.3534 | K80: 667968.1699 | L80: Core - ECPT | M80: =IF(RIGHT(A80,1)="*","Y","N") -> N
A81: Core Storage | B81: D. 19-09-025 | C81: 74376.87073 | D81: 82215.45352 | E81: 82215.45352 | F81: 82215.45352 | G81: 86889.9849 | H81: 134502.8939 | I81: 134502.8939 | J81: 134502.8939 | K81: 135685.9394 | L81: Unadjusted Cold Year Winter Season | M81: =IF(RIGHT(A81,1)="*","Y","N") -> N
A82: Core Brokerage Fee | B82: GCAP D.19-10-036 | C82: 5332.411598 | D82: 5332.411598 | E82: 5332.411598 | F82: 5332.411598 | G82: 5066.880005 | H82: 5066.942012 | I82: 5066.942012 | J82: 5066.942012 | K82: 5066.909395 | L82: ECPT (Core only) | M82: =IF(RIGHT(A82,1)="*","Y","N") -> N
A83: Core Brokerage Fee Credit | B83: =B82 -> GCAP D.19-10-036 | C83: -5332.411598 | D83: =-D82 -> -5332.411598 | E83: -5332.411598 | F83: -5332.411598 | G83: -5066.880005 | H83: -5066.942012 | I83: -5066.942012 | J83: -5066.942012 | K83: =-K82 -> -5066.909395 | L83: ECPT (Core only) | M83: =IF(RIGHT(A83,1)="*","Y","N") -> N
A85: Subtotal Public Policy | C85: =SUM(C61:C84) -> 1775078.618 | D85: 1428529.769 | E85: 1428529.769 | F85: 1428529.769 | G85: 1347968.569 | H85: 1339737.219 | I85: 1339737.219 | J85: 1339737.219 | K85: =SUM(K61:K84) -> 1307479.31
A88: Total Authorized Revenue | C88: =C58+C85 -> 5753072.579 | D88: 6260481.87 | E88: 6386087.284 | F88: 6487526.278 | G88: 6462102.521 | H88: 6965550.126 | I88: 6963946.99 | J88: 6935209.051 | K88: =K58+K85 -> 7011426.794
A91: PPP as approved in AL 4822-G for 2024

Sheet SAR and RAR
F3: Public Purpose Program Switch | G3: =IF(VLOOKUP(G$8,'RRQ Allocations'!$B$5:$L$25,3,FALSE)="PPP",1,0) -> 0 | H3: =IF(VLOOKUP(H$8,'RRQ Allocations'!$B$5:$L$25,3,FALSE)="PPP",1,0) -> 0 | I3: =IF(VLOOKUP(I$8,'RRQ Allocations'!$B$5:$L$25,3,FALSE)="PPP",1,0) -> 0 | J3: =IF(VLOOKUP(J$8,'RRQ Allocations'!$B$5:$L$25,3,FALSE)="PPP",1,0) -> 0 | K3: =IF(VLOOKUP(K$8,'RRQ Allocations'!$B$5:$L$25,3,FALSE)="PPP",1,0) -> 0 | L3: =IF(VLOOKUP(L$8,'RRQ Allocations'!$B$5:$L$25,3,FALSE)="PPP",1,0) -> 0 | M3: =IF(VLOOKUP(M$8,'RRQ Allocations'!$B$5:$L$25,3,FALSE)="PPP",1,0) -> 0 | N3: =IF(VLOOKUP(N$8,'RRQ Allocations'!$B$5:$L$25,3,FALSE)="PPP",1,0) -> 0 | O3: =IF(VLOOKUP(O$8,'RRQ Allocations'!$B$5:$L$25,3,FALSE)="PPP",1,0) -> 1 | P3: =IF(VLOOKUP(P$8,'RRQ Allocations'!$B$5:$L$25,3,FALSE)="PPP",1,0) -> 1 | Q3: =IF(VLOOKUP(Q$8,'RRQ Allocations'!$B$5:$L$25,3,FALSE)="PPP",1,0) -> 1 | R3: =IF(VLOOKUP(R$8,'RRQ Allocations'!$B$5:$L$25,3,FALSE)="PPP",1,0) -> 0 | S3: =IF(VLOOKUP(S$8,'RRQ Allocations'!$B$5:$L$25,3,FALSE)="PPP",1,0) -> 0 | T3: =IF(VLOOKUP(T$8,'RRQ Allocations'!$B$5:$L$25,3,FALSE)="PPP",1,0) -> 0 | U3: =IF(VLOOKUP(U$8,'RRQ Allocations'!$B$5:$L$25,3,FALSE)="PPP",1,0) -> 0 | V3: =IF(VLOOKUP(V$8,'RRQ Allocations'!$B$5:$L$25,3,FALSE)="PPP",1,0) -> 0 | W3: =IF(VLOOKUP(W$8,'RRQ Allocations'!$B$5:$L$25,3,FALSE)="PPP",1,0) -> 0 | X3: =IF(VLOOKUP(X$8,'RRQ Allocations'!$B$5:$L$25,3,FALSE)="PPP",1,0) -> 0 | Y3: =IF(VLOOKUP(Y$8,'RRQ Allocations'!$B$5:$L$25,3,FALSE)="PPP",1,0) -> 0 | Z3: =IF(VLOOKUP(Z$8,'RRQ Allocations'!$B$5:$L$25,3,FALSE)="PPP",1,0) -> 0 | AA3: =IF(VLOOKUP(AA$8,'RRQ Allocations'!$B$5:$L$25,3,FALSE)="PPP",1,0) -> 0
F4: Transporation Switch | G4: =IF(VLOOKUP(G$8,'RRQ Allocations'!$B$5:$L$25,3,FALSE)="T",1,0) -> 1 | H4: =IF(VLOOKUP(H$8,'RRQ Allocations'!$B$5:$L$25,3,FALSE)="T",1,0) -> 1 | I4: =IF(VLOOKUP(I$8,'RRQ Allocations'!$B$5:$L$25,3,FALSE)="T",1,0) -> 1 | J4: =IF(VLOOKUP(J$8,'RRQ Allocations'!$B$5:$L$25,3,FALSE)="T",1,0) -> 1 | K4: =IF(VLOOKUP(K$8,'RRQ Allocations'!$B$5:$L$25,3,FALSE)="T",1,0) -> 1 | L4: =IF(VLOOKUP(L$8,'RRQ Allocations'!$B$5:$L$25,3,FALSE)="T",1,0) -> 1 | M4: =IF(VLOOKUP(M$8,'RRQ Allocations'!$B$5:$L$25,3,FALSE)="T",1,0) -> 1 | N4: =IF(VLOOKUP(N$8,'RRQ Allocations'!$B$5:$L$25,3,FALSE)="T",1,0) -> 1 | O4: =IF(VLOOKUP(O$8,'RRQ Allocations'!$B$5:$L$25,3,FALSE)="T",1,0) -> 0 | P4: =IF(VLOOKUP(P$8,'RRQ Allocations'!$B$5:$L$25,3,FALSE)="T",1,0) -> 0 | Q4: =IF(VLOOKUP(Q$8,'RRQ Allocations'!$B$5:$L$25,3,FALSE)="T",1,0) -> 0 | R4: =IF(VLOOKUP(R$8,'RRQ Allocations'!$B$5:$L$25,3,FALSE)="T",1,0) -> 1 | S4: =IF(VLOOKUP(S$8,'RRQ Allocations'!$B$5:$L$25,3,FALSE)="T",1,0) -> 1 | T4: =IF(VLOOKUP(T$8,'RRQ Allocations'!$B$5:$L$25,3,FALSE)="T",1,0) -> 1 | U4: =IF(VLOOKUP(U$8,'RRQ Allocations'!$B$5:$L$25,3,FALSE)="T",1,0) -> 0 | V4: =IF(VLOOKUP(V$8,'RRQ Allocations'!$B$5:$L$25,3,FALSE)="T",1,0) -> 0 | W4: =IF(VLOOKUP(W$8,'RRQ Allocations'!$B$5:$L$25,3,FALSE)="T",1,0) -> 0 | X4: =IF(VLOOKUP(X$8,'RRQ Allocations'!$B$5:$L$25,3,FALSE)="T",1,0) -> 1 | Y4: =IF(VLOOKUP(Y$8,'RRQ Allocations'!$B$5:$L$25,3,FALSE)="T",1,0) -> 1 | Z4: =IF(VLOOKUP(Z$8,'RRQ Allocations'!$B$5:$L$25,3,FALSE)="T",1,0) -> 1 | AA4: =IF(VLOOKUP(AA$8,'RRQ Allocations'!$B$5:$L$25,3,FALSE)="T",1,0) -> 1
F5: Procurement Switch | G5: =IF(VLOOKUP(G$8,'RRQ Allocations'!$B$5:$L$25,3,FALSE)="P",1,0) -> 0 | H5: =IF(VLOOKUP(H$8,'RRQ Allocations'!$B$5:$L$25,3,FALSE)="P",1,0) -> 0 | I5: =IF(VLOOKUP(I$8,'RRQ Allocations'!$B$5:$L$25,3,FALSE)="P",1,0) -> 0 | J5: =IF(VLOOKUP(J$8,'RRQ Allocations'!$B$5:$L$25,3,FALSE)="P",1,0) -> 0 | K5: =IF(VLOOKUP(K$8,'RRQ Allocations'!$B$5:$L$25,3,FALSE)="P",1,0) -> 0 | L5: =IF(VLOOKUP(L$8,'RRQ Allocations'!$B$5:$L$25,3,FALSE)="P",1,0) -> 0 | M5: =IF(VLOOKUP(M$8,'RRQ Allocations'!$B$5:$L$25,3,FALSE)="P",1,0) -> 0 | N5: =IF(VLOOKUP(N$8,'RRQ Allocations'!$B$5:$L$25,3,FALSE)="P",1,0) -> 0 | O5: =IF(VLOOKUP(O$8,'RRQ Allocations'!$B$5:$L$25,3,FALSE)="P",1,0) -> 0 | P5: =IF(VLOOKUP(P$8,'RRQ Allocations'!$B$5:$L$25,3,FALSE)="P",1,0) -> 0 | Q5: =IF(VLOOKUP(Q$8,'RRQ Allocations'!$B$5:$L$25,3,FALSE)="P",1,0) -> 0 | R5: =IF(VLOOKUP(R$8,'RRQ Allocations'!$B$5:$L$25,3,FALSE)="P",1,0) -> 0 | S5: =IF(VLOOKUP(S$8,'RRQ Allocations'!$B$5:$L$25,3,FALSE)="P",1,0) -> 0 | T5: =IF(VLOOKUP(T$8,'RRQ Allocations'!$B$5:$L$25,3,FALSE)="P",1,0) -> 0 | U5: =IF(VLOOKUP(U$8,'RRQ Allocations'!$B$5:$L$25,3,FALSE)="P",1,0) -> 1 | V5: =IF(VLOOKUP(V$8,'RRQ Allocations'!$B$5:$L$25,3,FALSE)="P",1,0) -> 1 | W5: =IF(VLOOKUP(W$8,'RRQ Allocations'!$B$5:$L$25,3,FALSE)="P",1,0) -> 1 | X5: =IF(VLOOKUP(X$8,'RRQ Allocations'!$B$5:$L$25,3,FALSE)="P",1,0) -> 0 | Y5: =IF(VLOOKUP(Y$8,'RRQ Allocations'!$B$5:$L$25,3,FALSE)="P",1,0) -> 0 | Z5: =IF(VLOOKUP(Z$8,'RRQ Allocations'!$B$5:$L$25,3,FALSE)="P",1,0) -> 0 | AA5: =IF(VLOOKUP(AA$8,'RRQ Allocations'!$B$5:$L$25,3,FALSE)="P",1,0) -> 0
C7: =CONCATENATE(Summary!D3," Revenue Change ($000)") -> 2026 Revenue Change ($000) | G7: Allocation
C8: Authorized | D8: + Pending | G8: =TRANSPOSE('RRQ Allocations'!B5:B25) -> 100% Residential | H8: Core - Distribution | I8: Distribution | J8: ECPT - ALL | K8: ECPT - Core only | L8: ECPT - Noncore only | M8: ECPT - 50% Core / 50% Noncore | N8: ECPT (excludes Covered Entities 3 yr avg vol) | O8: EE | P8: ESA | Q8: PPP ECPT | R8: SGIP allocation | S8: CPUC Fee Allocation | T8: CAC Allocation | U8: Storage Allocation (Procurement) | V8: Capacity Allocation (Procurement) | W8: ECPT - Core only (Procurement) | X8: 2023 GTS - Inventory Management | Y8: User Defined 1 | Z8: User Defined 2 | AA8: User Defined 3 | AC8: CARE Allocation
B9: ='Incremental Rev Req'!T10 -> 100% Residential | C9: =INDEX('Incremental Rev Req'!$T$9:$Y$30,MATCH($B9,'Incremental Rev Req'!$T$9:$T$30,0),MATCH(Summary!$D$3,'Incremental Rev Req'!$T$9:$Y$9,0)) -> 0 | D9: =INDEX('Incremental Rev Req'!$T$77:$Y$98,MATCH($B9,'Incremental Rev Req'!$T$77:$T$98,0),MATCH(Summary!$D$3,'Incremental Rev Req'!$T$77:$Y$77,0)) -> 0 | F9: Residential | G9: =TRANSPOSE('RRQ Allocations'!$H$5:$H$25) -> 1 | H9: 0.8087646787 | I9: 0.784859179 | J9: 0.2722742932 | K9: 0.6645587839 | L9: 0 | M9: 0.3322793919 | N9: 0.3579364261 | O9: 0.3384 | P9: 1 | Q9: 0.3964019068 | R9: 0.9155803564 | S9: 0.3675669459 | T9: 0 | U9: 0.7912905715 | V9: 0.7933288665 | W9: 0.7339650877 | X9: 0.3591976846 | Y9: 0 | Z9: 0 | AA9: 0 | AC9: 0.3384530811
B10: ='Incremental Rev Req'!T11 -> Core - Distribution | C10: =INDEX('Incremental Rev Req'!$T$9:$Y$30,MATCH($B10,'Incremental Rev Req'!$T$9:$T$30,0),MATCH(Summary!$D$3,'Incremental Rev Req'!$T$9:$Y$9,0)) -> 0 | D10: =INDEX('Incremental Rev Req'!$T$77:$Y$98,MATCH($B10,'Incremental Rev Req'!$T$77:$T$98,0),MATCH(Summary!$D$3,'Incremental Rev Req'!$T$77:$Y$77,0)) -> 0
B11: ='Incremental Rev Req'!T12 -> Distribution | C11: =INDEX('Incremental Rev Req'!$T$9:$Y$30,MATCH($B11,'Incremental Rev Req'!$T$9:$T$30,0),MATCH(Summary!$D$3,'Incremental Rev Req'!$T$9:$Y$9,0)) -> 0 | D11: =INDEX('Incremental Rev Req'!$T$77:$Y$98,MATCH($B11,'Incremental Rev Req'!$T$77:$T$98,0),MATCH(Summary!$D$3,'Incremental Rev Req'!$T$77:$Y$77,0)) -> 0 | G11: Revenue Change ($000) - System
B12: ='Incremental Rev Req'!T13 -> ECPT - ALL | C12: =INDEX('Incremental Rev Req'!$T$9:$Y$30,MATCH($B12,'Incremental Rev Req'!$T$9:$T$30,0),MATCH(Summary!$D$3,'Incremental Rev Req'!$T$9:$Y$9,0)) -> 0 | D12: =INDEX('Incremental Rev Req'!$T$77:$Y$98,MATCH($B12,'Incremental Rev Req'!$T$77:$T$98,0),MATCH(Summary!$D$3,'Incremental Rev Req'!$T$77:$Y$77,0)) -> 0 | F12: Authorized | G12: =G$8 -> 100% Residential | H12: =H$8 -> Core - Distribution | I12: Distribution | J12: ECPT - ALL | K12: ECPT - Core only | L12: ECPT - Noncore only | M12: ECPT - 50% Core / 50% Noncore | N12: ECPT (excludes Covered Entities 3 yr avg vol) | O12: EE | P12: ESA | Q12: PPP ECPT | R12: SGIP allocation | S12: CPUC Fee Allocation | T12: CAC Allocation | U12: Storage Allocation (Procurement) | V12: Capacity Allocation (Procurement) | W12: ECPT - Core only (Procurement) | X12: 2023 GTS - Inventory Management | Y12: User Defined 1 | Z12: User Defined 2 | AA12: User Defined 3 | AB12: Total | AC12: CARE Discount
B13: ='Incremental Rev Req'!T14 -> ECPT - Core only | C13: =INDEX('Incremental Rev Req'!$T$9:$Y$30,MATCH($B13,'Incremental Rev Req'!$T$9:$T$30,0),MATCH(Summary!$D$3,'Incremental Rev Req'!$T$9:$Y$9,0)) -> -24399.73512 | D13: =INDEX('Incremental Rev Req'!$T$77:$Y$98,MATCH($B13,'Incremental Rev Req'!$T$77:$T$98,0),MATCH(Summary!$D$3,'Incremental Rev Req'!$T$77:$Y$77,0)) -> -24399.73512 | F13: Residential | G13: =G9*G14 -> 0 | H13: 0 | I13: 0 | J13: 0 | K13: -16215.0583 | L13: 0 | M13: 0 | N13: 0 | O13: 0 | P13: 0 | Q13: 0 | R13: 0 | S13: 0 | T13: 0 | U13: 0 | V13: 9484.945352 | W13: -8775.199089 | X13: =X9*X14 -> 0 | Y13: 0 | Z13: 0 | AA13: 0 | AB13: =SUM(G13:AA13) -> -15505.31204 | AC13: =AC9*AC14 -> -230.5873601
B14: ='Incremental Rev Req'!T15 -> ECPT - Noncore only | C14: =INDEX('Incremental Rev Req'!$T$9:$Y$30,MATCH($B14,'Incremental Rev Req'!$T$9:$T$30,0),MATCH(Summary!$D$3,'Incremental Rev Req'!$T$9:$Y$9,0)) -> 24399.73512 | D14: =INDEX('Incremental Rev Req'!$T$77:$Y$98,MATCH($B14,'Incremental Rev Req'!$T$77:$T$98,0),MATCH(Summary!$D$3,'Incremental Rev Req'!$T$77:$Y$77,0)) -> 24399.73512 | F14: Total System | G14: =VLOOKUP(G$12,$B$9:$D$29,2,FALSE) -> 0 | H14: =VLOOKUP(H$12,$B$9:$D$29,2,FALSE) -> 0 | I14: 0 | J14: 0 | K14: -24399.73512 | L14: 24399.73512 | M14: 0 | N14: 0 | O14: 0 | P14: 0 | Q14: 0 | R14: 0 | S14: 0 | T14: 0 | U14: 0 | V14: 11955.88079 | W14: -11955.88079 | X14: =VLOOKUP(X$12,$B$9:$D$29,2,FALSE) -> 0 | Y14: 0 | Z14: 0 | AA14: 0 | AB14: =SUM(G14:AA14) -> -1.455191523e-10 | AC14: =Res_RD!M33 -> -681.2978606
B15: ='Incremental Rev Req'!T16 -> ECPT - 50% Core / 50% Noncore | C15: =INDEX('Incremental Rev Req'!$T$9:$Y$30,MATCH($B15,'Incremental Rev Req'!$T$9:$T$30,0),MATCH(Summary!$D$3,'Incremental Rev Req'!$T$9:$Y$9,0)) -> 0 | D15: =INDEX('Incremental Rev Req'!$T$77:$Y$98,MATCH($B15,'Incremental Rev Req'!$T$77:$T$98,0),MATCH(Summary!$D$3,'Incremental Rev Req'!$T$77:$Y$77,0)) -> 0 | F15: w/Pending
B16: ='Incremental Rev Req'!T17 -> ECPT (excludes Covered Entities 3 yr avg vol) | C16: =INDEX('Incremental Rev Req'!$T$9:$Y$30,MATCH($B16,'Incremental Rev Req'!$T$9:$T$30,0),MATCH(Summary!$D$3,'Incremental Rev Req'!$T$9:$Y$9,0)) -> 0 | D16: =INDEX('Incremental Rev Req'!$T$77:$Y$98,MATCH($B16,'Incremental Rev Req'!$T$77:$T$98,0),MATCH(Summary!$D$3,'Incremental Rev Req'!$T$77:$Y$77,0)) -> 0 | F16: Residential | G16: =G9*G17 -> 0 | H16: 0 | I16: 0 | J16: 0 | K16: =K9*K17 -> -16215.0583 | L16: 0 | M16: 0 | N16: 0 | O16: 0 | P16: 0 | Q16: 0 | R16: 0 | S16: 0 | T16: 0 | U16: 0 | V16: 9484.945352 | W16: =W9*W17 -> -8775.199089 | X16: 0 | Y16: 0 | Z16: 0 | AA16: 0 | AB16: =SUM(G16:AA16) -> -15505.31204 | AC16: =AC9*AC17 -> -230.5873601
B17: ='Incremental Rev Req'!T18 -> EE | C17: =INDEX('Incremental Rev Req'!$T$9:$Y$30,MATCH($B17,'Incremental Rev Req'!$T$9:$T$30,0),MATCH(Summary!$D$3,'Incremental Rev Req'!$T$9:$Y$9,0)) -> 0 | D17: =INDEX('Incremental Rev Req'!$T$77:$Y$98,MATCH($B17,'Incremental Rev Req'!$T$77:$T$98,0),MATCH(Summary!$D$3,'Incremental Rev Req'!$T$77:$Y$77,0)) -> 0 | F17: Total System | G17: =VLOOKUP(G$12,$B$9:$D$29,3,FALSE) -> 0 | H17: 0 | I17: 0 | J17: 0 | K17: -24399.73512 | L17: 24399.73512 | M17: 0 | N17: 0 | O17: 0 | P17: 0 | Q17: 0 | R17: 0 | S17: 0 | T17: 0 | U17: 0 | V17: 11955.88079 | W17: -11955.88079 | X17: 0 | Y17: 0 | Z17: 0 | AA17: 0 | AB17: =SUM(G17:AA17) -> -1.455191523e-10 | AC17: =(Res_RD!AD33) -> -681.2978606
B18: ='Incremental Rev Req'!T19 -> ESA | C18: =INDEX('Incremental Rev Req'!$T$9:$Y$30,MATCH($B18,'Incremental Rev Req'!$T$9:$T$30,0),MATCH(Summary!$D$3,'Incremental Rev Req'!$T$9:$Y$9,0)) -> 0 | D18: =INDEX('Incremental Rev Req'!$T$77:$Y$98,MATCH($B18,'Incremental Rev Req'!$T$77:$T$98,0),MATCH(Summary!$D$3,'Incremental Rev Req'!$T$77:$Y$77,0)) -> 0
B19: ='Incremental Rev Req'!T20 -> PPP ECPT | C19: =INDEX('Incremental Rev Req'!$T$9:$Y$30,MATCH($B19,'Incremental Rev Req'!$T$9:$T$30,0),MATCH(Summary!$D$3,'Incremental Rev Req'!$T$9:$Y$9,0)) -> 0 | D19: =INDEX('Incremental Rev Req'!$T$77:$Y$98,MATCH($B19,'Incremental Rev Req'!$T$77:$T$98,0),MATCH(Summary!$D$3,'Incremental Rev Req'!$T$77:$Y$77,0)) -> 0
B20: ='Incremental Rev Req'!T21 -> SGIP allocation | C20: =INDEX('Incremental Rev Req'!$T$9:$Y$30,MATCH($B20,'Incremental Rev Req'!$T$9:$T$30,0),MATCH(Summary!$D$3,'Incremental Rev Req'!$T$9:$Y$9,0)) -> 0 | D20: =INDEX('Incremental Rev Req'!$T$77:$Y$98,MATCH($B20,'Incremental Rev Req'!$T$77:$T$98,0),MATCH(Summary!$D$3,'Incremental Rev Req'!$T$77:$Y$77,0)) -> 0
B21: ='Incremental Rev Req'!T22 -> CPUC Fee Allocation | C21: =INDEX('Incremental Rev Req'!$T$9:$Y$30,MATCH($B21,'Incremental Rev Req'!$T$9:$T$30,0),MATCH(Summary!$D$3,'Incremental Rev Req'!$T$9:$Y$9,0)) -> 0 | D21: =INDEX('Incremental Rev Req'!$T$77:$Y$98,MATCH($B21,'Incremental Rev Req'!$T$77:$T$98,0),MATCH(Summary!$D$3,'Incremental Rev Req'!$T$77:$Y$77,0)) -> 0
B22: ='Incremental Rev Req'!T23 -> CAC Allocation | C22: =INDEX('Incremental Rev Req'!$T$9:$Y$30,MATCH($B22,'Incremental Rev Req'!$T$9:$T$30,0),MATCH(Summary!$D$3,'Incremental Rev Req'!$T$9:$Y$9,0)) -> 0 | D22: =INDEX('Incremental Rev Req'!$T$77:$Y$98,MATCH($B22,'Incremental Rev Req'!$T$77:$T$98,0),MATCH(Summary!$D$3,'Incremental Rev Req'!$T$77:$Y$77,0)) -> 0
B23: ='Incremental Rev Req'!T24 -> Storage Allocation (Procurement) | C23: =INDEX('Incremental Rev Req'!$T$9:$Y$30,MATCH($B23,'Incremental Rev Req'!$T$9:$T$30,0),MATCH(Summary!$D$3,'Incremental Rev Req'!$T$9:$Y$9,0)) -> 0 | D23: =INDEX('Incremental Rev Req'!$T$77:$Y$98,MATCH($B23,'Incremental Rev Req'!$T$77:$T$98,0),MATCH(Summary!$D$3,'Incremental Rev Req'!$T$77:$Y$77,0)) -> 0
B24: ='Incremental Rev Req'!T25 -> Capacity Allocation (Procurement) | C24: =INDEX('Incremental Rev Req'!$T$9:$Y$30,MATCH($B24,'Incremental Rev Req'!$T$9:$T$30,0),MATCH(Summary!$D$3,'Incremental Rev Req'!$T$9:$Y$9,0)) -> 11955.88079 | D24: =INDEX('Incremental Rev Req'!$T$77:$Y$98,MATCH($B24,'Incremental Rev Req'!$T$77:$T$98,0),MATCH(Summary!$D$3,'Incremental Rev Req'!$T$77:$Y$77,0)) -> 11955.88079
B25: ='Incremental Rev Req'!T26 -> ECPT - Core only (Procurement) | C25: =INDEX('Incremental Rev Req'!$T$9:$Y$30,MATCH($B25,'Incremental Rev Req'!$T$9:$T$30,0),MATCH(Summary!$D$3,'Incremental Rev Req'!$T$9:$Y$9,0)) -> -11955.88079 | D25: =INDEX('Incremental Rev Req'!$T$77:$Y$98,MATCH($B25,'Incremental Rev Req'!$T$77:$T$98,0),MATCH(Summary!$D$3,'Incremental Rev Req'!$T$77:$Y$77,0)) -> -11955.88079
B26: ='Incremental Rev Req'!T27 -> 2023 GTS - Inventory Management | C26: =INDEX('Incremental Rev Req'!$T$9:$Y$30,MATCH($B26,'Incremental Rev Req'!$T$9:$T$30,0),MATCH(Summary!$D$3,'Incremental Rev Req'!$T$9:$Y$9,0)) -> 0 | D26: =INDEX('Incremental Rev Req'!$T$77:$Y$98,MATCH($B26,'Incremental Rev Req'!$T$77:$T$98,0),MATCH(Summary!$D$3,'Incremental Rev Req'!$T$77:$Y$77,0)) -> 0 | AD26: Authorized | AF26: Authorized | AG26: w/Pending
B27: ='Incremental Rev Req'!T28 -> User Defined 1 | C27: =INDEX('Incremental Rev Req'!$T$9:$Y$30,MATCH($B27,'Incremental Rev Req'!$T$9:$T$30,0),MATCH(Summary!$D$3,'Incremental Rev Req'!$T$9:$Y$9,0)) -> 0 | D27: =INDEX('Incremental Rev Req'!$T$77:$Y$98,MATCH($B27,'Incremental Rev Req'!$T$77:$T$98,0),MATCH(Summary!$D$3,'Incremental Rev Req'!$T$77:$Y$77,0)) -> 0 | G27: Revenue Split - Bundled | AD27: Bundled Revenue Change | AF27: Bundled Revenue Change
B28: ='Incremental Rev Req'!T29 -> User Defined 2 | C28: =INDEX('Incremental Rev Req'!$T$9:$Y$30,MATCH($B28,'Incremental Rev Req'!$T$9:$T$30,0),MATCH(Summary!$D$3,'Incremental Rev Req'!$T$9:$Y$9,0)) -> 0 | D28: =INDEX('Incremental Rev Req'!$T$77:$Y$98,MATCH($B28,'Incremental Rev Req'!$T$77:$T$98,0),MATCH(Summary!$D$3,'Incremental Rev Req'!$T$77:$Y$77,0)) -> 0 | G28: =G$8 -> 100% Residential | H28: =H$8 -> Core - Distribution | I28: Distribution | J28: ECPT - ALL | K28: ECPT - Core only | L28: ECPT - Noncore only | M28: ECPT - 50% Core / 50% Noncore | N28: ECPT (excludes Covered Entities 3 yr avg vol) | O28: EE | P28: ESA | Q28: PPP ECPT | R28: SGIP allocation | S28: CPUC Fee Allocation | T28: CAC Allocation | U28: Storage Allocation (Procurement) | V28: Capacity Allocation (Procurement) | W28: ECPT - Core only (Procurement) | X28: 2023 GTS - Inventory Management | Y28: User Defined 1 | Z28: User Defined 2 | AA28: User Defined 3 | AD28: Total | AE28: CARE Adj | AF28: Total | AG28: CARE Adj
B29: ='Incremental Rev Req'!T30 -> User Defined 3 | C29: =INDEX('Incremental Rev Req'!$T$9:$Y$30,MATCH($B29,'Incremental Rev Req'!$T$9:$T$30,0),MATCH(Summary!$D$3,'Incremental Rev Req'!$T$9:$Y$9,0)) -> 0 | D29: =INDEX('Incremental Rev Req'!$T$77:$Y$98,MATCH($B29,'Incremental Rev Req'!$T$77:$T$98,0),MATCH(Summary!$D$3,'Incremental Rev Req'!$T$77:$Y$77,0)) -> 0 | F29: Residential | G29: =TRANSPOSE('RRQ Allocations'!$J$5:$J$25) -> 0.8975890644 | H29: 0.8975890644 | I29: 0.8975890644 | J29: 0.8975890644 | K29: 0.8975890644 | L29: 0 | M29: 0.8975890644 | N29: 0.8975890644 | O29: 0.8975890644 | P29: 0.8975890644 | Q29: 0.8975890644 | R29: 0.8975890644 | S29: 0.8975890644 | T29: 0 | U29: 1 | V29: 1 | W29: 1 | X29: 0.8975890644 | Y29: 0 | Z29: 0 | AA29: 0 | AC29: 0.8976129238 | AD29: =SUMPRODUCT(G13:AA13,G29:AA29) -> -13844.71274 | AE29: =AD29-($AC$14*AC29)+($AC$13*$AC$29) -> -13440.14917 | AF29: =SUMPRODUCT(G16:AA16,G29:AA29) -> -13844.71274 | AG29: =AF29-($AC$17*AC29)+($AC$16*$AC$29) -> -13440.14917
B30: Total | C30: =SUM(C9:C26) -> -1.455191523e-10 | D30: =SUM(D9:D26) -> -1.455191523e-10 | F30: Total System | G30: =TRANSPOSE('RRQ Allocations'!$L$5:$L$25) -> 0.8975890644 | H30: 0.812992294 | I30: 0.8241155045 | J30: 0.3330589455 | K30: 0.8129201077 | L30: 0 | M30: 0.4064066796 | N30: 0.4375217629 | O30: 0.5263600131 | P30: 0.8975890644 | Q30: 0.4832992734 | R30: 0.875994189 | S30: 0.4477831178 | T30: 0 | U30: 1 | V30: 1 | W30: 1 | X30: 0.4303735271 | Y30: 0 | Z30: 0 | AA30: 0 | AC30: 0.4435331891 | AD30: =SUMPRODUCT(G14:AA14,G30:AA30) -> -19835.0353 | AE30: =AD30 -> -19835.0353 | AF30: =SUMPRODUCT(G17:X17,G30:X30) -> -19835.0353 | AG30: =AF30 -> -19835.0353
C31: =C30=HLOOKUP(Summary!$D$3,'Incremental Rev Req'!$U$9:$Y$31,23,FALSE) -> TRUE | D31: =D30=HLOOKUP(Summary!$D$3,'Incremental Rev Req'!U77:Y99,23,FALSE) -> TRUE
F32: ="Notes: Allocation and bundled/unbundled split based on "&Summary!L4&" throughput forecast" -> Notes: Allocation and bundled/unbundled split based on 2023 CARD throughput forecast
G36: Bundled | O36: System (Bundled and Transportation)
G37: =Summary!$L$4&" Throughput" -> 2023 CARD Throughput | H37: =TEXT(Summary!L3,"m/d/yyy")&" Avg Rates ($ / therm)" -> 1/1/2026 Avg Rates ($ / therm) | I37: Illustrative Proposed Avg Rates (Authorized) | J37: Illustrative Proposed Avg Rates (w/Pending) | K37: % Change (Illustrative Authorized) | L37: % Change (w/Illustrative Pending) | O37: =Summary!$L$4&" Throughput" -> 2023 CARD Throughput | P37: =H37 -> 1/1/2026 Avg Rates ($ / therm) | Q37: Illustrative Proposed Avg Rates (Authorized) | R37: Illustrative Proposed Avg Rates (w/Pending) | S37: % Change (Illustrative Authorized) | T37: % Change (w/Illustrative Pending)
F38: Residential | G38: 1495141.703 | H38: 2.738824988 | I38: =AE29/G38+H38 -> 2.729835773 | J38: =AG29/G38+H38 -> 2.729835773 | K38: =I38/H38-1 -> -0.003282142647 | L38: =J38/H38-1 -> -0.003282142647 | N38: Residential | O38: 1665711.039 | P38: 2.571636928 | Q38: =((SUM(G13:AA13)-AC14+AC13)/O38)+P38 -> 2.562598985 | R38: =((SUM(G16:AA16)-AC17+AC16)/O38)+P38 -> 2.562598985 | S38: =Q38/P38-1 -> -0.003514470869 | T38: =R38/P38-1 -> -0.003514470869
F39: Total System | G39: 2037601.566 | H39: 2.451351446 | I39: =AE30/G39+H39 -> 2.441616945 | J39: =AG30/G39+H39 -> 2.441616945 | K39: =I39/H39-1 -> -0.003971075391 | L39: =J39/H39-1 -> -0.003971075391 | N39: Total System | O39: 6116441.313 | P39: ='Authorized Rev Req'!G88/'SAR and RAR'!O39 -> 1.056513451 | Q39: =(SUM(G14:AA14)/O39)+P39 -> 1.056513451 | R39: =(SUM(G17:AA17)/O39)+P39 -> 1.056513451 | S39: =Q39/P39-1 -> 0 | T39: =R39/P39-1 -> 0
O41: Illustrative System Rate does not include illustrative procurement for transport only customers.

Sheet Res_RD
A8: CALCULATION OF ILLUSTRATIVE RESIDENTIAL RATES WITH AUTHORIZED INCREMENTAL RRQs | R8: CALCULATION OF ILLUSTRATIVE RESIDENTIAL RATES WITH AUTHORIZED AND PENDING INCREMENTAL RRQs
B13: Authorized Pre-CARE costs allocated to residential class | C13: 3738710.818 | S13: Authorized Pre-CARE costs allocated to residential class | T13: =C13 -> 3738710.818
B14: + Authorized Incremental RRQ | C14: =SUMPRODUCT('SAR and RAR'!$G$4:$AA$4,'SAR and RAR'!$G$13:$AA$13) -> -16215.0583 | S14: + Authorized + Pending Incremental RRQ | T14: =SUMPRODUCT('SAR and RAR'!$G$4:$AA$4,'SAR and RAR'!$G$16:$AA$16) -> -16215.0583
B15: Total Pre-CARE costs allocated to residential class | C15: =SUM(C13:C14) -> 3722495.76 | S15: Total Pre-CARE costs allocated to residential class | T15: =SUM(T13:T14) -> 3722495.76
B16: Residential Tier I volumes (includes CARE) | C16: 1212728.376 | S16: Residential Tier I volumes (includes CARE) | T16: =C16 -> 1212728.376
B17: + Residential Tier II volumes (includes CARE) | C17: 453002.3718 | S17: + Residential Tier II volumes (includes CARE) | T17: =C17 -> 453002.3718
B18: = Total Residential Volumes (includes CARE) | C18: =C16+C17 -> 1665730.748 | S18: = Total G-10 adjusted Residential Volumes (includes CARE) | T18: =T16+T17 -> 1665730.748
B20: GCAP Decision Ratio of Tier II/Tier I Residential Rates | C20: 1.24933226 | S20: GCAP Decision Ratio of Tier II/Tier I Residential Rates | T20: 1.24074865
F22: ADD Illustrative Procurement Rate | I22: CARE Discount | W22: ADD Illustrative Procurement Rate | Z22: CARE Discount
C23: Pre-CARE Illustrative Res. Transportation Rates | F23: Current Rate | G23: Illustrative Authorized Incremental | H23: CSI - Thermal Exemption | I23: 0.2 | J23: Interim Illustrative CARE Transportation Rates | K23: CARE Transportation Volumes (mth) | L23: Illustrative CARE Transportation Discount | T23: Pre-CARE Illustrative Res. Transportation Rates | W23: Current Rate | X23: Illustrative Authorized + Illustrative Pending Incremental | Y23: CSI - Thermal Exemption | Z23: =I23 -> 0.2 | AA23: Interim Illustrative CARE Transportation Rates | AB23: CARE Transportation Volumes (mth) | AC23: Illustrative CARE Transportation Discount
B24: Illustrative Residential Tier I rates | C24: =C15/(C16+C17*C20) -> 2.092843097 | F24: 0.50786 | G24: =SUMPRODUCT('SAR and RAR'!$G$5:$AA$5,'SAR and RAR'!$G$13:$AA$13)/'SAR and RAR'!G38 -> 0.0004747016696 | H24: -0.0006259249521 | I24: =SUM(C24:H24)*I23 -> 0.5201103748 | J24: =ROUND(C24+H24-I24,7) -> 1.5721068 | K24: 27420.07488 | L24: =Res_RD!I24*Res_RD!K24 -> 14261.46543 | S24: Illustrative Residential Tier I rates | T24: =T15/(T16+T17*T20) -> 2.097428316 | W24: =F24 -> 0.50786 | X24: =SUMPRODUCT('SAR and RAR'!$G$5:$AA$5,'SAR and RAR'!$G$16:$AA$16)/'SAR and RAR'!G38 -> 0.0004747016696 | Y24: =H24 -> -0.0006259249521 | Z24: =SUM(T24:Y24)*Z23 -> 0.5210274186 | AA24: =ROUND(T24+Y24-Z24,7) -> 1.575775 | AB24: =K24 -> 27420.07488 | AC24: =Res_RD!Z24*Res_RD!AB24 -> 14286.61083
B25: Illustrative Residential Tier II rates | C25: =C24*C20 -> 2.614656397 | F25: =F24 -> 0.50786 | G25: =G24 -> 0.0004747016696 | H25: =H24 -> -0.0006259249521 | I25: =SUM(C25:H25)*I23 -> 0.6244730348 | J25: =ROUND(C25+H25-I25,7) -> 1.9895574 | K25: 10245.82278 | L25: =Res_RD!I25*Res_RD!K25 -> 6398.240046 | S25: Illustrative Residential Tier II rates | T25: =T24*T20 -> 2.602381351 | W25: =F25 -> 0.50786 | X25: =X24 -> 0.0004747016696 | Y25: =H25 -> -0.0006259249521 | Z25: =SUM(T25:Y25)*Z23 -> 0.6220180255 | AA25: =ROUND(T25+Y25-Z25,7) -> 1.9797374 | AB25: =K25 -> 10245.82278 | AC25: =Res_RD!Z25*Res_RD!AB25 -> 6373.086457
B26: Average | C26: =SUMPRODUCT($C$16:$C$17,C$24:C$25)/$C$18 -> 2.234752384 | F26: =SUMPRODUCT($C$16:$C$17,F$24:F$25)/$C$18 -> 0.50786 | G26: =SUMPRODUCT($C$16:$C$17,G$24:G$25)/$C$18 -> 0.0004747016696 | H26: =H24 -> -0.0006259249521 | I26: =SUMPRODUCT($C$16:$C$17,I$24:I$25)/$C$18 -> 0.5484922322 | J26: =SUMPRODUCT($C$16:$C$17,J$24:J$25)/$C$18 -> 1.685634219 | K26: =Res_RD!K24+Res_RD!K25 -> 37665.89767 | L26: =Res_RD!L24+Res_RD!L25 -> 20659.70547 | S26: Average | T26: =SUMPRODUCT($T$16:$T$17,$T$24:$T$25)/$T$18 -> 2.234752384 | W26: =SUMPRODUCT($T$16:$T$17,$W$24:$W$25)/$T$18 -> 0.50786 | X26: =SUMPRODUCT($T$16:$T$17,$X$24:$X$25)/$T$18 -> 0.0004747016696 | Y26: =Y24 -> -0.0006259249521 | Z26: =SUMPRODUCT($T$16:$T$17,$Z$24:$Z$25)/$T$18 -> 0.5484922322 | AA26: =SUMPRODUCT($T$16:$T$17,$AA$24:$AA$25)/$T$18 -> 1.685634247 | AB26: =Res_RD!AB24+Res_RD!AB25 -> 37665.89767 | AC26: =Res_RD!AC24+Res_RD!AC25 -> 20659.69729
C27: =C26=C15/C18 -> TRUE
B29: CALCULATION OF ILLUSTRATIVE CARE SUBSIDY | C29: Pre-CARE Illustrative Residential Transportation | F29: Illustrative Interim Bundled CARE Rates | G29: CARE | H29: CARE Bundled | I29: Illustrative CARE Bundled | J29: Illustrative CARE Transportation | K29: Total Illustrative CARE | L29: Current CARE | M29: Illustrative Incremental CARE | N29: Total Throughput Eligible for Recovery of CARE Discount | O29: Incremental Illustrative PPP Rates due to Change in CARE Discount | S29: CALCULATION OF ILLUSTRATIVE CARE SUBSIDY | T29: Pre-CARE Illustrative Residential Transportation | W29: Illustrative Interim Bundled CARE Rates | X29: CARE | Y29: CARE Bundled | Z29: Illustrative CARE Bundled | AA29: Illustrative CARE Transportation | AB29: Total Illustrative CARE | AC29: Current CARE | AD29: Illustrative Incremental CARE | AE29: Total Throughput Eligible for Recovery of CARE Discount | AF29: Illustrative Incremental PPP Rates due to Change in CARE Discount
C30: Rates | F30: ="(w/"&I23*100&"% discount)" -> (w/20% discount) | G30: ="Discount ("&I23*100&"%)" -> Discount (20%) | H30: Volumes (mth) | I30: Discount | J30: Discount | K30: Discount | L30: Discount | M30: Discount | T30: Rates | W30: ="(w/"&Z23*100&"% discount)" -> (w/20% discount) | X30: ="Discount ("&Z23*100&"%)" -> Discount (20%) | Y30: Volumes (mth) | Z30: Discount | AA30: Discount | AB30: Discount | AC30: Discount | AD30: Discount
C31: =Res_RD!C24 -> 2.092843097 | F31: =ROUND((Res_RD!C24+H24+F24+G24)*(1-$I$23),20) -> 2.080441499 | G31: =SUM(C24:H24)-F31 -> 0.5201103748 | H31: 240412.9786 | I31: =Res_RD!H31*Res_RD!G31 -> 125041.2844 | J31: =Res_RD!L24 -> 14261.46543 | K31: =SUM(I31:J31) -> 139302.7498 | O31: =O33 -> -0.0001778056207 | T31: =Res_RD!T24 -> 2.097428316 | W31: =ROUND((Res_RD!T24+Y24+W24+X24)*(1-$Z$23),20) -> 2.084109674 | X31: =SUM(T24:Y24)-W31 -> 0.5210274186 | Y31: =H31 -> 240412.9786 | Z31: =Res_RD!Y31*Res_RD!X31 -> 125261.7536 | AA31: =Res_RD!AC24 -> 14286.61083 | AB31: =SUM(Z31:AA31) -> 139548.3644 | AF31: =AF33 -> -0.0001778056207
C32: =Res_RD!C25 -> 2.614656397 | F32: =ROUND((Res_RD!C25+H25+F25+G25)*(1-$I$23),20) -> 2.497892139 | G32: =SUM(C25:H25)-F32 -> 0.6244730348 | H32: 89800.49498 | I32: =Res_RD!H32*Res_RD!G32 -> 56077.98763 | J32: =Res_RD!L25 -> 6398.240046 | K32: =SUM(I32:J32) -> 62476.22767 | O32: =O33 -> -0.0001778056207 | T32: =Res_RD!T25 -> 2.602381351 | W32: =ROUND((Res_RD!T25+Y25+W25+X25)*(1-$Z$23),20) -> 2.488072102 | X32: =SUM(T25:Y25)-W32 -> 0.6220180255 | Y32: =H32 -> 89800.49498 | Z32: =Res_RD!Y32*Res_RD!X32 -> 55857.52658 | AA32: =Res_RD!AC25 -> 6373.086457 | AB32: =SUM(Z32:AA32) -> 62230.61304 | AF32: =AF33 -> -0.0001778056207
B33: Total | H33: =Res_RD!H31+Res_RD!H32 -> 330213.4735 | I33: =Res_RD!I31+Res_RD!I32 -> 181119.272 | J33: =Res_RD!J31+Res_RD!J32 -> 20659.70547 | K33: =Res_RD!K31+Res_RD!K32 -> 201778.9775 | L33: 202460.2753 | M33: =K33-L33 -> -681.2978606 | N33: 3831700.358 | O33: =M33/N33 -> -0.0001778056207 | S33: Total | Y33: =Res_RD!Y31+Res_RD!Y32 -> 330213.4735 | Z33: =Res_RD!Z31+Res_RD!Z32 -> 181119.2802 | AA33: =Res_RD!AA31+Res_RD!AA32 -> 20659.69729 | AB33: =Res_RD!AB31+Res_RD!AB32 -> 201778.9775 | AC33: =L33 -> 202460.2753 | AD33: =AB33-AC33 -> -681.2978606 | AE33: 3831700.358 | AF33: =AD33/AE33 -> -0.0001778056207
B35: CALCULATION OF FINAL ILLUSTRATIVE RESIDENTIAL NON-CARE RATES | R35: CALCULATION OF FINAL ILLUSTRATIVE RESIDENTIAL NON-CARE RATES
B37: Post-CARE costs allocated to residential class | C37: =C13*C$42/C$18 -> 2913010.394 | S37: Post-CARE costs allocated to residential class | T37: =T13*T$42/T$18 -> 2913010.394
B38: + Authorized Incremental RRQ | C38: =C14*C$42/C$18 -> -12633.93604 | S38: + Authorized Incremental RRQ | T38: =T14*T$42/T$18 -> -12633.93604
B39: = Total Post-CARE costs allocated to residential class | C39: =SUM(C37:C38) -> 2900376.458 | S39: = Total Post-CARE costs allocated to residential class | T39: =SUM(T37:T38) -> 2900376.458
B40: Residential Tier I volumes (non-CARE) | C40: 920403.8806 | S40: Residential Tier I volumes (non-CARE) | T40: =C40 -> 920403.8806
B41: + Residential Tier II volumes (non-CARE) | C41: 377447.496 | S41: + Residential Tier II volumes (non-CARE) | T41: =C41 -> 377447.496
B42: Total Residential Volumes (Non-CARE) | C42: =SUM(C40:C41) -> 1297851.377 | S42: Total Residential Volumes (Non-CARE) | T42: =SUM(T40:T41) -> 1297851.377
B44: GCAP Decision Ratio of Tier II/Tier I Residential Transportation Rates | C44: =C20 -> 1.24933226 | S44: GCAP Decision Ratio of Tier II/Tier I Residential Transportation Rates | T44: =T20 -> 1.24074865
D46: Current Minimum | U46: Current Minimum
C47: Non-CARE | D47: Monthly Transporation | E47: Post-MMTC | F47: Residential Procurement Rate | H47: Non-CARE | J47: Authorized | K47: Recovery of | T47: Non-CARE | U47: Monthly Transporation | V47: Post-MMTC | W47: Residential Procurement Rate | Y47: Non-CARE | AA47: Illustrative Authorized + | AB47: Recovery of
C48: Illustrative Residential Transportation | D48: Charge (MMTC) adjustment | E48: Illustrative Non-CARE Res Transporation | F48: Current Rate | G48: Authorized Illustrative Incremental Rate | H48: Illustrative Bundled Rate | I48: Current PPP Rate | J48: Illustrative Incremental PPP Rate | K48: Illustrative Incremental CARE Discount | L48: Total Illustrative Non-CARE Bundled Rate | T48: Illustrative Residential Transportation | U48: Charge (MMTC) adjustment | V48: Illustrative Non-CARE Res Transporation | W48: Current Rate | X48: Illustrative Authorized + Illustrative Pending Incremental | Y48: Illustrative Bundled Rate | Z48: Current PPP Rate | AA48: Pending Illustrative Incremental PPP Rate | AB48: Illustrative Incremental CARE Discount | AC48: Total Illustrative Non-CARE Bundled Rate
B49: Illustrative Residential Tier I rates | C49: =C39/(C40+C41*C44) -> 2.083661836 | D49: 0.006553092611 | E49: =C49-D49 -> 2.077108743 | F49: =F24 -> 0.50786 | G49: =G24 -> 0.0004747016696 | H49: =E49+SUM(F49:G49) -> 2.585443445 | I49: 0.12103 | J49: =SUMPRODUCT('SAR and RAR'!$G$3:$AA$3,'SAR and RAR'!$G$13:$AA$13)/C18 -> 0 | K49: =O33 -> -0.0001778056207 | L49: =SUM(H49:K49) -> 2.706295639 | S49: Illustrative Residential Tier I rates | T49: =T39/(T40+T41*T44) -> 2.088522982 | U49: =D49 -> 0.006553092611 | V49: =T49-U49 -> 2.081969889 | W49: =W24 -> 0.50786 | X49: =X24 -> 0.0004747016696 | Y49: =V49+SUM(W49:X49) -> 2.590304591 | Z49: =I49 -> 0.12103 | AA49: =SUMPRODUCT('SAR and RAR'!$G$3:$AA$3,'SAR and RAR'!$G$16:$AA$16)/T18 -> 0 | AB49: =AF31 -> -0.0001778056207 | AC49: =SUM(Y49:AB49) -> 2.711156785
B50: Illustrative Residential Tier II rates | C50: =C49*C44 -> 2.603185951 | D50: 0 | E50: =C50-D50 -> 2.603185951 | F50: =F25 -> 0.50786 | G50: =G25 -> 0.0004747016696 | H50: =E50+SUM(F50:G50) -> 3.111520652 | I50: =I49 -> 0.12103 | J50: =J49 -> 0 | K50: =O33 -> -0.0001778056207 | L50: =SUM(H50:K50) -> 3.232372847 | S50: Illustrative Residential Tier II rates | T50: =T49*T44 -> 2.591332069 | U50: =D50 -> 0 | V50: =T50-U50 -> 2.591332069 | W50: =W25 -> 0.50786 | X50: =X25 -> 0.0004747016696 | Y50: =V50+SUM(W50:X50) -> 3.099666771 | Z50: =I50 -> 0.12103 | AA50: =AA49 -> 0 | AB50: =AF32 -> -0.0001778056207 | AC50: =SUM(Y50:AB50) -> 3.220518966
B51: Avg. Illustrative Non-CARE Residential Rate (Bundled & Transportation-only) | C51: =(($C$40*C49)+($C$41*C50))/$C$42 -> 2.234752384 | D51: =(($C$40*D49)+($C$41*D50))/$C$42 -> 0.004647290112 | E51: =(($C$40*E49)+($C$41*E50))/$C$42 -> 2.230105094 | F51: =SUMPRODUCT($C$40:$C$41,F$49:F$50)/$C$42 -> 0.50786 | G51: =SUMPRODUCT($C$40:$C$41,$G$49:$G$50)/$C$42 -> 0.0004747016696 | H51: =SUMPRODUCT($C$40:$C$41,$H$49:$H$50)/$C$42 -> 2.738439796 | I51: =SUMPRODUCT($C$40:$C$41,$I$49:$I$50)/$C$42 -> 0.12103 | J51: =J49 -> 0 | K51: =SUMPRODUCT($C$40:$C$41,$K$49:$K$50)/$C$42 -> -0.0001778056207 | L51: =SUM(H51:K51) -> 2.85929199 | S51: Avg. Illustrative Non-CARE Residential Rate (Bundled & Transportation-only) | T51: =(($T$40*T49)+($T$41*T50))/$T$42 -> 2.234752384 | U51: =(($T$40*U49)+($T$41*U50))/$T$42 -> 0.004647290112 | V51: =(($T$40*V49)+($T$41*V50))/$T$42 -> 2.230105094 | W51: =SUMPRODUCT($T$40:$T$41,$W$49:$W$50)/$T$42 -> 0.50786 | X51: =SUMPRODUCT($T$40:$T$41,$X$49:$X$50)/$T$42 -> 0.0004747016696 | Y51: =(($T$40*Y49)+($T$41*Y50))/$T$42 -> 2.738439796 | Z51: =I51 -> 0.12103 | AA51: =AA49 -> 0 | AB51: =AF33 -> -0.0001778056207 | AC51: =SUM(Y51:AB51) -> 2.85929199
H52: =H50/H49 -> 1.203476587 | I52: <=Macro sets this cell equal to | J52: 1.2 | Y52: =Y50/Y49 -> 1.196641809 | Z52: <=Macro sets this cell equal to | AA52: =IF(Summary!$D$3=2024,1.249,1.2) -> 1.2
I53: by changing the value in cell C20 | Z53: by changing the value in cell T20
B56: CALCULATION OF FINAL ILLUSTRATIVE RESIDENTIAL CARE RATES | R56: CALCULATION OF FINAL ILLUSTRATIVE RESIDENTIAL CARE RATES
C58: Non-CARE | D58: CSI - Thermal | E58: CARE | G58: Illustrative Authorized | T58: Non-CARE | U58: CSI - Thermal | V58: CARE | X58: Illustrative Authorized+Illustrative Pending
C59: Illustrative Bundled | D59: Exemption | E59: Illustrative Bundled | F59: Current CARE PPP | G59: Incremental PPP | H59: Total Illustrative CARE | T59: Illustrative Bundled | U59: Exemption | V59: Illustrative Bundled | W59: Current CARE PPP | X59: Incremental PPP | Y59: Total Illustrative CARE
C60: Rate | E60: Rate | F60: Rate | G60: Rate | H60: Bundled Rate | T60: Rate | V60: Rate | W60: Rate | X60: Rate | Y60: Bundled Rate
B61: Illustrative Residential Tier I rates | C61: =H49 -> 2.585443445 | D61: =H24 -> -0.0006259249521 | E61: =SUM(C61:D61)*(1-$I$23) -> 2.067854016 | F61: 0.07522 | G61: =J49 -> 0 | H61: =E61+F61+G61 -> 2.143074016 | S61: Illustrative Residential Tier I rates | T61: =Y49 -> 2.590304591 | U61: =Y24 -> -0.0006259249521 | V61: =SUM(T61:U61)*(1-$Z$23) -> 2.071742933 | W61: =F61 -> 0.07522 | X61: =AA49 -> 0 | Y61: =V61+W61+X61 -> 2.146962933
B62: Illustrative Residential Tier II rates | C62: =H50 -> 3.111520652 | D62: =H25 -> -0.0006259249521 | E62: =SUM(C62:D62)*(1-$I$23) -> 2.488715782 | F62: =F61 -> 0.07522 | G62: =G61 -> 0 | H62: =E62+F62+G62 -> 2.563935782 | S62: Illustrative Residential Tier II rates | T62: =Y50 -> 3.099666771 | U62: =Y25 -> -0.0006259249521 | V62: =SUM(T62:U62)*(1-$Z$23) -> 2.479232677 | W62: =W61 -> 0.07522 | X62: =X61 -> 0 | Y62: =V62+W62+X62 -> 2.554452677
B63: Avg. Illustrative CARE Residential Rate | C63: =H51 -> 2.738439796 | D63: =H26 -> -0.0006259249521 | E63: =SUMPRODUCT($H$31:$H$32,E$61:E$62)/$H$33 -> 2.182306023 | F63: =F62 -> 0.07522 | G63: =G61 -> 0 | H63: =SUMPRODUCT($H$31:$H$32,H$61:H$62)/$H$33 -> 2.257526023 | S63: Avg. Illustrative CARE Residential Rate | T63: =Y51 -> 2.738439796 | U63: =Y26 -> -0.0006259249521 | V63: =SUMPRODUCT($Y$31:$Y$32,V$61:V$62)/$Y$33 -> 2.182558462 | W63: =W62 -> 0.07522 | X63: =X61 -> 0 | Y63: =SUMPRODUCT($Y$31:$Y$32,Y$61:Y$62)/$Y$33 -> 2.257778462

Sheet Instructions-Hypothetical
A1: INSTRUCTIONS TO RUN "HYPOTHETICAL" MODEL
A2: CLICK HERE FOR INSTRUCTIONS ON VALIDATING AGAINST BILL INSERT
B5: The "hypothetical" portion of this model produces illustrative rates and illustrative residential bill calculations based on selected user inputs.
B6: PLEASE DO NOT INSERT ROWS OR COLUMNS INTO THE SUMMARY
B7: To run the "hypothetical" portion of the model:
B9: 1. | C9: User drop down selections are highlighted in green.
B10: 2. | C10: User value input cells are highlighted in yellow.
B11: 3. | C11: In cell D4 of the "Hypothetical Summary" tab, select, from the dropdown choices, the baseline territory for which illustrative bill impacts are desired.
B12: 4. | C12: Select the "Residential Tier Ratio" in the green highlighted cells G7 of the "Hypothetical Summary" tab.
C13: Authorized tier ratios (D.19-10-036, Ordering Paragraph 4) are listed by year in the table below OR the user may enter their own desired tier ratio.
D14: For 2026 revenues | E14: . | F14: . | G14: =Instructions!G16 -> 1.20 (Note that the initial tiering factor for 2025 has been set at 1.245 therefore the factor for 2026 will remain at the already established value)
D15: For 2027 + revenues | E15: . | F15: . | G15: 1.2
B16: 5. | C16: Enter the "hypothetical" revenues, by program, in the yellow highlighted cells in column F of the "Hypothetical Summary" tab.
B17: 6. | C17: In column I of the "Hypothetical Summary" tab, select from the dropdown choices, the desired allocation methodology.
C18: Note that PG&E's proposed allocation methdology is listed in column H of the "Hypothetical Summary" tab.
C19: Also note that there are three opportunities for the user to enter their own Allocation Methodology on the "RRQ Allocations" tab (ILLUSTRATION 2)
C20: and as described under the "RRQ ALLOCATION OPTIONS" section on the "Instruction" tab.
B21: 7. | C21: Create hypothetical illustrative tiered residential rates by executing the "Run Hypothetical Residential Rate Tiering" macro (ILLUSTRATION 1).
C24: ILLUSTRATION 1: | P24: 7.
H25: 3. | K25: 5. | M25: 4. | Q25: 6.
B44: RRQ ALLOCATION OPTIONS:
B45: 1. | C45: On the "RRQ Allocations" tab there are 4 spaces for the user to enter their own allocation methodology (ILLUSTRATION 2).
C46: NOTE that this tab has not been fully populated by PG&E.
C48: ILLUSTRATION 2
A90: VALIDATING THE RESULTS OF THE ILLUSTRATIVE "TYPICAL CUSTOMER" BILL AGAINST A BILL INSERT
B92: 1. | C92: The model is set up to accept separate "typical" therms for Non-CARE and CARE customers. (See screenshot below, yellow highlights.)
B93: 2. | C93: Ensure that the therms entered in the model match the therms used in the bill insert.
B94: 3. | C94: Ensure that only the revenue requirement being evaluated is included in the impact. (See step 5 above.)
B95: 4. | C95: Run the model as described in the instructions above.

Sheet Hypothetical Summary
B1: PLEASE DO NOT INSERT ROWS OR COLUMNS
B2: User Inputs: | C2: Yellow highlighted cells - enter value
C3: Green highlighted cells - select from drop-down menu
F6: Year (informational only) | G6: =IF(Hypothetical_Tier_Ratio=1.245,2026, "2027 or later") -> 2026 | K6: Assumptions:
F7: Residential Tier Ratio | K7: Current Effective Rates | M7: =Summary!L3 -> 2026-01-01
C8: Baseline Region - (Residential bill) | D8: ALL CLIMATE ZONES | F8: (See Instructions-Hypothetical) | G8: 1.245 | K8: Throughput Forecast | M8: =Summary!L4 -> 2023 CARD
K9: Illustrative Residential bill calculated using | M9: =Summary!L5 -> Schedule G-1, Basic, Single Family | N9: =Summary!M5 -> 0 | O9: =Summary!N5 -> 0
D10: Current | E10: PG&E Requested | G10: Incremental | H10: Adopted or Proposed Allocation | I10: Hypothetical Allocation | K10: Illustrative Non-CARE bill impact calculated with average summer usage of | O10: =VLOOKUP('Hypothetical Summary'!$D$8,'Hypothetical Res Bill Impact'!$P$22:$V$31,2,FALSE) -> 16.89719192 | P10: therms per month
D11: Authorized | E11: Revenue * | F11: Hypothetical | G11: Hypothetical | H11: Methodology | I11: Methodology | K11: Illustrative Non-CARE bill impact calculated with average winter off-peak usage of | O11: =VLOOKUP('Hypothetical Summary'!$D$8,'Hypothetical Res Bill Impact'!$P$22:$V$31,3,FALSE) -> 41.9940592 | P11: therms per month
B12: Pending Proceedings | D12: Revenue | E12: (Informational Only) | F12: Revenue | G12: Revenue | H12: (Informational Only) | I12: (Select from drop down menu) | K12: Illustrative Non-CARE bill impact calculated with average winter on-peak usage of | O12: =VLOOKUP('Hypothetical Summary'!$D$8,'Hypothetical Res Bill Impact'!$P$22:$V$31,4,FALSE) -> 55.57948411 | P12: therms per month
B13: =Summary!B9 -> 2027 Energy Savings Assistance Bridge Funding | D13: ='Incremental Rev Req'!$H$44 -> 75530.121 | E13: =MAX('Incremental Rev Req'!G79:K79) -> 55567.26105 | F13: 55567.26105 | G13: =F13-D13 -> -19962.85995 | H13: =IF('Incremental Rev Req'!E79=0," ",'Incremental Rev Req'!E79) -> PPP | I13: ESA | K13: Illustrative CARE bill impact calculated with average summer usage of | O13: =VLOOKUP('Hypothetical Summary'!$D$8,'Hypothetical Res Bill Impact'!$P$22:$V$31,5,FALSE) -> 16.79360126 | P13: therms per month
B14: =Summary!B10 -> 2027 CARE Administrative Bridge Funding | D14: ='Incremental Rev Req'!$H$46 -> 2957.54 | E14: =MAX('Incremental Rev Req'!G80:K80) -> 2059.02 | F14: 2059.02 | G14: =F14-D14 -> -898.52 | H14: =IF('Incremental Rev Req'!E80=0," ",'Incremental Rev Req'!E80) -> PPP | I14: PPP ECPT | K14: Illustrative CARE bill impact calculated with average winter off-peak usage of | O14: =VLOOKUP('Hypothetical Summary'!$D$8,'Hypothetical Res Bill Impact'!$P$22:$V$31,6,FALSE) -> 35.63957831 | P14: therms per month
B15: =Summary!B11 -> Hinkley Upgrade | D15: 0 | E15: =MAX('Incremental Rev Req'!G81:K81) -> 8890.201242 | F15: 8890.201242 | G15: 8890.201242 | H15: =IF('Incremental Rev Req'!E81=0," ",'Incremental Rev Req'!E81) -> ECPT | I15: ECPT - ALL | K15: Illustrative CARE bill impact calculated with average winter on-peak usage of | O15: =VLOOKUP('Hypothetical Summary'!$D$8,'Hypothetical Res Bill Impact'!$P$22:$V$31,7,FALSE) -> 46.97823559 | P15: therms per month
B16: =Summary!B12 -> Billing Modernization (Distribution) | D16: 0 | E16: =MAX('Incremental Rev Req'!G82:K82) -> 18712.17383 | F16: 18712.17383 | G16: 18712.17383 | H16: =IF('Incremental Rev Req'!E82=0," ",'Incremental Rev Req'!E82) -> Distribution | I16: Distribution | K16: Average monthly usage is for all customers (Non-CARE and CARE) based on seasonal usage in | Q16: =Summary!P12 -> 2024
B17: =Summary!B13 -> Billing Modernization (Transmission) | D17: 0 | E17: =MAX('Incremental Rev Req'!G83:K83) -> 8918.457231 | F17: 8918.457231 | G17: 8918.457231 | H17: =IF('Incremental Rev Req'!E83=0," ",'Incremental Rev Req'!E83) -> ECPT | I17: ECPT - ALL | K17: Summer Season | M17: =Summary!L13 -> 7 | N17: months
B18: =Summary!B14 -> Hydrogen Demonstration Project (2027) | D18: 0 | E18: =MAX('Incremental Rev Req'!G85:K85) -> 10534.09292 | F18: 10534.09292 | G18: 10534.09292 | H18: =IF('Incremental Rev Req'!E85=0," ",'Incremental Rev Req'!E85) -> ECPT | I18: ECPT - ALL | K18: Winter Season Off-peak | M18: =Summary!L14 -> 3 | N18: months
B19: =Summary!B15 -> 2024 Wildfire Mitigation and Catastrophic Events (distribution) | D19: 0 | E19: =MAX('Incremental Rev Req'!G86:K86) -> 65537.65441 | F19: 65537.65441 | G19: 65537.65441 | H19: =IF('Incremental Rev Req'!E86=0," ",'Incremental Rev Req'!E86) -> Distribution | I19: Distribution | K19: Winter Season On-peak | M19: =Summary!L15 -> 2 | N19: months
B20: =Summary!B16 -> 2024 Wildfire Mitigation and Catastrophic Events (transmission) | D20: 0 | E20: =MAX('Incremental Rev Req'!G87:K87) -> 6579.378757 | F20: 6579.378757 | G20: 6579.378757 | H20: =IF('Incremental Rev Req'!E87=0," ",'Incremental Rev Req'!E87) -> ECPT | I20: ECPT - ALL | K20: Typical Non-CARE Residential Customer usage | M20: 33 | N20: therms per month
B21: =Summary!B17 -> 2026 Cost of Capital (Distribution) | D21: ='Incremental Rev Req'!$H$16 -> 164934.2253 | E21: =MAX('Incremental Rev Req'!G88:K88) -> 111625.7848 | F21: 111625.7848 | G21: -53308.44052 | H21: =IF('Incremental Rev Req'!E88=0," ",'Incremental Rev Req'!E88) -> Distribution | I21: Distribution | K21: Typical CARE Residential Customer usage | M21: 29 | N21: therms per month
B22: =Summary!B18 -> 2026 Cost of Capital (Transmission) | D22: 0 | E22: =MAX('Incremental Rev Req'!G89:K89) -> 84230.76028 | F22: 84230.76028 | G22: 84230.76028 | H22: =IF('Incremental Rev Req'!E89=0," ",'Incremental Rev Req'!E89) -> ECPT - 50% Core / 50% Noncore | I22: ECPT - 50% Core / 50% Noncore | K22: Residential CARE Customers as Percent of Total Residential Customers | O22: 0.2272147033
B23: =Summary!B19 -> Gas Advanced Metering Infrastructure (AMI) (distribution) | D23: ='Incremental Rev Req'!H30 -> 39604.60508 | E23: =D23 -> 39604.60508 | F23: 39604.60508 | G23: 0 | H23: =IF('Incremental Rev Req'!E90=0," ",'Incremental Rev Req'!E90) -> Distribution | I23: Distribution | K23: Historic California Climate Credit | M23: 67.03190755
B24: =Summary!B20 -> Gas AMI (transmission) | D24: 0 | E24: =MAX('Incremental Rev Req'!G91:K91) -> 0 | F24: 0 | G24: 0 | H24: =IF('Incremental Rev Req'!E91=0," ",'Incremental Rev Req'!E91) -> ECPT | I24: ECPT - ALL | K24: Present California Climate Credit | M24: 48.0122072
B25: =Summary!B21 -> 2023 Wildfire Mitigation and Catastrophic Events (distribution) | D25: 0 | E25: =MAX('Incremental Rev Req'!G92:K92) -> 13644.27962 | F25: 13644.27962 | G25: 13644.27962 | H25: =IF('Incremental Rev Req'!E92=0," ",'Incremental Rev Req'!E92) -> Distribution | I25: Distribution
B26: =Summary!B22 -> 2023 Wildfire Mitigation and Catastrophic Events (transmission) | D26: 0 | E26: =MAX('Incremental Rev Req'!G93:K93) -> 5913.522951 | F26: 5913.522951 | G26: 5913.522951 | H26: =IF('Incremental Rev Req'!E93=0," ",'Incremental Rev Req'!E93) -> ECPT | I26: ECPT - ALL
B27: =Summary!B23 -> Wildfire Gas and Safety Costs (Distribution) Non-IRR | D27: ='Incremental Rev Req'!H26 -> 6776.716441 | E27: =MAX('Incremental Rev Req'!G94:K94) -> 6776.716441 | F27: 6776.716441 | G27: 0 | H27: =IF('Incremental Rev Req'!E94=0," ",'Incremental Rev Req'!E94) -> Distribution | I27: Distribution
B28: =Summary!B24 -> Wildfire Gas and Safety Costs (Transmission) - Non IRR | D28: 0 | E28: =MAX('Incremental Rev Req'!G95:K95) -> 44029.8428 | F28: 44029.8428 | G28: 44029.8428 | H28: =IF('Incremental Rev Req'!E95=0," ",'Incremental Rev Req'!E95) -> ECPT | I28: ECPT - ALL
B29: =Summary!B25 -> Kincaid-Dixie (Distribution) | D29: 0 | E29: =MAX('Incremental Rev Req'!G96:K96) -> 71886.55064 | F29: 71886.55064 | G29: 71886.55064 | H29: =IF('Incremental Rev Req'!E96=0," ",'Incremental Rev Req'!E96) -> Distribution | I29: Distribution
B30: =Summary!B26 -> Kincaid-Dixie (Generation) | D30: 0 | E30: =MAX('Incremental Rev Req'!G97:K97) -> 23780.14007 | F30: 23780.14007 | G30: 23780.14007 | H30: =IF('Incremental Rev Req'!E97=0," ",'Incremental Rev Req'!E97) -> ECPT | I30: ECPT - ALL
B31: =Summary!B27 -> TRRRMA (Distribution) | D31: ='Incremental Rev Req'!H33 -> 104444.3954 | E31: =D31 -> 104444.3954 | F31: 104444.3954 | G31: 0 | H31: =IF('Incremental Rev Req'!E99=0," ",'Incremental Rev Req'!E99) -> Distribution | I31: Distribution
B32: =Summary!B28 -> TRRRMA (Transmission) | D32: ='Incremental Rev Req'!H34 -> 47177.48763 | E32: =D32 -> 47177.48763 | F32: 47177.48763 | G32: 0 | H32: =IF('Incremental Rev Req'!E100=0," ",'Incremental Rev Req'!E100) -> ECPT | I32: ECPT - ALL
B33: =Summary!B29 -> 2027 GRC - Gas Distribution | D33: ='Incremental Rev Req'!$H$10 -> 3014936.401 | E33: =MAX('Incremental Rev Req'!G101:K101) -> 3389414.767 | F33: 3389414.767 | G33: 374478.3663 | H33: =IF('Incremental Rev Req'!E101=0," ",'Incremental Rev Req'!E101) -> Distribution | I33: Distribution
B34: =Summary!B30 -> 2027 GRC - Core Local Transmission | D34: ='Incremental Rev Req'!$H$19 -> 983371.3849 | E34: =MAX('Incremental Rev Req'!G102:K102) -> 1173368.345 | F34: 1173368.345 | G34: 189996.9603 | H34: =IF('Incremental Rev Req'!E102=0," ",'Incremental Rev Req'!E102) -> ECPT | I34: ECPT - Core only
B35: =Summary!B31 -> 2027 GRC - Core Procurement (Intrastate Volumetric and Capacity) | D35: ='Incremental Rev Req'!$H$51 -> 196211.9165 | E35: =MAX('Incremental Rev Req'!G103:K103) -> 162779.9119 | F35: 162779.9119 | G35: -33432.00467 | H35: =IF('Incremental Rev Req'!E103=0," ",'Incremental Rev Req'!E103) -> ECPT (No BB) | I35: ECPT - Core only (Procurement)
B36: =Summary!B32 -> 2027 GRC - Core Procurement (Storage) | D36: ='Incremental Rev Req'!$H$53 -> 135685.9394 | E36: =MAX('Incremental Rev Req'!G104:K104) -> 39767.86767 | F36: 39767.86767 | G36: -95918.07174 | H36: =IF('Incremental Rev Req'!E104=0," ",'Incremental Rev Req'!E104) -> Unadjusted Cold Year Winter Season | I36: Storage Allocation (Procurement)
B37: =Summary!B33 -> 2027 GRC - Noncore Local Transmission | D37: ='Incremental Rev Req'!$H$20 -> 515826.5045 | E37: =MAX('Incremental Rev Req'!G105:K105) -> 615905.9866 | F37: 615905.9866 | G37: 100079.4821 | H37: =IF('Incremental Rev Req'!E105=0," ",'Incremental Rev Req'!E105) -> ECPT (No BB) | I37: ECPT - Noncore only
B38: =Summary!B34 -> 2027 GRC - Customer Access Charge | D38: ='Incremental Rev Req'!$H$21 -> 5465.240945 | E38: =MAX('Incremental Rev Req'!G106:K106) -> 4634.982782 | F38: 4634.982782 | G38: -830.2581629 | H38: =IF('Incremental Rev Req'!E106=0," ",'Incremental Rev Req'!E106) -> CAC Allocation | I38: CAC Allocation
B39: =Summary!B35 -> 2027 GRC - Noncore Unbundled | D39: ='Incremental Rev Req'!$H$22 -> 263208.0005 | E39: =MAX('Incremental Rev Req'!G107:K107) -> 213949.2198 | F39: 213949.2198 | G39: -49258.78074 | H39: =IF('Incremental Rev Req'!E107=0," ",'Incremental Rev Req'!E107) -> ECPT-All | I39: ECPT - ALL
B40: =Summary!B36 -> 2027 GRC - Inventory Management | D40: ='Incremental Rev Req'!$H$23 -> 143704.047 | E40: =MAX('Incremental Rev Req'!G108:K108) -> 161064.4679 | F40: 161064.4679 | G40: 17360.42093 | H40: =IF('Incremental Rev Req'!E108=0," ",'Incremental Rev Req'!E108) -> 2023 GTS - Inventory Management | I40: 2023 GTS - Inventory Management
B41: =Summary!B37 -> CFCA - NGSS Enduser Dist. Sub Acct Recovery | D41: ='Incremental Rev Req'!$H$64 -> 2051.460825 | E41: =MAX('Incremental Rev Req'!G109:K109) -> 0 | F41: 0 | G41: -2051.460825 | H41: =IF('Incremental Rev Req'!E109=0," ",'Incremental Rev Req'!E109) -> Core - Distribution | I41: Core - Distribution
B42: =Summary!B38 -> CFCA/NCA - NGSS Enduser Sub Acct Recovery | D42: ='Incremental Rev Req'!$H$65 -> 487.8206422 | E42: =MAX('Incremental Rev Req'!G110:K110) -> 0 | F42: 0 | G42: -487.8206422 | H42: =IF('Incremental Rev Req'!E110=0," ",'Incremental Rev Req'!E110) -> ECPT - ALL | I42: ECPT - ALL
B43: =Summary!B39 -> NCA - NGSS Enduser Sub Acct Recovery | D43: ='Incremental Rev Req'!$H$66 -> 501.0158178 | E43: =MAX('Incremental Rev Req'!G111:K111) -> 0 | F43: 0 | G43: -501.0158178 | H43: =IF('Incremental Rev Req'!E111=0," ",'Incremental Rev Req'!E111) -> ECPT - Noncore only | I43: ECPT - Noncore only
B46: * For applications with revenues in multiple years, the highest year revenue is reflected here.
B48: Outputs:
D49: (A) | E49: (B) | F49: (C) | G49: (C)/(A) | H49: (C)/(B) | N49: (A) | O49: (B) | P49: (C) | Q49: (C)/(A) | R49: (C)/(B)
B50: Illustrative Bundled Average Rates - $ / therm | L50: Illustrative Total System (Bundled + Unbundled) Average Rates - $ / therm
B51: Customer Group | D51: =Summary!D46 -> 2025-01-01 | E51: =$M$7 -> 2026-01-01 | F51: Illustrative Proposed | G51: ="% Change over "&TEXT($D$51,"mm/d/yyyy") -> % Change over 01/1/2025 | H51: ="% Change over "&TEXT($M$7,"mm/d/yyyy") -> % Change over 01/1/2026 | L51: Customer Group | N51: =D51 -> 2025-01-01 | O51: =E51 -> 2026-01-01 | P51: =F51 -> Illustrative Proposed | Q51: =G51 -> % Change over 01/1/2025 | R51: =H51 -> % Change over 01/1/2026
B52: Residential | D52: =Summary!D47 -> 2.740615636 | E52: =Summary!E47 -> 2.738824988 | F52: ='Hypothetical SAR and RAR'!I38 -> 2.987891287 | G52: =$F52/D52-1 -> 0.0902263153 | H52: =$F52/E52-1 -> 0.09093910721 | L52: Residential (RAR) | N52: =Summary!N47 -> 2.497906086 | O52: =Summary!O47 -> 2.571636928 | P52: ='Hypothetical SAR and RAR'!O38 -> 2.827585977 | Q52: =$P52/N52-1 -> 0.1319825004 | R52: =$P52/O52-1 -> 0.09952767689
B53: System | D53: =Summary!D48 -> 2.539231894 | E53: =Summary!E48 -> 2.451351446 | F53: ='Hypothetical SAR and RAR'!I39 -> 2.682506549 | G53: =$F53/D53-1 -> 0.05642440745 | H53: =$F53/E53-1 -> 0.09429700648 | L53: System (SAR) | N53: =Summary!N48 -> 1.138563504 | O53: =Summary!O48 -> 1.056513451 | P53: ='Hypothetical SAR and RAR'!O39 -> 1.185333955 | Q53: =$P53/N53-1 -> 0.04107847346 | R53: =$P53/O53-1 -> 0.1219298284
L55: Illustrative System Rate does not include illustrative procurement for transport only customers.
B56: =CONCATENATE("Illustrative Bundled Residential Monthly Average Bills - Baseline Territory ",$D$8," (Includes Climate Credit)") -> Illustrative Bundled Residential Monthly Average Bills - Baseline Territory ALL CLIMATE ZONES (Includes Climate Credit)
D57: =$D$51 -> 2025-01-01 | E57: =$E$51 -> 2026-01-01 | F57: =$F$51 -> Illustrative Proposed | G57: =$G$51 -> % Change over 01/1/2025 | H57: =$H$51 -> % Change over 01/1/2026
B58: Non-CARE | D58: =((D64*$M$17)+(D70*$M$18)+(D76*$M$19))/12-M23/12 -> 76.23209519 | E58: =((E64*$M$17)+(E70*$M$18)+(E76*$M$19))/12-M24/12 -> 77.4482838 | F58: =((F64*$M$17)+(F70*$M$18)+(F76*$M$19))/12-M24/12 -> 84.69064405 | G58: =$F58/D58-1 -> 0.110957843 | H58: 0.09351221091
B59: CARE | D59: =((D65*$M$17)+(D71*$M$18)+(D77*$M$19))/12-M23/12 -> 52.31258947 | E59: =((E65*$M$17)+(E71*$M$18)+(E77*$M$19))/12-M24/12 -> 53.95361479 | F59: =((F65*$M$17)+(F71*$M$18)+(F77*$M$19))/12-M24/12 -> 58.99421845 | G59: 0.1277250666 | H59: 0.09342476274
B60: Total | D60: =((D66*$M$17)+(D72*$M$18)+(D78*$M$19))/12-M23/12 -> 70.7972318 | E60: =((E66*$M$17)+(E72*$M$18)+(E78*$M$19))/12-M24/12 -> 72.10994955 | F60: =((F66*$M$17)+(F72*$M$18)+(F78*$M$19))/12-M24/12 -> 78.85203833 | G60: 0.1137729022 | H60: 0.09349734428
B62: =CONCATENATE("Illustrative Bundled Residential Monthly Average Bills - Summer - Baseline Territory ",$D$8) -> Illustrative Bundled Residential Monthly Average Bills - Summer - Baseline Territory ALL CLIMATE ZONES
D63: =$D$51 -> 2025-01-01 | E63: =$E$51 -> 2026-01-01 | F63: =$F$51 -> Illustrative Proposed | G63: =$G$51 -> % Change over 01/1/2025 | H63: =$H$51 -> % Change over 01/1/2026
B64: Non-CARE | D64: =VLOOKUP($D$8,'Hypothetical Res Bill Impact'!$B$37:$K$46,2,FALSE) -> 47.61718378 | E64: =VLOOKUP($D$8,'Hypothetical Res Bill Impact'!$B$37:$K$46,5,FALSE) -> 47.41204758 | F64: =VLOOKUP($D$8,'Hypothetical Res Bill Impact'!$B$37:$K$46,8,FALSE) -> 51.68369383 | G64: =$F64/D64-1 -> 0.08540005385 | H64: 0.09009621974
B65: CARE | D65: =VLOOKUP($D$8,'Hypothetical Res Bill Impact'!$B$52:$K$61,2,FALSE) -> 37.5575171 | E65: =VLOOKUP($D$8,'Hypothetical Res Bill Impact'!$B$52:$K$61,5,FALSE) -> 37.59810754 | F65: =VLOOKUP($D$8,'Hypothetical Res Bill Impact'!$B$52:$K$61,8,FALSE) -> 40.92435353 | G65: 0.08964480842 | H65: 0.08846844182
B66: Total | D66: =D64*(1-$O$22)+('Hypothetical Summary'!D65*$O$22) -> 45.3314796 | E66: =E64*(1-$O$22)+('Hypothetical Summary'!E65*$O$22) -> 45.1821761 | F66: =F64*(1-$O$22)+('Hypothetical Summary'!F65*$O$22) -> 49.23901352 | G66: 0.086199126 | H66: 0.0897884468
B68: =CONCATENATE("Illustrative Bundled Residential Monthly Average Bills - Winter Off-Peak - Baseline Territory ",$D$8) -> Illustrative Bundled Residential Monthly Average Bills - Winter Off-Peak - Baseline Territory ALL CLIMATE ZONES
D69: =$D$51 -> 2025-01-01 | E69: =$E$51 -> 2026-01-01 | F69: =$F$51 -> Illustrative Proposed | G69: =$G$51 -> % Change over 01/1/2025 | H69: =$H$51 -> % Change over 01/1/2026
B70: Non-CARE | D70: =VLOOKUP($D$8,'Hypothetical Res Bill Impact'!$B$37:$K$46,3,FALSE) -> 114.8697058 | E70: =VLOOKUP($D$8,'Hypothetical Res Bill Impact'!$B$37:$K$46,6,FALSE) -> 114.3404867 | F70: =VLOOKUP($D$8,'Hypothetical Res Bill Impact'!$B$37:$K$46,9,FALSE) -> 124.4401105 | G70: =$F70/D70-1 -> 0.08331530558 | H70: 0.08832937577
B71: CARE | D71: =VLOOKUP($D$8,'Hypothetical Res Bill Impact'!$B$52:$K$61,3,FALSE) -> 76.62485711 | E71: =VLOOKUP($D$8,'Hypothetical Res Bill Impact'!$B$52:$K$61,6,FALSE) -> 76.6937801 | F71: =VLOOKUP($D$8,'Hypothetical Res Bill Impact'!$B$52:$K$61,9,FALSE) -> 83.29448439 | G71: 0.08704260645 | H71: 0.08606570554
B72: Total | D72: =D70*(1-$O$22)+('Hypothetical Summary'!D71*$O$22) -> 106.1799139 | E72: =E70*(1-$O$22)+('Hypothetical Summary'!E71*$O$22) -> 105.7866014 | F72: =F70*(1-$O$22)+('Hypothetical Summary'!F71*$O$22) -> 115.0912193 | G72: 0.08392647018 | H72: 0.0879564872
B74: =CONCATENATE("Illustrative Bundled Residential Monthly Average Bills - Winter On-Peak - Baseline Territory ",$D$8) -> Illustrative Bundled Residential Monthly Average Bills - Winter On-Peak - Baseline Territory ALL CLIMATE ZONES
D75: =$D$51 -> 2025-01-01 | E75: =$E$51 -> 2026-01-01 | F75: =$F$51 -> Illustrative Proposed | G75: =$G$51 -> % Change over 01/1/2025 | H75: =$H$51 -> % Change over 01/1/2026
B76: Non-CARE | D76: =VLOOKUP($D$8,'Hypothetical Res Bill Impact'!$B$37:$K$46,4,FALSE) -> 151.943823 | E76: =VLOOKUP($D$8,'Hypothetical Res Bill Impact'!$B$37:$K$46,7,FALSE) -> 151.2429098 | F76: =VLOOKUP($D$8,'Hypothetical Res Bill Impact'!$B$37:$K$46,10,FALSE) -> 164.5968737 | G76: =$F76/D76-1 -> 0.08327453206 | H76: 0.08829480924
B77: CARE | D77: =VLOOKUP($D$8,'Hypothetical Res Bill Impact'!$B$52:$K$61,4,FALSE) -> 101.0028951 | E77: =VLOOKUP($D$8,'Hypothetical Res Bill Impact'!$B$52:$K$61,7,FALSE) -> 101.0937458 | F77: =VLOOKUP($D$8,'Hypothetical Res Bill Impact'!$B$52:$K$61,10,FALSE) -> 109.7944503 | G77: 0.08704260645 | H77: 0.08606570554
B78: Total | D78: =D76*(1-$O$22)+('Hypothetical Summary'!D77*$O$22) -> 140.3692951 | E78: =E76*(1-$O$22)+('Hypothetical Summary'!E77*$O$22) -> 139.8482824 | F78: =F76*(1-$O$22)+('Hypothetical Summary'!F77*$O$22) -> 152.1449573 | G78: 0.08389058439 | H78: 0.08792868047
B81: =CONCATENATE("Illustrative Essential Use Bundled Residential Monthly Average Bills - Baseline Territory ",$D$8," (Includes Climate Credit)") -> Illustrative Essential Use Bundled Residential Monthly Average Bills - Baseline Territory ALL CLIMATE ZONES (Includes Climate Credit)
D82: =$D$51 -> 2025-01-01 | E82: =$E$51 -> 2026-01-01 | F82: =$F$51 -> Illustrative Proposed | G82: =$G$51 -> % Change over 01/1/2025 | H82: =$H$51 -> % Change over 01/1/2026
B83: Essential Use Non-CARE | D83: =((D89*$M$17)+(D95*$M$18)+(D101*$M$19))/12-M23/12 -> 71.92256209 | E83: =((E89*$M$17)+(E95*$M$18)+(E101*$M$19))/12-M24/12 -> 73.14893791 | F83: =((F89*$M$17)+(F95*$M$18)+(F101*$M$19))/12-M24/12 -> 79.95467811 | G83: =$F83/D83-1 -> 0.1116772789 | H83: 0.09303949443
B84: Essential Use CARE | D84: =((D90*$M$17)+(D96*$M$18)+(D102*$M$19))/12-M23/12 -> 53.6744648 | E84: =((E90*$M$17)+(E96*$M$18)+(E102*$M$19))/12-M24/12 -> 55.31274379 | F84: =((F90*$M$17)+(F96*$M$18)+(F102*$M$19))/12-M24/12 -> 60.41762448 | G84: 0.125630683 | H84: 0.09229122158
B85: Total | D85: =((D91*$M$17)+(D97*$M$18)+(D103*$M$19))/12-M23/12 -> 67.77632608 | E85: =((E91*$M$17)+(E97*$M$18)+(E103*$M$19))/12-M24/12 -> 69.09629235 | F85: =((F91*$M$17)+(F97*$M$18)+(F103*$M$19))/12-M24/12 -> 75.51557227 | G85: 0.1141880452 | H85: 0.09290339169
B87: =CONCATENATE("Illustrative Essential Use Bundled Residential Monthly Average Bills - Summer - Baseline Territory ",$D$8) -> Illustrative Essential Use Bundled Residential Monthly Average Bills - Summer - Baseline Territory ALL CLIMATE ZONES
D88: =$D$51 -> 2025-01-01 | E88: =$E$51 -> 2026-01-01 | F88: =$F$51 -> Illustrative Proposed | G88: =$G$51 -> % Change over 01/1/2025 | H88: =$H$51 -> % Change over 01/1/2026
B89: Essential Use Non-CARE | D89: =VLOOKUP($D$8,'Hypothetical Res Bill Impact'!$B$69:$K$78,2,FALSE) -> 38.29020018 | E89: =VLOOKUP($D$8,'Hypothetical Res Bill Impact'!$B$69:$K$78,5,FALSE) -> 38.11304766 | F89: =VLOOKUP($D$8,'Hypothetical Res Bill Impact'!$B$69:$K$78,8,FALSE) -> 41.47516888 | G89: =$F89/D89-1 -> 0.08317973473 | H89: 0.08821444142
B90: Essential Use CARE | D90: =VLOOKUP($D$8,'Hypothetical Res Bill Impact'!$B$84:$K$93,2,FALSE) -> 28.56303926 | E90: =VLOOKUP($D$8,'Hypothetical Res Bill Impact'!$B$84:$K$93,5,FALSE) -> 28.58873132 | F90: =VLOOKUP($D$8,'Hypothetical Res Bill Impact'!$B$84:$K$93,8,FALSE) -> 31.04924065 | G90: 0.08704260645 | H90: 0.08606570554
B91: Total | D91: =D89*(1-$O$22)+('Hypothetical Summary'!D90*$O$22) -> 36.0800462 | E91: =E89*(1-$O$22)+('Hypothetical Summary'!E90*$O$22) -> 35.94898295 | F91: =F89*(1-$O$22)+('Hypothetical Summary'!F90*$O$22) -> 39.10624469 | G91: 0.08387457351 | H91: 0.08782617687
B93: =CONCATENATE("Illustrative Essential Use Bundled Residential Monthly Average Bills - Winter Off-Peak - Baseline Territory ",$D$8) -> Illustrative Essential Use Bundled Residential Monthly Average Bills - Winter Off-Peak - Baseline Territory ALL CLIMATE ZONES
D94: =$D$51 -> 2025-01-01 | E94: =$E$51 -> 2026-01-01 | F94: =$F$51 -> Illustrative Proposed | G94: =$G$51 -> % Change over 01/1/2025 | H94: =$H$51 -> % Change over 01/1/2026
B95: Essential Use Non-CARE | D95: =VLOOKUP($D$8,'Hypothetical Res Bill Impact'!$B$69:$K$78,3,FALSE) -> 115.6780864 | E95: =VLOOKUP($D$8,'Hypothetical Res Bill Impact'!$B$69:$K$78,6,FALSE) -> 115.142893 | F95: =VLOOKUP($D$8,'Hypothetical Res Bill Impact'!$B$69:$K$78,9,FALSE) -> 125.300159 | G95: =$F95/D95-1 -> 0.08317973473 | H95: 0.08821444142
B96: Essential Use CARE | D96: =VLOOKUP($D$8,'Hypothetical Res Bill Impact'!$B$84:$K$93,3,FALSE) -> 88.71894253 | E96: =VLOOKUP($D$8,'Hypothetical Res Bill Impact'!$B$84:$K$93,6,FALSE) -> 88.79874398 | F96: =VLOOKUP($D$8,'Hypothetical Res Bill Impact'!$B$84:$K$93,9,FALSE) -> 96.44127053 | G96: 0.08704260645 | H96: 0.08606570554
B97: Total | D97: =D95*(1-$O$22)+('Hypothetical Summary'!D96*$O$22) -> 109.5525725 | E97: =E95*(1-$O$22)+('Hypothetical Summary'!E96*$O$22) -> 109.157115 | F97: =F95*(1-$O$22)+('Hypothetical Summary'!F96*$O$22) -> 118.7429952 | G97: 0.0838905234 | H97: 0.08781727343
B99: =CONCATENATE("Illustrative Essential Use Bundled Residential Monthly Average Bills - Winter On-Peak - Baseline Territory ",$D$4) -> Illustrative Essential Use Bundled Residential Monthly Average Bills - Winter On-Peak - Baseline Territory
D100: =$D$51 -> 2025-01-01 | E100: =$E$51 -> 2026-01-01 | F100: =$F$51 -> Illustrative Proposed | G100: =$G$51 -> % Change over 01/1/2025 | H100: =$H$51 -> % Change over 01/1/2026
B101: Essential Use Non-CARE | D101: =VLOOKUP($D$8,'Hypothetical Res Bill Impact'!$B$69:$K$78,4,FALSE) -> 157.518496 | E101: =VLOOKUP($D$8,'Hypothetical Res Bill Impact'!$B$69:$K$78,7,FALSE) -> 156.7897247 | F101: =VLOOKUP($D$8,'Hypothetical Res Bill Impact'!$B$69:$K$78,10,FALSE) -> 170.6208427 | G101: =$F101/D101-1 -> 0.08317973473 | H101: 0.08821444142
B102: Essential Use CARE | D102: =VLOOKUP($D$8,'Hypothetical Res Bill Impact'!$B$84:$K$93,4,FALSE) -> 122.5136914 | E102: =VLOOKUP($D$8,'Hypothetical Res Bill Impact'!$B$84:$K$93,7,FALSE) -> 122.6238907 | F102: =VLOOKUP($D$8,'Hypothetical Res Bill Impact'!$B$84:$K$93,10,FALSE) -> 133.1776024 | G102: 0.08704260645 | H102: 0.08606570554
B103: Total | D103: =D101*(1-$O$22)+('Hypothetical Summary'!D102*$O$22) -> 149.5648897 | E103: =E101*(1-$O$22)+('Hypothetical Summary'!E102*$O$22) -> 149.0267449 | F103: =F101*(1-$O$22)+('Hypothetical Summary'!F102*$O$22) -> 162.113188 | G103: 0.0838986897 | H103: 0.08781271505
B106: =CONCATENATE("Illustrative Typical Customer Bundled Residential Monthly Average Bills - Baseline Territory ",$D$8," (Includes Climate Credit)") -> Illustrative Typical Customer Bundled Residential Monthly Average Bills - Baseline Territory ALL CLIMATE ZONES (Includes Climate Credit)
D107: =$D$51 -> 2025-01-01 | E107: =$E$51 -> 2026-01-01 | F107: =$F$51 -> Illustrative Proposed | G107: =$G$51 -> % Change over 01/1/2025 | H107: =$H$51 -> % Change over 01/1/2026
B108: =CONCATENATE($M$20," Therms Monthly Usage - Non-CARE") -> 33 Therms Monthly Usage - Non-CARE | D108: =((D114*$M$17)+(D120*$M$18)+(D126*$M$19))/12-M23/12 -> 90.23204626 | E108: =((E114*$M$17)+(E120*$M$18)+(E126*$M$19))/12-M24/12 -> 91.43216411 | F108: =((F114*$M$17)+(F120*$M$18)+(F126*$M$19))/12-M24/12 -> 100.1945609 | G108: =$F108/D108-1 -> 0.1104099378 | H108: 0.09583494884
B109: =CONCATENATE($M$21," Therms Monthly Usage - CARE") -> 29 Therms Monthly Usage - CARE | D109: =((D115*$M$17)+(D121*$M$18)+(D127*$M$19))/12-M23/12 -> 60.55513212 | E109: =((E115*$M$17)+(E121*$M$18)+(E127*$M$19))/12-M24/12 -> 62.21738399 | F109: =((F115*$M$17)+(F121*$M$18)+(F127*$M$19))/12-M24/12 -> 68.15249964 | G109: 0.1254619924 | H109: 0.09539320485
B110: Total | D110: =((D116*$M$17)+(D122*$M$18)+(D128*$M$19))/12-M23/12 -> 83.48901502 | E110: =((E116*$M$17)+(E122*$M$18)+(E128*$M$19))/12-M24/12 -> 84.79413651 | F110: =((F116*$M$17)+(F122*$M$18)+(F128*$M$19))/12-M24/12 -> 92.91413344 | G110: 0.1128905212 | H110: 0.09576130219
B112: =CONCATENATE("Illustrative Typical Customer Bundled Residential Monthly Average Bills - Summer - Baseline Territory ",$D$8) -> Illustrative Typical Customer Bundled Residential Monthly Average Bills - Summer - Baseline Territory ALL CLIMATE ZONES
D113: =$D$51 -> 2025-01-01 | E113: =$E$51 -> 2026-01-01 | F113: =$F$51 -> Illustrative Proposed | G113: =$G$51 -> % Change over 01/1/2025 | H113: =$H$51 -> % Change over 01/1/2026
B114: =CONCATENATE($M$20," Therms Monthly Usage - Non-CARE") -> 33 Therms Monthly Usage - Non-CARE | D114: =VLOOKUP($D$8,'Hypothetical Res Bill Impact'!$B$99:$K$108,2,FALSE) -> 99.90545582 | E114: =VLOOKUP($D$8,'Hypothetical Res Bill Impact'!$B$99:$K$108,5,FALSE) -> 99.5434395 | F114: =VLOOKUP($D$8,'Hypothetical Res Bill Impact'!$B$99:$K$108,8,FALSE) -> 108.9140004 | G114: =$F114/D114-1 -> 0.09017069671 | H114: 0.09413539384
B115: =CONCATENATE($M$21," Therms Monthly Usage - CARE") -> 29 Therms Monthly Usage - CARE | D115: =VLOOKUP($D$8,'Hypothetical Res Bill Impact'!$B$114:$K$123,2,FALSE) -> 68.84920774 | E115: =VLOOKUP($D$8,'Hypothetical Res Bill Impact'!$B$114:$K$123,5,FALSE) -> 68.94162319 | F115: =VLOOKUP($D$8,'Hypothetical Res Bill Impact'!$B$114:$K$123,8,FALSE) -> 75.2796736 | G115: 0.09339927178 | H115: 0.09193358261
B116: Total | D116: =D114*(1-$O$22)+('Hypothetical Summary'!D115*$O$22) -> 92.84901963 | E116: =E114*(1-$O$22)+('Hypothetical Summary'!E115*$O$22) -> 92.59025688 | F116: =F114*(1-$O$22)+('Hypothetical Summary'!F115*$O$22) -> 101.2717868 | G116: 0.09071465919 | H116: 0.0937628883
B118: =CONCATENATE("Illustrative Typical Customer Bundled Residential Monthly Average Bills - Winter Off-Peak - Baseline Territory ",$D$8) -> Illustrative Typical Customer Bundled Residential Monthly Average Bills - Winter Off-Peak - Baseline Territory ALL CLIMATE ZONES
D119: =$D$51 -> 2025-01-01 | E119: =$E$51 -> 2026-01-01 | F119: =$F$51 -> Illustrative Proposed | G119: =$G$51 -> % Change over 01/1/2025 | H119: =$H$51 -> % Change over 01/1/2026
B120: =CONCATENATE($M$20," Therms Monthly Usage - Non-CARE") -> 33 Therms Monthly Usage - Non-CARE | D120: =VLOOKUP($D$8,'Hypothetical Res Bill Impact'!$B$99:$K$108,3,FALSE) -> 90.09565438 | E120: =VLOOKUP($D$8,'Hypothetical Res Bill Impact'!$B$99:$K$108,6,FALSE) -> 89.67882 | F120: =VLOOKUP($D$8,'Hypothetical Res Bill Impact'!$B$99:$K$108,9,FALSE) -> 97.58978701 | G120: =$F120/D120-1 -> 0.08317973473 | H120: 0.08821444142
B121: =CONCATENATE($M$21," Therms Monthly Usage - CARE") -> 29 Therms Monthly Usage - CARE | D121: =VLOOKUP($D$8,'Hypothetical Res Bill Impact'!$B$114:$K$123,3,FALSE) -> 62.34980776 | E121: =VLOOKUP($D$8,'Hypothetical Res Bill Impact'!$B$114:$K$123,6,FALSE) -> 62.40589054 | F121: =VLOOKUP($D$8,'Hypothetical Res Bill Impact'!$B$114:$K$123,9,FALSE) -> 67.77689754 | G121: 0.08704260645 | H121: 0.08606570554
B122: Total | D122: =D120*(1-$O$22)+('Hypothetical Summary'!D121*$O$22) -> 83.79139007 | E122: =E120*(1-$O$22)+('Hypothetical Summary'!E121*$O$22) -> 83.48200943 | F122: =F120*(1-$O$22)+('Hypothetical Summary'!F121*$O$22) -> 90.81586018 | G122: 0.08383283888 | H122: 0.08784947563
B124: =CONCATENATE("Illustrative Typical Customer Bundled Residential Monthly Average Bills - Winter On-Peak - Baseline Territory ",$D$8) -> Illustrative Typical Customer Bundled Residential Monthly Average Bills - Winter On-Peak - Baseline Territory ALL CLIMATE ZONES
D125: =$D$51 -> 2025-01-01 | E125: =$E$51 -> 2026-01-01 | F125: =$F$51 -> Illustrative Proposed | G125: =$G$51 -> % Change over 01/1/2025 | H125: =$H$51 -> % Change over 01/1/2026
B126: =CONCATENATE($M$20," Therms Monthly Usage - Non-CARE") -> 33 Therms Monthly Usage - Non-CARE | D126: =VLOOKUP($D$8,'Hypothetical Res Bill Impact'!$B$99:$K$108,4,FALSE) -> 90.09565438 | E126: =VLOOKUP($D$8,'Hypothetical Res Bill Impact'!$B$99:$K$108,7,FALSE) -> 89.67882 | F126: =VLOOKUP($D$8,'Hypothetical Res Bill Impact'!$B$99:$K$108,10,FALSE) -> 97.58978701 | G126: =$F126/D126-1 -> 0.08317973473 | H126: 0.08821444142
B127: =CONCATENATE($M$21," Therms Monthly Usage - CARE") -> 29 Therms Monthly Usage - CARE | D127: =VLOOKUP($D$8,'Hypothetical Res Bill Impact'!$B$114:$K$123,4,FALSE) -> 62.34980776 | E127: =VLOOKUP($D$8,'Hypothetical Res Bill Impact'!$B$114:$K$123,7,FALSE) -> 62.40589054 | F127: =VLOOKUP($D$8,'Hypothetical Res Bill Impact'!$B$114:$K$123,10,FALSE) -> 67.77689754 | G127: 0.08704260645 | H127: 0.08606570554
B128: Total | D128: =D126*(1-$O$22)+('Hypothetical Summary'!D127*$O$22) -> 83.79139007 | E128: =E126*(1-$O$22)+('Hypothetical Summary'!E127*$O$22) -> 83.48200943 | F128: =F126*(1-$O$22)+('Hypothetical Summary'!F127*$O$22) -> 90.81586018 | G128: 0.08383283888 | H128: 0.08784947563

Sheet Instructions-Rate Trajectory
A1: INSTRUCTIONS TO RUN "ILLUSTRATIVE RATE TRAJECTORY" MODEL
B5: The "illustrative rate trajectory" portion of this model produces illustrative rates and illustrative residential bill calculations based on selected user inputs for a range of periods.
B6: PLEASE DO NOT INSERT ROWS OR COLUMNS INTO THE DASHBOARD
B7: To run the "illustrative rate trajectory" portion of the model:
B9: 1. | C9: User drop down selections are highlighted in green.
B10: 2. | C10: User value input cells are highlighted in yellow.
B11: 3. | C11: In cell D4 of the "Rate Trajectory Dashboard" tab, select, from the dropdown choices, the baseline territory for which bill impacts are desired (ILLUSTRATION 1).
B12: 4. | C12: In cell D5 of the "Rate Trajectory Dashboard" tab, select, from the dropdown choices, the desired start date for the Rate Trajectory Report (ILLUSTRATION 1).
C13: The Rate Trajectory Report will provide RRQ Information, Illustrative Average Bundled and Illustrative System Rates and Annual Average
C14: Illustrative Bills (CARE and Non-CARE) by selected baseline territory for a 24 month period beginning with the selection in cell D5
B15: 5. | C15: Enter the "Hypothetical Annual RRQs" revenues, for each year of the selected program, in the yellow highlighted cells in column G of the "Rate Trajectory Dashboard" tab (ILLUSTRATION 1).
C16: Note that PG&E's proposed Annual RRQs are listed in column E of the "Rate Trajectory Dashboard" tab.
B17: 6. | C17: In column I of the "Rate Trajectory Dashboard" tab, select from the dropdown choices, the desired allocation methodology (ILLUSTRATION 1).
C18: Note that PG&E's proposed allocation methdology is listed in column F of the "Rate Trajectory Dashboard" tab.
C19: Also note that there are opportunities for the user to enter their own Allocation Methodology on the "RRQ Allocations" tab (ILLUSTRATION 3)
C20: and as described under the "RRQ ALLOCATION OPTIONS" section on the "Instruction" tab.
B21: 7. | C21: In column J of the "Rate Trajectory Dashboard" tab, select from the dropdown choices, the start date for each year of each program listed in column B (ILLUSTRATION 1).
B22: 8. | C22: In column K of the "Rate Trajectory Dashboard" tab, enter the amortization period (in months) for each year of each program listed in column B (ILLUSTRATION 1).
C23: Note that the maximum months per line is 12 and if no amortization period is specified (i.e. cell is left blank), the RRQ amount remains in rates.
B24: 9. | C24: Residential Tier Ratios can be changed in out years on the "Hypothetical Res_RD" tab in cell K59 (ILLUSTRATION 2).
C25: Note that residential tier ratios are only changed in January of each year. Mid-year rate changes maintain the tier ratio set in January of each year.
C26: The tiering factor for 2025 has been established at 1.24.
B27: 10. | C27: Create the illustrative rate trajectory report by executing the "Run Rate Trajectory" macro (ILLUSTRATION 1).
J30: 10.
C31: ILLUSTRATION 1: | G31: 3.
H32: 4. | K32: 5. | N32: 6. | O32: 7. | P32: 8.
C43: ILLUSTRATION 2:
O44: 9.
B65: RRQ ALLOCATION OPTIONS:
B66: 1. | C66: On the "RRQ Allocations" tab there are spaces for the user to enter their own allocation methodology (ILLUSTRATION 3).
C67: NOTE that this tab has not been fully populated by PG&E.
C69: ILLUSTRATION 3

Sheet Rate Trajectory Dashboard
B1: PLEASE DO NOT ADD OR INSERT ROWS OR COLUMNS
B2: User Inputs: | C2: Yellow highlighted cells - enter number
C3: Green highlighted cells - select from drop-down menu
C5: Baseline Region - (Residential bill) | D5: ALL CLIMATE ZONES
C6: Start Date for Report | D6: 2026-01-01 | K6: Amortization
K7: Period in Months
D8: Current | H8: Hypothetical | J8: Yearly | K8: (Maximum 12
D9: Authorized | E9: PG&E Requested | F9: Adopted or PG&E Requested | G9: Hypothetical | H9: Incremental | I9: Hypothetical | J9: Start Date | K9: Months per
D10: Annual | E10: Annual RRQ | F10: Allocation Methodology | G10: Annual | H10: Annual | I10: Allocation Methodology | J10: (Select from | K10: Line OR
B11: Pending Proceedings | D11: Revenue | E11: (Informational Only) | F11: (Informational Only) | G11: RRQ | H11: RRQ | I11: (Select from Drop-down) | J11: Drop-down) | K11: Leave Blank) | L11: <<==If no amortization period is specified, RRQ amounts remain in rates.
B12: ='Incremental Rev Req'!A79 -> 2027 Energy Savings Assistance Bridge Funding | D12: ='Incremental Rev Req'!$H$44 -> 75530.121 | E12: 55567.26105 | F12: PPP | G12: 55567.26105 | H12: =G12-D12 -> -19962.85995 | I12: ESA | J12: 2027-01-01 | K12: 12
B13: ='Incremental Rev Req'!A80 -> 2027 CARE Administrative Bridge Funding | D13: ='Incremental Rev Req'!$H$46 -> 2957.54 | E13: 2059.02 | F13: PPP | G13: 2059.02 | H13: -898.52 | I13: PPP ECPT | J13: 2027-01-01 | K13: 12
B14: Hinkley Upgrade - Year 2028 | D14: 0 | E14: 3170.008597 | F14: ECPT | G14: 3170.008597 | H14: =G14-D14 -> 3170.008597 | I14: ECPT - ALL | J14: 2028-01-01 | K14: 12
B15: Hinkley Upgrade - Year 2029 | D15: 0 | E15: 8890.201242 | F15: ECPT | G15: 8890.201242 | H15: 8890.201242 | I15: ECPT - ALL | J15: 2029-01-01 | K15: 24
B16: Billing Modernization (Distribution) - Year 2026 | D16: 0 | E16: 18712.17383 | F16: Distribution | G16: 18712.17383 | H16: 18712.17383 | I16: Distribution | J16: 2026-01-01 | K16: 12
B17: Billing Modernization (Distribution) - Year 2027 | D17: 0 | E17: 17751.34183 | F17: Distribution | G17: 17751.34183 | H17: 17751.34183 | I17: Distribution | J17: 2027-01-01 | K17: 12
B18: Billing Modernization (Distribution) - Year 2028 | D18: 0 | E18: 16583.85336 | F18: Distribution | G18: 16583.85336 | H18: 16583.85336 | I18: Distribution | J18: 2028-01-01 | K18: 12
B19: Billing Modernization (Distribution) - Year 2029 | D19: 0 | E19: 14215.2408 | F19: Distribution | G19: 14215.2408 | H19: 14215.2408 | I19: Distribution | J19: 2029-01-01 | K19: 24
B20: Billing Modernization (Transmission) - Year 2026 | D20: 0 | E20: 8918.457231 | F20: ECPT | G20: 8918.457231 | H20: 8918.457231 | I20: ECPT - ALL | J20: 2026-01-01 | K20: 12
B21: Billing Modernization (Transmission) - Year 2027 | D21: 0 | E21: 8460.512628 | F21: ECPT | G21: 8460.512628 | H21: 8460.512628 | I21: ECPT - ALL | J21: 2027-01-01 | K21: 12
B22: Billing Modernization (Transmission) - Year 2028 | D22: 0 | E22: 7904.072949 | F22: ECPT | G22: 7904.072949 | H22: 7904.072949 | I22: ECPT - ALL | J22: 2028-01-01 | K22: 12
B23: Billing Modernization (Transmission) - Year 2029 | D23: 0 | E23: 6775.162433 | F23: ECPT | G23: 6775.162433 | H23: 6775.162433 | I23: ECPT - ALL | J23: 2029-01-01 | K23: 24
B24: Hydrogen Demonstration Project (2027) - Year 2027 | D24: 0 | E24: 3022.022937 | F24: ECPT | G24: 3022.022937 | H24: 3022.022937 | I24: ECPT - ALL | J24: 2027-01-01 | K24: 12
B25: Hydrogen Demonstration Project (2027) - Year 2028 | D25: 0 | E25: 10324.82853 | F25: ECPT | G25: 10324.82853 | H25: 10324.82853 | I25: ECPT - ALL | J25: 2028-01-01 | K25: 12
B26: Hydrogen Demonstration Project (2027) - Year 2029 | D26: 0 | E26: 10534.09292 | F26: ECPT | G26: 10534.09292 | H26: 10534.09292 | I26: ECPT - ALL | J26: 2029-01-01
B27: 2024 Wildfire Mitigation and Catastrophic Events (distribution) - Year 2026 | D27: 0 | E27: 65537.65441 | F27: Distribution | G27: 65537.65441 | H27: 65537.65441 | I27: Distribution | J27: 2026-01-01 | K27: 12
B28: 2024 Wildfire Mitigation and Catastrophic Events (distribution) - Year 2027 | D28: 0 | E28: 18819.46508 | F28: Distribution | G28: 18819.46508 | H28: 18819.46508 | I28: Distribution | J28: 2027-01-01 | K28: 12
B29: 2024 Wildfire Mitigation and Catastrophic Events (distribution) - Year 2028 | D29: 0 | E29: 18178.26264 | F29: Distribution | G29: 18178.26264 | H29: 18178.26264 | I29: Distribution | J29: 2028-01-01 | K29: 12
B30: 2024 Wildfire Mitigation and Catastrophic Events (distribution) - Year 2029 | D30: 0 | E30: 17712.2756 | F30: Distribution | G30: 17712.2756 | H30: 17712.2756 | I30: Distribution | J30: 2029-01-01 | K30: 24
B31: 2024 Wildfire Mitigation and Catastrophic Events (transmission) - Year 2026 | D31: 0 | E31: 6579.378757 | F31: ECPT | G31: 6579.378757 | H31: 6579.378757 | I31: ECPT - ALL | J31: 2026-01-01 | K31: 12
B32: 2024 Wildfire Mitigation and Catastrophic Events (transmission) - Year 2027 | D32: 0 | E32: 291.8396392 | F32: ECPT | G32: 291.8396392 | H32: 291.8396392 | I32: ECPT - ALL | J32: 2027-01-01 | K32: 12
B33: 2024 Wildfire Mitigation and Catastrophic Events (transmission) - Year 2028 | D33: 0 | E33: 239.4188966 | F33: ECPT | G33: 239.4188966 | H33: 239.4188966 | I33: ECPT - ALL | J33: 2028-01-01 | K33: 12
B34: 2024 Wildfire Mitigation and Catastrophic Events (transmission) - Year 2029 | D34: 0 | E34: 225.0342646 | F34: ECPT | G34: 225.0342646 | H34: 225.0342646 | I34: ECPT - ALL | J34: 2029-01-01 | K34: 24
B35: 2026 Cost of Capital (Distribution) - Year 2027 | D35: ='Incremental Rev Req'!$H$16 -> 164934.2253 | E35: 111625.7848 | F35: Distribution | G35: 111625.7848 | H35: =G35-D35 -> -53308.44052 | I35: Distribution | J35: 2027-01-01 | K35: 12
B36: 2026 Cost of Capital (Distribution) - Year 2028 | D36: ='Incremental Rev Req'!$H$16 -> 164934.2253 | E36: 111625.7848 | F36: Distribution | G36: 111625.7848 | H36: -53308.44052 | I36: Distribution | J36: 2028-01-01 | K36: 12
B37: 2026 Cost of Capital (Distribution) - Year 2029 | D37: ='Incremental Rev Req'!$H$16 -> 164934.2253 | E37: 111625.7848 | F37: Distribution | G37: 111625.7848 | H37: -53308.44052 | I37: Distribution | J37: 2029-01-01 | K37: 24
B38: 2026 Cost of Capital (Transmission) - Year 2027 | D38: 0 | E38: 84230.76028 | F38: ECPT - 50% Core / 50% Noncore | G38: 84230.76028 | H38: 84230.76028 | I38: ECPT - 50% Core / 50% Noncore | J38: 2027-01-01 | K38: 12
B39: 2026 Cost of Capital (Transmission) - Year 2028 | D39: 0 | E39: 84230.76028 | F39: ECPT - 50% Core / 50% Noncore | G39: 84230.76028 | H39: 84230.76028 | I39: ECPT - 50% Core / 50% Noncore | J39: 2028-01-01 | K39: 12
B40: 2026 Cost of Capital (Transmission) - Year 2029 | D40: 0 | E40: 84230.76028 | F40: ECPT - 50% Core / 50% Noncore | G40: 84230.76028 | H40: 84230.76028 | I40: ECPT - 50% Core / 50% Noncore | J40: 2029-01-01 | K40: 24
B41: Gas Advanced Metering Infrastructure (AMI) (distribution) | D41: ='Incremental Rev Req'!H30 -> 39604.60508 | E41: 39604.60508 | F41: Distribution | G41: 39604.60508 | H41: 0 | I41: Distribution | J41: 2026-01-01 | K41: 12
B42: Gas AMI (transmission) | D42: 0 | E42: 0 | F42: ECPT | G42: 0 | H42: 0 | I42: ECPT - ALL | J42: 2026-01-01 | K42: 12
B43: 2023 Wildfire Mitigation and Catastrophic Events (distribution) | D43: 0 | E43: 13644.27962 | F43: Distribution | G43: 13644.27962 | H43: 13644.27962 | I43: Distribution | J43: 2026-01-01 | K43: 12
B44: 2023 Wildfire Mitigation and Catastrophic Events (transmission) | D44: 0 | E44: 5913.522951 | F44: ECPT | G44: 5913.522951 | H44: 5913.522951 | I44: ECPT - ALL | J44: 2026-01-01 | K44: 12
B45: Wildfire Gas and Safety Costs (Distribution) Non-IRR | D45: ='Incremental Rev Req'!H26 -> 6776.716441 | E45: 6776.716441 | F45: Distribution | G45: 6776.716441 | H45: 0 | I45: Distribution | J45: 2026-01-01 | K45: 12
B46: Wildfire Gas and Safety Costs (Transmission) - Non IRR - Year 2026 | D46: 0 | E46: 44029.8428 | F46: ECPT | G46: 44029.8428 | H46: 44029.8428 | I46: ECPT - ALL | J46: 2026-01-01 | K46: 12
B47: Wildfire Gas and Safety Costs (Transmission) - Non IRR - Year 2027 | D47: 0 | E47: 412.700166 | F47: ECPT | G47: 412.700166 | H47: 412.700166 | I47: ECPT - ALL | J47: 2027-01-01 | K47: 12
B48: Kincaid-Dixie (Distribution) | D48: 0 | E48: 71886.55064 | F48: Distribution | G48: 71886.55064 | H48: 71886.55064 | I48: Distribution | J48: 2027-01-01 | K48: 12
B49: Kincaid-Dixie (Generation) | D49: 0 | E49: 23780.14007 | F49: ECPT | G49: 23780.14007 | H49: 23780.14007 | I49: ECPT - ALL | J49: 2027-01-01 | K49: 12
B50: TRRRMA (Distribution) | D50: ='Incremental Rev Req'!H33 -> 104444.3954 | E50: 104444.3954 | F50: Distribution | G50: 104444.3954 | H50: =G50-D50 -> 0 | I50: Distribution | J50: 2026-01-01 | K50: 12
B51: TRRRMA (Transmission) | D51: ='Incremental Rev Req'!H34 -> 47177.48763 | E51: 47177.48763 | F51: ECPT | G51: 47177.48763 | H51: =G51-D51 -> 0 | I51: ECPT - ALL | J51: 2026-01-01 | K51: 12
B52: 2027 GRC - Gas Distribution - Year 2027 | D52: ='Incremental Rev Req'!$H$10 -> 3014936.401 | E52: 3061244.211 | F52: Distribution | G52: 3061244.211 | H52: 46307.81051 | I52: Distribution | J52: 2027-01-01 | K52: 12
B53: 2027 GRC - Gas Distribution - Year 2028 | D53: ='Incremental Rev Req'!$H$10 -> 3014936.401 | E53: 3220789.415 | F53: Distribution | G53: 3220789.415 | H53: =G53-D53 -> 205853.0139 | I53: Distribution | J53: 2028-01-01 | K53: 12
B54: 2027 GRC - Gas Distribution - Year 2029 | D54: ='Incremental Rev Req'!$H$10 -> 3014936.401 | E54: 3389414.767 | F54: Distribution | G54: 3389414.767 | H54: 374478.3663 | I54: Distribution | J54: 2029-01-01 | K54: 24
B55: 2027 GRC - Core Local Transmission - Year 2027 | D55: ='Incremental Rev Req'!$H$19 -> 983371.3849 | E55: 1102352.183 | F55: ECPT | G55: 1102352.183 | H55: =G55-D55 -> 118980.798 | I55: ECPT - Core only | J55: 2027-01-01 | K55: 12
B56: 2027 GRC - Core Local Transmission - Year 2028 | D56: ='Incremental Rev Req'!$H$19 -> 983371.3849 | E56: 1135354.816 | F56: ECPT | G56: 1135354.816 | H56: 151983.4313 | I56: ECPT - Core only | J56: 2028-01-01 | K56: 12
B57: 2027 GRC - Core Local Transmission - Year 2029 | D57: ='Incremental Rev Req'!$H$19 -> 983371.3849 | E57: 1173368.345 | F57: ECPT | G57: 1173368.345 | H57: =G57-D57 -> 189996.9603 | I57: ECPT - Core only | J57: 2029-01-01 | K57: 24
B58: 2027 GRC - Core Procurement (Intrastate Volumetric and Capacity) - Year 2027 | D58: ='Incremental Rev Req'!$H$51 -> 196211.9165 | E58: 144492.9212 | F58: ECPT (No BB) | G58: 144492.9212 | H58: -51718.99537 | I58: ECPT - Core only (Procurement) | J58: 2027-01-01 | K58: 12
B59: 2027 GRC - Core Procurement (Intrastate Volumetric and Capacity) - Year 2028 | D59: ='Incremental Rev Req'!$H$51 -> 196211.9165 | E59: 153719.4621 | F59: ECPT (No BB) | G59: 153719.4621 | H59: =G59-D59 -> -42492.45442 | I59: ECPT - Core only (Procurement) | J59: 2028-01-01 | K59: 12
B60: 2027 GRC - Core Procurement (Intrastate Volumetric and Capacity) - Year 2029 | D60: ='Incremental Rev Req'!$H$51 -> 196211.9165 | E60: 162779.9119 | F60: ECPT (No BB) | G60: 162779.9119 | H60: -33432.00467 | I60: ECPT - Core only (Procurement) | J60: 2029-01-01 | K60: 24
B61: 2027 GRC - Core Procurement (Storage) - Year 2027 | D61: ='Incremental Rev Req'!$H$53 -> 135685.9394 | E61: =34475.5851070245 -> 34475.58511 | F61: Unadjusted Cold Year Winter Season | G61: 34475.58511 | H61: =G61-D61 -> -101210.3543 | I61: Storage Allocation (Procurement) | J61: 2027-01-01 | K61: 12
B62: 2027 GRC - Core Procurement (Storage) - Year 2028 | D62: ='Incremental Rev Req'!$H$53 -> 135685.9394 | E62: =37259.1957995481 -> 37259.1958 | F62: Unadjusted Cold Year Winter Season | G62: 37259.1958 | H62: -98426.74361 | I62: Storage Allocation (Procurement) | J62: 2028-01-01 | K62: 12
B63: 2027 GRC - Core Procurement (Storage) - Year 2029 | D63: ='Incremental Rev Req'!$H$53 -> 135685.9394 | E63: =39767.8676653246 -> 39767.86767 | F63: Unadjusted Cold Year Winter Season | G63: 39767.86767 | H63: =G63-D63 -> -95918.07174 | I63: Storage Allocation (Procurement) | J63: 2029-01-01 | K63: 24
B64: 2027 GRC - Noncore Local Transmission - Year 2027 | D64: ='Incremental Rev Req'!$H$20 -> 515826.5045 | E64: 578500.182 | F64: ECPT (No BB) | G64: 578500.182 | H64: 62673.67756 | I64: ECPT - Noncore only | J64: 2027-01-01 | K64: 12
B65: 2027 GRC - Noncore Local Transmission - Year 2028 | D65: ='Incremental Rev Req'!$H$20 -> 515826.5045 | E65: 595883.4141 | F65: ECPT (No BB) | G65: 595883.4141 | H65: =G65-D65 -> 80056.90966 | I65: ECPT - Noncore only | J65: 2028-01-01 | K65: 12
B66: 2027 GRC - Noncore Local Transmission - Year 2029 | D66: ='Incremental Rev Req'!$H$20 -> 515826.5045 | E66: 615905.9866 | F66: ECPT (No BB) | G66: 615905.9866 | H66: 100079.4821 | I66: ECPT - Noncore only | J66: 2029-01-01 | K66: 24
B67: 2027 GRC - Customer Access Charge - Year 2027 | D67: ='Incremental Rev Req'!$H$21 -> 5465.240945 | E67: 3108.803628 | F67: CAC Allocation | G67: 3108.803628 | H67: =G67-D67 -> -2356.437317 | I67: CAC Allocation | J67: 2027-01-01 | K67: 12
B68: 2027 GRC - Customer Access Charge - Year 2028 | D68: ='Incremental Rev Req'!$H$21 -> 5465.240945 | E68: 3870.218973 | F68: CAC Allocation | G68: 3870.218973 | H68: -1595.021972 | I68: CAC Allocation | J68: 2028-01-01 | K68: 12
B69: 2027 GRC - Customer Access Charge - Year 2029 | D69: ='Incremental Rev Req'!$H$21 -> 5465.240945 | E69: 4634.982782 | F69: CAC Allocation | G69: 4634.982782 | H69: =G69-D69 -> -830.2581629 | I69: CAC Allocation | J69: 2029-01-01 | K69: 24
B70: 2027 GRC - Noncore Unbundled - Year 2027 | D70: ='Incremental Rev Req'!$H$22 -> 263208.0005 | E70: 197609.3823 | F70: ECPT-All | G70: 197609.3823 | H70: -65598.61827 | I70: ECPT - ALL | J70: 2027-01-01 | K70: 12
B71: 2027 GRC - Noncore Unbundled - Year 2028 | D71: ='Incremental Rev Req'!$H$22 -> 263208.0005 | E71: 206605.913 | F71: ECPT-All | G71: 206605.913 | H71: =G71-D71 -> -56602.08753 | I71: ECPT - ALL | J71: 2028-01-01 | K71: 12
B72: 2027 GRC - Noncore Unbundled - Year 2029 | D72: ='Incremental Rev Req'!$H$22 -> 263208.0005 | E72: 213949.2198 | F72: ECPT-All | G72: 213949.2198 | H72: -49258.78074 | I72: ECPT - ALL | J72: 2029-01-01 | K72: 24
B73: 2027 GRC - Inventory Management - Year 2027 | D73: ='Incremental Rev Req'!$H$23 -> 143704.047 | E73: 139662.6234 | F73: 2023 GTS - Inventory Management | G73: 139662.6234 | H73: =G73-D73 -> -4041.423614 | I73: 2023 GTS - Inventory Management | J73: 2027-01-01 | K73: 12
B74: 2027 GRC - Inventory Management - Year 2028 | D74: ='Incremental Rev Req'!$H$23 -> 143704.047 | E74: 150919.4682 | F74: 2023 GTS - Inventory Management | G74: 150919.4682 | H74: 7215.421172 | I74: 2023 GTS - Inventory Management | J74: 2028-01-01 | K74: 12
B75: 2027 GRC - Inventory Management - Year 2029 | D75: ='Incremental Rev Req'!$H$23 -> 143704.047 | E75: 161064.4679 | F75: 2023 GTS - Inventory Management | G75: 161064.4679 | H75: =G75-D75 -> 17360.42093 | I75: 2023 GTS - Inventory Management | J75: 2029-01-01 | K75: 24
B76: CFCA - NGSS Enduser Dist. Sub Acct Recovery | D76: ='Incremental Rev Req'!$H$64 -> 2051.460825 | E76: 0 | F76: Core - Distribution | G76: 0 | H76: -2051.460825 | I76: Core - Distribution | J76: 2027-01-01
B77: CFCA/NCA - NGSS Enduser Sub Acct Recovery | D77: ='Incremental Rev Req'!$H$65 -> 487.8206422 | E77: 0 | F77: ECPT - ALL | G77: 0 | H77: =G77-D77 -> -487.8206422 | I77: ECPT - ALL | J77: 2027-01-01
B78: NCA - NGSS Enduser Sub Acct Recovery | D78: ='Incremental Rev Req'!$H$66 -> 501.0158178 | E78: 0 | F78: ECPT - Noncore only | G78: 0 | H78: -501.0158178 | I78: ECPT - Noncore only | J78: 2027-01-01
B79: Available
B80: Available
B81: Available
B82: Available
B83: Available
B84: Available
B85: Available
B86: Available
B87: Available
B88: Available
B89: Available
B90: Available
B91: Available
B92: Available
B93: Available
B94: Available
B95: Available
B96: Available

Sheet Rate Trajectory Report
A1: Pacific Gas and Electric Company
A2: Illustrative Gas Rate Trajectory Report
A3: ="For the Period "&TEXT(D5,"mmmmmmmmmm YYYY")&" through "&TEXT(AA5,"mmmmmmmmmm YYYY") -> For the Period January 2026 through December 2027
C5: ="Present ( "&TEXT(Summary!E46,"mmm yy")&")" -> Present ( Jan 26) | D5: ='Rate Trajectory Dashboard'!D6 -> 2026-01-01 | E5: =DATE(YEAR(D5),MONTH(D5)+1,DAY(D5)) -> 2026-02-01 | F5: =DATE(YEAR(E5),MONTH(E5)+1,DAY(E5)) -> 2026-03-01 | G5: 2026-04-01 | H5: 2026-05-01 | I5: 2026-06-01 | J5: 2026-07-01 | K5: 2026-08-01 | L5: 2026-09-01 | M5: 2026-10-01 | N5: 2026-11-01 | O5: 2026-12-01 | P5: 2027-01-01 | Q5: 2027-02-01 | R5: 2027-03-01 | S5: 2027-04-01 | T5: 2027-05-01 | U5: 2027-06-01 | V5: 2027-07-01 | W5: 2027-08-01 | X5: 2027-09-01 | Y5: 2027-10-01 | Z5: 2027-11-01 | AA5: =DATE(YEAR(Z5),MONTH(Z5)+1,DAY(Z5)) -> 2027-12-01
A6: # | B6: RRQ in Current Gas Rates ($ millions) | C6: ='Authorized Rev Req'!K88/1000 -> 7011.426794
A8: 1 | B8: ='Rate Trajectory Dashboard'!B12 -> 2027 Energy Savings Assistance Bridge Funding | C8: =IFERROR(VLOOKUP(B8,'Rate Trajectory Dashboard'!$B$12:$D$96,3,FALSE)/1000,'Rate Trajectory Report'!C6) -> 75.530121 | D8: =IF(INDEX('Rate Trajectory Calc'!$A$6:$CQ$92,MATCH('Rate Trajectory Report'!$B8,'Rate Trajectory Calc'!$A$6:$A$92,0),MATCH('Rate Trajectory Report'!D$5,'Rate Trajectory Calc'!$A$6:$CQ$6,0))=0," ",INDEX('Rate Trajectory Calc'!$A$6:$CQ$92,MATCH('Rate Trajectory Report'!$B8,'Rate Trajectory Calc'!$A$6:$A$92,0),MATCH('Rate Trajectory Report'!D$5,'Rate Trajectory Calc'!$A$6:$CQ$6,0))/1000) ->  | E8: =IF(INDEX('Rate Trajectory Calc'!$A$6:$CQ$92,MATCH('Rate Trajectory Report'!$B8,'Rate Trajectory Calc'!$A$6:$A$92,0),MATCH('Rate Trajectory Report'!E$5,'Rate Trajectory Calc'!$A$6:$CQ$6,0))=0," ",INDEX('Rate Trajectory Calc'!$A$6:$CQ$92,MATCH('Rate Trajectory Report'!$B8,'Rate Trajectory Calc'!$A$6:$A$92,0),MATCH('Rate Trajectory Report'!E$5,'Rate Trajectory Calc'!$A$6:$CQ$6,0))/1000) ->  | F8: =IF(INDEX('Rate Trajectory Calc'!$A$6:$CQ$92,MATCH('Rate Trajectory Report'!$B8,'Rate Trajectory Calc'!$A$6:$A$92,0),MATCH('Rate Trajectory Report'!F$5,'Rate Trajectory Calc'!$A$6:$CQ$6,0))=0," ",INDEX('Rate Trajectory Calc'!$A$6:$CQ$92,MATCH('Rate Trajectory Report'!$B8,'Rate Trajectory Calc'!$A$6:$A$92,0),MATCH('Rate Trajectory Report'!F$5,'Rate Trajectory Calc'!$A$6:$CQ$6,0))/1000) ->  | G8: =IF(INDEX('Rate Trajectory Calc'!$A$6:$CQ$92,MATCH('Rate Trajectory Report'!$B8,'Rate Trajectory Calc'!$A$6:$A$92,0),MATCH('Rate Trajectory Report'!G$5,'Rate Trajectory Calc'!$A$6:$CQ$6,0))=0," ",INDEX('Rate Trajectory Calc'!$A$6:$CQ$92,MATCH('Rate Trajectory Report'!$B8,'Rate Trajectory Calc'!$A$6:$A$92,0),MATCH('Rate Trajectory Report'!G$5,'Rate Trajectory Calc'!$A$6:$CQ$6,0))/1000) ->  | H8: =IF(INDEX('Rate Trajectory Calc'!$A$6:$CQ$92,MATCH('Rate Trajectory Report'!$B8,'Rate Trajectory Calc'!$A$6:$A$92,0),MATCH('Rate Trajectory Report'!H$5,'Rate Trajectory Calc'!$A$6:$CQ$6,0))=0," ",INDEX('Rate Trajectory Calc'!$A$6:$CQ$92,MATCH('Rate Trajectory Report'!$B8,'Rate Trajectory Calc'!$A$6:$A$92,0),MATCH('Rate Trajectory Report'!H$5,'Rate Trajectory Calc'!$A$6:$CQ$6,0))/1000) ->  | I8: =IF(INDEX('Rate Trajectory Calc'!$A$6:$CQ$92,MATCH('Rate Trajectory Report'!$B8,'Rate Trajectory Calc'!$A$6:$A$92,0),MATCH('Rate Trajectory Report'!I$5,'Rate Trajectory Calc'!$A$6:$CQ$6,0))=0," ",INDEX('Rate Trajectory Calc'!$A$6:$CQ$92,MATCH('Rate Trajectory Report'!$B8,'Rate Trajectory Calc'!$A$6:$A$92,0),MATCH('Rate Trajectory Report'!I$5,'Rate Trajectory Calc'!$A$6:$CQ$6,0))/1000) ->  | J8: =IF(INDEX('Rate Trajectory Calc'!$A$6:$CQ$92,MATCH('Rate Trajectory Report'!$B8,'Rate Trajectory Calc'!$A$6:$A$92,0),MATCH('Rate Trajectory Report'!J$5,'Rate Trajectory Calc'!$A$6:$CQ$6,0))=0," ",INDEX('Rate Trajectory Calc'!$A$6:$CQ$92,MATCH('Rate Trajectory Report'!$B8,'Rate Trajectory Calc'!$A$6:$A$92,0),MATCH('Rate Trajectory Report'!J$5,'Rate Trajectory Calc'!$A$6:$CQ$6,0))/1000) ->  | K8: =IF(INDEX('Rate Trajectory Calc'!$A$6:$CQ$92,MATCH('Rate Trajectory Report'!$B8,'Rate Trajectory Calc'!$A$6:$A$92,0),MATCH('Rate Trajectory Report'!K$5,'Rate Trajectory Calc'!$A$6:$CQ$6,0))=0," ",INDEX('Rate Trajectory Calc'!$A$6:$CQ$92,MATCH('Rate Trajectory Report'!$B8,'Rate Trajectory Calc'!$A$6:$A$92,0),MATCH('Rate Trajectory Report'!K$5,'Rate Trajectory Calc'!$A$6:$CQ$6,0))/1000) ->  | L8: =IF(INDEX('Rate Trajectory Calc'!$A$6:$CQ$92,MATCH('Rate Trajectory Report'!$B8,'Rate Trajectory Calc'!$A$6:$A$92,0),MATCH('Rate Trajectory Report'!L$5,'Rate Trajectory Calc'!$A$6:$CQ$6,0))=0," ",INDEX('Rate Trajectory Calc'!$A$6:$CQ$92,MATCH('Rate Trajectory Report'!$B8,'Rate Trajectory Calc'!$A$6:$A$92,0),MATCH('Rate Trajectory Report'!L$5,'Rate Trajectory Calc'!$A$6:$CQ$6,0))/1000) ->  | M8: =IF(INDEX('Rate Trajectory Calc'!$A$6:$CQ$92,MATCH('Rate Trajectory Report'!$B8,'Rate Trajectory Calc'!$A$6:$A$92,0),MATCH('Rate Trajectory Report'!M$5,'Rate Trajectory Calc'!$A$6:$CQ$6,0))=0," ",INDEX('Rate Trajectory Calc'!$A$6:$CQ$92,MATCH('Rate Trajectory Report'!$B8,'Rate Trajectory Calc'!$A$6:$A$92,0),MATCH('Rate Trajectory Report'!M$5,'Rate Trajectory Calc'!$A$6:$CQ$6,0))/1000) ->  | N8: =IF(INDEX('Rate Trajectory Calc'!$A$6:$CQ$92,MATCH('Rate Trajectory Report'!$B8,'Rate Trajectory Calc'!$A$6:$A$92,0),MATCH('Rate Trajectory Report'!N$5,'Rate Trajectory Calc'!$A$6:$CQ$6,0))=0," ",INDEX('Rate Trajectory Calc'!$A$6:$CQ$92,MATCH('Rate Trajectory Report'!$B8,'Rate Trajectory Calc'!$A$6:$A$92,0),MATCH('Rate Trajectory Report'!N$5,'Rate Trajectory Calc'!$A$6:$CQ$6,0))/1000) ->  | O8: =IF(INDEX('Rate Trajectory Calc'!$A$6:$CQ$92,MATCH('Rate Trajectory Report'!$B8,'Rate Trajectory Calc'!$A$6:$A$92,0),MATCH('Rate Trajectory Report'!O$5,'Rate Trajectory Calc'!$A$6:$CQ$6,0))=0," ",INDEX('Rate Trajectory Calc'!$A$6:$CQ$92,MATCH('Rate Trajectory Report'!$B8,'Rate Trajectory Calc'!$A$6:$A$92,0),MATCH('Rate Trajectory Report'!O$5,'Rate Trajectory Calc'!$A$6:$CQ$6,0))/1000) ->  | P8: =IF(INDEX('Rate Trajectory Calc'!$A$6:$CQ$92,MATCH('Rate Trajectory Report'!$B8,'Rate Trajectory Calc'!$A$6:$A$92,0),MATCH('Rate Trajectory Report'!P$5,'Rate Trajectory Calc'!$A$6:$CQ$6,0))=0," ",INDEX('Rate Trajectory Calc'!$A$6:$CQ$92,MATCH('Rate Trajectory Report'!$B8,'Rate Trajectory Calc'!$A$6:$A$92,0),MATCH('Rate Trajectory Report'!P$5,'Rate Trajectory Calc'!$A$6:$CQ$6,0))/1000) -> -19.96285995 | Q8: =IF(INDEX('Rate Trajectory Calc'!$A$6:$CQ$92,MATCH('Rate Trajectory Report'!$B8,'Rate Trajectory Calc'!$A$6:$A$92,0),MATCH('Rate Trajectory Report'!Q$5,'Rate Trajectory Calc'!$A$6:$CQ$6,0))=0," ",INDEX('Rate Trajectory Calc'!$A$6:$CQ$92,MATCH('Rate Trajectory Report'!$B8,'Rate Trajectory Calc'!$A$6:$A$92,0),MATCH('Rate Trajectory Report'!Q$5,'Rate Trajectory Calc'!$A$6:$CQ$6,0))/1000) ->  | R8: =IF(INDEX('Rate Trajectory Calc'!$A$6:$CQ$92,MATCH('Rate Trajectory Report'!$B8,'Rate Trajectory Calc'!$A$6:$A$92,0),MATCH('Rate Trajectory Report'!R$5,'Rate Trajectory Calc'!$A$6:$CQ$6,0))=0," ",INDEX('Rate Trajectory Calc'!$A$6:$CQ$92,MATCH('Rate Trajectory Report'!$B8,'Rate Trajectory Calc'!$A$6:$A$92,0),MATCH('Rate Trajectory Report'!R$5,'Rate Trajectory Calc'!$A$6:$CQ$6,0))/1000) ->  | S8: =IF(INDEX('Rate Trajectory Calc'!$A$6:$CQ$92,MATCH('Rate Trajectory Report'!$B8,'Rate Trajectory Calc'!$A$6:$A$92,0),MATCH('Rate Trajectory Report'!S$5,'Rate Trajectory Calc'!$A$6:$CQ$6,0))=0," ",INDEX('Rate Trajectory Calc'!$A$6:$CQ$92,MATCH('Rate Trajectory Report'!$B8,'Rate Trajectory Calc'!$A$6:$A$92,0),MATCH('Rate Trajectory Report'!S$5,'Rate Trajectory Calc'!$A$6:$CQ$6,0))/1000) ->  | T8: =IF(INDEX('Rate Trajectory Calc'!$A$6:$CQ$92,MATCH('Rate Trajectory Report'!$B8,'Rate Trajectory Calc'!$A$6:$A$92,0),MATCH('Rate Trajectory Report'!T$5,'Rate Trajectory Calc'!$A$6:$CQ$6,0))=0," ",INDEX('Rate Trajectory Calc'!$A$6:$CQ$92,MATCH('Rate Trajectory Report'!$B8,'Rate Trajectory Calc'!$A$6:$A$92,0),MATCH('Rate Trajectory Report'!T$5,'Rate Trajectory Calc'!$A$6:$CQ$6,0))/1000) ->  | U8: =IF(INDEX('Rate Trajectory Calc'!$A$6:$CQ$92,MATCH('Rate Trajectory Report'!$B8,'Rate Trajectory Calc'!$A$6:$A$92,0),MATCH('Rate Trajectory Report'!U$5,'Rate Trajectory Calc'!$A$6:$CQ$6,0))=0," ",INDEX('Rate Trajectory Calc'!$A$6:$CQ$92,MATCH('Rate Trajectory Report'!$B8,'Rate Trajectory Calc'!$A$6:$A$92,0),MATCH('Rate Trajectory Report'!U$5,'Rate Trajectory Calc'!$A$6:$CQ$6,0))/1000) ->  | V8: =IF(INDEX('Rate Trajectory Calc'!$A$6:$CQ$92,MATCH('Rate Trajectory Report'!$B8,'Rate Trajectory Calc'!$A$6:$A$92,0),MATCH('Rate Trajectory Report'!V$5,'Rate Trajectory Calc'!$A$6:$CQ$6,0))=0," ",INDEX('Rate Trajectory Calc'!$A$6:$CQ$92,MATCH('Rate Trajectory Report'!$B8,'Rate Trajectory Calc'!$A$6:$A$92,0),MATCH('Rate Trajectory Report'!V$5,'Rate Trajectory Calc'!$A$6:$CQ$6,0))/1000) ->  | W8: =IF(INDEX('Rate Trajectory Calc'!$A$6:$CQ$92,MATCH('Rate Trajectory Report'!$B8,'Rate Trajectory Calc'!$A$6:$A$92,0),MATCH('Rate Trajectory Report'!W$5,'Rate Trajectory Calc'!$A$6:$CQ$6,0))=0," ",INDEX('Rate Trajectory Calc'!$A$6:$CQ$92,MATCH('Rate Trajectory Report'!$B8,'Rate Trajectory Calc'!$A$6:$A$92,0),MATCH('Rate Trajectory Report'!W$5,'Rate Trajectory Calc'!$A$6:$CQ$6,0))/1000) ->  | X8: =IF(INDEX('Rate Trajectory Calc'!$A$6:$CQ$92,MATCH('Rate Trajectory Report'!$B8,'Rate Trajectory Calc'!$A$6:$A$92,0),MATCH('Rate Trajectory Report'!X$5,'Rate Trajectory Calc'!$A$6:$CQ$6,0))=0," ",INDEX('Rate Trajectory Calc'!$A$6:$CQ$92,MATCH('Rate Trajectory Report'!$B8,'Rate Trajectory Calc'!$A$6:$A$92,0),MATCH('Rate Trajectory Report'!X$5,'Rate Trajectory Calc'!$A$6:$CQ$6,0))/1000) ->  | Y8: =IF(INDEX('Rate Trajectory Calc'!$A$6:$CQ$92,MATCH('Rate Trajectory Report'!$B8,'Rate Trajectory Calc'!$A$6:$A$92,0),MATCH('Rate Trajectory Report'!Y$5,'Rate Trajectory Calc'!$A$6:$CQ$6,0))=0," ",INDEX('Rate Trajectory Calc'!$A$6:$CQ$92,MATCH('Rate Trajectory Report'!$B8,'Rate Trajectory Calc'!$A$6:$A$92,0),MATCH('Rate Trajectory Report'!Y$5,'Rate Trajectory Calc'!$A$6:$CQ$6,0))/1000) ->  | Z8: =IF(INDEX('Rate Trajectory Calc'!$A$6:$CQ$92,MATCH('Rate Trajectory Report'!$B8,'Rate Trajectory Calc'!$A$6:$A$92,0),MATCH('Rate Trajectory Report'!Z$5,'Rate Trajectory Calc'!$A$6:$CQ$6,0))=0," ",INDEX('Rate Trajectory Calc'!$A$6:$CQ$92,MATCH('Rate Trajectory Report'!$B8,'Rate Trajectory Calc'!$A$6:$A$92,0),MATCH('Rate Trajectory Report'!Z$5,'Rate Trajectory Calc'!$A$6:$CQ$6,0))/1000) ->  | AA8: =IF(INDEX('Rate Trajectory Calc'!$A$6:$CQ$92,MATCH('Rate Trajectory Report'!$B8,'Rate Trajectory Calc'!$A$6:$A$92,0),MATCH('Rate Trajectory Report'!AA$5,'Rate Trajectory Calc'!$A$6:$CQ$6,0))=0," ",INDEX('Rate Trajectory Calc'!$A$6:$CQ$92,MATCH('Rate Trajectory Report'!$B8,'Rate Trajectory Calc'!$A$6:$A$92,0),MATCH('Rate Trajectory Report'!AA$5,'Rate Trajectory Calc'!$A$6:$CQ$6,0))/1000) -> 
A9: 2 | B9: ='Rate Trajectory Dashboard'!B13 -> 2027 CARE Administrative Bridge Funding | C9: =IFERROR(VLOOKUP(B9,'Rate Trajectory Dashboard'!$B$12:$D$96,3,FALSE)/1000,'Rate Trajectory Report'!C7) -> 2.95754 | D9: =IF(INDEX('Rate Trajectory Calc'!$A$6:$CQ$92,MATCH('Rate Trajectory Report'!$B9,'Rate Trajectory Calc'!$A$6:$A$92,0),MATCH('Rate Trajectory Report'!D$5,'Rate Trajectory Calc'!$A$6:$CQ$6,0))=0," ",INDEX('Rate Trajectory Calc'!$A$6:$CQ$92,MATCH('Rate Trajectory Report'!$B9,'Rate Trajectory Calc'!$A$6:$A$92,0),MATCH('Rate Trajectory Report'!D$5,'Rate Trajectory Calc'!$A$6:$CQ$6,0))/1000) ->  | E9: =IF(INDEX('Rate Trajectory Calc'!$A$6:$CQ$92,MATCH('Rate Trajectory Report'!$B9,'Rate Trajectory Calc'!$A$6:$A$92,0),MATCH('Rate Trajectory Report'!E$5,'Rate Trajectory Calc'!$A$6:$CQ$6,0))=0," ",INDEX('Rate Trajectory Calc'!$A$6:$CQ$92,MATCH('Rate Trajectory Report'!$B9,'Rate Trajectory Calc'!$A$6:$A$92,0),MATCH('Rate Trajectory Report'!E$5,'Rate Trajectory Calc'!$A$6:$CQ$6,0))/1000) ->  | F9: =IF(INDEX('Rate Trajectory Calc'!$A$6:$CQ$92,MATCH('Rate Trajectory Report'!$B9,'Rate Trajectory Calc'!$A$6:$A$92,0),MATCH('Rate Trajectory Report'!F$5,'Rate Trajectory Calc'!$A$6:$CQ$6,0))=0," ",INDEX('Rate Trajectory Calc'!$A$6:$CQ$92,MATCH('Rate Trajectory Report'!$B9,'Rate Trajectory Calc'!$A$6:$A$92,0),MATCH('Rate Trajectory Report'!F$5,'Rate Trajectory Calc'!$A$6:$CQ$6,0))/1000) ->  | G9: =IF(INDEX('Rate Trajectory Calc'!$A$6:$CQ$92,MATCH('Rate Trajectory Report'!$B9,'Rate Trajectory Calc'!$A$6:$A$92,0),MATCH('Rate Trajectory Report'!G$5,'Rate Trajectory Calc'!$A$6:$CQ$6,0))=0," ",INDEX('Rate Trajectory Calc'!$A$6:$CQ$92,MATCH('Rate Trajectory Report'!$B9,'Rate Trajectory Calc'!$A$6:$A$92,0),MATCH('Rate Trajectory Report'!G$5,'Rate Trajectory Calc'!$A$6:$CQ$6,0))/1000) ->  | H9: =IF(INDEX('Rate Trajectory Calc'!$A$6:$CQ$92,MATCH('Rate Trajectory Report'!$B9,'Rate Trajectory Calc'!$A$6:$A$92,0),MATCH('Rate Trajectory Report'!H$5,'Rate Trajectory Calc'!$A$6:$CQ$6,0))=0," ",INDEX('Rate Trajectory Calc'!$A$6:$CQ$92,MATCH('Rate Trajectory Report'!$B9,'Rate Trajectory Calc'!$A$6:$A$92,0),MATCH('Rate Trajectory Report'!H$5,'Rate Trajectory Calc'!$A$6:$CQ$6,0))/1000) ->  | I9: =IF(INDEX('Rate Trajectory Calc'!$A$6:$CQ$92,MATCH('Rate Trajectory Report'!$B9,'Rate Trajectory Calc'!$A$6:$A$92,0),MATCH('Rate Trajectory Report'!I$5,'Rate Trajectory Calc'!$A$6:$CQ$6,0))=0," ",INDEX('Rate Trajectory Calc'!$A$6:$CQ$92,MATCH('Rate Trajectory Report'!$B9,'Rate Trajectory Calc'!$A$6:$A$92,0),MATCH('Rate Trajectory Report'!I$5,'Rate Trajectory Calc'!$A$6:$CQ$6,0))/1000) ->  | J9: =IF(INDEX('Rate Trajectory Calc'!$A$6:$CQ$92,MATCH('Rate Trajectory Report'!$B9,'Rate Trajectory Calc'!$A$6:$A$92,0),MATCH('Rate Trajectory Report'!J$5,'Rate Trajectory Calc'!$A$6:$CQ$6,0))=0," ",INDEX('Rate Trajectory Calc'!$A$6:$CQ$92,MATCH('Rate Trajectory Report'!$B9,'Rate Trajectory Calc'!$A$6:$A$92,0),MATCH('Rate Trajectory Report'!J$5,'Rate Trajectory Calc'!$A$6:$CQ$6,0))/1000) ->  | K9: =IF(INDEX('Rate Trajectory Calc'!$A$6:$CQ$92,MATCH('Rate Trajectory Report'!$B9,'Rate Trajectory Calc'!$A$6:$A$92,0),MATCH('Rate Trajectory Report'!K$5,'Rate Trajectory Calc'!$A$6:$CQ$6,0))=0," ",INDEX('Rate Trajectory Calc'!$A$6:$CQ$92,MATCH('Rate Trajectory Report'!$B9,'Rate Trajectory Calc'!$A$6:$A$92,0),MATCH('Rate Trajectory Report'!K$5,'Rate Trajectory Calc'!$A$6:$CQ$6,0))/1000) ->  | L9: =IF(INDEX('Rate Trajectory Calc'!$A$6:$CQ$92,MATCH('Rate Trajectory Report'!$B9,'Rate Trajectory Calc'!$A$6:$A$92,0),MATCH('Rate Trajectory Report'!L$5,'Rate Trajectory Calc'!$A$6:$CQ$6,0))=0," ",INDEX('Rate Trajectory Calc'!$A$6:$CQ$92,MATCH('Rate Trajectory Report'!$B9,'Rate Trajectory Calc'!$A$6:$A$92,0),MATCH('Rate Trajectory Report'!L$5,'Rate Trajectory Calc'!$A$6:$CQ$6,0))/1000) ->  | M9: =IF(INDEX('Rate Trajectory Calc'!$A$6:$CQ$92,MATCH('Rate Trajectory Report'!$B9,'Rate Trajectory Calc'!$A$6:$A$92,0),MATCH('Rate Trajectory Report'!M$5,'Rate Trajectory Calc'!$A$6:$CQ$6,0))=0," ",INDEX('Rate Trajectory Calc'!$A$6:$CQ$92,MATCH('Rate Trajectory Report'!$B9,'Rate Trajectory Calc'!$A$6:$A$92,0),MATCH('Rate Trajectory Report'!M$5,'Rate Trajectory Calc'!$A$6:$CQ$6,0))/1000) ->  | N9: =IF(INDEX('Rate Trajectory Calc'!$A$6:$CQ$92,MATCH('Rate Trajectory Report'!$B9,'Rate Trajectory Calc'!$A$6:$A$92,0),MATCH('Rate Trajectory Report'!N$5,'Rate Trajectory Calc'!$A$6:$CQ$6,0))=0," ",INDEX('Rate Trajectory Calc'!$A$6:$CQ$92,MATCH('Rate Trajectory Report'!$B9,'Rate Trajectory Calc'!$A$6:$A$92,0),MATCH('Rate Trajectory Report'!N$5,'Rate Trajectory Calc'!$A$6:$CQ$6,0))/1000) ->  | O9: =IF(INDEX('Rate Trajectory Calc'!$A$6:$CQ$92,MATCH('Rate Trajectory Report'!$B9,'Rate Trajectory Calc'!$A$6:$A$92,0),MATCH('Rate Trajectory Report'!O$5,'Rate Trajectory Calc'!$A$6:$CQ$6,0))=0," ",INDEX('Rate Trajectory Calc'!$A$6:$CQ$92,MATCH('Rate Trajectory Report'!$B9,'Rate Trajectory Calc'!$A$6:$A$92,0),MATCH('Rate Trajectory Report'!O$5,'Rate Trajectory Calc'!$A$6:$CQ$6,0))/1000) ->  | P9: =IF(INDEX('Rate Trajectory Calc'!$A$6:$CQ$92,MATCH('Rate Trajectory Report'!$B9,'Rate Trajectory Calc'!$A$6:$A$92,0),MATCH('Rate Trajectory Report'!P$5,'Rate Trajectory Calc'!$A$6:$CQ$6,0))=0," ",INDEX('Rate Trajectory Calc'!$A$6:$CQ$92,MATCH('Rate Trajectory Report'!$B9,'Rate Trajectory Calc'!$A$6:$A$92,0),MATCH('Rate Trajectory Report'!P$5,'Rate Trajectory Calc'!$A$6:$CQ$6,0))/1000) -> -0.89852 | Q9: =IF(INDEX('Rate Trajectory Calc'!$A$6:$CQ$92,MATCH('Rate Trajectory Report'!$B9,'Rate Trajectory Calc'!$A$6:$A$92,0),MATCH('Rate Trajectory Report'!Q$5,'Rate Trajectory Calc'!$A$6:$CQ$6,0))=0," ",INDEX('Rate Trajectory Calc'!$A$6:$CQ$92,MATCH('Rate Trajectory Report'!$B9,'Rate Trajectory Calc'!$A$6:$A$92,0),MATCH('Rate Trajectory Report'!Q$5,'Rate Trajectory Calc'!$A$6:$CQ$6,0))/1000) ->  | R9: =IF(INDEX('Rate Trajectory Calc'!$A$6:$CQ$92,MATCH('Rate Trajectory Report'!$B9,'Rate Trajectory Calc'!$A$6:$A$92,0),MATCH('Rate Trajectory Report'!R$5,'Rate Trajectory Calc'!$A$6:$CQ$6,0))=0," ",INDEX('Rate Trajectory Calc'!$A$6:$CQ$92,MATCH('Rate Trajectory Report'!$B9,'Rate Trajectory Calc'!$A$6:$A$92,0),MATCH('Rate Trajectory Report'!R$5,'Rate Trajectory Calc'!$A$6:$CQ$6,0))/1000) ->  | S9: =IF(INDEX('Rate Trajectory Calc'!$A$6:$CQ$92,MATCH('Rate Trajectory Report'!$B9,'Rate Trajectory Calc'!$A$6:$A$92,0),MATCH('Rate Trajectory Report'!S$5,'Rate Trajectory Calc'!$A$6:$CQ$6,0))=0," ",INDEX('Rate Trajectory Calc'!$A$6:$CQ$92,MATCH('Rate Trajectory Report'!$B9,'Rate Trajectory Calc'!$A$6:$A$92,0),MATCH('Rate Trajectory Report'!S$5,'Rate Trajectory Calc'!$A$6:$CQ$6,0))/1000) ->  | T9: =IF(INDEX('Rate Trajectory Calc'!$A$6:$CQ$92,MATCH('Rate Trajectory Report'!$B9,'Rate Trajectory Calc'!$A$6:$A$92,0),MATCH('Rate Trajectory Report'!T$5,'Rate Trajectory Calc'!$A$6:$CQ$6,0))=0," ",INDEX('Rate Trajectory Calc'!$A$6:$CQ$92,MATCH('Rate Trajectory Report'!$B9,'Rate Trajectory Calc'!$A$6:$A$92,0),MATCH('Rate Trajectory Report'!T$5,'Rate Trajectory Calc'!$A$6:$CQ$6,0))/1000) ->  | U9: =IF(INDEX('Rate Trajectory Calc'!$A$6:$CQ$92,MATCH('Rate Trajectory Report'!$B9,'Rate Trajectory Calc'!$A$6:$A$92,0),MATCH('Rate Trajectory Report'!U$5,'Rate Trajectory Calc'!$A$6:$CQ$6,0))=0," ",INDEX('Rate Trajectory Calc'!$A$6:$CQ$92,MATCH('Rate Trajectory Report'!$B9,'Rate Trajectory Calc'!$A$6:$A$92,0),MATCH('Rate Trajectory Report'!U$5,'Rate Trajectory Calc'!$A$6:$CQ$6,0))/1000) ->  | V9: =IF(INDEX('Rate Trajectory Calc'!$A$6:$CQ$92,MATCH('Rate Trajectory Report'!$B9,'Rate Trajectory Calc'!$A$6:$A$92,0),MATCH('Rate Trajectory Report'!V$5,'Rate Trajectory Calc'!$A$6:$CQ$6,0))=0," ",INDEX('Rate Trajectory Calc'!$A$6:$CQ$92,MATCH('Rate Trajectory Report'!$B9,'Rate Trajectory Calc'!$A$6:$A$92,0),MATCH('Rate Trajectory Report'!V$5,'Rate Trajectory Calc'!$A$6:$CQ$6,0))/1000) ->  | W9: =IF(INDEX('Rate Trajectory Calc'!$A$6:$CQ$92,MATCH('Rate Trajectory Report'!$B9,'Rate Trajectory Calc'!$A$6:$A$92,0),MATCH('Rate Trajectory Report'!W$5,'Rate Trajectory Calc'!$A$6:$CQ$6,0))=0," ",INDEX('Rate Trajectory Calc'!$A$6:$CQ$92,MATCH('Rate Trajectory Report'!$B9,'Rate Trajectory Calc'!$A$6:$A$92,0),MATCH('Rate Trajectory Report'!W$5,'Rate Trajectory Calc'!$A$6:$CQ$6,0))/1000) ->  | X9: =IF(INDEX('Rate Trajectory Calc'!$A$6:$CQ$92,MATCH('Rate Trajectory Report'!$B9,'Rate Trajectory Calc'!$A$6:$A$92,0),MATCH('Rate Trajectory Report'!X$5,'Rate Trajectory Calc'!$A$6:$CQ$6,0))=0," ",INDEX('Rate Trajectory Calc'!$A$6:$CQ$92,MATCH('Rate Trajectory Report'!$B9,'Rate Trajectory Calc'!$A$6:$A$92,0),MATCH('Rate Trajectory Report'!X$5,'Rate Trajectory Calc'!$A$6:$CQ$6,0))/1000) ->  | Y9: =IF(INDEX('Rate Trajectory Calc'!$A$6:$CQ$92,MATCH('Rate Trajectory Report'!$B9,'Rate Trajectory Calc'!$A$6:$A$92,0),MATCH('Rate Trajectory Report'!Y$5,'Rate Trajectory Calc'!$A$6:$CQ$6,0))=0," ",INDEX('Rate Trajectory Calc'!$A$6:$CQ$92,MATCH('Rate Trajectory Report'!$B9,'Rate Trajectory Calc'!$A$6:$A$92,0),MATCH('Rate Trajectory Report'!Y$5,'Rate Trajectory Calc'!$A$6:$CQ$6,0))/1000) ->  | Z9: =IF(INDEX('Rate Trajectory Calc'!$A$6:$CQ$92,MATCH('Rate Trajectory Report'!$B9,'Rate Trajectory Calc'!$A$6:$A$92,0),MATCH('Rate Trajectory Report'!Z$5,'Rate Trajectory Calc'!$A$6:$CQ$6,0))=0," ",INDEX('Rate Trajectory Calc'!$A$6:$CQ$92,MATCH('Rate Trajectory Report'!$B9,'Rate Trajectory Calc'!$A$6:$A$92,0),MATCH('Rate Trajectory Report'!Z$5,'Rate Trajectory Calc'!$A$6:$CQ$6,0))/1000) ->  | AA9: =IF(INDEX('Rate Trajectory Calc'!$A$6:$CQ$92,MATCH('Rate Trajectory Report'!$B9,'Rate Trajectory Calc'!$A$6:$A$92,0),MATCH('Rate Trajectory Report'!AA$5,'Rate Trajectory Calc'!$A$6:$CQ$6,0))=0," ",INDEX('Rate Trajectory Calc'!$A$6:$CQ$92,MATCH('Rate Trajectory Report'!$B9,'Rate Trajectory Calc'!$A$6:$A$92,0),MATCH('Rate Trajectory Report'!AA$5,'Rate Trajectory Calc'!$A$6:$CQ$6,0))/1000) -> 
B10: ='Rate Trajectory Dashboard'!B14 -> Hinkley Upgrade - Year 2028 | C10: =IFERROR(VLOOKUP(B10,'Rate Trajectory Dashboard'!$B$12:$D$96,3,FALSE)/1000,'Rate Trajectory Report'!C8) -> 0 | D10: =IF(INDEX('Rate Trajectory Calc'!$A$6:$CQ$92,MATCH('Rate Trajectory Report'!$B10,'Rate Trajectory Calc'!$A$6:$A$92,0),MATCH('Rate Trajectory Report'!D$5,'Rate Trajectory Calc'!$A$6:$CQ$6,0))=0," ",INDEX('Rate Trajectory Calc'!$A$6:$CQ$92,MATCH('Rate Trajectory Report'!$B10,'Rate Trajectory Calc'!$A$6:$A$92,0),MATCH('Rate Trajectory Report'!D$5,'Rate Trajectory Calc'!$A$6:$CQ$6,0))/1000) ->  | E10: =IF(INDEX('Rate Trajectory Calc'!$A$6:$CQ$92,MATCH('Rate Trajectory Report'!$B10,'Rate Trajectory Calc'!$A$6:$A$92,0),MATCH('Rate Trajectory Report'!E$5,'Rate Trajectory Calc'!$A$6:$CQ$6,0))=0," ",INDEX('Rate Trajectory Calc'!$A$6:$CQ$92,MATCH('Rate Trajectory Report'!$B10,'Rate Trajectory Calc'!$A$6:$A$92,0),MATCH('Rate Trajectory Report'!E$5,'Rate Trajectory Calc'!$A$6:$CQ$6,0))/1000) ->  | F10: =IF(INDEX('Rate Trajectory Calc'!$A$6:$CQ$92,MATCH('Rate Trajectory Report'!$B10,'Rate Trajectory Calc'!$A$6:$A$92,0),MATCH('Rate Trajectory Report'!F$5,'Rate Trajectory Calc'!$A$6:$CQ$6,0))=0," ",INDEX('Rate Trajectory Calc'!$A$6:$CQ$92,MATCH('Rate Trajectory Report'!$B10,'Rate Trajectory Calc'!$A$6:$A$92,0),MATCH('Rate Trajectory Report'!F$5,'Rate Trajectory Calc'!$A$6:$CQ$6,0))/1000) ->  | G10: =IF(INDEX('Rate Trajectory Calc'!$A$6:$CQ$92,MATCH('Rate Trajectory Report'!$B10,'Rate Trajectory Calc'!$A$6:$A$92,0),MATCH('Rate Trajectory Report'!G$5,'Rate Trajectory Calc'!$A$6:$CQ$6,0))=0," ",INDEX('Rate Trajectory Calc'!$A$6:$CQ$92,MATCH('Rate Trajectory Report'!$B10,'Rate Trajectory Calc'!$A$6:$A$92,0),MATCH('Rate Trajectory Report'!G$5,'Rate Trajectory Calc'!$A$6:$CQ$6,0))/1000) ->  | H10: =IF(INDEX('Rate Trajectory Calc'!$A$6:$CQ$92,MATCH('Rate Trajectory Report'!$B10,'Rate Trajectory Calc'!$A$6:$A$92,0),MATCH('Rate Trajectory Report'!H$5,'Rate Trajectory Calc'!$A$6:$CQ$6,0))=0," ",INDEX('Rate Trajectory Calc'!$A$6:$CQ$92,MATCH('Rate Trajectory Report'!$B10,'Rate Trajectory Calc'!$A$6:$A$92,0),MATCH('Rate Trajectory Report'!H$5,'Rate Trajectory Calc'!$A$6:$CQ$6,0))/1000) ->  | I10: =IF(INDEX('Rate Trajectory Calc'!$A$6:$CQ$92,MATCH('Rate Trajectory Report'!$B10,'Rate Trajectory Calc'!$A$6:$A$92,0),MATCH('Rate Trajectory Report'!I$5,'Rate Trajectory Calc'!$A$6:$CQ$6,0))=0," ",INDEX('Rate Trajectory Calc'!$A$6:$CQ$92,MATCH('Rate Trajectory Report'!$B10,'Rate Trajectory Calc'!$A$6:$A$92,0),MATCH('Rate Trajectory Report'!I$5,'Rate Trajectory Calc'!$A$6:$CQ$6,0))/1000) ->  | J10: =IF(INDEX('Rate Trajectory Calc'!$A$6:$CQ$92,MATCH('Rate Trajectory Report'!$B10,'Rate Trajectory Calc'!$A$6:$A$92,0),MATCH('Rate Trajectory Report'!J$5,'Rate Trajectory Calc'!$A$6:$CQ$6,0))=0," ",INDEX('Rate Trajectory Calc'!$A$6:$CQ$92,MATCH('Rate Trajectory Report'!$B10,'Rate Trajectory Calc'!$A$6:$A$92,0),MATCH('Rate Trajectory Report'!J$5,'Rate Trajectory Calc'!$A$6:$CQ$6,0))/1000) ->  | K10: =IF(INDEX('Rate Trajectory Calc'!$A$6:$CQ$92,MATCH('Rate Trajectory Report'!$B10,'Rate Trajectory Calc'!$A$6:$A$92,0),MATCH('Rate Trajectory Report'!K$5,'Rate Trajectory Calc'!$A$6:$CQ$6,0))=0," ",INDEX('Rate Trajectory Calc'!$A$6:$CQ$92,MATCH('Rate Trajectory Report'!$B10,'Rate Trajectory Calc'!$A$6:$A$92,0),MATCH('Rate Trajectory Report'!K$5,'Rate Trajectory Calc'!$A$6:$CQ$6,0))/1000) ->  | L10: =IF(INDEX('Rate Trajectory Calc'!$A$6:$CQ$92,MATCH('Rate Trajectory Report'!$B10,'Rate Trajectory Calc'!$A$6:$A$92,0),MATCH('Rate Trajectory Report'!L$5,'Rate Trajectory Calc'!$A$6:$CQ$6,0))=0," ",INDEX('Rate Trajectory Calc'!$A$6:$CQ$92,MATCH('Rate Trajectory Report'!$B10,'Rate Trajectory Calc'!$A$6:$A$92,0),MATCH('Rate Trajectory Report'!L$5,'Rate Trajectory Calc'!$A$6:$CQ$6,0))/1000) ->  | M10: =IF(INDEX('Rate Trajectory Calc'!$A$6:$CQ$92,MATCH('Rate Trajectory Report'!$B10,'Rate Trajectory Calc'!$A$6:$A$92,0),MATCH('Rate Trajectory Report'!M$5,'Rate Trajectory Calc'!$A$6:$CQ$6,0))=0," ",INDEX('Rate Trajectory Calc'!$A$6:$CQ$92,MATCH('Rate Trajectory Report'!$B10,'Rate Trajectory Calc'!$A$6:$A$92,0),MATCH('Rate Trajectory Report'!M$5,'Rate Trajectory Calc'!$A$6:$CQ$6,0))/1000) ->  | N10: =IF(INDEX('Rate Trajectory Calc'!$A$6:$CQ$92,MATCH('Rate Trajectory Report'!$B10,'Rate Trajectory Calc'!$A$6:$A$92,0),MATCH('Rate Trajectory Report'!N$5,'Rate Trajectory Calc'!$A$6:$CQ$6,0))=0," ",INDEX('Rate Trajectory Calc'!$A$6:$CQ$92,MATCH('Rate Trajectory Report'!$B10,'Rate Trajectory Calc'!$A$6:$A$92,0),MATCH('Rate Trajectory Report'!N$5,'Rate Trajectory Calc'!$A$6:$CQ$6,0))/1000) ->  | O10: =IF(INDEX('Rate Trajectory Calc'!$A$6:$CQ$92,MATCH('Rate Trajectory Report'!$B10,'Rate Trajectory Calc'!$A$6:$A$92,0),MATCH('Rate Trajectory Report'!O$5,'Rate Trajectory Calc'!$A$6:$CQ$6,0))=0," ",INDEX('Rate Trajectory Calc'!$A$6:$CQ$92,MATCH('Rate Trajectory Report'!$B10,'Rate Trajectory Calc'!$A$6:$A$92,0),MATCH('Rate Trajectory Report'!O$5,'Rate Trajectory Calc'!$A$6:$CQ$6,0))/1000) ->  | P10: =IF(INDEX('Rate Trajectory Calc'!$A$6:$CQ$92,MATCH('Rate Trajectory Report'!$B10,'Rate Trajectory Calc'!$A$6:$A$92,0),MATCH('Rate Trajectory Report'!P$5,'Rate Trajectory Calc'!$A$6:$CQ$6,0))=0," ",INDEX('Rate Trajectory Calc'!$A$6:$CQ$92,MATCH('Rate Trajectory Report'!$B10,'Rate Trajectory Calc'!$A$6:$A$92,0),MATCH('Rate Trajectory Report'!P$5,'Rate Trajectory Calc'!$A$6:$CQ$6,0))/1000) ->  | Q10: =IF(INDEX('Rate Trajectory Calc'!$A$6:$CQ$92,MATCH('Rate Trajectory Report'!$B10,'Rate Trajectory Calc'!$A$6:$A$92,0),MATCH('Rate Trajectory Report'!Q$5,'Rate Trajectory Calc'!$A$6:$CQ$6,0))=0," ",INDEX('Rate Trajectory Calc'!$A$6:$CQ$92,MATCH('Rate Trajectory Report'!$B10,'Rate Trajectory Calc'!$A$6:$A$92,0),MATCH('Rate Trajectory Report'!Q$5,'Rate Trajectory Calc'!$A$6:$CQ$6,0))/1000) ->  | R10: =IF(INDEX('Rate Trajectory Calc'!$A$6:$CQ$92,MATCH('Rate Trajectory Report'!$B10,'Rate Trajectory Calc'!$A$6:$A$92,0),MATCH('Rate Trajectory Report'!R$5,'Rate Trajectory Calc'!$A$6:$CQ$6,0))=0," ",INDEX('Rate Trajectory Calc'!$A$6:$CQ$92,MATCH('Rate Trajectory Report'!$B10,'Rate Trajectory Calc'!$A$6:$A$92,0),MATCH('Rate Trajectory Report'!R$5,'Rate Trajectory Calc'!$A$6:$CQ$6,0))/1000) ->  | S10: =IF(INDEX('Rate Trajectory Calc'!$A$6:$CQ$92,MATCH('Rate Trajectory Report'!$B10,'Rate Trajectory Calc'!$A$6:$A$92,0),MATCH('Rate Trajectory Report'!S$5,'Rate Trajectory Calc'!$A$6:$CQ$6,0))=0," ",INDEX('Rate Trajectory Calc'!$A$6:$CQ$92,MATCH('Rate Trajectory Report'!$B10,'Rate Trajectory Calc'!$A$6:$A$92,0),MATCH('Rate Trajectory Report'!S$5,'Rate Trajectory Calc'!$A$6:$CQ$6,0))/1000) ->  | T10: =IF(INDEX('Rate Trajectory Calc'!$A$6:$CQ$92,MATCH('Rate Trajectory Report'!$B10,'Rate Trajectory Calc'!$A$6:$A$92,0),MATCH('Rate Trajectory Report'!T$5,'Rate Trajectory Calc'!$A$6:$CQ$6,0))=0," ",INDEX('Rate Trajectory Calc'!$A$6:$CQ$92,MATCH('Rate Trajectory Report'!$B10,'Rate Trajectory Calc'!$A$6:$A$92,0),MATCH('Rate Trajectory Report'!T$5,'Rate Trajectory Calc'!$A$6:$CQ$6,0))/1000) ->  | U10: =IF(INDEX('Rate Trajectory Calc'!$A$6:$CQ$92,MATCH('Rate Trajectory Report'!$B10,'Rate Trajectory Calc'!$A$6:$A$92,0),MATCH('Rate Trajectory Report'!U$5,'Rate Trajectory Calc'!$A$6:$CQ$6,0))=0," ",INDEX('Rate Trajectory Calc'!$A$6:$CQ$92,MATCH('Rate Trajectory Report'!$B10,'Rate Trajectory Calc'!$A$6:$A$92,0),MATCH('Rate Trajectory Report'!U$5,'Rate Trajectory Calc'!$A$6:$CQ$6,0))/1000) ->  | V10: =IF(INDEX('Rate Trajectory Calc'!$A$6:$CQ$92,MATCH('Rate Trajectory Report'!$B10,'Rate Trajectory Calc'!$A$6:$A$92,0),MATCH('Rate Trajectory Report'!V$5,'Rate Trajectory Calc'!$A$6:$CQ$6,0))=0," ",INDEX('Rate Trajectory Calc'!$A$6:$CQ$92,MATCH('Rate Trajectory Report'!$B10,'Rate Trajectory Calc'!$A$6:$A$92,0),MATCH('Rate Trajectory Report'!V$5,'Rate Trajectory Calc'!$A$6:$CQ$6,0))/1000) ->  | W10: =IF(INDEX('Rate Trajectory Calc'!$A$6:$CQ$92,MATCH('Rate Trajectory Report'!$B10,'Rate Trajectory Calc'!$A$6:$A$92,0),MATCH('Rate Trajectory Report'!W$5,'Rate Trajectory Calc'!$A$6:$CQ$6,0))=0," ",INDEX('Rate Trajectory Calc'!$A$6:$CQ$92,MATCH('Rate Trajectory Report'!$B10,'Rate Trajectory Calc'!$A$6:$A$92,0),MATCH('Rate Trajectory Report'!W$5,'Rate Trajectory Calc'!$A$6:$CQ$6,0))/1000) ->  | X10: =IF(INDEX('Rate Trajectory Calc'!$A$6:$CQ$92,MATCH('Rate Trajectory Report'!$B10,'Rate Trajectory Calc'!$A$6:$A$92,0),MATCH('Rate Trajectory Report'!X$5,'Rate Trajectory Calc'!$A$6:$CQ$6,0))=0," ",INDEX('Rate Trajectory Calc'!$A$6:$CQ$92,MATCH('Rate Trajectory Report'!$B10,'Rate Trajectory Calc'!$A$6:$A$92,0),MATCH('Rate Trajectory Report'!X$5,'Rate Trajectory Calc'!$A$6:$CQ$6,0))/1000) ->  | Y10: =IF(INDEX('Rate Trajectory Calc'!$A$6:$CQ$92,MATCH('Rate Trajectory Report'!$B10,'Rate Trajectory Calc'!$A$6:$A$92,0),MATCH('Rate Trajectory Report'!Y$5,'Rate Trajectory Calc'!$A$6:$CQ$6,0))=0," ",INDEX('Rate Trajectory Calc'!$A$6:$CQ$92,MATCH('Rate Trajectory Report'!$B10,'Rate Trajectory Calc'!$A$6:$A$92,0),MATCH('Rate Trajectory Report'!Y$5,'Rate Trajectory Calc'!$A$6:$CQ$6,0))/1000) ->  | Z10: =IF(INDEX('Rate Trajectory Calc'!$A$6:$CQ$92,MATCH('Rate Trajectory Report'!$B10,'Rate Trajectory Calc'!$A$6:$A$92,0),MATCH('Rate Trajectory Report'!Z$5,'Rate Trajectory Calc'!$A$6:$CQ$6,0))=0," ",INDEX('Rate Trajectory Calc'!$A$6:$CQ$92,MATCH('Rate Trajectory Report'!$B10,'Rate Trajectory Calc'!$A$6:$A$92,0),MATCH('Rate Trajectory Report'!Z$5,'Rate Trajectory Calc'!$A$6:$CQ$6,0))/1000) ->  | AA10: =IF(INDEX('Rate Trajectory Calc'!$A$6:$CQ$92,MATCH('Rate Trajectory Report'!$B10,'Rate Trajectory Calc'!$A$6:$A$92,0),MATCH('Rate Trajectory Report'!AA$5,'Rate Trajectory Calc'!$A$6:$CQ$6,0))=0," ",INDEX('Rate Trajectory Calc'!$A$6:$CQ$92,MATCH('Rate Trajectory Report'!$B10,'Rate Trajectory Calc'!$A$6:$A$92,0),MATCH('Rate Trajectory Report'!AA$5,'Rate Trajectory Calc'!$A$6:$CQ$6,0))/1000) -> 
B11: ='Rate Trajectory Dashboard'!B15 -> Hinkley Upgrade - Year 2029 | C11: =IFERROR(VLOOKUP(B11,'Rate Trajectory Dashboard'!$B$12:$D$96,3,FALSE)/1000,'Rate Trajectory Report'!C9) -> 0 | D11: =IF(INDEX('Rate Trajectory Calc'!$A$6:$CQ$92,MATCH('Rate Trajectory Report'!$B11,'Rate Trajectory Calc'!$A$6:$A$92,0),MATCH('Rate Trajectory Report'!D$5,'Rate Trajectory Calc'!$A$6:$CQ$6,0))=0," ",INDEX('Rate Trajectory Calc'!$A$6:$CQ$92,MATCH('Rate Trajectory Report'!$B11,'Rate Trajectory Calc'!$A$6:$A$92,0),MATCH('Rate Trajectory Report'!D$5,'Rate Trajectory Calc'!$A$6:$CQ$6,0))/1000) ->  | E11: =IF(INDEX('Rate Trajectory Calc'!$A$6:$CQ$92,MATCH('Rate Trajectory Report'!$B11,'Rate Trajectory Calc'!$A$6:$A$92,0),MATCH('Rate Trajectory Report'!E$5,'Rate Trajectory Calc'!$A$6:$CQ$6,0))=0," ",INDEX('Rate Trajectory Calc'!$A$6:$CQ$92,MATCH('Rate Trajectory Report'!$B11,'Rate Trajectory Calc'!$A$6:$A$92,0),MATCH('Rate Trajectory Report'!E$5,'Rate Trajectory Calc'!$A$6:$CQ$6,0))/1000) ->  | F11: =IF(INDEX('Rate Trajectory Calc'!$A$6:$CQ$92,MATCH('Rate Trajectory Report'!$B11,'Rate Trajectory Calc'!$A$6:$A$92,0),MATCH('Rate Trajectory Report'!F$5,'Rate Trajectory Calc'!$A$6:$CQ$6,0))=0," ",INDEX('Rate Trajectory Calc'!$A$6:$CQ$92,MATCH('Rate Trajectory Report'!$B11,'Rate Trajectory Calc'!$A$6:$A$92,0),MATCH('Rate Trajectory Report'!F$5,'Rate Trajectory Calc'!$A$6:$CQ$6,0))/1000) ->  | G11: =IF(INDEX('Rate Trajectory Calc'!$A$6:$CQ$92,MATCH('Rate Trajectory Report'!$B11,'Rate Trajectory Calc'!$A$6:$A$92,0),MATCH('Rate Trajectory Report'!G$5,'Rate Trajectory Calc'!$A$6:$CQ$6,0))=0," ",INDEX('Rate Trajectory Calc'!$A$6:$CQ$92,MATCH('Rate Trajectory Report'!$B11,'Rate Trajectory Calc'!$A$6:$A$92,0),MATCH('Rate Trajectory Report'!G$5,'Rate Trajectory Calc'!$A$6:$CQ$6,0))/1000) ->  | H11: =IF(INDEX('Rate Trajectory Calc'!$A$6:$CQ$92,MATCH('Rate Trajectory Report'!$B11,'Rate Trajectory Calc'!$A$6:$A$92,0),MATCH('Rate Trajectory Report'!H$5,'Rate Trajectory Calc'!$A$6:$CQ$6,0))=0," ",INDEX('Rate Trajectory Calc'!$A$6:$CQ$92,MATCH('Rate Trajectory Report'!$B11,'Rate Trajectory Calc'!$A$6:$A$92,0),MATCH('Rate Trajectory Report'!H$5,'Rate Trajectory Calc'!$A$6:$CQ$6,0))/1000) ->  | I11: =IF(INDEX('Rate Trajectory Calc'!$A$6:$CQ$92,MATCH('Rate Trajectory Report'!$B11,'Rate Trajectory Calc'!$A$6:$A$92,0),MATCH('Rate Trajectory Report'!I$5,'Rate Trajectory Calc'!$A$6:$CQ$6,0))=0," ",INDEX('Rate Trajectory Calc'!$A$6:$CQ$92,MATCH('Rate Trajectory Report'!$B11,'Rate Trajectory Calc'!$A$6:$A$92,0),MATCH('Rate Trajectory Report'!I$5,'Rate Trajectory Calc'!$A$6:$CQ$6,0))/1000) ->  | J11: =IF(INDEX('Rate Trajectory Calc'!$A$6:$CQ$92,MATCH('Rate Trajectory Report'!$B11,'Rate Trajectory Calc'!$A$6:$A$92,0),MATCH('Rate Trajectory Report'!J$5,'Rate Trajectory Calc'!$A$6:$CQ$6,0))=0," ",INDEX('Rate Trajectory Calc'!$A$6:$CQ$92,MATCH('Rate Trajectory Report'!$B11,'Rate Trajectory Calc'!$A$6:$A$92,0),MATCH('Rate Trajectory Report'!J$5,'Rate Trajectory Calc'!$A$6:$CQ$6,0))/1000) ->  | K11: =IF(INDEX('Rate Trajectory Calc'!$A$6:$CQ$92,MATCH('Rate Trajectory Report'!$B11,'Rate Trajectory Calc'!$A$6:$A$92,0),MATCH('Rate Trajectory Report'!K$5,'Rate Trajectory Calc'!$A$6:$CQ$6,0))=0," ",INDEX('Rate Trajectory Calc'!$A$6:$CQ$92,MATCH('Rate Trajectory Report'!$B11,'Rate Trajectory Calc'!$A$6:$A$92,0),MATCH('Rate Trajectory Report'!K$5,'Rate Trajectory Calc'!$A$6:$CQ$6,0))/1000) ->  | L11: =IF(INDEX('Rate Trajectory Calc'!$A$6:$CQ$92,MATCH('Rate Trajectory Report'!$B11,'Rate Trajectory Calc'!$A$6:$A$92,0),MATCH('Rate Trajectory Report'!L$5,'Rate Trajectory Calc'!$A$6:$CQ$6,0))=0," ",INDEX('Rate Trajectory Calc'!$A$6:$CQ$92,MATCH('Rate Trajectory Report'!$B11,'Rate Trajectory Calc'!$A$6:$A$92,0),MATCH('Rate Trajectory Report'!L$5,'Rate Trajectory Calc'!$A$6:$CQ$6,0))/1000) ->  | M11: =IF(INDEX('Rate Trajectory Calc'!$A$6:$CQ$92,MATCH('Rate Trajectory Report'!$B11,'Rate Trajectory Calc'!$A$6:$A$92,0),MATCH('Rate Trajectory Report'!M$5,'Rate Trajectory Calc'!$A$6:$CQ$6,0))=0," ",INDEX('Rate Trajectory Calc'!$A$6:$CQ$92,MATCH('Rate Trajectory Report'!$B11,'Rate Trajectory Calc'!$A$6:$A$92,0),MATCH('Rate Trajectory Report'!M$5,'Rate Trajectory Calc'!$A$6:$CQ$6,0))/1000) ->  | N11: =IF(INDEX('Rate Trajectory Calc'!$A$6:$CQ$92,MATCH('Rate Trajectory Report'!$B11,'Rate Trajectory Calc'!$A$6:$A$92,0),MATCH('Rate Trajectory Report'!N$5,'Rate Trajectory Calc'!$A$6:$CQ$6,0))=0," ",INDEX('Rate Trajectory Calc'!$A$6:$CQ$92,MATCH('Rate Trajectory Report'!$B11,'Rate Trajectory Calc'!$A$6:$A$92,0),MATCH('Rate Trajectory Report'!N$5,'Rate Trajectory Calc'!$A$6:$CQ$6,0))/1000) ->  | O11: =IF(INDEX('Rate Trajectory Calc'!$A$6:$CQ$92,MATCH('Rate Trajectory Report'!$B11,'Rate Trajectory Calc'!$A$6:$A$92,0),MATCH('Rate Trajectory Report'!O$5,'Rate Trajectory Calc'!$A$6:$CQ$6,0))=0," ",INDEX('Rate Trajectory Calc'!$A$6:$CQ$92,MATCH('Rate Trajectory Report'!$B11,'Rate Trajectory Calc'!$A$6:$A$92,0),MATCH('Rate Trajectory Report'!O$5,'Rate Trajectory Calc'!$A$6:$CQ$6,0))/1000) ->  | P11: =IF(INDEX('Rate Trajectory Calc'!$A$6:$CQ$92,MATCH('Rate Trajectory Report'!$B11,'Rate Trajectory Calc'!$A$6:$A$92,0),MATCH('Rate Trajectory Report'!P$5,'Rate Trajectory Calc'!$A$6:$CQ$6,0))=0," ",INDEX('Rate Trajectory Calc'!$A$6:$CQ$92,MATCH('Rate Trajectory Report'!$B11,'Rate Trajectory Calc'!$A$6:$A$92,0),MATCH('Rate Trajectory Report'!P$5,'Rate Trajectory Calc'!$A$6:$CQ$6,0))/1000) ->  | Q11: =IF(INDEX('Rate Trajectory Calc'!$A$6:$CQ$92,MATCH('Rate Trajectory Report'!$B11,'Rate Trajectory Calc'!$A$6:$A$92,0),MATCH('Rate Trajectory Report'!Q$5,'Rate Trajectory Calc'!$A$6:$CQ$6,0))=0," ",INDEX('Rate Trajectory Calc'!$A$6:$CQ$92,MATCH('Rate Trajectory Report'!$B11,'Rate Trajectory Calc'!$A$6:$A$92,0),MATCH('Rate Trajectory Report'!Q$5,'Rate Trajectory Calc'!$A$6:$CQ$6,0))/1000) ->  | R11: =IF(INDEX('Rate Trajectory Calc'!$A$6:$CQ$92,MATCH('Rate Trajectory Report'!$B11,'Rate Trajectory Calc'!$A$6:$A$92,0),MATCH('Rate Trajectory Report'!R$5,'Rate Trajectory Calc'!$A$6:$CQ$6,0))=0," ",INDEX('Rate Trajectory Calc'!$A$6:$CQ$92,MATCH('Rate Trajectory Report'!$B11,'Rate Trajectory Calc'!$A$6:$A$92,0),MATCH('Rate Trajectory Report'!R$5,'Rate Trajectory Calc'!$A$6:$CQ$6,0))/1000) ->  | S11: =IF(INDEX('Rate Trajectory Calc'!$A$6:$CQ$92,MATCH('Rate Trajectory Report'!$B11,'Rate Trajectory Calc'!$A$6:$A$92,0),MATCH('Rate Trajectory Report'!S$5,'Rate Trajectory Calc'!$A$6:$CQ$6,0))=0," ",INDEX('Rate Trajectory Calc'!$A$6:$CQ$92,MATCH('Rate Trajectory Report'!$B11,'Rate Trajectory Calc'!$A$6:$A$92,0),MATCH('Rate Trajectory Report'!S$5,'Rate Trajectory Calc'!$A$6:$CQ$6,0))/1000) ->  | T11: =IF(INDEX('Rate Trajectory Calc'!$A$6:$CQ$92,MATCH('Rate Trajectory Report'!$B11,'Rate Trajectory Calc'!$A$6:$A$92,0),MATCH('Rate Trajectory Report'!T$5,'Rate Trajectory Calc'!$A$6:$CQ$6,0))=0," ",INDEX('Rate Trajectory Calc'!$A$6:$CQ$92,MATCH('Rate Trajectory Report'!$B11,'Rate Trajectory Calc'!$A$6:$A$92,0),MATCH('Rate Trajectory Report'!T$5,'Rate Trajectory Calc'!$A$6:$CQ$6,0))/1000) ->  | U11: =IF(INDEX('Rate Trajectory Calc'!$A$6:$CQ$92,MATCH('Rate Trajectory Report'!$B11,'Rate Trajectory Calc'!$A$6:$A$92,0),MATCH('Rate Trajectory Report'!U$5,'Rate Trajectory Calc'!$A$6:$CQ$6,0))=0," ",INDEX('Rate Trajectory Calc'!$A$6:$CQ$92,MATCH('Rate Trajectory Report'!$B11,'Rate Trajectory Calc'!$A$6:$A$92,0),MATCH('Rate Trajectory Report'!U$5,'Rate Trajectory Calc'!$A$6:$CQ$6,0))/1000) ->  | V11: =IF(INDEX('Rate Trajectory Calc'!$A$6:$CQ$92,MATCH('Rate Trajectory Report'!$B11,'Rate Trajectory Calc'!$A$6:$A$92,0),MATCH('Rate Trajectory Report'!V$5,'Rate Trajectory Calc'!$A$6:$CQ$6,0))=0," ",INDEX('Rate Trajectory Calc'!$A$6:$CQ$92,MATCH('Rate Trajectory Report'!$B11,'Rate Trajectory Calc'!$A$6:$A$92,0),MATCH('Rate Trajectory Report'!V$5,'Rate Trajectory Calc'!$A$6:$CQ$6,0))/1000) ->  | W11: =IF(INDEX('Rate Trajectory Calc'!$A$6:$CQ$92,MATCH('Rate Trajectory Report'!$B11,'Rate Trajectory Calc'!$A$6:$A$92,0),MATCH('Rate Trajectory Report'!W$5,'Rate Trajectory Calc'!$A$6:$CQ$6,0))=0," ",INDEX('Rate Trajectory Calc'!$A$6:$CQ$92,MATCH('Rate Trajectory Report'!$B11,'Rate Trajectory Calc'!$A$6:$A$92,0),MATCH('Rate Trajectory Report'!W$5,'Rate Trajectory Calc'!$A$6:$CQ$6,0))/1000) ->  | X11: =IF(INDEX('Rate Trajectory Calc'!$A$6:$CQ$92,MATCH('Rate Trajectory Report'!$B11,'Rate Trajectory Calc'!$A$6:$A$92,0),MATCH('Rate Trajectory Report'!X$5,'Rate Trajectory Calc'!$A$6:$CQ$6,0))=0," ",INDEX('Rate Trajectory Calc'!$A$6:$CQ$92,MATCH('Rate Trajectory Report'!$B11,'Rate Trajectory Calc'!$A$6:$A$92,0),MATCH('Rate Trajectory Report'!X$5,'Rate Trajectory Calc'!$A$6:$CQ$6,0))/1000) ->  | Y11: =IF(INDEX('Rate Trajectory Calc'!$A$6:$CQ$92,MATCH('Rate Trajectory Report'!$B11,'Rate Trajectory Calc'!$A$6:$A$92,0),MATCH('Rate Trajectory Report'!Y$5,'Rate Trajectory Calc'!$A$6:$CQ$6,0))=0," ",INDEX('Rate Trajectory Calc'!$A$6:$CQ$92,MATCH('Rate Trajectory Report'!$B11,'Rate Trajectory Calc'!$A$6:$A$92,0),MATCH('Rate Trajectory Report'!Y$5,'Rate Trajectory Calc'!$A$6:$CQ$6,0))/1000) ->  | Z11: =IF(INDEX('Rate Trajectory Calc'!$A$6:$CQ$92,MATCH('Rate Trajectory Report'!$B11,'Rate Trajectory Calc'!$A$6:$A$92,0),MATCH('Rate Trajectory Report'!Z$5,'Rate Trajectory Calc'!$A$6:$CQ$6,0))=0," ",INDEX('Rate Trajectory Calc'!$A$6:$CQ$92,MATCH('Rate Trajectory Report'!$B11,'Rate Trajectory Calc'!$A$6:$A$92,0),MATCH('Rate Trajectory Report'!Z$5,'Rate Trajectory Calc'!$A$6:$CQ$6,0))/1000) ->  | AA11: =IF(INDEX('Rate Trajectory Calc'!$A$6:$CQ$92,MATCH('Rate Trajectory Report'!$B11,'Rate Trajectory Calc'!$A$6:$A$92,0),MATCH('Rate Trajectory Report'!AA$5,'Rate Trajectory Calc'!$A$6:$CQ$6,0))=0," ",INDEX('Rate Trajectory Calc'!$A$6:$CQ$92,MATCH('Rate Trajectory Report'!$B11,'Rate Trajectory Calc'!$A$6:$A$92,0),MATCH('Rate Trajectory Report'!AA$5,'Rate Trajectory Calc'!$A$6:$CQ$6,0))/1000) -> 
A12: 3 | B12: Hinkley Upgrade | C12: =IFERROR(VLOOKUP(B12,'Rate Trajectory Dashboard'!$B$12:$D$96,3,FALSE)/1000,'Rate Trajectory Report'!C10) -> 0 | D12: =IF(SUM(D10:D11)=0," ",SUBTOTAL(9,D10:D11)) ->  | E12: =IF(SUM(E10:E11)=0," ",SUBTOTAL(9,E10:E11)) -> 
B13: ='Rate Trajectory Dashboard'!B16 -> Billing Modernization (Distribution) - Year 2026 | C13: =IFERROR(VLOOKUP(B13,'Rate Trajectory Dashboard'!$B$12:$D$96,3,FALSE)/1000,'Rate Trajectory Report'!C11) -> 0 | D13: =IF(INDEX('Rate Trajectory Calc'!$A$6:$CQ$92,MATCH('Rate Trajectory Report'!$B13,'Rate Trajectory Calc'!$A$6:$A$92,0),MATCH('Rate Trajectory Report'!D$5,'Rate Trajectory Calc'!$A$6:$CQ$6,0))=0," ",INDEX('Rate Trajectory Calc'!$A$6:$CQ$92,MATCH('Rate Trajectory Report'!$B13,'Rate Trajectory Calc'!$A$6:$A$92,0),MATCH('Rate Trajectory Report'!D$5,'Rate Trajectory Calc'!$A$6:$CQ$6,0))/1000) -> 18.71217383 | E13: =IF(INDEX('Rate Trajectory Calc'!$A$6:$CQ$92,MATCH('Rate Trajectory Report'!$B13,'Rate Trajectory Calc'!$A$6:$A$92,0),MATCH('Rate Trajectory Report'!E$5,'Rate Trajectory Calc'!$A$6:$CQ$6,0))=0," ",INDEX('Rate Trajectory Calc'!$A$6:$CQ$92,MATCH('Rate Trajectory Report'!$B13,'Rate Trajectory Calc'!$A$6:$A$92,0),MATCH('Rate Trajectory Report'!E$5,'Rate Trajectory Calc'!$A$6:$CQ$6,0))/1000) ->  | F13: =IF(INDEX('Rate Trajectory Calc'!$A$6:$CQ$92,MATCH('Rate Trajectory Report'!$B13,'Rate Trajectory Calc'!$A$6:$A$92,0),MATCH('Rate Trajectory Report'!F$5,'Rate Trajectory Calc'!$A$6:$CQ$6,0))=0," ",INDEX('Rate Trajectory Calc'!$A$6:$CQ$92,MATCH('Rate Trajectory Report'!$B13,'Rate Trajectory Calc'!$A$6:$A$92,0),MATCH('Rate Trajectory Report'!F$5,'Rate Trajectory Calc'!$A$6:$CQ$6,0))/1000) ->  | G13: =IF(INDEX('Rate Trajectory Calc'!$A$6:$CQ$92,MATCH('Rate Trajectory Report'!$B13,'Rate Trajectory Calc'!$A$6:$A$92,0),MATCH('Rate Trajectory Report'!G$5,'Rate Trajectory Calc'!$A$6:$CQ$6,0))=0," ",INDEX('Rate Trajectory Calc'!$A$6:$CQ$92,MATCH('Rate Trajectory Report'!$B13,'Rate Trajectory Calc'!$A$6:$A$92,0),MATCH('Rate Trajectory Report'!G$5,'Rate Trajectory Calc'!$A$6:$CQ$6,0))/1000) ->  | H13: =IF(INDEX('Rate Trajectory Calc'!$A$6:$CQ$92,MATCH('Rate Trajectory Report'!$B13,'Rate Trajectory Calc'!$A$6:$A$92,0),MATCH('Rate Trajectory Report'!H$5,'Rate Trajectory Calc'!$A$6:$CQ$6,0))=0," ",INDEX('Rate Trajectory Calc'!$A$6:$CQ$92,MATCH('Rate Trajectory Report'!$B13,'Rate Trajectory Calc'!$A$6:$A$92,0),MATCH('Rate Trajectory Report'!H$5,'Rate Trajectory Calc'!$A$6:$CQ$6,0))/1000) ->  | I13: =IF(INDEX('Rate Trajectory Calc'!$A$6:$CQ$92,MATCH('Rate Trajectory Report'!$B13,'Rate Trajectory Calc'!$A$6:$A$92,0),MATCH('Rate Trajectory Report'!I$5,'Rate Trajectory Calc'!$A$6:$CQ$6,0))=0," ",INDEX('Rate Trajectory Calc'!$A$6:$CQ$92,MATCH('Rate Trajectory Report'!$B13,'Rate Trajectory Calc'!$A$6:$A$92,0),MATCH('Rate Trajectory Report'!I$5,'Rate Trajectory Calc'!$A$6:$CQ$6,0))/1000) ->  | J13: =IF(INDEX('Rate Trajectory Calc'!$A$6:$CQ$92,MATCH('Rate Trajectory Report'!$B13,'Rate Trajectory Calc'!$A$6:$A$92,0),MATCH('Rate Trajectory Report'!J$5,'Rate Trajectory Calc'!$A$6:$CQ$6,0))=0," ",INDEX('Rate Trajectory Calc'!$A$6:$CQ$92,MATCH('Rate Trajectory Report'!$B13,'Rate Trajectory Calc'!$A$6:$A$92,0),MATCH('Rate Trajectory Report'!J$5,'Rate Trajectory Calc'!$A$6:$CQ$6,0))/1000) ->  | K13: =IF(INDEX('Rate Trajectory Calc'!$A$6:$CQ$92,MATCH('Rate Trajectory Report'!$B13,'Rate Trajectory Calc'!$A$6:$A$92,0),MATCH('Rate Trajectory Report'!K$5,'Rate Trajectory Calc'!$A$6:$CQ$6,0))=0," ",INDEX('Rate Trajectory Calc'!$A$6:$CQ$92,MATCH('Rate Trajectory Report'!$B13,'Rate Trajectory Calc'!$A$6:$A$92,0),MATCH('Rate Trajectory Report'!K$5,'Rate Trajectory Calc'!$A$6:$CQ$6,0))/1000) ->  | L13: =IF(INDEX('Rate Trajectory Calc'!$A$6:$CQ$92,MATCH('Rate Trajectory Report'!$B13,'Rate Trajectory Calc'!$A$6:$A$92,0),MATCH('Rate Trajectory Report'!L$5,'Rate Trajectory Calc'!$A$6:$CQ$6,0))=0," ",INDEX('Rate Trajectory Calc'!$A$6:$CQ$92,MATCH('Rate Trajectory Report'!$B13,'Rate Trajectory Calc'!$A$6:$A$92,0),MATCH('Rate Trajectory Report'!L$5,'Rate Trajectory Calc'!$A$6:$CQ$6,0))/1000) ->  | M13: =IF(INDEX('Rate Trajectory Calc'!$A$6:$CQ$92,MATCH('Rate Trajectory Report'!$B13,'Rate Trajectory Calc'!$A$6:$A$92,0),MATCH('Rate Trajectory Report'!M$5,'Rate Trajectory Calc'!$A$6:$CQ$6,0))=0," ",INDEX('Rate Trajectory Calc'!$A$6:$CQ$92,MATCH('Rate Trajectory Report'!$B13,'Rate Trajectory Calc'!$A$6:$A$92,0),MATCH('Rate Trajectory Report'!M$5,'Rate Trajectory Calc'!$A$6:$CQ$6,0))/1000) ->  | N13: =IF(INDEX('Rate Trajectory Calc'!$A$6:$CQ$92,MATCH('Rate Trajectory Report'!$B13,'Rate Trajectory Calc'!$A$6:$A$92,0),MATCH('Rate Trajectory Report'!N$5,'Rate Trajectory Calc'!$A$6:$CQ$6,0))=0," ",INDEX('Rate Trajectory Calc'!$A$6:$CQ$92,MATCH('Rate Trajectory Report'!$B13,'Rate Trajectory Calc'!$A$6:$A$92,0),MATCH('Rate Trajectory Report'!N$5,'Rate Trajectory Calc'!$A$6:$CQ$6,0))/1000) ->  | O13: =IF(INDEX('Rate Trajectory Calc'!$A$6:$CQ$92,MATCH('Rate Trajectory Report'!$B13,'Rate Trajectory Calc'!$A$6:$A$92,0),MATCH('Rate Trajectory Report'!O$5,'Rate Trajectory Calc'!$A$6:$CQ$6,0))=0," ",INDEX('Rate Trajectory Calc'!$A$6:$CQ$92,MATCH('Rate Trajectory Report'!$B13,'Rate Trajectory Calc'!$A$6:$A$92,0),MATCH('Rate Trajectory Report'!O$5,'Rate Trajectory Calc'!$A$6:$CQ$6,0))/1000) ->  | P13: =IF(INDEX('Rate Trajectory Calc'!$A$6:$CQ$92,MATCH('Rate Trajectory Report'!$B13,'Rate Trajectory Calc'!$A$6:$A$92,0),MATCH('Rate Trajectory Report'!P$5,'Rate Trajectory Calc'!$A$6:$CQ$6,0))=0," ",INDEX('Rate Trajectory Calc'!$A$6:$CQ$92,MATCH('Rate Trajectory Report'!$B13,'Rate Trajectory Calc'!$A$6:$A$92,0),MATCH('Rate Trajectory Report'!P$5,'Rate Trajectory Calc'!$A$6:$CQ$6,0))/1000) -> -18.71217383 | Q13: =IF(INDEX('Rate Trajectory Calc'!$A$6:$CQ$92,MATCH('Rate Trajectory Report'!$B13,'Rate Trajectory Calc'!$A$6:$A$92,0),MATCH('Rate Trajectory Report'!Q$5,'Rate Trajectory Calc'!$A$6:$CQ$6,0))=0," ",INDEX('Rate Trajectory Calc'!$A$6:$CQ$92,MATCH('Rate Trajectory Report'!$B13,'Rate Trajectory Calc'!$A$6:$A$92,0),MATCH('Rate Trajectory Report'!Q$5,'Rate Trajectory Calc'!$A$6:$CQ$6,0))/1000) ->  | R13: =IF(INDEX('Rate Trajectory Calc'!$A$6:$CQ$92,MATCH('Rate Trajectory Report'!$B13,'Rate Trajectory Calc'!$A$6:$A$92,0),MATCH('Rate Trajectory Report'!R$5,'Rate Trajectory Calc'!$A$6:$CQ$6,0))=0," ",INDEX('Rate Trajectory Calc'!$A$6:$CQ$92,MATCH('Rate Trajectory Report'!$B13,'Rate Trajectory Calc'!$A$6:$A$92,0),MATCH('Rate Trajectory Report'!R$5,'Rate Trajectory Calc'!$A$6:$CQ$6,0))/1000) ->  | S13: =IF(INDEX('Rate Trajectory Calc'!$A$6:$CQ$92,MATCH('Rate Trajectory Report'!$B13,'Rate Trajectory Calc'!$A$6:$A$92,0),MATCH('Rate Trajectory Report'!S$5,'Rate Trajectory Calc'!$A$6:$CQ$6,0))=0," ",INDEX('Rate Trajectory Calc'!$A$6:$CQ$92,MATCH('Rate Trajectory Report'!$B13,'Rate Trajectory Calc'!$A$6:$A$92,0),MATCH('Rate Trajectory Report'!S$5,'Rate Trajectory Calc'!$A$6:$CQ$6,0))/1000) ->  | T13: =IF(INDEX('Rate Trajectory Calc'!$A$6:$CQ$92,MATCH('Rate Trajectory Report'!$B13,'Rate Trajectory Calc'!$A$6:$A$92,0),MATCH('Rate Trajectory Report'!T$5,'Rate Trajectory Calc'!$A$6:$CQ$6,0))=0," ",INDEX('Rate Trajectory Calc'!$A$6:$CQ$92,MATCH('Rate Trajectory Report'!$B13,'Rate Trajectory Calc'!$A$6:$A$92,0),MATCH('Rate Trajectory Report'!T$5,'Rate Trajectory Calc'!$A$6:$CQ$6,0))/1000) ->  | U13: =IF(INDEX('Rate Trajectory Calc'!$A$6:$CQ$92,MATCH('Rate Trajectory Report'!$B13,'Rate Trajectory Calc'!$A$6:$A$92,0),MATCH('Rate Trajectory Report'!U$5,'Rate Trajectory Calc'!$A$6:$CQ$6,0))=0," ",INDEX('Rate Trajectory Calc'!$A$6:$CQ$92,MATCH('Rate Trajectory Report'!$B13,'Rate Trajectory Calc'!$A$6:$A$92,0),MATCH('Rate Trajectory Report'!U$5,'Rate Trajectory Calc'!$A$6:$CQ$6,0))/1000) ->  | V13: =IF(INDEX('Rate Trajectory Calc'!$A$6:$CQ$92,MATCH('Rate Trajectory Report'!$B13,'Rate Trajectory Calc'!$A$6:$A$92,0),MATCH('Rate Trajectory Report'!V$5,'Rate Trajectory Calc'!$A$6:$CQ$6,0))=0," ",INDEX('Rate Trajectory Calc'!$A$6:$CQ$92,MATCH('Rate Trajectory Report'!$B13,'Rate Trajectory Calc'!$A$6:$A$92,0),MATCH('Rate Trajectory Report'!V$5,'Rate Trajectory Calc'!$A$6:$CQ$6,0))/1000) ->  | W13: =IF(INDEX('Rate Trajectory Calc'!$A$6:$CQ$92,MATCH('Rate Trajectory Report'!$B13,'Rate Trajectory Calc'!$A$6:$A$92,0),MATCH('Rate Trajectory Report'!W$5,'Rate Trajectory Calc'!$A$6:$CQ$6,0))=0," ",INDEX('Rate Trajectory Calc'!$A$6:$CQ$92,MATCH('Rate Trajectory Report'!$B13,'Rate Trajectory Calc'!$A$6:$A$92,0),MATCH('Rate Trajectory Report'!W$5,'Rate Trajectory Calc'!$A$6:$CQ$6,0))/1000) ->  | X13: =IF(INDEX('Rate Trajectory Calc'!$A$6:$CQ$92,MATCH('Rate Trajectory Report'!$B13,'Rate Trajectory Calc'!$A$6:$A$92,0),MATCH('Rate Trajectory Report'!X$5,'Rate Trajectory Calc'!$A$6:$CQ$6,0))=0," ",INDEX('Rate Trajectory Calc'!$A$6:$CQ$92,MATCH('Rate Trajectory Report'!$B13,'Rate Trajectory Calc'!$A$6:$A$92,0),MATCH('Rate Trajectory Report'!X$5,'Rate Trajectory Calc'!$A$6:$CQ$6,0))/1000) ->  | Y13: =IF(INDEX('Rate Trajectory Calc'!$A$6:$CQ$92,MATCH('Rate Trajectory Report'!$B13,'Rate Trajectory Calc'!$A$6:$A$92,0),MATCH('Rate Trajectory Report'!Y$5,'Rate Trajectory Calc'!$A$6:$CQ$6,0))=0," ",INDEX('Rate Trajectory Calc'!$A$6:$CQ$92,MATCH('Rate Trajectory Report'!$B13,'Rate Trajectory Calc'!$A$6:$A$92,0),MATCH('Rate Trajectory Report'!Y$5,'Rate Trajectory Calc'!$A$6:$CQ$6,0))/1000) ->  | Z13: =IF(INDEX('Rate Trajectory Calc'!$A$6:$CQ$92,MATCH('Rate Trajectory Report'!$B13,'Rate Trajectory Calc'!$A$6:$A$92,0),MATCH('Rate Trajectory Report'!Z$5,'Rate Trajectory Calc'!$A$6:$CQ$6,0))=0," ",INDEX('Rate Trajectory Calc'!$A$6:$CQ$92,MATCH('Rate Trajectory Report'!$B13,'Rate Trajectory Calc'!$A$6:$A$92,0),MATCH('Rate Trajectory Report'!Z$5,'Rate Trajectory Calc'!$A$6:$CQ$6,0))/1000) ->  | AA13: =IF(INDEX('Rate Trajectory Calc'!$A$6:$CQ$92,MATCH('Rate Trajectory Report'!$B13,'Rate Trajectory Calc'!$A$6:$A$92,0),MATCH('Rate Trajectory Report'!AA$5,'Rate Trajectory Calc'!$A$6:$CQ$6,0))=0," ",INDEX('Rate Trajectory Calc'!$A$6:$CQ$92,MATCH('Rate Trajectory Report'!$B13,'Rate Trajectory Calc'!$A$6:$A$92,0),MATCH('Rate Trajectory Report'!AA$5,'Rate Trajectory Calc'!$A$6:$CQ$6,0))/1000) -> 
B14: ='Rate Trajectory Dashboard'!B17 -> Billing Modernization (Distribution) - Year 2027 | C14: =IFERROR(VLOOKUP(B14,'Rate Trajectory Dashboard'!$B$12:$D$96,3,FALSE)/1000,'Rate Trajectory Report'!C12) -> 0 | D14: =IF(INDEX('Rate Trajectory Calc'!$A$6:$CQ$92,MATCH('Rate Trajectory Report'!$B14,'Rate Trajectory Calc'!$A$6:$A$92,0),MATCH('Rate Trajectory Report'!D$5,'Rate Trajectory Calc'!$A$6:$CQ$6,0))=0," ",INDEX('Rate Trajectory Calc'!$A$6:$CQ$92,MATCH('Rate Trajectory Report'!$B14,'Rate Trajectory Calc'!$A$6:$A$92,0),MATCH('Rate Trajectory Report'!D$5,'Rate Trajectory Calc'!$A$6:$CQ$6,0))/1000) ->  | E14: =IF(INDEX('Rate Trajectory Calc'!$A$6:$CQ$92,MATCH('Rate Trajectory Report'!$B14,'Rate Trajectory Calc'!$A$6:$A$92,0),MATCH('Rate Trajectory Report'!E$5,'Rate Trajectory Calc'!$A$6:$CQ$6,0))=0," ",INDEX('Rate Trajectory Calc'!$A$6:$CQ$92,MATCH('Rate Trajectory Report'!$B14,'Rate Trajectory Calc'!$A$6:$A$92,0),MATCH('Rate Trajectory Report'!E$5,'Rate Trajectory Calc'!$A$6:$CQ$6,0))/1000) ->  | F14: =IF(INDEX('Rate Trajectory Calc'!$A$6:$CQ$92,MATCH('Rate Trajectory Report'!$B14,'Rate Trajectory Calc'!$A$6:$A$92,0),MATCH('Rate Trajectory Report'!F$5,'Rate Trajectory Calc'!$A$6:$CQ$6,0))=0," ",INDEX('Rate Trajectory Calc'!$A$6:$CQ$92,MATCH('Rate Trajectory Report'!$B14,'Rate Trajectory Calc'!$A$6:$A$92,0),MATCH('Rate Trajectory Report'!F$5,'Rate Trajectory Calc'!$A$6:$CQ$6,0))/1000) ->  | G14: =IF(INDEX('Rate Trajectory Calc'!$A$6:$CQ$92,MATCH('Rate Trajectory Report'!$B14,'Rate Trajectory Calc'!$A$6:$A$92,0),MATCH('Rate Trajectory Report'!G$5,'Rate Trajectory Calc'!$A$6:$CQ$6,0))=0," ",INDEX('Rate Trajectory Calc'!$A$6:$CQ$92,MATCH('Rate Trajectory Report'!$B14,'Rate Trajectory Calc'!$A$6:$A$92,0),MATCH('Rate Trajectory Report'!G$5,'Rate Trajectory Calc'!$A$6:$CQ$6,0))/1000) ->  | H14: =IF(INDEX('Rate Trajectory Calc'!$A$6:$CQ$92,MATCH('Rate Trajectory Report'!$B14,'Rate Trajectory Calc'!$A$6:$A$92,0),MATCH('Rate Trajectory Report'!H$5,'Rate Trajectory Calc'!$A$6:$CQ$6,0))=0," ",INDEX('Rate Trajectory Calc'!$A$6:$CQ$92,MATCH('Rate Trajectory Report'!$B14,'Rate Trajectory Calc'!$A$6:$A$92,0),MATCH('Rate Trajectory Report'!H$5,'Rate Trajectory Calc'!$A$6:$CQ$6,0))/1000) ->  | I14: =IF(INDEX('Rate Trajectory Calc'!$A$6:$CQ$92,MATCH('Rate Trajectory Report'!$B14,'Rate Trajectory Calc'!$A$6:$A$92,0),MATCH('Rate Trajectory Report'!I$5,'Rate Trajectory Calc'!$A$6:$CQ$6,0))=0," ",INDEX('Rate Trajectory Calc'!$A$6:$CQ$92,MATCH('Rate Trajectory Report'!$B14,'Rate Trajectory Calc'!$A$6:$A$92,0),MATCH('Rate Trajectory Report'!I$5,'Rate Trajectory Calc'!$A$6:$CQ$6,0))/1000) ->  | J14: =IF(INDEX('Rate Trajectory Calc'!$A$6:$CQ$92,MATCH('Rate Trajectory Report'!$B14,'Rate Trajectory Calc'!$A$6:$A$92,0),MATCH('Rate Trajectory Report'!J$5,'Rate Trajectory Calc'!$A$6:$CQ$6,0))=0," ",INDEX('Rate Trajectory Calc'!$A$6:$CQ$92,MATCH('Rate Trajectory Report'!$B14,'Rate Trajectory Calc'!$A$6:$A$92,0),MATCH('Rate Trajectory Report'!J$5,'Rate Trajectory Calc'!$A$6:$CQ$6,0))/1000) ->  | K14: =IF(INDEX('Rate Trajectory Calc'!$A$6:$CQ$92,MATCH('Rate Trajectory Report'!$B14,'Rate Trajectory Calc'!$A$6:$A$92,0),MATCH('Rate Trajectory Report'!K$5,'Rate Trajectory Calc'!$A$6:$CQ$6,0))=0," ",INDEX('Rate Trajectory Calc'!$A$6:$CQ$92,MATCH('Rate Trajectory Report'!$B14,'Rate Trajectory Calc'!$A$6:$A$92,0),MATCH('Rate Trajectory Report'!K$5,'Rate Trajectory Calc'!$A$6:$CQ$6,0))/1000) ->  | L14: =IF(INDEX('Rate Trajectory Calc'!$A$6:$CQ$92,MATCH('Rate Trajectory Report'!$B14,'Rate Trajectory Calc'!$A$6:$A$92,0),MATCH('Rate Trajectory Report'!L$5,'Rate Trajectory Calc'!$A$6:$CQ$6,0))=0," ",INDEX('Rate Trajectory Calc'!$A$6:$CQ$92,MATCH('Rate Trajectory Report'!$B14,'Rate Trajectory Calc'!$A$6:$A$92,0),MATCH('Rate Trajectory Report'!L$5,'Rate Trajectory Calc'!$A$6:$CQ$6,0))/1000) ->  | M14: =IF(INDEX('Rate Trajectory Calc'!$A$6:$CQ$92,MATCH('Rate Trajectory Report'!$B14,'Rate Trajectory Calc'!$A$6:$A$92,0),MATCH('Rate Trajectory Report'!M$5,'Rate Trajectory Calc'!$A$6:$CQ$6,0))=0," ",INDEX('Rate Trajectory Calc'!$A$6:$CQ$92,MATCH('Rate Trajectory Report'!$B14,'Rate Trajectory Calc'!$A$6:$A$92,0),MATCH('Rate Trajectory Report'!M$5,'Rate Trajectory Calc'!$A$6:$CQ$6,0))/1000) ->  | N14: =IF(INDEX('Rate Trajectory Calc'!$A$6:$CQ$92,MATCH('Rate Trajectory Report'!$B14,'Rate Trajectory Calc'!$A$6:$A$92,0),MATCH('Rate Trajectory Report'!N$5,'Rate Trajectory Calc'!$A$6:$CQ$6,0))=0," ",INDEX('Rate Trajectory Calc'!$A$6:$CQ$92,MATCH('Rate Trajectory Report'!$B14,'Rate Trajectory Calc'!$A$6:$A$92,0),MATCH('Rate Trajectory Report'!N$5,'Rate Trajectory Calc'!$A$6:$CQ$6,0))/1000) ->  | O14: =IF(INDEX('Rate Trajectory Calc'!$A$6:$CQ$92,MATCH('Rate Trajectory Report'!$B14,'Rate Trajectory Calc'!$A$6:$A$92,0),MATCH('Rate Trajectory Report'!O$5,'Rate Trajectory Calc'!$A$6:$CQ$6,0))=0," ",INDEX('Rate Trajectory Calc'!$A$6:$CQ$92,MATCH('Rate Trajectory Report'!$B14,'Rate Trajectory Calc'!$A$6:$A$92,0),MATCH('Rate Trajectory Report'!O$5,'Rate Trajectory Calc'!$A$6:$CQ$6,0))/1000) ->  | P14: =IF(INDEX('Rate Trajectory Calc'!$A$6:$CQ$92,MATCH('Rate Trajectory Report'!$B14,'Rate Trajectory Calc'!$A$6:$A$92,0),MATCH('Rate Trajectory Report'!P$5,'Rate Trajectory Calc'!$A$6:$CQ$6,0))=0," ",INDEX('Rate Trajectory Calc'!$A$6:$CQ$92,MATCH('Rate Trajectory Report'!$B14,'Rate Trajectory Calc'!$A$6:$A$92,0),MATCH('Rate Trajectory Report'!P$5,'Rate Trajectory Calc'!$A$6:$CQ$6,0))/1000) -> 17.75134183 | Q14: =IF(INDEX('Rate Trajectory Calc'!$A$6:$CQ$92,MATCH('Rate Trajectory Report'!$B14,'Rate Trajectory Calc'!$A$6:$A$92,0),MATCH('Rate Trajectory Report'!Q$5,'Rate Trajectory Calc'!$A$6:$CQ$6,0))=0," ",INDEX('Rate Trajectory Calc'!$A$6:$CQ$92,MATCH('Rate Trajectory Report'!$B14,'Rate Trajectory Calc'!$A$6:$A$92,0),MATCH('Rate Trajectory Report'!Q$5,'Rate Trajectory Calc'!$A$6:$CQ$6,0))/1000) ->  | R14: =IF(INDEX('Rate Trajectory Calc'!$A$6:$CQ$92,MATCH('Rate Trajectory Report'!$B14,'Rate Trajectory Calc'!$A$6:$A$92,0),MATCH('Rate Trajectory Report'!R$5,'Rate Trajectory Calc'!$A$6:$CQ$6,0))=0," ",INDEX('Rate Trajectory Calc'!$A$6:$CQ$92,MATCH('Rate Trajectory Report'!$B14,'Rate Trajectory Calc'!$A$6:$A$92,0),MATCH('Rate Trajectory Report'!R$5,'Rate Trajectory Calc'!$A$6:$CQ$6,0))/1000) ->  | S14: =IF(INDEX('Rate Trajectory Calc'!$A$6:$CQ$92,MATCH('Rate Trajectory Report'!$B14,'Rate Trajectory Calc'!$A$6:$A$92,0),MATCH('Rate Trajectory Report'!S$5,'Rate Trajectory Calc'!$A$6:$CQ$6,0))=0," ",INDEX('Rate Trajectory Calc'!$A$6:$CQ$92,MATCH('Rate Trajectory Report'!$B14,'Rate Trajectory Calc'!$A$6:$A$92,0),MATCH('Rate Trajectory Report'!S$5,'Rate Trajectory Calc'!$A$6:$CQ$6,0))/1000) ->  | T14: =IF(INDEX('Rate Trajectory Calc'!$A$6:$CQ$92,MATCH('Rate Trajectory Report'!$B14,'Rate Trajectory Calc'!$A$6:$A$92,0),MATCH('Rate Trajectory Report'!T$5,'Rate Trajectory Calc'!$A$6:$CQ$6,0))=0," ",INDEX('Rate Trajectory Calc'!$A$6:$CQ$92,MATCH('Rate Trajectory Report'!$B14,'Rate Trajectory Calc'!$A$6:$A$92,0),MATCH('Rate Trajectory Report'!T$5,'Rate Trajectory Calc'!$A$6:$CQ$6,0))/1000) ->  | U14: =IF(INDEX('Rate Trajectory Calc'!$A$6:$CQ$92,MATCH('Rate Trajectory Report'!$B14,'Rate Trajectory Calc'!$A$6:$A$92,0),MATCH('Rate Trajectory Report'!U$5,'Rate Trajectory Calc'!$A$6:$CQ$6,0))=0," ",INDEX('Rate Trajectory Calc'!$A$6:$CQ$92,MATCH('Rate Trajectory Report'!$B14,'Rate Trajectory Calc'!$A$6:$A$92,0),MATCH('Rate Trajectory Report'!U$5,'Rate Trajectory Calc'!$A$6:$CQ$6,0))/1000) ->  | V14: =IF(INDEX('Rate Trajectory Calc'!$A$6:$CQ$92,MATCH('Rate Trajectory Report'!$B14,'Rate Trajectory Calc'!$A$6:$A$92,0),MATCH('Rate Trajectory Report'!V$5,'Rate Trajectory Calc'!$A$6:$CQ$6,0))=0," ",INDEX('Rate Trajectory Calc'!$A$6:$CQ$92,MATCH('Rate Trajectory Report'!$B14,'Rate Trajectory Calc'!$A$6:$A$92,0),MATCH('Rate Trajectory Report'!V$5,'Rate Trajectory Calc'!$A$6:$CQ$6,0))/1000) ->  | W14: =IF(INDEX('Rate Trajectory Calc'!$A$6:$CQ$92,MATCH('Rate Trajectory Report'!$B14,'Rate Trajectory Calc'!$A$6:$A$92,0),MATCH('Rate Trajectory Report'!W$5,'Rate Trajectory Calc'!$A$6:$CQ$6,0))=0," ",INDEX('Rate Trajectory Calc'!$A$6:$CQ$92,MATCH('Rate Trajectory Report'!$B14,'Rate Trajectory Calc'!$A$6:$A$92,0),MATCH('Rate Trajectory Report'!W$5,'Rate Trajectory Calc'!$A$6:$CQ$6,0))/1000) ->  | X14: =IF(INDEX('Rate Trajectory Calc'!$A$6:$CQ$92,MATCH('Rate Trajectory Report'!$B14,'Rate Trajectory Calc'!$A$6:$A$92,0),MATCH('Rate Trajectory Report'!X$5,'Rate Trajectory Calc'!$A$6:$CQ$6,0))=0," ",INDEX('Rate Trajectory Calc'!$A$6:$CQ$92,MATCH('Rate Trajectory Report'!$B14,'Rate Trajectory Calc'!$A$6:$A$92,0),MATCH('Rate Trajectory Report'!X$5,'Rate Trajectory Calc'!$A$6:$CQ$6,0))/1000) ->  | Y14: =IF(INDEX('Rate Trajectory Calc'!$A$6:$CQ$92,MATCH('Rate Trajectory Report'!$B14,'Rate Trajectory Calc'!$A$6:$A$92,0),MATCH('Rate Trajectory Report'!Y$5,'Rate Trajectory Calc'!$A$6:$CQ$6,0))=0," ",INDEX('Rate Trajectory Calc'!$A$6:$CQ$92,MATCH('Rate Trajectory Report'!$B14,'Rate Trajectory Calc'!$A$6:$A$92,0),MATCH('Rate Trajectory Report'!Y$5,'Rate Trajectory Calc'!$A$6:$CQ$6,0))/1000) ->  | Z14: =IF(INDEX('Rate Trajectory Calc'!$A$6:$CQ$92,MATCH('Rate Trajectory Report'!$B14,'Rate Trajectory Calc'!$A$6:$A$92,0),MATCH('Rate Trajectory Report'!Z$5,'Rate Trajectory Calc'!$A$6:$CQ$6,0))=0," ",INDEX('Rate Trajectory Calc'!$A$6:$CQ$92,MATCH('Rate Trajectory Report'!$B14,'Rate Trajectory Calc'!$A$6:$A$92,0),MATCH('Rate Trajectory Report'!Z$5,'Rate Trajectory Calc'!$A$6:$CQ$6,0))/1000) ->  | AA14: =IF(INDEX('Rate Trajectory Calc'!$A$6:$CQ$92,MATCH('Rate Trajectory Report'!$B14,'Rate Trajectory Calc'!$A$6:$A$92,0),MATCH('Rate Trajectory Report'!AA$5,'Rate Trajectory Calc'!$A$6:$CQ$6,0))=0," ",INDEX('Rate Trajectory Calc'!$A$6:$CQ$92,MATCH('Rate Trajectory Report'!$B14,'Rate Trajectory Calc'!$A$6:$A$92,0),MATCH('Rate Trajectory Report'!AA$5,'Rate Trajectory Calc'!$A$6:$CQ$6,0))/1000) -> 
B15: ='Rate Trajectory Dashboard'!B18 -> Billing Modernization (Distribution) - Year 2028 | C15: =IFERROR(VLOOKUP(B15,'Rate Trajectory Dashboard'!$B$12:$D$96,3,FALSE)/1000,'Rate Trajectory Report'!C13) -> 0 | D15: =IF(INDEX('Rate Trajectory Calc'!$A$6:$CQ$92,MATCH('Rate Trajectory Report'!$B15,'Rate Trajectory Calc'!$A$6:$A$92,0),MATCH('Rate Trajectory Report'!D$5,'Rate Trajectory Calc'!$A$6:$CQ$6,0))=0," ",INDEX('Rate Trajectory Calc'!$A$6:$CQ$92,MATCH('Rate Trajectory Report'!$B15,'Rate Trajectory Calc'!$A$6:$A$92,0),MATCH('Rate Trajectory Report'!D$5,'Rate Trajectory Calc'!$A$6:$CQ$6,0))/1000) ->  | E15: =IF(INDEX('Rate Trajectory Calc'!$A$6:$CQ$92,MATCH('Rate Trajectory Report'!$B15,'Rate Trajectory Calc'!$A$6:$A$92,0),MATCH('Rate Trajectory Report'!E$5,'Rate Trajectory Calc'!$A$6:$CQ$6,0))=0," ",INDEX('Rate Trajectory Calc'!$A$6:$CQ$92,MATCH('Rate Trajectory Report'!$B15,'Rate Trajectory Calc'!$A$6:$A$92,0),MATCH('Rate Trajectory Report'!E$5,'Rate Trajectory Calc'!$A$6:$CQ$6,0))/1000) ->  | F15: =IF(INDEX('Rate Trajectory Calc'!$A$6:$CQ$92,MATCH('Rate Trajectory Report'!$B15,'Rate Trajectory Calc'!$A$6:$A$92,0),MATCH('Rate Trajectory Report'!F$5,'Rate Trajectory Calc'!$A$6:$CQ$6,0))=0," ",INDEX('Rate Trajectory Calc'!$A$6:$CQ$92,MATCH('Rate Trajectory Report'!$B15,'Rate Trajectory Calc'!$A$6:$A$92,0),MATCH('Rate Trajectory Report'!F$5,'Rate Trajectory Calc'!$A$6:$CQ$6,0))/1000) ->  | G15: =IF(INDEX('Rate Trajectory Calc'!$A$6:$CQ$92,MATCH('Rate Trajectory Report'!$B15,'Rate Trajectory Calc'!$A$6:$A$92,0),MATCH('Rate Trajectory Report'!G$5,'Rate Trajectory Calc'!$A$6:$CQ$6,0))=0," ",INDEX('Rate Trajectory Calc'!$A$6:$CQ$92,MATCH('Rate Trajectory Report'!$B15,'Rate Trajectory Calc'!$A$6:$A$92,0),MATCH('Rate Trajectory Report'!G$5,'Rate Trajectory Calc'!$A$6:$CQ$6,0))/1000) ->  | H15: =IF(INDEX('Rate Trajectory Calc'!$A$6:$CQ$92,MATCH('Rate Trajectory Report'!$B15,'Rate Trajectory Calc'!$A$6:$A$92,0),MATCH('Rate Trajectory Report'!H$5,'Rate Trajectory Calc'!$A$6:$CQ$6,0))=0," ",INDEX('Rate Trajectory Calc'!$A$6:$CQ$92,MATCH('Rate Trajectory Report'!$B15,'Rate Trajectory Calc'!$A$6:$A$92,0),MATCH('Rate Trajectory Report'!H$5,'Rate Trajectory Calc'!$A$6:$CQ$6,0))/1000) ->  | I15: =IF(INDEX('Rate Trajectory Calc'!$A$6:$CQ$92,MATCH('Rate Trajectory Report'!$B15,'Rate Trajectory Calc'!$A$6:$A$92,0),MATCH('Rate Trajectory Report'!I$5,'Rate Trajectory Calc'!$A$6:$CQ$6,0))=0," ",INDEX('Rate Trajectory Calc'!$A$6:$CQ$92,MATCH('Rate Trajectory Report'!$B15,'Rate Trajectory Calc'!$A$6:$A$92,0),MATCH('Rate Trajectory Report'!I$5,'Rate Trajectory Calc'!$A$6:$CQ$6,0))/1000) ->  | J15: =IF(INDEX('Rate Trajectory Calc'!$A$6:$CQ$92,MATCH('Rate Trajectory Report'!$B15,'Rate Trajectory Calc'!$A$6:$A$92,0),MATCH('Rate Trajectory Report'!J$5,'Rate Trajectory Calc'!$A$6:$CQ$6,0))=0," ",INDEX('Rate Trajectory Calc'!$A$6:$CQ$92,MATCH('Rate Trajectory Report'!$B15,'Rate Trajectory Calc'!$A$6:$A$92,0),MATCH('Rate Trajectory Report'!J$5,'Rate Trajectory Calc'!$A$6:$CQ$6,0))/1000) ->  | K15: =IF(INDEX('Rate Trajectory Calc'!$A$6:$CQ$92,MATCH('Rate Trajectory Report'!$B15,'Rate Trajectory Calc'!$A$6:$A$92,0),MATCH('Rate Trajectory Report'!K$5,'Rate Trajectory Calc'!$A$6:$CQ$6,0))=0," ",INDEX('Rate Trajectory Calc'!$A$6:$CQ$92,MATCH('Rate Trajectory Report'!$B15,'Rate Trajectory Calc'!$A$6:$A$92,0),MATCH('Rate Trajectory Report'!K$5,'Rate Trajectory Calc'!$A$6:$CQ$6,0))/1000) ->  | L15: =IF(INDEX('Rate Trajectory Calc'!$A$6:$CQ$92,MATCH('Rate Trajectory Report'!$B15,'Rate Trajectory Calc'!$A$6:$A$92,0),MATCH('Rate Trajectory Report'!L$5,'Rate Trajectory Calc'!$A$6:$CQ$6,0))=0," ",INDEX('Rate Trajectory Calc'!$A$6:$CQ$92,MATCH('Rate Trajectory Report'!$B15,'Rate Trajectory Calc'!$A$6:$A$92,0),MATCH('Rate Trajectory Report'!L$5,'Rate Trajectory Calc'!$A$6:$CQ$6,0))/1000) ->  | M15: =IF(INDEX('Rate Trajectory Calc'!$A$6:$CQ$92,MATCH('Rate Trajectory Report'!$B15,'Rate Trajectory Calc'!$A$6:$A$92,0),MATCH('Rate Trajectory Report'!M$5,'Rate Trajectory Calc'!$A$6:$CQ$6,0))=0," ",INDEX('Rate Trajectory Calc'!$A$6:$CQ$92,MATCH('Rate Trajectory Report'!$B15,'Rate Trajectory Calc'!$A$6:$A$92,0),MATCH('Rate Trajectory Report'!M$5,'Rate Trajectory Calc'!$A$6:$CQ$6,0))/1000) ->  | N15: =IF(INDEX('Rate Trajectory Calc'!$A$6:$CQ$92,MATCH('Rate Trajectory Report'!$B15,'Rate Trajectory Calc'!$A$6:$A$92,0),MATCH('Rate Trajectory Report'!N$5,'Rate Trajectory Calc'!$A$6:$CQ$6,0))=0," ",INDEX('Rate Trajectory Calc'!$A$6:$CQ$92,MATCH('Rate Trajectory Report'!$B15,'Rate Trajectory Calc'!$A$6:$A$92,0),MATCH('Rate Trajectory Report'!N$5,'Rate Trajectory Calc'!$A$6:$CQ$6,0))/1000) ->  | O15: =IF(INDEX('Rate Trajectory Calc'!$A$6:$CQ$92,MATCH('Rate Trajectory Report'!$B15,'Rate Trajectory Calc'!$A$6:$A$92,0),MATCH('Rate Trajectory Report'!O$5,'Rate Trajectory Calc'!$A$6:$CQ$6,0))=0," ",INDEX('Rate Trajectory Calc'!$A$6:$CQ$92,MATCH('Rate Trajectory Report'!$B15,'Rate Trajectory Calc'!$A$6:$A$92,0),MATCH('Rate Trajectory Report'!O$5,'Rate Trajectory Calc'!$A$6:$CQ$6,0))/1000) ->  | P15: =IF(INDEX('Rate Trajectory Calc'!$A$6:$CQ$92,MATCH('Rate Trajectory Report'!$B15,'Rate Trajectory Calc'!$A$6:$A$92,0),MATCH('Rate Trajectory Report'!P$5,'Rate Trajectory Calc'!$A$6:$CQ$6,0))=0," ",INDEX('Rate Trajectory Calc'!$A$6:$CQ$92,MATCH('Rate Trajectory Report'!$B15,'Rate Trajectory Calc'!$A$6:$A$92,0),MATCH('Rate Trajectory Report'!P$5,'Rate Trajectory Calc'!$A$6:$CQ$6,0))/1000) ->  | Q15: =IF(INDEX('Rate Trajectory Calc'!$A$6:$CQ$92,MATCH('Rate Trajectory Report'!$B15,'Rate Trajectory Calc'!$A$6:$A$92,0),MATCH('Rate Trajectory Report'!Q$5,'Rate Trajectory Calc'!$A$6:$CQ$6,0))=0," ",INDEX('Rate Trajectory Calc'!$A$6:$CQ$92,MATCH('Rate Trajectory Report'!$B15,'Rate Trajectory Calc'!$A$6:$A$92,0),MATCH('Rate Trajectory Report'!Q$5,'Rate Trajectory Calc'!$A$6:$CQ$6,0))/1000) ->  | R15: =IF(INDEX('Rate Trajectory Calc'!$A$6:$CQ$92,MATCH('Rate Trajectory Report'!$B15,'Rate Trajectory Calc'!$A$6:$A$92,0),MATCH('Rate Trajectory Report'!R$5,'Rate Trajectory Calc'!$A$6:$CQ$6,0))=0," ",INDEX('Rate Trajectory Calc'!$A$6:$CQ$92,MATCH('Rate Trajectory Report'!$B15,'Rate Trajectory Calc'!$A$6:$A$92,0),MATCH('Rate Trajectory Report'!R$5,'Rate Trajectory Calc'!$A$6:$CQ$6,0))/1000) ->  | S15: =IF(INDEX('Rate Trajectory Calc'!$A$6:$CQ$92,MATCH('Rate Trajectory Report'!$B15,'Rate Trajectory Calc'!$A$6:$A$92,0),MATCH('Rate Trajectory Report'!S$5,'Rate Trajectory Calc'!$A$6:$CQ$6,0))=0," ",INDEX('Rate Trajectory Calc'!$A$6:$CQ$92,MATCH('Rate Trajectory Report'!$B15,'Rate Trajectory Calc'!$A$6:$A$92,0),MATCH('Rate Trajectory Report'!S$5,'Rate Trajectory Calc'!$A$6:$CQ$6,0))/1000) ->  | T15: =IF(INDEX('Rate Trajectory Calc'!$A$6:$CQ$92,MATCH('Rate Trajectory Report'!$B15,'Rate Trajectory Calc'!$A$6:$A$92,0),MATCH('Rate Trajectory Report'!T$5,'Rate Trajectory Calc'!$A$6:$CQ$6,0))=0," ",INDEX('Rate Trajectory Calc'!$A$6:$CQ$92,MATCH('Rate Trajectory Report'!$B15,'Rate Trajectory Calc'!$A$6:$A$92,0),MATCH('Rate Trajectory Report'!T$5,'Rate Trajectory Calc'!$A$6:$CQ$6,0))/1000) ->  | U15: =IF(INDEX('Rate Trajectory Calc'!$A$6:$CQ$92,MATCH('Rate Trajectory Report'!$B15,'Rate Trajectory Calc'!$A$6:$A$92,0),MATCH('Rate Trajectory Report'!U$5,'Rate Trajectory Calc'!$A$6:$CQ$6,0))=0," ",INDEX('Rate Trajectory Calc'!$A$6:$CQ$92,MATCH('Rate Trajectory Report'!$B15,'Rate Trajectory Calc'!$A$6:$A$92,0),MATCH('Rate Trajectory Report'!U$5,'Rate Trajectory Calc'!$A$6:$CQ$6,0))/1000) ->  | V15: =IF(INDEX('Rate Trajectory Calc'!$A$6:$CQ$92,MATCH('Rate Trajectory Report'!$B15,'Rate Trajectory Calc'!$A$6:$A$92,0),MATCH('Rate Trajectory Report'!V$5,'Rate Trajectory Calc'!$A$6:$CQ$6,0))=0," ",INDEX('Rate Trajectory Calc'!$A$6:$CQ$92,MATCH('Rate Trajectory Report'!$B15,'Rate Trajectory Calc'!$A$6:$A$92,0),MATCH('Rate Trajectory Report'!V$5,'Rate Trajectory Calc'!$A$6:$CQ$6,0))/1000) ->  | W15: =IF(INDEX('Rate Trajectory Calc'!$A$6:$CQ$92,MATCH('Rate Trajectory Report'!$B15,'Rate Trajectory Calc'!$A$6:$A$92,0),MATCH('Rate Trajectory Report'!W$5,'Rate Trajectory Calc'!$A$6:$CQ$6,0))=0," ",INDEX('Rate Trajectory Calc'!$A$6:$CQ$92,MATCH('Rate Trajectory Report'!$B15,'Rate Trajectory Calc'!$A$6:$A$92,0),MATCH('Rate Trajectory Report'!W$5,'Rate Trajectory Calc'!$A$6:$CQ$6,0))/1000) ->  | X15: =IF(INDEX('Rate Trajectory Calc'!$A$6:$CQ$92,MATCH('Rate Trajectory Report'!$B15,'Rate Trajectory Calc'!$A$6:$A$92,0),MATCH('Rate Trajectory Report'!X$5,'Rate Trajectory Calc'!$A$6:$CQ$6,0))=0," ",INDEX('Rate Trajectory Calc'!$A$6:$CQ$92,MATCH('Rate Trajectory Report'!$B15,'Rate Trajectory Calc'!$A$6:$A$92,0),MATCH('Rate Trajectory Report'!X$5,'Rate Trajectory Calc'!$A$6:$CQ$6,0))/1000) ->  | Y15: =IF(INDEX('Rate Trajectory Calc'!$A$6:$CQ$92,MATCH('Rate Trajectory Report'!$B15,'Rate Trajectory Calc'!$A$6:$A$92,0),MATCH('Rate Trajectory Report'!Y$5,'Rate Trajectory Calc'!$A$6:$CQ$6,0))=0," ",INDEX('Rate Trajectory Calc'!$A$6:$CQ$92,MATCH('Rate Trajectory Report'!$B15,'Rate Trajectory Calc'!$A$6:$A$92,0),MATCH('Rate Trajectory Report'!Y$5,'Rate Trajectory Calc'!$A$6:$CQ$6,0))/1000) ->  | Z15: =IF(INDEX('Rate Trajectory Calc'!$A$6:$CQ$92,MATCH('Rate Trajectory Report'!$B15,'Rate Trajectory Calc'!$A$6:$A$92,0),MATCH('Rate Trajectory Report'!Z$5,'Rate Trajectory Calc'!$A$6:$CQ$6,0))=0," ",INDEX('Rate Trajectory Calc'!$A$6:$CQ$92,MATCH('Rate Trajectory Report'!$B15,'Rate Trajectory Calc'!$A$6:$A$92,0),MATCH('Rate Trajectory Report'!Z$5,'Rate Trajectory Calc'!$A$6:$CQ$6,0))/1000) ->  | AA15: =IF(INDEX('Rate Trajectory Calc'!$A$6:$CQ$92,MATCH('Rate Trajectory Report'!$B15,'Rate Trajectory Calc'!$A$6:$A$92,0),MATCH('Rate Trajectory Report'!AA$5,'Rate Trajectory Calc'!$A$6:$CQ$6,0))=0," ",INDEX('Rate Trajectory Calc'!$A$6:$CQ$92,MATCH('Rate Trajectory Report'!$B15,'Rate Trajectory Calc'!$A$6:$A$92,0),MATCH('Rate Trajectory Report'!AA$5,'Rate Trajectory Calc'!$A$6:$CQ$6,0))/1000) -> 
